Workbook

Sheet Design the Converter
A1: LMR36503E-Q1 65VIN, 300mAOUT Converter Design Tool
O2: http://www.ti.com/product/lm5175
A3: About | C3: xx | F3: = Input Box | O3: TERMS OF USE
A5: Step 1: Operating Specifications
D6: Input Voltage – Min, VIN(min) | E6: 6 | F6: V
D7: Input Voltage – Nom, VIN(nom) | E7: 28 | F7: V
D8: Input Voltage – Max, VIN(max) | E8: 36 | F8: V
D9: Output Voltage, VOUT | E9: 3.3 | F9: V
D10: Full Load Output Current, IOUT | E10: 0.3 | F10: A
D11: Switching Frequency, FSW | E11: 2200 | F11: kHz
D12: Frequency Set Resistor, RT | E12: ='Variable Management'!C339 -> 7.15 | F12: ='Variable Management'!E339 -> kΩ
D13: Ambient Temperature, TA | E13: 25 | F13: °C
A15: Step 2: Buck Inductor
D16: Inductance for 35% Ripple Current at VIN(nom) | E16: =Lopt*1000000 -> 12.60204082 | F16: µH
D17: Buck Inductance, LO | E17: 12 | F17: µH
D18: Inductor DCR at 25°C | E18: 25 | F18: mΩ
D19: Inductor Pk-Pk Ripple Current at VIN(nom) | E19: ='Variable Management'!B60 -> 0.1128586541 | F19: Apk-pk
D20: DIL as a % of Full Load at VIN(nom) | E20: ='Variable Management'!D60*100 -> 37.61955136 | F20: %
D21: Peak Inductor Current at VIN(max) and Full Load | E21: ='Variable Management'!B97 -> 0.3581675223 | F21: Apk
D22: Peak Inductor Current Limit at VIN(nom) | E22: =Ipk_OCP_Vinnom -> 0.4866361585 | F22: Apk
D23: Estimate Inductor Core Loss at VIN(nom) | E23: 0.1 | F23: W
A25: Step 3: Output Capacitors
D26: Desired Output Voltage Ripple | E26: 10 | F26: mVpk-pk
D27: Effective COUT Value to Meet Ripple Spec | E27: ='Variable Management'!B111 -> 10 | F27: µF
D28: Desired Crossover Frequency | E28: 62 | F28: =" kHz " -> kHz
D29: Effective COUT Value to Meet Crossover Spec | E29: ='Variable Management'!B204 -> 28.64025239 | F29: µF
D30: Output Capacitance (derated), COUT | E30: 22 | F30: µF
D31: Output Cap ESR (Max) to Meet Ripple Spec | E31: ='Variable Management'!B115 -> 88.56876178 | F31: mΩ
D32: Output Capacitor ESR | E32: 1 | F32: mΩ
D33: Resulting Output Voltage Ripple (max) | E33: ='Variable Management'!B117*1000 -> 0.3125604741 | F33: mVpk-pk
D34: Output Capacitor RMS Current (max) | E34: ='Variable Management'!B104 -> 0.03358303464 | F34: A (rms)
A36: Step 4: Input Capacitors
D37: Input Voltage Ripple Spec | E37: 120 | F37: mVpk-pk
D38: Minimum Input Capacitance | E38: ='Variable Management'!B134 -> 4.7 | F38: µF
D39: Input Capacitance (derated), CIN | E39: 20 | F39: µF
D40: Maximum Permitted ESR | E40: ='Variable Management'!B139 -> N/A | F40: mΩ | L40: =CHOOSE(SCH_MODE, "", "** For Single-Output Operation in 2-Phase Mode, tie MODE to VDDA and use FB1 to set VOUT **", "** For Single-Output Operation in 3-Phase Mode, tie both MODE pins to VDDA. Use FB1 of master IC to set VOUT. Connect FB2 of master IC to AGND. Connect FB2 of slave IC to VDDA to configure it as a slave **", "** For Single-Output Operation in 4-Phase Mode, tie both MODE pins to VDDA. Use FB1 of master IC to set VOUT. Connect FB2 of master IC to AGND. Connect FB2 of slave IC to VDDA to configure it as a slave **") -> 
D41: Input Capacitor ESR | E41: 2 | F41: mΩ
D42: Resulting Input Voltage Ripple (max) | E42: ='Variable Management'!B144*1000 -> 2.420880499 | F42: mVpk-pk | L42: =CHOOSE(SCH_MODE, "", "** For Single-Output Operation in 2-Phase Mode, tie MODE to VDDA and use FB1 to set VOUT **", "** For Single-Output Operation in 3-Phase Mode, tie both MODE pins to VDDA. Use FB1 of master IC to set VOUT. Connect FB2 of master IC to AGND. Connect FB2 of slave IC to VDDA to configure it as a slave **", "** For Single-Output Operation in 4-Phase Mode, tie both MODE pins to VDDA. Use FB1 of master IC to set VOUT. Connect FB2 of master IC to AGND. Connect FB2 of slave IC to VDDA to configure it as a slave **") -> 
D43: Input Capacitor RMS Current (max) | E43: ='Variable Management'!B127 -> 0.15 | F43: A (rms)
A45: Step 5: Feedback Network
D46: =CHOOSE(LM64k_Fixed_Vout, "Upper Feedback Resistance", "* Tie FB to VOUT for a Fixed 5V Output", "* Tie FB to VOUT for a Fixed 3.3V Output") -> Upper Feedback Resistance | E46: 100 | F46: kΩ
D47: Lower Feedback Resistance (E96), RFBB | E47: =IF(Vout=Vref,"OPEN",Rfb2_u/1000) -> 43.2 | F47: =IF(Vout=Vref,"","kΩ") -> kΩ
D48: Feedforward Capacitance, CFF | E48: 10 | F48: pF
A50: Step 6: VIN UVLO
D51: Desired VIN UVLO Turn-On Threshold | E51: 3.5 | F51: V
D52: UVLO Divider Upper Resistance, RENT | E52: 175 | F52: kΩ
D53: UVLO Divider Lower Resistance (E96), RENB | E53: =Renb_u/1000 -> 100 | F53: =IF(Vout=Vref,"","kΩ") -> kΩ
D54: Actual VIN UVLO Turn-On Threshold | E54: =1.263/E53*(E52+E53) -> 3.47325 | F54: V
D55: Actual VIN UVLO Turn-Off Threshold | E55: =E54*0.72 -> 2.50074 | F55: V
A58: Step 7: Power Loss & Thermals
D59: IC Power Dissipation | E59: ='Efficiency Calculations'!BE109 -> 1.107392569 | F59: W
D60: Junction Temperature (estimate) | E60: ='Variable Management'!B283 -> 118.4639328 | F60: °C
E61: =CHOOSE(Ext_VCC, "* Tie FB pin to VOUT", "* Tie FB pin to VOUT Resistor Divider") -> * Tie FB pin to VOUT Resistor Divider
A67: Pole/Zero Frequencies
D68: Load Pole Frequency, FP-LOAD | E68: =Fp_dominant/1000 -> 0.812848111 | F68: kHz
D69: Output Cap ESR Zero Frequency, FZ-ESR | E69: =Fesr/1000000 -> 7.234315603 | F69: MHz
D70: Error Amp Dominant Pole Frequency, FP-EA | E70: =Fp1_u -> 7.519012769 | F70: Hz
D71: Compensator Zero Frequency, FZ-COMP | E71: =Fz1_u/1000 -> 5.894627529 | F71: kHz
D72: Compensator Pole Frequency, FP-COMP | E72: =Fp2_u/1000 -> 120.6105294 | F72: kHz

Sheet Schematic Management (hidden)
A1: =VARIANT -> 1 | N1: 3.3V or 5V fixed (FB1/2)
A2: =CHOOSE(VARIANT, "LM63460_sch", "LM63460_sch", "LM64460_sch", "LM64460_fixed_VOUT_sch", "LM64460_fixed_VOUT_sch") -> LM63460_sch | J2: With/without dither (DITH) | N2: With/without VOUT connected to VCCX
J3: FPWM or DEM (DEMB)
J4: Shunt or inductor DCR current sensing

Sheet Variable Management (hidden)
A1: EXCEL Variables Names/Calculations
B2: Input from user = | E2: Good
B3: Output =
B4: Constant
A5: Variable Name | B5: Value | C5: STD Units | E5: Notes | I5: Iteration
A6: Step 1: Operational Specs
A7: VIN_min | B7: ='Design the Converter'!E6 -> 6 | C7: V | D7: Minimum input voltage | I7: 1
A8: VIN_nom | B8: ='Design the Converter'!E7 -> 28 | C8: V | D8: Nominal input voltage | K8: Use CFF | L8: 1 | N8: LM64460-Q1 3.3Vout | O8: =IF(Vout = 3.3, 1, 0) -> 1 | T8: Dual Outputs | U8: 1 | W8: FPWM | X8: 1 | Z8: =CHOOSE(SCH_MODE, "Bode Plot (Ch1)", "Bode Plot - 2 Ph", "Bode Plot - 3 Ph", "Bode Plot - 4 Ph") -> Bode Plot (Ch1) | AA8: 1
A9: VIN_max | B9: ='Design the Converter'!E8 -> 36 | C9: V | D9: Maximum input voltage | K9: No CFF | L9: 2 | N9: LM64460-Q1 5Vout | O9: =IF(Vout = 5, 1, 0) -> 0 | T9: Single Output – 2 Phases | U9: 2 | W9: DEM | X9: 2 | Z9: =IF(MODE=1, "Bode Plot (Ch2)", "N/A - Do Not Use") -> Bode Plot (Ch2) | AA9: 2
L10: 1 | N10: LM64460 Fixed Vout | O10: =IF(AND(GPN=3,Vout=3.3),3,IF(AND(GPN=3,Vout=5),2,1)) -> 1 | P10: 1 = No, 2 = 5V, 3 = 3.3V | T10: Single Output – 3 Phases | U10: 3 | W10: FPWM/DEM | X10: 2 | Z10: BODE_PLOT_TYPE | AA10: 1
A11: Vout | B11: ='Design the Converter'!E9 -> 3.3 | C11: V | D11: Output voltage | K11: NO_FF_CAP | L11: =IF(L10=2, TRUE, FALSE) -> FALSE | O11: =AND(GPN=3, OR(O8,O9)) -> FALSE | T11: Single Output – 4 Phases | U11: 4
A12: Iout | B12: ='Design the Converter'!E10 -> 0.3 | C12: A | D12: Output current | F12: Iout-max | G12: =CHOOSE(GPN, 6, 6) -> 6 | H12: A | I12: 1 | T12: Single/Dual Yes/No | U12: 1
I13: 1 | T13: MODE (Single/Dual), DUAL = 1, SINGLE = 2 | U13: =IF(U12=1, 1, 2) -> 1 | W13: Fixed Output | X13: 1
A14: Rout | B14: =Vout/Iout -> 11 | C14: W | D14: Load resistance | N14: LMR36503E-Q1 Adjust | O14: 1 | T14: SINGLE OUTPUT (1 = YES) | U14: =IF(U12=1, 2, 1) -> 2 | W14: Adjustable Output | X14: 2
A15: Pout | B15: =Vout*Iout -> 0.99 | C15: W | D15: Output power | N15: LMR36503E-Q1 Fixed | O15: 2 | T15: Number of Phases | U15: =SCH_MODE -> 1 | W15: Ext_VCC | X15: 2
N16: LM64460-Q1 | O16: 3
A17: Efficiency | B17: 0.9 | D17: Estimate of efficiency | N17: LM64460-Q1 5V | O17: 4
A18: Pin | B18: =Pout/Efficiency -> 1.1 | C18: W | D18: Calculate input power assuming finite efficiency | N18: LM64460-Q1 3.3V | O18: 5
L19: GPN | O19: 1 | W19: 2.2 MHz Fsw Setting | X19: 1
A20: Iin_Vinmin | B20: =Pin/VIN_min -> 0.1833333333 | C20: A | N20: =CHOOSE(GPN, "LM63460-Q1", "LM63460-Q1", "LM64460-Q1") -> LM63460-Q1 | W20: 440 kHz Fsw Setting | X20: 2
A21: Iin_Vinnom | B21: =Pin/VIN_nom -> 0.03928571429 | C21: A | D21: Input currents at min, nom, max Vin | H21: =AND(OSC=1, OR(Fsw/1000>2530, Fsw/1000<1800)) -> FALSE | K21: Variant | L21: VARIANT | N21: =CHOOSE(VARIANT, "LM63460AAS","LM63460AFS", "LM64460APP", "LM64460BPP", "LM63460CPP") -> LM63460AAS | O21: =IF(AND(GPN=3,Vout=5),4,IF(AND(GPN=3,Vout=3.3),5,GPN)) -> 1 | W21: OSC | X21: 2
A22: Iin_Vinmax | B22: =Pin/VIN_max -> 0.03055555556 | C22: A | H22: =AND(OSC=2, OR(Fsw/1000>500, Fsw/1000<300)) -> TRUE
H23: =OR(H21,H22) -> TRUE
A24: Fsw | B24: ='Design the Converter'!E11*1000 -> 2200000 | C24: Hz | D24: Nominal switching frequency - determines RT resistor
A25: RT resistor to AGND | B25: =18286/((Fsw/1000)^1.021) -> 7.071395996 | C25: kΩ | I25: 1
A26: Tsw | B26: =1/Fsw -> 4.545454545e-07 | C26: sec | D26: Switching period
A27: Max crossover frequency = 20% Fsw | B27: =Fsw*0.2/1000 -> 440 | C27: kHz | F27: Min Crossover | G27: 10 | K27: Adjustable | L27: 1
A28: Vref | B28: 1 | C28: V | D28: Reference voltage | K28: 5V | L28: 2
A29: Rt | B29: ='Standard Value Calculator'!O12/1000 -> 7.15 | C29: kΩ | D29: Frequency set resistor | F29: =IF(OR((Fsw=440000),(Fsw=2200000)),"N/A",Rfadj/1000) -> N/A | K29: 3.3V | L29: 3
K30: Adjustable_NoRT | L30: 4
K31: 5V_NoRT | L31: 5
K32: 3.3V_NoRT | L32: 6
A33: Step 2: Buck Inductor | B33: Channel 1 | K33: Schematic setting | L33: =IF(No_RT, IF(Vout=3.3, 6, IF(Vout=5, 5, 4)),IF(Vout=3.3, 3, IF(Vout=5, 2, 1))) -> 6
A34: Don1 | B34: =Vout/VIN_nom -> 0.1178571429 | F34: Ideal Duty Cycle at VIN(nom)
A35: Doff1 | B35: =1-34:34 -> 0.8821428571 | F35: Ideal 1- Duty Cycle at VIN(nom)
A37: D_Vinmin | B37: =Vout/VIN_min -> 0.55
A38: D_Vinnom | B38: =Vout/VIN_nom -> 0.1178571429
A39: D_Vinmax | B39: =Vout/VIN_max -> 0.09166666667
A41: L_Vinnom | B41: =(VIN_nom-Vout)*D1_Vinnom/(Fsw*Iout*0.35) -> 1.260204082e-05 | C41: H | F41: Calculated inductance for 35% ripple at VIN(nom)
A42: L_slopecomp | B42: =2.5*Vout/Fsw -> 3.75e-06 | C42: H | F42: Calculated inductance based on one times inductor downslope
A44: Lopt | B44: =B41 -> 1.260204082e-05 | C44: H | F44: min of calculated inductances at VIN(min) and VIN(nom)
A45: L_actual_TPSM63602-03 | B45: =-0.0238*Iout^2-0.0868*Iout+2.0073 -> 1.979118 | C45: uH | F45: Calculate TOKO chip inductance based on entered load current value
A46: L_actual_TPSM63604-06 | B46: =-0.1304*Iout+2.32 -> 2.28088 | C46: uH | F46: Calculate MagLayers inductance based on entered load current value
A48: Lo | B48: ='Design the Converter'!E17*0.000001 -> 1.2e-05 | C48: H | F48: Chosen inductance
A49: Rdcr | B49: ='Design the Converter'!E18/1000 -> 0.025 | C49: W | F49: Chosen inductor DCR
A51: Don2 | B51: =(Vout+Iout*(Rdcr+Rdson2))/(Vin+Iout*(Rdson2-Rdson1)) -> 0.1214894684
A52: Doff2 | B52: =1-_Don2 -> 0.8785105316
A54: D_Vinmin_2 | B54: =(Vout+Iout*(Rdcr+Rdson2))/(VIN_min+Iout*(Rdson2-Rdson1)) -> 0.5732758621 | D54: =Vout/VIN_min -> 0.55 | F54: Duty cycles adjusted for DCR/Rdson voltage drops
A55: D_Vinnom_2 | B55: =(Vout+Iout*(Rdcr+Rdson2))/(VIN_nom+Iout*(Rdson2-Rdson1)) -> 0.1214894684 | D55: =Vout/VIN_nom -> 0.1178571429
A56: D_Vinmax_2 | B56: =(Vout+Iout*(Rdcr+Rdson2))/(VIN_max+Iout*(Rdson2-Rdson1)) -> 0.09442866689 | D56: =Vout/VIN_max -> 0.09166666667 | F56: =(Ts-0.000000085)/Ts -> 0.813 | G56: Dmax = [Ts-toff(min)]/Ts
A59: Iripple_Vinmin | B59: =(VIN_min-Vout-Iout*(Rdcr+Rdson1))*D1_Vinmin_2/(Fsw*Lf) -> 0.05481950431 | C59: A | D59: =B59/Iout -> 0.182731681 | F59: Ripple calculations include DCR and Rdson
A60: Iripple_Vinnom | B60: =(VIN_nom-Vout-Iout*(Rdcr+Rdson1))*D1_Vinnom_2/(Fsw*Lf) -> 0.1128586541 | C60: A | D60: =B60/Iout -> 0.3761955136 | F60: % ripple current at Vin-nom
A61: Iripple_Vinmax | B61: =(VIN_max-Vout-Iout*(Rdcr+Rdson1))*D1_Vinmax_2/(Fsw*Lf) -> 0.1163350446 | C61: A | D61: =B61/Iout -> 0.3877834818 | F61: Max inductor ripple current - it's at Vin-max
A63: Iinductor_rms_Vinmin | B63: =SQRT(Iout^2+(Iripple_Vinmin^2)/12) -> 0.3004170959 | C63: A
A64: Iinductor_rms_Vinnom | B64: =SQRT(Iout^2+(Iripple_Vinnom^2)/12) -> 0.301763853 | C64: A
A65: Iinudctor_rms_Vinmax | B65: =SQRT(Iout^2+(Iripple_Vinmax^2)/12) -> 0.3018738482 | C65: A
A68: Core loss estimate - Vin(nom) | B68: ='Design the Converter'!E23 -> 0.1 | C68: W
A71: Inductor copper temperature | B71: 125 | C71: °C
A72: Inductor DCR at hot | B72: =Rdcr*(1+Ltc*(B71-25))*1000 -> 34.825 | C72: mW
A75: Step 2b: Sense Resistors, Slope Comp, Current Limit
A77: Ilimit_inductor_Vinmin | B77: =Ipk_OCP_Vinmin -> 0.4369396552 | C77: A | F77: Peak inductor current at current limit inception
A78: Ilimit_inductor_Vinnom | B78: =Ipk_OCP_Vinnom -> 0.4866361585 | C78: A
A79: Ilimit_inductor_Vinmax | B79: =Ipk_OCP_Vinmax -> 0.4896128466 | C79: A
A81: CS threshold_min | B81: 0.068 | C81: V | D81: not applicable here
A82: CS threshold | B82: 0.075 | C82: V
A83: CS threshold_max | B83: 0.082 | C83: V
A85: Rs | B85: 0.55 | C85: W | F85: Current sense resistance Rs = high-side MOSFET Rdson
A87: Current limit setpoint - peak - Vin(min) | B87: =0.5-(1.1/10)*MAX(0, (D1_Vinmin_2)) -> 0.4369396552 | C87: A | E87: 10.3-3.6*MAX(0, (D1_Vinmin_2-0.35)) (original) | F87: Peak current limit (0.42A trimmed at ATE minus slope comp contribution) = min inductor sat current at hot
A88: Current limit setpoint - peak - Vin(nom) | B88: =0.5-(1.1/10)*MAX(0, (D1_Vinnom_2)) -> 0.4866361585 | C88: A
A89: Current limit setpoint - peak - Vin(max) | B89: =0.5-(1.1/10)*MAX(0, (D1_Vinmax_2)) -> 0.4896128466 | C89: A
A91: Iout_OCP_Vinmin | B91: =Ipk_OCP_Vinmin-Iripple_Vinmin/2 -> 0.409529903 | C91: A | F91: Current limit setpoints (i.e. IOUT) assuming no CS delay
A92: Iout_OCP_Vinnom | B92: =Ipk_OCP_Vinnom-Iripple_Vinnom/2 -> 0.4302068314 | C92: A
A93: Iout_OCP_Vinmax | B93: =Ipk_OCP_Vinmax-Iripple_Vinmax/2 -> 0.4314453244 | C93: A
A95: Ipk_full-load_Vinmin | B95: =Iout+Iripple_Vinmin/2 -> 0.3274097522 | C95: A
A96: Ipk_full-load_Vinnom | B96: =Iout+Iripple_Vinnom/2 -> 0.356429327 | C96: A
A97: Ipk_full-load_Vinmax | B97: =Iout+Iripple_Vinmax/2 -> 0.3581675223 | C97: A
A100: Step 3: Output Capacitor
A101: Icoutrms_VINmin | B101: =Iripple_Vinmin/SQRT(12) -> 0.01582502779 | C101: A | F101: Output cap RMS current
A102: Icoutrms_VINnom | B102: =Iripple_Vinnom/SQRT(12) -> 0.03257948716 | C102: A
A103: Icoutrms_VINmax | B103: =Iripple_Vinmax/SQRT(12) -> 0.03358303464 | C103: A
A104: Max Cout rms current | B104: =MAX(B101:B103) -> 0.03358303464 | C104: A
A106: Vripple1 | B106: ='Design the Converter'!E26/1000 -> 0.01 | C106: V | F106: Output voltage ripple spec(pk-pk)
A108: Output Ripple Spec (pk-pk) | B108: =Vo1_ripple*1000 -> 10 | C108: mV | F108: Vout ripple spec at Vin(nom)
A110: Coutmin | B110: =Iripple_Vinnom/(Fsw*8*Vo1_ripple) -> 6.412423528e-07 | C110: F | F110: Minimum output capacitnace | H110: =Vo2_ripple -> 0 | I110: 1
A111: Reported Coutmin | B111: =IF(Cout_min*1000000<10, 10,Cout_min*1000000) -> 10 | C111: uF
A112: Cout | B112: ='Design the Converter'!E30/1000000 -> 2.2e-05 | C112: F | F112: Chosen output capacitance | I112: 1
A113: Resrmax | B113: =SQRT((Vo1_ripple/Iripple_Vinnom)^2-(1/(Fsw*Cout*8))^2) -> 0.08856876178 | C113: W | F113: Max ESR before ripple exceeds Vripple1. Terms are squared because the voltage ripple from ESR and output capacitor are out of phase, so you need to treat the ripples like you're summing two orthogonal vectors. | I113: 1
A115: Reported Cout ESR max | B115: =IF(OR(CoutEsrMax>0.3, CoutEsrMax<0, (ISERROR(CoutEsrMax))), "N/A", CoutEsrMax*1000) -> 88.56876178 | C115: mΩ
A116: CoutEsr | B116: ='Design the Converter'!E32/1000 -> 0.001 | C116: W | F116: Chosen ESR | I116: 1 | K116: =ISERROR(CoutEsrMax) -> FALSE | L116: =ISERROR(B115) -> FALSE
A117: Vripple | B117: =Iripple_Vinnom*SQRT(Cout_ESR^2+(1/(8*Fsw*Cout))^2) -> 0.0003125604741 | C117: Vp-p | L117: =OR(CoutEsrMax>0.3,CoutEsrMax<0) -> FALSE
K118: =OR(TRUE, FALSE, TRUE) -> TRUE
A119: Step 4: Input Capacitor
A121: Icinrms_VINmin | B121: =SQRT(D1_Vinmin_2*(Iout^2*(1-D1_Vinmin_2)+Iripple_Vinmin^2/12)) -> 0.148863443 | C121: A | F121: Calculate input cap rms current | N121: A
A122: Icinrms_VINnom | B122: =SQRT(D1_Vinnom_2*(Iout^2*(1-D1_Vinnom_2)+Iripple_Vinnom^2/12)) -> 0.09866423712 | C122: A
A123: Icinrms_VINmax | B123: =SQRT(D1_Vinmax_2*(Iout^2*(1-D1_Vinmax_2)+Iripple_Vinmax^2/12)) -> 0.08833215155 | C123: A
A124: Max Cin rms current | B124: =MAX(B121:B123) -> 0.148863443 | C124: A
A126: Icinrms - max at D = 0.5 | B126: =Iout/2 -> 0.15 | C126: A
A127: Final result | B127: =IF(VIN_min<2*Vout, Iout/2, B121) -> 0.15 | C127: A | D127: …report this
A129: Vinripple1 | B129: ='Design the Converter'!E37/1000 -> 0.12 | C129: Vp-p | F129: Input voltage ripple spec (pk-pk)
F130: =Number_of_Phases -> 1
A131: Cinmin_Vinmax | B131: =Iout*D1_Vinmax*(1-D1_Vinmax)/(Vinripple1*Fsw) -> 9.461805556e-08 | C131: F | F131: Calculate cap at Vinmax and 50% duty cycle (Vin = 2*Vout)
A132: Cinmin_50%D | B132: =Iout*0.5*(1-0.5)/(Vinripple1*Fsw) -> 2.840909091e-07 | C132: F | F132: Buck 50% typically worst case
A133: Cinmin | B133: =IF(VIN_max<2*Vout, B131,B132) -> 2.840909091e-07 | C133: F
A134: Reported Cinmin | B134: =IF(Cinmin*1000000<4.7, 4.7,Cinmin*1000000) -> 4.7 | C134: uF | F134: …report this
A135: Cin | B135: ='Design the Converter'!E39/1000000 -> 2e-05 | C135: F | F135: Input capacitance
A136: CinEsrMax_Vinmax | B136: =-(Iout*D1_Vinmax*(1-D1_Vinmax)/(Cin*Fsw)-Vinripple1)/(Iout+Iripple_Vinmax/2) -> 0.3334537172 | C136: W
A137: CinEsrMax_50%D | B137: =-(Iout*0.5*(1-0.5)/(Cin*Fsw)-Vinripple1)/(Iout+Iripple_Vinmax/2) -> 0.3302796797 | C137: W | F137: Calculate ESR at Vinmax and 50% duty cycle (Vin = 2*Vout)
A138: CinEsrMax | B138: =IF(VIN_max<2*Vout, B136,B137) -> 0.3302796797 | C138: W
A139: Reported Cin ESR max | B139: =IF(OR(CinEsrMax>0.3, CinEsrMax<0), "N/A",CinEsrMax*1000) -> N/A | C139: mΩ | F139: …report this
A140: RCinEsr | B140: ='Design the Converter'!E41/1000 -> 0.002 | C140: W | F140: Input capacitance series resistance (ESR)
A142: Vinripple2_Vinmax | B142: =Iout*D1_Vinmax_2*(1-D1_Vinmax_2)/(Cin*Fsw)+(Iout +Iripple_Vinmax/2)*RCinEsr -> 0.001299370684 | C142: Vp-p
A143: Vinripple2_50%D | B143: =Iout*0.5*(1-0.5)/(Cin*Fsw)+(Iout +Iripple_Vinmax/2)*RCinEsr -> 0.002420880499 | C143: Vp-p | F143: Calculate ripple at Vinmax and 50% duty cycle (Vin = 2*Vout)
A144: Vinripple2 | B144: =IF(VIN_max<2*Vout, B142,B143) -> 0.002420880499 | C144: Vp-p | F144: …report highest of these
B146: =Iout*D1_Vinmax_2*(1-D1_Vinmax_2)/(Cin*Fsw) -> 0.0005830356393 | C146: Vp-p
A148: Step ?: Other Components - MODE
A150: RPG1/2 | B150: 100 | C150: kΩ
A151: RFB1/2 | C151: W | E151: Tie to VDDA or AGND for 3.3V/5V output, respectively.
A152: R_MODE | C152: W | E152: Tie to VDDA or AGND for Single/Dual operation, respectively.
A153: R_DEMB | C153: W | E153: Tie to VDDA or AGND for FPWM/DEM, respectively.
A156: Step 5: Feedback Network and Internal Compensation
A157: Pi | B157: 3.14159265 | D157: p
A158: CS Amp Gain (effective value) | B158: 1 | D158: *per Simplis | F158: Effective CS gain - depending on control architecture = 1/(Imod*Rdson_HS*0.73) = 1/(6*1.7*41mΩ*0.73)
A159: Ri | B159: 0.55 | C159: W | D159: Grabbed value from SIMPLIS model.Use slightly higher value to match bench | F159: Current Sense effective resistance = shunt resistor Rs * CS amp gain = 0.1343Ω
A161: Se_ext | B161: =B165/Ri*1000 -> 440000 | C161: A/s | F161: Slope Comp Slope - referred to inductor current
A162: Sn | B162: =(Vin-Vout)/Lf -> 2058333.333 | C162: A/s | F162: On-time Slope
A163: Sf | B163: =Vout/Lf -> 275000 | C163: A/s | F163: Off-time Slope
A165: Se_int | B165: =0.11*Fsw/1000 -> 242 | C165: mV/μs | D165: From SIMPLIS (1.1V amplitude, period of 1/fsw, *gain (6000/60000 | E165: originally 3.6*Ri*Fsw/1000 | F165: Slope Comp Slope - referred to IC
A166: Sn_int | B166: =Sn*Ri/1000 -> 1132.083333 | C166: mV/μs | F166: Upslope
A167: Sf_int | B167: =Sf*Ri/1000 -> 151.25 | C167: mV/μs | F167: Downslope
A169: mc_buck | B169: =1+Se_ext/Sn -> 1.213765182 | F169: mc = 1 + Se/Sn for peak current-mode buck
A170: k_buck | B170: =mc_buck*(1-D1_Vinnom_2) -> 1.066305495 | D170: PCM2 Bob Sheehan, equivalent variable for mc*D' | F170: mc*(1-d)
A172: mc | B172: =1+Se_ext/Sn -> 1.213765182
A173: k | B173: =mc_buck*(1-D1_Vinnom_2) -> 1.066305495 | D173: PCM2 Bob Sheehan, equivalent variable for mc*D'
A174: Q | B174: =1/Pi/(k-0.5) -> 0.5620815781 | D174: Q equation in PCM2 Bob Sheehan | F174: 1/(Pi*(k-0.5)) | H174: Q = 2/Pi = 0.636 gives ideal one-cycle damping
A176: Error Amp (EA)
A177: gm | B177: =15/1000000*1 -> 1.5e-05 | C177: S | F177: Error Amp Transconductance
A178: GBW | B178: 5 | C178: MHz | D178: Simplis (plotting TF across error amp_ | F178: EA gain-bandwidth product
A179: Cbw | B179: =gm/(2*Pi*GBW*1000000) -> 4.774648298e-13 | C179: F | F179: EA effective bandwidth limiting capacitance = gm/(2*Pi*GBW)
A181: RoEA | B181: =1057000000 -> 1057000000 | C181: W | D181: Simplis model (DCGain/GM) | F181: EA output resistance
A182: AEA | B182: =gm*RoEA*0.305 -> 4835.775 | C182: V/V | D182: Had to multiply by 0.77*6k/15.13k per simplis | F182: EA DC gain = gm*RoEA
A183: Afb | B183: =Vref/Vout -> 0.303030303 | C183: V/V | F183: Feedback gain from Vout to FB
A184: Acs | B184: =1/Ri -> 1.818181818 | F184: Acs = 1/Ri
A185: Am_buck | B185: =(Ro/Number_of_Phases)/Ri/((1+Ro/Number_of_Phases*(k-0.5)/(Fsw*Lf))) -> 16.1817453 | D185: Not used
A186: Am | B186: =Ro/Ri/((1+Ro*(k-0.5)/(Fsw*Lf))) -> 16.1817453 | D186: Vo/Vc (from modulator gain) | F186: Buck modulator gain
A188: Scaling factor to calculate Rcomp - buck | B188: =2*Pi*Ri/gm -> 230383.461 | F188: 2*Pi*Ri/gm -- scaling factor to calculate Rcomp given desired buck crossover frequency
A189: DC Gain is Adc = AEA*Afb*Am
A191: Rout | B191: =Rout -> 11 | C191: W | F191: Output Resistance (Load)
A193: Fp_load_buck | B193: =1/(2*Pi*Ro*Cout)+(k-0.5)/(2*Pi*Fsw*Lf*Cout) -> 812.848111 | C193: Hz | F193: Buck dominant pole frequency -- note slope comp influence
A194: Fp_dominant | B194: =Fload_u -> 812.848111 | C194: Hz
A195: Cbw | B195: =Cbw -> 4.774648298e-13 | C195: F | F195: Cbw
A196: Fp_EA | B196: =1/(2*Pi*(RoEA+Rcea1_u)*Cc1ea_u) -> 7.519012769 | C196: Hz | F196: Error Amp LF pole -- related to amplifier ouptut resistance and comp cap
A197: Fp_HF | B197: =1/(2*Pi*Rcea1_u*(Cc2ea_u+Cbw)) -> 120610.5294 | C197: Hz | F197: Error Amp HF pole cancels zero related to Output Cap ESR
A198: Fesr | B198: =1/(2*Pi*Cout*Cout_ESR) -> 7234315.603 | C198: Hz | F198: Cout ESR zero frequency
A199: F_mod | B199: =Fsw/2 -> 1100000 | C199: Hz | F199: Zero-order sample-and-hold effects of current-mode control modeled as pole at Fsw/2
A200: Fz_ff | B200: =IF(NO_FF_CAP=TRUE, 1000000000, 1/(2*Pi*Rfb1_*Cff_u*0.000000000001)) -> 159154.9433 | C200: Hz | D200: =Fz_ff/1000 -> 159.1549433 | E200: kHz
A201: Fp_ff | B201: =IF(NO_FF_CAP=TRUE, 1000000000, 1/(2*Pi*Rfb4_u*Cff_u*0.000000000001)) -> 527569.1638 | C201: Hz | D201: =Fp_ff/1000 -> 527.5691638 | E201: kHz
A203: Desired Crossover Frequency | B203: ='Design the Converter'!E28*1000 -> 62000 | C203: Hz
A204: Cout - for the Fc spec | B204: =Rcea1_u/Fcross/(2*Pi*Ri/(gm*Afb))*1000000 -> 28.64025239 | C204: uF | F204: Output cap to meet the crossover frequeny spec
A205: Rcea1 | B205: =Fcross*Cout*2*Pi*Ri/(gm*Afb) -> 1037002.035 | C205: W | F205: This component will largely determine the crossover frequency | K205: =Fcross/Fp_dominant/(gm*Afb*Am) -> 1037002.035
A206: Cc1ea, Cc3ea | B206: =10/(Rcea1*Fcross*2*Pi) -> 2.47541965e-11 | C206: F | F206: This along with Rcea1 will set a zero at Fcrossover/5 to optimize phase margin
A207: Cc2ea, Cc4ea | B207: =MAX(1/(Rcea1*2*Pi*Fesr)-Cbw, 1/(Rcea1*2*Pi*(Fsw/2))-Cbw) -> -3.379411768e-13 | C207: F | F207: This along with Rcea1 places a pole at the output cap ESR zero
A209: Chosen Compensation Components from the standard value sheet
A210: Rcea1_u | B210: 1350000 | C210: W | D210: Rzero1_simplis | F210: =1/(Rcea1*2*Pi*(Fsw/2))-Cbw -> -3.379411768e-13
A211: Cc1ea_u | B211: 2e-11 | C211: F | D211: Cpole1_simplis
A212: Cc2ea_u | B212: 5e-13 | C212: F | D212: Cpole2_simplis
A214: Resulting Pole/Zero Locations | F214: =Cout -> 2.2e-05 | G214: =Cout_ESR -> 0.001
A215: Fz1 | B215: =1/(2*Pi*Rcea1_u*Cc1ea_u) -> 5894.627529 | C215: Hz | F215: This zero is set at or close to the dominant load pole
A216: Fp2 | B216: =1/(2*Pi*Rcea1_u*(Cc1ea_u*(Cc2ea_u+Cbw)/(Cc1ea_u+Cc2ea_u+Cbw))) -> 126505.1569 | C216: Hz | F216: This pole cancels the zero from the Output Cap ESR
A218: Rfb1 | B218: ='Design the Converter'!E46*1000 -> 100000 | C218: W | F218: Lower Feedback Resistance - chosen by user
A219: Rfb2 | B219: =IF(Vout=Vref, "N/A", Vref/(Vout-Vref)*B218) -> 43478.26087 | C219: W | D219: =Rfb2_u -> 43200 | F219: Upper Feedback Resistance
A220: Rfb2_u | B220: =IF(Vout=Vref,"N/A",'Standard Value Calculator'!O11) -> 43200 | C220: W | F220: Std Value Upper Feedback Resistance
A221: Cff | B221: =1/(2*Pi*200000)/Rfb1_ -> 7.957747164e-12 | C221: F | D221: =1/(1/Rfb1_+1/Rfb2_u) -> 30167.59777 | E221: W | F221: Based on a 200kHz zero frequency
A222: Cff_u | B222: =IF('Design the Converter'!E48<0.1, 0.1, 'Design the Converter'!E48) -> 10 | C222: pF
A225: Step 6: UVLO Divider
A226: VIN UVLO turn-on voltage | B226: ='Design the Converter'!E51 -> 3.5 | C226: V
A227: VIN UVLO turn-off voltage | B227: ='Design the Converter'!E55 -> 2.50074 | C227: V
A228: Rent | B228: ='Design the Converter'!E52*1000 -> 175000 | C228: W
A229: Renb | B229: =B228*(1.263/(B226-1.263)) -> 98804.20206 | C229: W
A230: Renb_u | B230: ='Standard Value Calculator'!O7 -> 100000 | C230: W
A232: Step 7: Efficiency
A233: VAR | B233: 0
A234: Design
A235: Ta | B235: ='Design the Converter'!E13 -> 25 | C235: °C | D235: Ambient Temperature
A236: Components
A237: LTc | B237: =3930/1000000 -> 0.00393 | C237: %/°C | D237: Inductor DCR Temp Co
A238: θCA | B238: 22 | C238: °C/W | D238: Inductor Core-to-Ambient Thermal Resistance
A239: RCinEsr | B239: =RCinEsr -> 0.002 | C239: W | D239: Input Capacitor ESR
A241: Controller Characteristics
A242: VCC | B242: 3.15 | C242: V
A243: Top Driver
A244: RdsonDRT | B244: 0.5 | C244: W | D244: Drain-Source Resistance of Pullup High-side FET Driver
A245: RdsonDRT2 | B245: 0.5 | C245: W | D245: Drain-Source Resistance of Pulldown High-side FET Driver
A246: Bottom Driver
A247: RdsonDRB | B247: 0.5 | C247: W | D247: Drain-Source Resistance of Pullup Low-side FET Driver
A248: RdsonDRB2 | B248: 0.5 | C248: W | D248: Drain-Source Resistance of Pulldown Low-side FET Driver
A249: Deadtime
A250: Deadtime | B250: 5.55e-09 | C250: s | D250: Total Deadtime | G250: 5.55ns
A251: IQ
A252: IQ | B252: 3.5e-05 | C252: A | D252: Quiescent Current of MC-Q0 converter (current into VOUT/BIAS pin + VIN pin, non switching)
A254: High- & low-side MOSFETs - Ch1 | B254: Q1: high-side | D254: Q2: low-side
... 69 more rows

Sheet Schematic & BOM
A32: ="VIN = "&VIN_min&" V to "&VIN_max&" V, VOUT = "&Vout&" V, IOUT = "&Iout&" A, Fsw = "&Fsw/1000&" kHz" -> VIN = 6 V to 36 V, VOUT = 3.3 V, IOUT = 0.3 A, Fsw = 2200 kHz
A33: High-Efficiency Synchronous Buck DC/DC Converter BOM
A34: Count | B34: Ref Des | C34: Value | D34: Description | H34: Size | I34: Part Number | J34: MFR
A35: =ROUNDUP('Design the Converter'!E39/10,0) -> 2 | B35: CIN1, CIN2 | C35: 10 | D35: =C35 -> 10 | H35: 1210 | I35: Std | J35: Std
A36: 2 | B36: COUT | C36: 47 | D36: =C36 -> 47 | H36: 1210 | I36: Std | J36: Std
A37: 1 | B37: CVCC | C37: 1 | D37: =C37 -> 1 | H37: 0402 | I37: Std | J37: Std
A38: 1 | B38: CSYNC | C38: 1 | D38: =C38 -> 1 | H38: 0402 | I38: Std | J38: Std
A39: 1 | B39: CFF | C39: ='Variable Management'!D297 -> 10 | D39: 10 | H39: 0402 | I39: Std | J39: Std
A40: 1 | B40: LO | C40: ='Design the Converter'!E17 -> 12 | D40: ="Buck Inductor, "&Lf*1000000&" µH, "&Rdcr*1000&" mΩ, >"&ROUNDUP(Ipk_OCP_Vinmin*1.05,0)&" A" -> Buck Inductor, 12 µH, 25 mΩ, >1 A | H40: -- | I40: -- | J40: Various
A41: 1 | B41: RRT | C41: ='Design the Converter'!E12 -> 7.15 | D41: =C41 -> 7.15 | H41: 0402 | I41: Std | J41: Std
A42: 1 | B42: RFBT | C42: ='Design the Converter'!E46 -> 100 | D42: =C42 -> 100 | H42: 0402 | I42: Std | J42: Std
A43: 1 | B43: RFBB | C43: ='Design the Converter'!E47 -> 43.2 | D43: 43.2 | H43: 0402 | I43: Std | J43: Std
A44: 1 | B44: RENT | C44: ='Variable Management'!D300 -> 175 | D44: =C44 -> 175 | H44: 0402 | I44: Std | J44: Std
A45: 1 | B45: RENB | C45: ='Variable Management'!D301 -> 100 | D45: 100 | H45: 0402 | I45: Std | J45: Std
A46: 1 | B46: RPGOOD | C46: 100 | D46: 100 | H46: 0402 | I46: Std | J46: Std
A47: 1 | B47: U1 | C47: ='Variable Management'!N19 -> 0 | D47: =CHOOSE(GPN, "IC, LMR36503E-Q1 Synchronous Buck DC/DC Converter, 3V–65V Input, 0.3A Output", "IC, LMR36503E-Q1 Synchronous Buck DC/DC Converter, 3V–65V Input, 0.3A Output", "IC, LMR36503E-Q1 Synchronous Buck DC/DC Converter, 3V–65V Input, 0.3A Output") -> IC, LMR36503E-Q1 Synchronous Buck DC/DC Converter, 3V–65V Input, 0.3A Output | H47: VQFN-22 | I47: =CHOOSE(VARIANT, "LM63460AASQRYFTQ1", "LM63460AFSQRYFTQ1", "LM64460APPQRYFRQ1", "LM64460BPPQRYFRQ1", "LM64460CPPQRYFRQ1") -> LM63460AASQRYFTQ1 | J47: TI
A50: NOTES:
A51: ** Effective input and output capacitances should be appropriately derated for applied voltage and temperature, particularly with ceramics **

Sheet EVMs (hidden)
A1: LM63460-Q1 & LM64460-Q1 Converter Design Tool
B6: LM64460EVM-2MHZ (BSR173) PCB Layout

Sheet MOSFET Parameters (hidden)
A3: MOSFET Parameters
E4: Internal Power MOSFETs
E5: High-side | F5: Low-side
D6: On-State Resistance, RDS(on) | E6: 560 | F6: 280 | G6: mΩ
D7: Total Gate Charge, QG | E7: 3 | F7: 6 | G7: nC
D8: Gate-Drain Charge, QGD | E8: 0.26 | F8: 0.446 | G8: nC
D9: Gate-Source Charge, QGS | E9: 0.0622 | F9: 0.122 | G9: nC
D10: Output Charge, QOSS | E10: 4 | F10: 2 | G10: nC
D11: Output Capacitance, COSS | E11: 52.99 | F11: 101.84 | G11: pF
D12: Gate Resistance, RGATE | E12: 0 | F12: 0 | G12: Ω
D13: Transconductance, gFS | E13: 100 | F13: 100 | G13: S
D14: Gate-Source Miller Plateau Voltage, VTH | E14: 1.5 | F14: 1.5 | G14: V
D15: Body Diode Forward Voltage, VBD | E15: 0.866 | F15: 0.866 | G15: V
D16: Body Diode Rev Recovery Charge, QRR | E16: 4.5 | F16: 7 | G16: nC
D17: Thermal Resistance, θJA | E17: 23 | F17: 23 | G17: °C/W

Sheet Stability Calculations (hidden)
A2: Divider Network & EA Poles/Zeros | E2: Modulator | J2: Power Stage Poles/Zeros | M2: Complex Pole Pair | P2: Total System
B3: Afb1 | C3: =Afb -> 0.303030303 | D3: V/V | E3: Acs | F3: =Acs -> 1.818181818 | G3: A/V | H3: gm | I3: =gm -> 1.5e-05 | J3: z_ESR | K3: =Fesr -> 7234315.603 | L3: Hz | M3: p3 | N3: =Fsw/2 -> 1100000 | O3: Hz | P3: Adc | Q3: =Am*Afb*AEA -> 23712.5089 | R3: V/V
B4: EA zero, z1 | C4: =Fz1_u -> 5894.627529 | D4: Hz | E4: Am | F4: =Am -> 16.1817453 | G4: V/V | J4: p_dom | K4: =Fp_dominant -> 812.848111 | L4: Hz | M4: pterm1 | N4: =Q*pole3 -> 618289.7359 | P4: Crossover | Q4: =AI7 -> 24.976 | R4: kHz
B5: EA pole, p1 | C5: =Fp1_u -> 7.519012769 | D5: Hz | E5: Q | F5: =Q -> 0.5620815781 | M5: pterm2 | N5: =pole3^2 -> 1210000000000 | P5: Phase Margin | Q5: =AI9 -> 65.18182037 | R5: °
B6: Aea | C6: =AEA -> 4835.775 | D6: V/V | E6: mc | F6: =mc -> 1.213765182 | H6: FF zero, z5 | I6: =Fz_ff -> 159154.9433 | P6: radconv | Q6: =180/Pi -> 57.29577958 | AH6: XOVER SEARCH
B7: EA pole, p2 | C7: =Fp2_u -> 120610.5294 | D7: Hz | E7: k | F7: =k -> 1.066305495 | H7: FF pole, p5 | I7: =Fp_ff -> 527569.1638 | AH7: xover | AI7: =SUM(AH12:AH613)/1000 -> 24.976
AH9: phase margin | AI9: =SUM(AI13:AI613) -> 65.18182037
A10: Freq (Hz) | C10: Power Stage | I10: Error Amplifier | P10: FF Network | S10: Sampling Double Pole | U10: System Response | AB10: ERROR AMP Response | AE10: PLANT Response
C11: p_dom | E11: z_ESR | G11: z_RHP | I11: p1 | K11: z1 | M11: p2 | O11: z3 | Q11: p3 | S11: p3
C12: Gain(V/V) | D12: Phase(rad) | E12: Gain(V/V) | F12: Phase(rad) | G12: Gain(V/V) | H12: Phase(rad) | I12: Gain(V/V) | J12: Phase(rad) | K12: Gain(V/V) | L12: Phase(rad) | M12: Gain(V/V) | N12: Phase(rad) | O12: Gain(V/V) | P12: Phase(rad) | Q12: Gain(V/V) | R12: Phase(rad) | S12: Gain(V/V) | T12: Phase(rad) | U12: Gain (dB) | V12: Phase (°) | W12: Phase Margin (°) | Z12: Fsquare | AB12: Gain(dB) | AC12: Phase(Deg) | AE12: Gain(dB) | AF12: Phase(Deg)
A13: 1 | B13: =A13/1000 -> 0.001 | C13: =SQRT(1+(A13/pole1)^2) -> 1.000000757 | D13: =ATAN(A13/pole1) -> 0.00123024152 | E13: =SQRT(1+(A13/Zero1)^2) -> 1 | F13: =ATAN(A13/Zero1) -> 1.382300766e-07 | G13: =IF(VIN_nom>Vout, 1, SQRT(1+(A13/z_RHP)^2)) -> 1 | H13: =IF(VIN_nom>Vout, 0, -ATAN(A13/z_RHP)) -> 0 | I13: =SQRT(1+(A13/Pole2)^2) -> 1.008805226 | J13: =ATAN(A13/Pole2) -> 0.1322202567 | K13: =SQRT(1+(A13/Zero2)^2) -> 1.000000014 | L13: =ATAN(A13/Zero2) -> 0.0001696460015 | M13: =SQRT(1+(A13/pole4)^2) -> 1 | N13: =ATAN(A13/pole4) -> 8.291150077e-06 | O13: =SQRT(1+(A13/Zero3)^2) -> 1 | P13: =ATAN(A13/Zero3) -> 6.2831853e-06 | Q13: =SQRT(1+(A13/pole5)^2) -> 1 | R13: =ATAN(A13/pole5) -> 1.895486068e-06 | S13: =SQRT((1-(Z13/pterm2))^2+(A13/pterm1)^2) -> 1 | T13: =IF((ATAN((A13/pterm1)/(1-A13^2/pterm2))>0),ATAN((A13/pterm1)/(1-A13^2/pterm2)),PI()+ATAN((A13/pterm1)/(1-A13^2/pterm2))) -> 1.617364711e-06 | U13: =20*LOG10(((E13*K13*G13*O13)/(C13*I13*S13*M13*Q13))*Adc) -> 87.42339722 | V13: =((F13+L13+H13+R13)-(D13+J13+T13+N13+T13))*radconv -> -7.63697419 | W13: =IF(V13>0,V13,V13+180) -> 172.3630258 | Y13: =IF(U13<0,A13,1000000000) -> 1000000000 | Z13: =A13^2 -> 1 | AB13: =20*LOG10((K13/(I13*M13))*AEA) -> 73.61317537 | AC13: =(L13-(J13+N13))*radconv -> -7.56641773 | AE13: =20*LOG10((E13*G13/(C13*S13))*Acs*Am) -> 29.37324686 | AF13: =(F13+H13-(D13+T13))*radconv -> -0.07057239512 | AH13: =SUM((U14<0)*(U13>0))*A13 -> 0 | AI13: =IF(AH13>0,W11,0) -> 0
A14: 1.0965 | B14: =A14/1000 -> 0.0010965 | C14: 1.00000091 | D14: 0.001348959689 | E14: 1 | F14: 1.51569279e-07 | G14: 1 | H14: 0 | I14: =SQRT(1+(A14/Pole2)^2) -> 1.010577301 | J14: 0.1448095427 | K14: =SQRT(1+(A14/Zero2)^2) -> 1.000000017 | L14: 0.0001860168403 | M14: 1 | N14: 9.09124606e-06 | O14: 1 | P14: 6.889512681e-06 | Q14: 1 | R14: 2.078400474e-06 | S14: 1 | T14: 1.773440406e-06 | U14: 87.4081516 | V14: -8.364203699 | W14: 171.6357963 | Y14: 1000000000 | Z14: 1.20231225 | AB14: =20*LOG10((K14/(I14*M14))*AEA) -> 73.59793108 | AC14: -8.286838549 | AE14: =20*LOG10((E14*G14/(C14*S14))*Acs*Am) -> 29.37324553 | AF14: -0.07738262337 | AH14: 0 | AI14: 0
A15: 1.2023 | B15: 0.0012023 | C15: 1.000001094 | D15: 0.001479119047 | E15: 1 | F15: 1.661940211e-07 | G15: 1 | H15: 0 | I15: 1.012703525 | J15: 0.1585590352 | K15: 1.000000021 | L15: 0.0002039653867 | M15: 1 | N15: 9.968449738e-06 | O15: 1 | P15: 7.554273686e-06 | Q15: 1 | R15: 2.2789429e-06 | S15: 1 | T15: 1.944557592e-06 | U15: 87.38989438 | V15: -9.158478338 | W15: 170.8415217 | Y15: 1000000000 | Z15: 1.44552529 | AB15: 73.57967546 | AC15: -9.073648325 | AE15: 29.37324393 | AF15: -0.08484917161 | AH15: 0 | AI15: 0
A16: 1.3183 | B16: 0.0013183 | C16: 1.000001315 | D16: 0.001621826792 | E16: 1 | F16: 1.8222871e-07 | G16: 1 | H16: 0 | I16: 1.015253767 | J16: 0.1735647447 | K16: 1.000000025 | L16: 0.0002236443222 | M16: 1 | N16: 1.093022315e-05 | O16: 1 | P16: 8.283123181e-06 | Q16: 1 | R16: 2.498819284e-06 | S16: 1 | T16: 2.132171899e-06 | U16: 87.36804674 | V16: -10.02535428 | W16: 169.9746457 | Y16: 1000000000 | Z16: 1.73791489 | AB16: 73.55782974 | AC16: -9.932339734 | AE16: 29.37324201 | AF16: -0.0930355539 | AH16: 0 | AI16: 0
A17: 1.4454 | B17: 0.0014454 | C17: 1.000001581 | D17: 0.001778190116 | E17: 1 | F17: 1.997977527e-07 | G17: 1 | H17: 0 | I17: 1.018309091 | J17: 0.1899159529 | K17: 1.00000003 | L17: 0.000245206328 | M17: 1 | N17: 1.198402832e-05 | O17: 1 | P17: 9.081716032e-06 | Q17: 1 | R17: 2.739735563e-06 | S17: 1 | T17: 2.337738953e-06 | U17: 87.34194425 | V17: -10.97000218 | W17: 169.0299978 | Y17: 1000000000 | Z17: 2.08918116 | AB17: 73.53172956 | AC17: -10.86801992 | AE17: =20*LOG10((E17*G17/(C17*S17))*Acs*Am) -> 29.3732397 | AF17: -0.1020052839 | AH17: 0 | AI17: 0
A18: 1.5849 | B18: 0.0015849 | C18: 1.000001901 | D18: 0.001949808298 | E18: 1 | F18: 2.190808484e-07 | G18: 1 | H18: 0 | I18: 1.02197387 | J18: 0.2077445422 | K18: 1.000000036 | L18: 0.0002688719438 | M18: 1 | N18: 1.314064376e-05 | O18: 1 | P18: 9.958220382e-06 | Q18: 1 | R18: 3.004155869e-06 | S18: 1 | T18: 2.56336133e-06 | U18: 87.31073811 | V18: -12.00005802 | W18: 167.999942 | Y18: 1000000000 | Z18: 2.51190801 | AB18: 73.50052619 | AC18: -11.88823318 | AE18: 29.37323692 | AF18: -0.1118501038 | AH18: 0 | AI18: 0
A19: 1.7378 | B19: 0.0017378 | C19: 1.000002285 | D19: 0.002137911535 | E19: 1 | F19: 2.402162271e-07 | G19: 1 | H19: 0 | I19: 1.026360955 | J19: 0.2271325845 | K19: 1.000000043 | L19: 0.0002948108156 | M19: 1 | N19: 1.44083606e-05 | O19: 1 | P19: 1.091891941e-05 | Q19: 1 | R19: 3.293975689e-06 | S19: 1 | T19: 2.810656395e-06 | U19: 87.27352822 | V19: -13.12028551 | W19: 166.8797145 | Y19: 1000000000 | Z19: 3.01994884 | AB19: 73.46331965 | AC19: -12.99767262 | AE19: 29.37323358 | AF19: -0.1226405834 | AH19: 0 | AI19: 0
A20: 1.9055 | B20: 0.0019055 | C20: 1.000002748 | D20: 0.002344222105 | E20: 1 | F20: 2.63397411e-07 | G20: 1 | H20: 0 | I20: 1.031612252 | J20: 0.2481988595 | K20: 1.000000052 | L20: 0.0003232604476 | M20: 1 | N20: 1.579878647e-05 | O20: 1 | P20: 1.197260959e-05 | Q20: 1 | R20: 3.611848703e-06 | S20: 1 | T20: 3.081888457e-06 | U20: 87.22919689 | V20: -14.33757605 | W20: 165.662424 | Y20: 1000000000 | Z20: 3.63093025 | AB20: 73.41899234 | AC20: -14.20313089 | AE20: 29.37322956 | AF20: -0.1344755206 | AH20: 0 | AI20: 0
A21: 2.0893 | B21: 0.0020893 | C21: 1.000003303 | D21: 0.002570339244 | E21: 1 | F21: 2.88804099e-07 | G21: 1 | H21: 0 | I21: 1.037887826 | J21: 0.271031467 | K21: 1.000000063 | L21: 0.0003544413794 | M21: 1 | N21: 1.732269986e-05 | O21: 1 | P21: 1.312745905e-05 | Q21: 1 | R21: 3.960239042e-06 | S21: 1 | T21: 3.379160091e-06 | U21: 87.17651363 | V21: -15.65705708 | W21: 164.3429429 | Y21: 1000000000 | Z21: 4.36517449 | AB21: 73.3663139 | AC21: -15.50964371 | AE21: 29.37322474 | AF21: -0.1474466551 | AH21: 0 | AI21: 0
A22: 2.2909 | B22: 0.0022909 | C22: 1.000003972 | D22: 0.002818354258 | E22: 1 | F22: 3.166712825e-07 | G22: 1 | H22: 0 | I22: 1.045385329 | J22: 0.2957456978 | K22: 1.000000076 | L22: 0.0003886420089 | M22: 1 | N22: 1.899419571e-05 | O22: 1 | P22: 1.43941492e-05 | Q22: 1 | R22: 4.342369034e-06 | S22: 1 | T22: 3.705220816e-06 | U22: 87.11398828 | V22: -17.0854385 | W22: 162.9145615 | Y22: 1000000000 | Z22: 5.24822281 | AB22: 73.30379435 | AC22: -16.92380105 | AE22: 29.37321893 | AF22: -0.1616739539 | AH22: 0 | AI22: 0
A23: 2.5119 | B23: 0.0025119 | C23: 1.000004775 | D23: 0.003090235396 | E23: 1 | F23: 3.472201294e-07 | G23: 1 | H23: 0 | I23: 1.054326726 | J23: 0.322416208 | K23: 1.000000091 | L23: 0.0004261337694 | M23: 1 | N23: 2.082653988e-05 | O23: 1 | P23: 1.578273315e-05 | Q23: 1 | R23: 4.761271455e-06 | S23: 1 | T23: 4.062658418e-06 | U23: 87.04000514 | V23: -18.62709589 | W23: 161.3729041 | Y23: 1000000000 | Z23: 6.30964161 | AB23: 73.22981819 | AC23: -18.44986559 | AE23: 29.37321196 | AF23: -0.177270325 | AH23: 0 | AI23: 0
A24: 2.7542 | B24: 0.0027542 | C24: 1.00000574 | D24: 0.003388319937 | E24: 1 | F24: 3.80713277e-07 | G24: 1 | H24: 0 | I24: 1.064976192 | J24: 0.3511198573 | K24: 1.000000109 | L24: 0.0004672389877 | M24: 1 | N24: 2.283548554e-05 | O24: 1 | P24: 1.730514895e-05 | Q24: 1 | R24: 5.220547729e-06 | S24: 1 | T24: 4.454545887e-06 | U24: 86.95270324 | V24: -20.28654946 | W24: 159.7134505 | Y24: 1000000000 | Z24: 7.58561764 | AB24: 73.14252468 | AC24: -20.0922235 | AE24: 29.37320357 | AF24: -0.1943698456 | AH24: 0 | AI24: 0
A25: 3.02 | B25: 0.00302 | C25: 1.000006902 | D25: 0.00371531417 | E25: 1 | F25: 4.174548313e-07 | G25: 1 | H25: 0 | I25: 1.077646276 | J25: 0.3819266666 | K25: 1.000000131 | L25: 0.0005123308845 | M25: 1 | N25: 2.503927323e-05 | O25: 1 | P25: 1.89752196e-05 | Q25: 1 | R25: 5.724367926e-06 | S25: 1 | T25: 4.884441427e-06 | U25: 86.84996668 | V25: -22.06794599 | W25: 157.932054 | Y25: 1000000000 | Z25: 9.1204 | AB25: 73.0397982 | AC25: -21.85486635 | AE25: 29.37319348 | AF25: -0.2131277612 | AH25: 0 | AI25: 0
A26: 3.3113 | B26: 0.0033113 | C26: 1.000008297 | D26: 0.004073678266 | E26: 1 | F26: 4.577212526e-07 | G26: 1 | H26: 0 | I26: 1.092677254 | J26: 0.4148337893 | K26: 1.000000158 | L26: 0.000561748751 | M26: 1 | N26: 2.745448524e-05 | O26: 1 | P26: 2.080551148e-05 | Q26: 1 | R26: 6.276523017e-06 | S26: 1 | T26: 5.355579768e-06 | U26: 86.72964138 | V26: -23.97124498 | W26: 156.028755 | Y26: 1000000000 | Z26: 10.96470769 | AB26: 72.91948503 | AC26: -23.73761255 | AE26: 29.37318136 | AF26: -0.2336851986 | AH26: 0 | AI26: 0
A27: 3.6308 | B27: 0.0036308 | C27: 1.000009976 | D27: 0.004466733457 | E27: 1 | F27: 5.018857621e-07 | G27: 1 | H27: 0 | I27: 1.110484376 | J27: 0.4498601076 | K27: 1.00000019 | L27: 0.0006159506302 | M27: 1 | N27: 3.010350769e-05 | O27: 1 | P27: 2.281298918e-05 | Q27: 1 | R27: 6.882130816e-06 | S27: 1 | T27: 5.872327793e-06 | U27: 86.58921608 | V27: -25.99769382 | W27: 154.0023062 | Y27: 1000000000 | Z27: 13.18270864 | AB27: 72.77907431 | AC27: -25.741519 | AE27: 29.37316678 | AF27: -0.2562326793 | AH27: 0 | AI27: 0
A28: 3.9811 | B28: 0.0039811 | C28: 1.000011994 | D28: 0.004897677825 | E28: 1 | F28: 5.50307758e-07 | G28: 1 | H28: 0 | I28: 1.131520946 | J28: 0.4869455803 | K28: 1.000000228 | L28: 0.0006753776003 | M28: 1.000000001 | N28: 3.300789756e-05 | O28: 1 | P28: 2.501398899e-05 | Q28: 1 | R28: 7.546119586e-06 | S28: 1 | T28: 6.438890651e-06 | U28: 86.42619599 | V28: -28.14401179 | W28: 151.8559882 | Y28: 1000000000 | Z28: 15.84915721 | AB28: 72.61607174 | AC28: -27.86312157 | AE28: 29.37314925 | AF28: -0.28095366 | AH28: 0 | AI28: 0
A29: 4.3652 | B29: 0.0043652 | C29: 1.00001442 | D29: 0.005370201367 | E29: 1 | F29: 6.034019304e-07 | G29: 1 | H29: 0 | I29: 1.156306204 | J29: 0.5259989428 | K29: 1.000000274 | L29: 0.0007405385974 | M29: 1.000000001 | N29: 3.61925283e-05 | O29: 1 | P29: 2.742736046e-05 | Q29: 1 | R29: 8.274175785e-06 | S29: 1 | T29: 7.060120436e-06 | U29: 86.23797015 | V29: -30.40515368 | W29: 149.5948463 | Y29: 1000000000 | Z29: 19.05497104 | AB29: 72.42786697 | AC29: -30.09716343 | AE29: 29.37312818 | AF29: -0.3080598166 | AH29: 0 | AI29: 0
A30: 4.7863 | B30: 0.0047863 | C30: 1.000017336 | D30: 0.005888239905 | E30: 1 | F30: 6.616106156e-07 | G30: 1 | H30: 0 | I30: 1.185414765 | J30: 0.5668687078 | K30: 1.00000033 | L30: 0.0008119764862 | M30: 1.000000001 | N30: 3.96839316e-05 | O30: 1 | P30: 3.007320979e-05 | Q30: 1 | R30: 9.072364968e-06 | S30: 1 | T30: 7.741192716e-06 | U30: 86.02199577 | V30: -32.77263608 | W30: 147.2273639 | Y30: 1000000000 | Z30: 22.90866769 | AB30: 72.21191792 | AC30: -32.43493543 | AE30: 29.37310285 | AF30: -0.3377769259 | AH30: 0 | AI30: 0
A31: 5.2481 | B31: 0.0052481 | C31: 1.000020843 | D31: 0.006456344067 | E31: 1 | F31: 7.25445265e-07 | G31: 1 | H31: 0 | I31: 1.219496728 | J31: 0.6093671366 | K31: 1.000000396 | L31: 0.0008903189536 | M31: 1.000000001 | N31: 4.351278469e-05 | O31: 1.000000001 | P31: 3.297478476e-05 | Q31: 1 | R31: 9.947700434e-06 | S31: 1 | T31: 8.48809174e-06 | U31: 85.77575976 | V31: -35.23592912 | W31: 144.7640709 | Y31: 1000000000 | Z31: 27.54255361 | AB31: 71.96571236 | AC31: -34.86564672 | AE31: 29.3730724 | AF31: -0.3703660334 | AH31: 0 | AI31: 0
A32: 5.7544 | B32: 0.0057544 | C32: 1.000025058 | D32: 0.007079187114 | E32: 1 | F32: 7.954311528e-07 | G32: 1 | H32: 0 | I32: 1.259247533 | J32: 0.6532297621 | K32: 1.000000476 | L32: 0.0009762106501 | M32: 1.000000001 | N32: 4.771059397e-05 | O32: 1.000000001 | P32: 3.615596147e-05 | Q32: 1 | R32: 1.090738503e-05 | S32: 1 | T32: 9.306963493e-06 | U32: 85.49711445 | V32: -37.78011285 | W32: 142.2198871 | Y32: 1000000000 | Z32: 33.11311936 | AB32: 71.68710367 | AC32: -37.37410933 | AE32: 29.37303578 | AF32: -0.4060952193 | AH32: 0 | AI32: 0
A33: 6.3096 | B33: 0.0063096 | C33: 1.000030126 | D33: 0.007762179912 | E33: 1 | F33: 8.721764913e-07 | G33: 1 | H33: 0 | I33: 1.305441413 | J33: 0.6981628525 | K33: 1.000000573 | L33: 0.001070398012 | M33: 1.000000001 | N33: 5.231384048e-05 | O33: 1.000000001 | P33: 3.964438595e-05 | Q33: 1 | R33: 1.19597589e-05 | S33: 1 | T33: 1.020492438e-05 | U33: 85.18414572 | V33: -40.38862731 | W33: 139.6113727 | Y33: 1000000000 | Z33: 39.81105216 | AB33: 71.37417896 | AC33: -39.94345298 | AE33: 29.37299176 | AF33: -0.4452748764 | AH33: 0 | AI33: 0
A34: 6.9183 | B34: 0.0069183 | C34: 1.000036219 | D34: 0.008510978692 | E34: 1 | F34: 9.563171389e-07 | G34: 1 | H34: 0 | I34: 1.358895802 | J34: 0.7438137996 | K34: 1.000000689 | L34: 0.001173661404 | M34: 1.000000002 | N34: 5.736066352e-05 | O34: 1.000000001 | P34: 4.346896083e-05 | Q34: 1 | R34: 1.311354126e-05 | S34: 1 | T34: 1.118941428e-05 | U34: 84.83551838 | V34: -43.04155142 | W34: 136.9584486 | Y34: 1000000000 | Z34: 47.86287489 | AB34: 71.02560454 | AC34: -42.55343219 | AE34: 29.37293884 | AF34: -0.4882294724 | AH34: 0 | AI34: 0
A35: 7.5858 | B35: 0.0075858 | C35: 1.000043546 | D35: 0.009332099915 | E35: 1 | F35: 1.048585715e-06 | G35: 1 | H35: 0 | I35: 1.420508286 | J35: 0.7898197208 | K35: 1.000000828 | L35: 0.00128689994 | M35: 1.000000002 | N35: 6.289500617e-05 | O35: 1.000000001 | P35: 4.766298701e-05 | Q35: 1 | R35: 1.437877821e-05 | S35: 1 | T35: 1.226900522e-05 | U35: 84.45030367 | V35: -45.71841825 | W35: 134.2815817 | Y35: 1000000000 | Z35: 57.54436164 | AB35: 70.64045346 | AC35: -45.18320631 | AE35: 29.37287521 | AF35: -0.5353328224 | AH35: 0 | AI35: 0
A36: 8.3176 | B36: 0.0083176 | C36: 1.000052352 | D36: 0.01023230491 | E36: 1 | F36: 1.149742485e-06 | G36: 1 | H36: 0 | I36: 1.491207052 | J36: 0.8357821299 | K36: 1.000000996 | L36: 0.001411046659 | M36: 1.000000002 | N36: 6.896246978e-05 | O36: 1.000000001 | P36: 5.2261022e-05 | Q36: 1 | R36: 1.576589492e-05 | S36: 1 | T36: 1.345259272e-05 | U36: 84.02834509 | V36: -48.39673318 | W36: 131.6032668 | Y36: 1000000000 | Z36: 69.18246976 | AB36: 70.21857137 | AC36: -47.80989293 | AE36: 29.37279872 | AF36: -0.5869727879 | AH36: 0 | AI36: 0
A37: 9.1201 | B37: 0.0091201 | C37: 1.000062941 | D37: 0.01121946057 | E37: 1 | F37: 1.260672122e-06 | G37: 1 | H37: 0 | I37: 1.572011381 | J37: 0.8813271335 | K37: 1.000001197 | L37: 0.001547187278 | M37: 1.000000003 | N37: 7.561611768e-05 | O37: 1.000000002 | P37: 5.730327819e-05 | Q37: 1 | R37: 1.728702249e-05 | S37: 1 | T37: 1.47505279e-05 | U37: 83.56990012 | V37: -51.05546568 | W37: 128.9445343 | Y37: 1000000000 | Z37: 83.17622401 | AB37: 69.76021837 | AC37: -50.41201036 | AE37: 29.37270675 | AF37: -0.6436006515 | AH37: 0 | AI37: 0
A38: 10 | B38: 0.01 | C38: 1.000075672 | D38: 0.01230180081 | E38: 1 | F38: 1.382300766e-06 | G38: 1 | H38: 0 | I38: 1.663970696 | J38: 0.9260795109 | K38: 1.000001439 | L38: 0.001696458404 | M38: 1.000000003 | N38: 8.291150059e-05 | O38: 1.000000002 | P38: 6.283185292e-05 | Q38: 1 | R38: 1.895486068e-05 | S38: 1 | T38: 1.617364711e-05 | U38: 83.0759919 | V38: -53.6735275 | W38: 126.3264725 | Y38: 1000000000 | Z38: 100 | AB38: 69.26642071 | AC38: -52.9679981 | AE38: 29.37259618 | AF38: -0.7056887491 | AH38: 0 | AI38: 0
A39: 10.965 | B39: 0.010965 | C39: 1.000090981 | D39: 0.01348878693 | E39: 1 | F39: 1.51569279e-06 | G39: 1 | H39: 0 | I39: 1.768233038 | J39: 0.9697129186 | K39: 1.00000173 | L39: 0.001860166278 | M39: 1.000000004 | N39: 9.091246035e-05 | O39: 1.000000002 | P39: 6.889512671e-05 | Q39: 1 | R39: 2.078400473e-05 | S39: 1 | T39: 1.773440406e-05 | U39: 82.54798492 | V39: -56.23269196 | W39: 123.767308 | Y39: 1000000000 | Z39: 120.231225 | AB39: 68.73854669 | AC39: -55.45908686 | AE39: 29.37246322 | AF39: -0.7737798263 | AH39: 0 | AI39: 0
A40: 12.023 | B40: 0.012023 | C40: 1.000109384 | D40: 0.01479012273 | E40: 1 | F40: 1.661940211e-06 | G40: 1 | H40: 0 | I40: 1.885959419 | J40: 1.011919672 | K40: 1.00000208 | L40: 0.002039651067 | M40: 1.000000005 | N40: 9.968449705e-05 | O40: 1.000000003 | P40: 7.554273672e-05 | Q40: 1 | R40: 2.278942899e-05 | S40: 1 | T40: 1.944557592e-05 | U40: 81.98797127 | V40: -58.71581356 | W40: 121.2841864 | Y40: 1000000000 | Z40: 144.552529 | AB40: 68.17869287 | AC40: -57.86757461 | AE40: 29.37230339 | AF40: -0.8484305389 | AH40: 0 | AI40: 0
A41: 13.183 | B41: 0.013183 | C41: 1.000131508 | D41: 0.01621686038 | E41: 1 | F41: 1.8222871e-06 | G41: 1 | H41: 0 | I41: 2.018420474 | J41: 1.052458589 | K41: 1.000002501 | L41: 0.00223643953 | M41: 1.000000006 | N41: 0.000109302231 | O41: 1.000000003 | P41: 8.283123162e-05 | Q41: 1 | R41: 2.498819283e-05 | S41: 1 | T41: 2.132171899e-05 | U41: 81.39819679 | V41: -61.10962418 | W41: 118.8903758 | Y41: 1000000000 | Z41: 173.791489 | AB41: 67.58911053 | AC41: -60.17955936 | AE41: 29.37211124 | AF41: -0.9302748932 | AH41: 0 | AI41: 0
A42: 14.454 | B42: 0.014454 | C42: 1.000158086 | D42: 0.01778004606 | E42: 1 | F42: 1.997977527e-06 | G42: 1 | H42: 0 | I42: 2.166873428 | J42: 1.091117332 | K42: 1.000003006 | L42: 0.002452058414 | M42: 1.000000007 | N42: 0.0001198402826 | O42: 1.000000004 | P42: 9.081716008e-05 | Q42: 1 | R42: 2.739735562e-05 | S42: 1 | T42: 2.337738953e-05 | U42: 80.78153233 | V42: -63.4025081 | W42: 116.5974919 | Y42: 1000000000 | Z42: 208.918116 | AB42: 66.97267689 | AC42: -62.38279188 | AE42: 29.37188042 | AF42: -1.01994655 | AH42: 0 | AI42: 0
A43: 15.849 | B43: 0.015849 | C43: 1.00019007 | D43: 0.01949563734 | E43: 1 | F43: 2.190808484e-06 | G43: 1 | H43: 0 | I43: 2.333036446 | J43: 1.12782492 | K43: 1.000003615 | L43: 0.002688713024 | M43: 1.000000009 | N43: 0.0001314064368 | O43: 1.000000005 | P43: 9.958220349e-05 | Q43: 1 | R43: 3.004155869e-05 | S43: 1 | T43: 2.56336133e-05 | U43: 80.13950026 | V43: -65.59119351 | W43: 114.4088065 | Y43: 1000000000 | Z43: 251.190801 | AB43: 66.33092257 | AC43: -64.47308516 | AE43: 29.37160266 | AF43: -1.118360914 | AH43: 0 | AI43: 0
A44: 17.378 | B44: 0.017378 | C44: 1.000228508 | D44: 0.02137589157 | E44: 1 | F44: 2.402162271e-06 | G44: 1 | H44: 0 | I44: 2.518269427 | J44: 1.162443536 | K44: 1.000004346 | L44: 0.002948099701 | M44: 1.00000001 | N44: 0.000144083605 | O44: 1.000000006 | P44: 0.0001091891937 | Q44: 1.000000001 | R44: 3.293975688e-05 | S44: 1 | T44: 2.810656395e-05 | U44: 79.47555941 | V44: -67.66839452 | W44: 112.3316055 | Y44: 1000000000 | Z44: 301.994884 | AB44: 65.66731551 | AC44: -66.44245031 | AE44: 29.37126886 | AF44: -1.226221125 | AH44: 0 | AI44: 0
A45: 19.055 | B45: 0.019055 | C45: 1.000274732 | D45: 0.02343797125 | E45: 1 | F45: 2.63397411e-06 | G45: 1 | H45: 0 | I45: 2.724405236 | J45: 1.19495787 | K45: 1.000005225 | L45: 0.003232593329 | M45: 1.000000012 | N45: 0.0001579878634 | O45: 1.000000007 | P45: 0.0001197260953 | Q45: 1.000000001 | R45: 3.611848701e-05 | S45: 1 | T45: 3.081888457e-05 | U45: 78.79177537 | V45: -69.63408888 | W45: 110.3659111 | Y45: 1000000000 | Z45: 363.093025 | AB45: 64.98393286 | AC45: -68.28988081 | AE45: 29.37086746 | AF45: -1.344511711 | AH45: 0 | AI45: =IF(AH45>0,W43,0) -> 0
A46: 20.893 | B46: 0.020893 | C46: 1.000330279 | D46: 0.02569779081 | E46: 1 | F46: 2.88804099e-06 | G46: 1 | H46: 0 | I46: 2.953153227 | J46: 1.225345291 | K46: 1.000006281 | L46: 0.0035443991 | M46: 1.000000015 | N46: 0.0001732269968 | O46: 1.000000009 | P46: 0.0001312745897 | Q46: 1.000000001 | R46: 3.96023904e-05 | S46: 1 | T46: 3.379160091e-05 | U46: 78.09101671 | V46: -71.48777241 | W46: 108.5122276 | Y46: 1000000000 | Z46: 436.517449 | AB46: 64.28365652 | AC46: -70.01395974 | AE46: 29.37038513 | AF46: -1.474145601 | AH46: 0 | AI46: 0
A47: 22.909 | B47: 0.022909 | C47: 1.000397079 | D47: 0.02817615852 | E47: 1 | F47: 3.166712825e-06 | G47: 1 | H47: 0 | I47: 3.206719275 | J47: 1.253661872 | K47: 1.000007552 | L47: 0.003886400718 | M47: 1.000000018 | N47: 0.0001899419548 | O47: 1.00000001 | P47: 0.000143941491 | Q47: 1.000000001 | R47: 4.342369031e-05 | S47: 1 | T47: 3.705220816e-05 | U47: 77.37494851 | V47: -73.23369421 | W47: 106.7663058 | Y47: 1000000000 | Z47: 524.822281 | AB47: 63.56816831 | AC47: -71.6177428 | AE47: 29.36980513 | AF47: -1.616316464 | AH47: 0 | AI47: 0
A48: 25.119 | B48: 0.025119 | C48: 1.000477367 | D48: 0.03089262108 | E48: 1 | F48: 3.472201294e-06 | G48: 1 | H48: 0 | I48: 3.487188619 | J48: 1.279949118 | K48: 1.000009079 | L48: 0.004261312158 | M48: 1.000000022 | N48: 0.0002082653958 | O48: 1.000000012 | P48: 0.0001578273302 | Q48: 1.000000001 | R48: 4.761271451e-05 | S48: 1 | T48: 4.062658417e-05 | U48: 76.64597477 | V48: -74.87520539 | W48: 105.1247946 | Y48: 1000000000 | Z48: 630.964161 | AB48: 62.83989162 | AC48: -73.10346007 | AE48: 29.36910806 | AF48: -1.772145597 | AH48: 0 | AI48: 0
A49: 27.542 | B49: 0.027542 | C49: 1.000573875 | D49: 0.03387037104 | E49: 1 | F49: 3.80713277e-06 | G49: 1 | H49: 0 | I49: 3.79702896 | J49: 1.304288869 | K49: 1.000010916 | L49: 0.004672356216 | M49: 1.000000026 | N49: 0.0002283548515 | O49: 1.000000015 | P49: 0.0001730514878 | Q49: 1.000000001 | R49: 5.220547724e-05 | S49: 1 | T49: 4.454545887e-05 | U49: 75.90578346 | V49: -76.41814957 | W49: 103.5818504 | Y49: 1000000000 | Z49: 758.561764 | AB49: 62.10053811 | AC49: -74.47562501 | AE49: 29.36827024 | AF49: -1.942963447 | AH49: 0 | AI49: 0
A50: 30.2 | B50: 0.0302 | C50: 1.000689946 | D50: 0.0371362317 | E50: 1 | F50: 4.174548313e-06 | G50: 1 | H50: 0 | I50: 4.139100098 | J50: 1.326783607 | K50: 1.000013124 | L50: 0.005123264468 | M50: 1.000000031 | N50: 0.0002503927271 | O50: 1.000000018 | P50: 0.0001897521938 | Q50: 1.000000002 | R50: 5.72436792e-05 | S50: 1 | T50: 4.884441427e-05 | U50: 75.15555468 | V50: -77.8697336 | W50: 102.1302664 | Y50: 1000000000 | Z50: 912.04 | AB50: 61.35131685 | AC50: -75.73990611 | AE50: 29.3672627 | AF50: -2.130308741 | AH50: 0 | AI50: 0
A51: 33.113 | B51: 0.033113 | C51: 1.000829408 | D51: 0.040714496 | E51: 1 | F51: 4.577212526e-06 | G51: 1 | H51: 0 | I51: 4.516011321 | J51: 1.347511245 | K51: 1.000015778 | L51: 0.005617429013 | M51: 1.000000038 | N51: 0.0002745448456 | O51: 1.000000022 | P51: 0.0002080551118 | Q51: 1.000000002 | R51: 6.276523009e-05 | S51: 1.000000001 | T51: 5.355579767e-05 | U51: 74.39738542 | V51: -79.23562993 | W51: 100.7643701 | Y51: 1000000000 | Z51: 1096.470769 | AB51: 60.59435799 | AC51: -76.90058254 | AE51: 29.36605227 | AF51: -2.335575055 | AH51: 0 | AI51: 0
A52: 36.308 | B52: 0.036308 | C52: 1.000997102 | D52: 0.04463796024 | E52: 1 | F52: 5.018857621e-06 | G52: 1 | H52: 0 | I52: 4.931283296 | J52: 1.366593136 | K52: 1.00001897 | L52: 0.006159429186 | M52: 1.000000045 | N52: 0.0003010350679 | O52: 1.000000026 | P52: 0.0002281298879 | Q52: 1.000000002 | R52: 6.882130805e-05 | S52: 1.000000001 | T52: 5.872327792e-05 | U52: 73.63185925 | V52: -80.52442304 | W52: 99.47557696 | Y52: 1000000000 | Z52: 1318.270864 | AB52: 59.83028703 | AC52: -77.96435784 | AE52: 29.36459703 | AF52: -2.560643767 | AH52: 0 | AI52: 0
A53: 39.811 | B53: 0.039811 | C53: 1.001198663 | D53: 0.04893806458 | E53: 1 | F53: 5.503077579e-06 | G53: 1 | H53: 0 | I53: 5.388317466 | J53: 1.384127436 | K53: 1.000022806 | L53: 0.006753674344 | M53: 1.000000054 | N53: 0.0003300789637 | O53: 1.000000031 | P53: 0.0002501398848 | Q53: 1.000000003 | R53: 7.546119572e-05 | S53: 1.000000001 | T53: 6.438890651e-05 | U53: 72.86027927 | V53: -81.74329968 | W53: 98.25670032 | Y53: 1000000000 | Z53: 1584.915721 | AB53: 59.06045583 | AC53: -78.9366156 | AE53: 29.3628482 | AF53: -2.807318471 | AH53: 0 | AI53: 0
A54: 43.652 | B54: 0.043652 | C54: 1.001440943 | D54: 0.05365099372 | E54: 1 | F54: 6.034019304e-06 | G54: 1 | H54: 0 | I54: 5.891044367 | J54: 1.400221168 | K54: 1.00002742 | L54: 0.007405251962 | M54: 1.000000065 | N54: 0.0003619252674 | O54: 1.000000038 | P54: 0.0002742735978 | Q54: 1.000000003 | R54: 8.274175766e-05 | S54: 1.000000001 | T54: 7.060120436e-05 | U54: 72.08343529 | V54: -82.90018987 | W54: 97.09981013 | Y54: 1000000000 | Z54: 1905.497104 | AB54: 58.28571343 | AC54: -79.82321053 | AE54: 29.36074656 | AF54: -3.077674938 | AH54: 0 | AI54: 0
A55: 47.863 | B55: 0.047863 | C55: 1.001732108 | D55: 0.05881516732 | E55: 1 | F55: 6.616106156e-06 | G55: 1 | H55: 0 | I55: 6.443664834 | J55: 1.414975344 | K55: 1.000032965 | L55: 0.008119588206 | M55: 1.000000079 | N55: 0.0003968392953 | O55: 1.000000045 | P55: 0.0003007320889 | Q55: 1.000000004 | R55: 9.072364943e-05 | S55: 1.000000001 | T55: 7.741192715e-05 | U55: 71.30214538 | V55: -84.00278894 | W55: 95.99721106 | Y55: 1000000000 | Z55: 2290.866769 | AB55: 57.5069485 | AC55: -80.62963448 | AE55: 29.35822153 | AF55: -3.373917165 | AH55: 0 | AI55: 0
A56: 52.481 | B56: 0.052481 | C56: 1.002082109 | D56: 0.06447484819 | E56: 1 | F56: 7.25445265e-06 | G56: 1 | H56: 0 | I56: 7.05104438 | J56: 1.428493577 | K56: 1.000039633 | L56: 0.008902956657 | M56: 1.000000095 | N56: 0.0004351278198 | O56: 1.000000054 | P56: 0.0003297478358 | Q56: 1.000000005 | R56: 9.947700401e-05 | S56: 1.000000001 | T56: 8.488091739e-05 | U56: 70.51675884 | V56: -85.05923034 | W56: 94.94076966 | Y56: 1000000000 | Z56: 2754.255361 | AB56: 56.72459617 | AC56: -81.36148227 | AE56: 29.35518725 | AF56: -3.698584359 | AH56: 0 | AI56: 0
A57: 57.544 | B57: 0.057544 | C57: 1.002502696 | D57: 0.0706751446 | E57: 1 | F57: 7.954311528e-06 | G57: 1 | H57: 0 | I57: 7.718188586 | J57: 1.440866986 | K57: 1.000047648 | L57: 0.009761799514 | M57: 1.000000114 | N57: 0.0004771059039 | O57: 1.000000065 | P57: 0.0003615595991 | Q57: 1.000000006 | R57: 0.0001090738499 | S57: 1.000000002 | T57: 9.306963492e-05 | U57: 69.7279448 | V57: -86.07697074 | W57: 93.92302926 | Y57: 1000000000 | Z57: 3311.311936 | AB57: 55.93942686 | AC57: -82.02362346 | AE57: 29.35154243 | AF57: -4.054264255 | AH57: 0 | AI57: 0
A58: 63.096 | B58: 0.063096 | C58: 1.003008168 | D58: 0.07746801576 | E58: 1 | F58: 8.721764913e-06 | G58: 1 | H58: 0 | I58: 8.45090104 | J58: 1.452187848 | K58: 1.000057286 | L58: 0.01070357544 | M58: 1.000000137 | N58: 0.0005231383576 | O58: 1.000000079 | P58: 0.0003964438389 | Q58: 1.000000007 | R58: 0.0001195975884 | S58: 1.000000002 | T58: 0.0001020492438 | U58: 68.9358974 | V58: -87.06387095 | W58: 92.93612905 | Y58: 1000000000 | Z58: 3981.105216 | AB58: 55.15175777 | AC58: -82.62093877 | AE58: 29.34716402 | AF58: -4.443937626 | AH58: 0 | AI58: 0
A59: 69.183 | B59: 0.069183 | C59: 1.003615477 | D59: 0.08490721322 | E59: 1 | F59: 9.563171389e-06 | G59: 1 | H59: 0 | I59: 9.255256893 | J59: 1.462538286 | K59: 1.000068872 | L59: 0.01173608058 | M59: 1.000000165 | N59: 0.0005736065729 | O59: 1.000000094 | P59: 0.0004346895812 | Q59: 1.000000009 | R59: 0.0001311354119 | S59: 1.000000002 | T59: 0.0001118941428 | U59: 68.14103107 | V59: -88.02729429 | W59: 91.97270571 | Y59: 1000000000 | Z59: 4786.287489 | AB59: 54.36214892 | AC59: -83.15770863 | AE59: 29.34190641 | AF59: -4.870688106 | AH59: 0 | AI59: 0
A60: 75.858 | B60: 0.075858 | C60: 1.004345217 | D60: 0.0930541868 | E60: 1 | F60: 1.048585715e-05 | G60: 1 | H60: 0 | I60: 10.13826312 | J60: 1.471999457 | K60: 1.000082802 | L60: 0.01286829616 | M60: 1.000000198 | N60: 0.0006289499796 | O60: 1.000000114 | P60: 0.0004766298344 | Q60: 1.00000001 | R60: 0.0001437877812 | S60: 1.000000003 | T60: 0.0001226900522 | U60: 67.34333699 | V60: -88.97492576 | W60: 91.02507424 | Y60: 1000000000 | Z60: 5754.436164 | AB60: 53.57076801 | AC60: -83.63809357 | AE60: 29.3355931 | AF60: -5.338041003 | AH60: 0 | AI60: 0
A61: 83.176 | B61: 0.083176 | C61: 1.005221735 | D61: 0.1019717023 | E61: 1 | F61: 1.149742485e-05 | G61: 1 | H61: 0 | I61: 11.10719798 | J61: 1.480642545 | K61: 1.000099548 | L61: 0.01410953957 | M61: 1.000000238 | N61: 0.0006896245895 | O61: 1.000000137 | P61: 0.0005226101729 | Q61: 1.000000012 | R61: 0.0001576589479 | S61: 1.000000003 | T61: 0.0001345259272 | U61: 66.54308607 | V61: -89.91393617 | W61: 90.08606383 | Y61: 1000000000 | Z61: 6918.246976 | AB61: 52.778094 | AC61: -84.0656644 | AE61: 29.32801599 | AF61: -5.849597194 | AH61: 0 | AI61: 0
A62: 91.201 | B62: 0.091201 | C62: 1.006274657 | D62: 0.111732024 | E62: 1 | F62: 1.260672122e-05 | G62: 1 | H62: 0 | I62: 12.1705373 | J62: 1.488537951 | K62: 1.000119682 | L62: 0.01547065076 | M62: 1.000000286 | N62: 0.0007561610341 | O62: 1.000000164 | P62: 0.0005730327198 | Q62: 1.000000015 | R62: 0.0001728702232 | S62: 1.000000004 | T62: 0.000147505279 | U62: 65.74006266 | V62: -90.85191341 | W62: 89.14808659 | Y62: 1000000000 | Z62: 8317.622401 | AB62: 51.98416368 | AC62: -84.44386418 | AE62: 29.31892269 | AF62: -6.409502536 | AH62: 0 | AI62: 0
A63: 100 | B63: 0.1 | C63: 1.00753906 | D63: 0.1224091346 | E63: 1 | F63: 1.382300766e-05 | G63: 1 | H63: 0 | I63: 13.3371604 | J63: 1.495747418 | K63: 1.000143888 | L63: 0.01696297313 | M63: 1.000000344 | N63: 0.0008291148178 | O63: 1.000000197 | P63: 0.0006283184473 | Q63: 1.000000018 | R63: 0.0001895486045 | S63: 1.000000005 | T63: 0.000161736471 | U63: 64.93429306 | V63: -91.79602045 | W63: 88.20397955 | Y63: 1000000000 | Z63: 10000 | AB63: 51.18930095 | AC63: -84.77561235 | AE63: 29.30801556 | AF63: -7.022001611 | AH63: 0 | AI63: 0
A64: 109.65 | B64: 0.10965 | C64: 1.009057454 | D64: 0.1340866378 | E64: 1 | F64: 1.51569279e-05 | G64: 1 | H64: 0 | I64: 14.61727771 | J64: 1.502330659 | K64: 1.000172996 | L64: 0.01859953915 | M64: 1.000000413 | N64: 0.0009091243555 | O64: 1.000000237 | P64: 0.0006889511591 | Q64: 1.000000022 | R64: 0.0002078400444 | S64: 1.000000006 | T64: 0.0001773440405 | U64: 64.12540302 | V64: -92.75376395 | W64: 87.24623605 | Y64: 1000000000 | Z64: 12023.1225 | AB64: 50.39349066 | AC64: -85.06362016 | AE64: 29.29493549 | AF64: -7.691891082 | AH64: 0 | AI64: 0
A65: 120.23 | B65: 0.12023 | C65: 1.010879797 | D65: 0.1468472833 | E65: 1 | F65: 1.661940211e-05 | G65: 1 | H65: 0 | I65: 16.02136988 | J65: 1.508339093 | K65: 1.000207988 | L65: 0.02039371121 | M65: 1.000000497 | N65: 0.0009968446436 | O65: 1.000000285 | P65: 0.0007554272249 | Q65: 1.000000026 | R65: 0.000227894286 | S65: 1.000000007 | T65: 0.0001944557591 | U65: 63.31337111 | V65: -93.73210856 | W65: 86.26789144 | Y65: 1000000000 | Z65: 14455.2529 | AB65: 49.59713083 | AC65: -85.3101056 | AE65: 29.27926303 | AF65: -8.423918846 | AH65: 0 | AI65: 0
A66: 131.83 | B66: 0.13183 | C66: 1.01306627 | D66: 0.1607828704 | E66: 1 | F66: 1.8222871e-05 | G66: 1 | H66: 0 | I66: 17.56138152 | J66: 1.51382238 | K66: 1.000250053 | L66: 0.02236070505 | M66: 1.000000597 | N66: 0.001093021879 | O66: 1.000000343 | P66: 0.0008283121287 | Q66: 1.000000031 | R66: 0.0002498819232 | S66: 1.000000008 | T66: 0.0002132171897 | U66: 62.49778857 | V66: -94.73833646 | W66: 85.26166354 | Y66: 1000000000 | Z66: 17379.1489 | AB66: 48.80031462 | AC66: -85.51708494 | AE66: 29.26049624 | AF66: -9.223352256 | AH66: 0 | AI66: 0
A67: 144.54 | B67: 0.14454 | C67: 1.015686796 | D67: 0.1759797774 | E67: 1 | F67: 1.997977527e-05 | G67: 1 | H67: 0 | I67: 19.2492609 | J67: 1.518822885 | K67: 1.000300586 | L67: 0.02451572062 | M67: 1.000000718 | N67: 0.001198402258 | O67: 1.000000412 | P67: 0.0009081713536 | Q67: 1.000000038 | R67: 0.0002739735494 | S67: 1.00000001 | T67: 0.0002337738951 | U67: 61.67868022 | V67: -95.77900205 | W67: 84.22099795 | Y67: 1000000000 | Z67: 20891.8116 | AB67: 48.00364476 | AC67: -85.68615728 | AE67: 29.23805721 | AF67: -10.09514804 | AH67: 0 | AI67: 0
A68: 158.49 | B68: 0.15849 | C68: 1.018831498 | D68: 0.1925650474 | E68: 1 | F68: 2.190808484e-05 | G68: 1 | H68: 0 | I68: 21.10227253 | J68: 1.523390312 | K68: 1.000361395 | L68: 0.02688071873 | M68: 1.000000863 | N68: 0.001314063619 | O68: 1.000000496 | P68: 0.000995821709 | Q68: 1.000000045 | R68: 0.0003004155779 | S68: 1.000000012 | T68: 0.0002563361328 | U68: 60.85405311 | V68: -96.86304475 | W68: 83.13695525 | Y68: 1000000000 | Z68: 25119.0801 | AB68: 47.20586814 | AC68: -85.81897407 | AE68: 29.21120607 | AF68: -11.04659625 | AH68: 0 | AI68: 0
A69: 173.78 | B69: 0.17378 | C69: 1.022598062 | D69: 0.2106207484 | E69: 1 | F69: 2.402162271e-05 | G69: 1 | H69: 0 | I69: 23.13370032 | J69: 1.527555873 | K69: 1.000434473 | L69: 0.02947254586 | M69: 1.000001038 | N69: 0.001440835063 | O69: 1.000000596 | P69: 0.001091891508 | Q69: 1.000000054 | R69: 0.000329397557 | S69: 1.000000015 | T69: 0.0002810656391 | U69: 60.02431725 | V69: -97.99604419 | W69: 82.00395581 | Y69: 1000000000 | Z69: 30199.4884 | AB69: 46.40818355 | AC69: -85.91640589 | AE69: 29.179154 | AF69: -12.08240751 | AH69: 0 | AI69: 0
A70: 190.55 | B70: 0.19055 | C70: 1.027109524 | D70: 0.230264746 | E70: 1 | F70: 2.633974109e-05 | G70: 1 | H70: 0 | I70: 25.36214481 | J70: 1.531357261 | K70: 1.00052235 | L70: 0.03231479299 | M70: 1.000001248 | N70: 0.001579877333 | O70: 1.000000717 | P70: 0.001197260387 | Q70: 1.000000065 | R70: 0.0003611848546 | S70: 1.000000017 | T70: 0.0003081888452 | U70: 59.18802602 | V70: -99.1856376 | W70: 80.8143624 | Y70: 1000000000 | Z70: 36309.3025 | AB70: 45.61012721 | AC70: -85.97932715 | AE70: 29.14091816 | AF70: -13.2093469 | AH70: 0 | AI70: 0
A71: 208.93 | B71: 0.20893 | C71: 1.032505075 | D71: 0.2515883234 | E71: 1 | F71: 2.88804099e-05 | G71: 1 | H71: 0 | I71: 27.80488084 | J71: 1.53482366 | K71: 1.000627946 | L71: 0.03542930793 | M71: 1.0000015 | N71: 0.001732268253 | O71: 1.000000862 | P71: 0.001312745151 | Q71: 1.000000078 | R71: 0.0003960238835 | S71: 1.000000021 | T71: 0.0003379160084 | U71: 58.34473163 | V71: -100.4375462 | W71: 79.5624538 | Y71: 1000000000 | Z71: 43651.7449 | AB71: 44.81234048 | AC71: -86.00821998 | AE71: 29.09540935 | AF71: -14.43265556 | AH71: 0 | AI71: 0
A72: 229.09 | B72: 0.22909 | C72: 1.03895699 | D72: 0.2747105718 | E72: 1.000000001 | F72: 3.166712824e-05 | G72: 1 | H72: 0 | I72: 30.48450181 | J72: 1.537986887 | K72: 1.000754928 | L72: 0.03884465339 | M72: 1.000001804 | N72: 0.001899417287 | O72: 1.000001036 | P72: 0.001439413926 | Q72: 1.000000094 | R72: 0.0004342368761 | S72: 1.000000025 | T72: 0.0003705220808 | U72: 57.49256375 | V72: -101.7588723 | W72: 78.2411277 | Y72: 1000000000 | Z72: 52482.2281 | AB72: 44.01427875 | AC72: -86.00335156 | AE72: 29.04130183 | AF72: -15.75917133 | AH72: 0 | AI72: 0
A73: 251.19 | B73: 0.25119 | C73: 1.046659522 | D73: 0.2997154724 | E73: 1.000000001 | F73: 3.472201293e-05 | G73: 1 | H73: 0 | I73: 33.4222747 | J73: 1.540871695 | K73: 1.000907538 | L73: 0.04258761371 | M73: 1.000002169 | N73: 0.002082650977 | O73: 1.000001245 | P73: 0.001578272005 | Q73: 1.000000113 | R73: 0.0004761271095 | S73: 1.00000003 | T73: 0.0004062658406 | U73: 56.63059141 | V73: -103.1543984 | W73: 76.84560164 | Y73: 1000000000 | Z73: 63096.4161 | AB73: 43.21646199 | AC73: -85.96468158 | AE73: 28.97714459 | AF73: -17.19371954 | AH73: 0 | AI73: 0
A74: 275.42 | B74: 0.27542 | C74: 1.055844685 | D74: 0.3266923216 | E74: 1.000000001 | F74: 3.807132768e-05 | G74: 1 | H74: 0 | I74: 36.64345633 | J74: 1.543502936 | K74: 1.001090966 | L74: 0.0466899453 | M74: 1.000002607 | N74: 0.002283544585 | O74: 1.000001497 | P74: 0.001730513168 | Q74: 1.000000136 | R74: 0.0005220547255 | S74: 1.000000037 | T74: 0.0004454545872 | U74: 55.75708047 | V74: -104.6289484 | W74: 75.37105161 | Y74: 1000000000 | Z74: 75856.1764 | AB74: 42.4188413 | AC74: -85.89190467 | AE74: 28.90125236 | AF74: -18.74143259 | AH74: 0 | AI74: 0
A75: 302 | B75: 0.302 | C75: 1.066788106 | D75: 0.3557277606 | E75: 1.000000001 | F75: 4.174548311e-05 | G75: 1 | H75: 0 | I75: 40.17729411 | J75: 1.545904076 | K75: 1.001311555 | L75: 0.05118833735 | M75: 1.000003135 | N75: 0.002503922091 | O75: 1.0000018 | P75: 0.001897519683 | Q75: 1.000000164 | R75: 0.0005724367301 | S75: 1.000000044 | T75: 0.0004884441407 | U75: 54.86974432 | V75: -106.1868486 | W75: 73.81315145 | Y75: 1000000000 | Z75: 91204 | AB75: 41.62106536 | AC75: -85.78436767 | AE75: 28.81168975 | AF75: -20.40729331 | AH75: 0 | AI75: 0
A76: 331.13 | B76: 0.33113 | C76: 1.079791823 | D76: 0.3868437036 | E76: 1.000000001 | F76: 4.577212523e-05 | G76: 1 | H76: 0 | I76: 44.05037826 | J76: 1.548093096 | K76: 1.001576566 | L76: 0.05611590382 | M76: 1.000003769 | N76: 0.002745441627 | O76: 1.000002164 | P76: 0.002080548146 | Q76: 1.000000197 | R76: 0.0006276522193 | S76: 1.000000053 | T76: 0.0005355579741 | U76: 53.9674236 | V76: -107.8285962 | W76: 72.17140383 | Y76: 1000000000 | Z76: 109647.0769 | AB76: 40.82397923 | AC76: -85.64129855 | AE76: 28.70645229 | AF76: -22.19257423 | AH76: 0 | AI76: 0
A77: 363.08 | B77: 0.36308 | C77: =SQRT(1+(A77/pole1)^2) -> 1.095225882 | D77: =ATAN(A77/pole1) -> 0.4200865131 | E77: =SQRT(1+(A77/Zero1)^2) -> 1.000000001 | F77: =ATAN(A77/Zero1) -> 5.018857617e-05 | G77: =IF(VIN_nom>Vout, 1, SQRT(1+(A77/z_RHP)^2)) -> 1 | H77: =IF(VIN_nom>Vout, 0, -ATAN(A77/z_RHP)) -> 0 | I77: =SQRT(1+(A77/Pole2)^2) -> 48.29860759 | J77: =ATAN(A77/Pole2) -> 1.550090317 | K77: =SQRT(1+(A77/Zero2)^2) -> 1.001895181 | L77: =ATAN(A77/Zero2) -> 0.06151735138 | M77: =SQRT(1+(A77/pole4)^2) -> 1.000004531 | N77: =ATAN(A77/pole4) -> 0.003010341677 | O77: =SQRT(1+(A77/Zero3)^2) -> 1.000002602 | P77: =ATAN(A77/Zero3) -> 0.002281294961 | Q77: =SQRT(1+(A77/pole5)^2) -> 1.000000237 | R77: =ATAN(A77/pole5) -> 0.000688212973 | S77: =SQRT((1-(Z77/pterm2))^2+(A77/pterm1)^2) -> 1.000000063 | T77: =IF((ATAN((A77/pterm1)/(1-A77^2/pterm2))>0),ATAN((A77/pterm1)/(1-A77^2/pterm2)),PI()+ATAN((A77/pterm1)/(1-A77^2/pterm2))) -> 0.0005872327757 | U77: =20*LOG10(((E77*K77*G77*O77)/(C77*I77*S77*M77*Q77))*Adc) -> 53.04721036 | V77: =((F77+L77+H77+R77)-(D77+J77+T77+N77+T77))*radconv -> -109.5555973 | W77: =IF(V77>0,V77,V77+180) -> 70.44440274 | Y77: =IF(U77<0,A77,1000000000) -> 1000000000 | Z77: =A77^2 -> 131827.0864 | AB77: =20*LOG10((K77/(I77*M77))*AEA) -> 40.0270359 | AC77: =(L77-(J77+N77))*radconv -> -85.46142838 | AE77: =20*LOG10((E77*G77/(C77*S77))*Acs*Am) -> 28.58317893 | AF77: =(F77+H77-(D77+T77))*radconv -> -24.09995462 | AH77: =SUM((U78<0)*(U77>0))*A77 -> 0 | AI77: =IF(AH77>0,W75,0) -> 0
A78: 398.11 | B78: =A78/1000 -> 0.39811 | C78: 1.113497336 | D78: 0.4554315374 | E78: 1.000000002 | F78: 5.503077574e-05 | G78: 1 | H78: 0 | I78: 52.95655306 | J78: 1.5519118 | K78: 1.00227808 | L78: 0.06743536261 | M78: 1.000005448 | N78: 0.00330077777 | O78: 1.000003128 | P78: 0.002501393683 | Q78: 1.000000285 | R78: 0.0007546118154 | S78: 1.000000076 | T78: 0.0006438890605 | U78: 52.10711369 | V78: -111.3650555 | W78: 68.63494448 | Y78: 1000000000 | Z78: 158491.5721 | AB78: 39.23064487 | AC78: -85.24335539 | AE78: 28.43946914 | AF78: -26.12804407 | AH78: 0 | AI78: 0
A79: 436.52 | B79: 0.43652 | C79: 1.135075404 | D79: 0.4928272866 | E79: 1.000000002 | F79: 6.034019296e-05 | G79: 1 | H79: 0 | I79: 58.06410572 | J79: 1.553573131 | K79: 1.002738239 | L79: 0.07391894706 | M79: 1.000006549 | N79: 0.003619237029 | O79: 1.000003761 | P79: 0.00274272917 | Q79: 1.000000342 | R79: 0.0008274173896 | S79: 1.000000092 | T79: 0.0007060120375 | U79: 51.14462461 | V79: -113.2522688 | W79: 66.74773116 | Y79: 1000000000 | Z79: 190549.7104 | AB79: 38.43486153 | AC79: -84.985307 | AE79: 28.27275839 | AF79: -28.27391786 | AH79: 0 | AI79: 0
A80: 478.63 | B80: 0.47863 | C80: 1.160483393 | D80: 0.5321663685 | E80: 1.000000002 | F80: 6.616106147e-05 | G80: 1 | H80: 0 | I80: 63.66381743 | J80: 1.555088172 | K80: 1.003291115 | L80: 0.08101992201 | M80: 1.000007874 | N80: 0.00396837233 | O80: 1.000004522 | P80: 0.003007311914 | Q80: 1.000000412 | R80: 0.0009072362479 | S80: 1.00000011 | T80: 0.0007741192636 | U80: 50.1574237 | V80: -115.2090834 | W80: 64.79091658 | Y80: 1000000000 | Z80: 229086.6769 | AB80: 37.63993912 | AC80: -84.6852605 | AE80: 28.08047389 | AF80: -30.53144997 | AH80: 0 | AI80: 0
A81: 524.81 | B81: 0.52481 | C81: 1.190317341 | D81: 0.5733064693 | E81: 1.000000003 | F81: 7.254452637e-05 | G81: 1 | H81: 0 | I81: 69.80489012 | J81: 1.556470193 | K81: 1.003955518 | L81: 0.08879778882 | M81: 1.000009467 | N81: 0.004351251011 | O81: 1.000005437 | P81: 0.003297466526 | Q81: 1.000000495 | R81: 0.0009947697153 | S81: 1.000000133 | T81: 0.0008488091633 | U81: 49.14282696 | V81: -117.2248977 | W81: 62.77510226 | Y81: 1000000000 | Z81: 275425.5361 | AB81: 36.84581195 | AC81: -84.34074287 | AE81: 27.85999709 | AF81: -32.89251779 | AH81: 0 | AI81: 0
A82: 575.44 | B82: 0.57544 | C82: 1.225220652 | D82: 0.6160286662 | E82: 1.000000003 | F82: 7.954311511e-05 | G82: 1 | H82: 0 | I82: 76.53785668 | J82: 1.557730525 | K82: 1.004753641 | L82: 0.09731275148 | M82: 1.000011381 | N82: 0.0047710232 | O82: 1.000006536 | P82: 0.003615580394 | Q82: 1.000000595 | R82: 0.001090738071 | S82: 1.000000159 | T82: 0.0009306963353 | U82: 48.0988812 | V82: -119.2845748 | W82: 60.71542521 | Y82: 1000000000 | Z82: 331131.1936 | AB82: 36.0528887 | AC82: -83.94913435 | AE82: 27.6089659 | AF82: -35.34461016 | AH82: 0 | AI82: 0
A83: 630.96 | B83: 0.63096 | C83: 1.265914125 | D83: 0.6600802952 | E83: 1.000000004 | F83: 8.721764891e-05 | G83: 1 | H83: 0 | I83: 83.92122996 | J83: 1.558880109 | K83: 1.005712448 | L83: 0.1066338257 | M83: 1.000013684 | N83: 0.005231336331 | O83: 1.000007858 | P83: 0.003964417828 | Q83: 1.000000715 | R83: 0.001195975319 | S83: 1.000000192 | T83: 0.00102049242 | U83: 47.02344648 | V83: -121.3705498 | W83: 58.6294502 | Y83: 1000000000 | Z83: 398110.5216 | AB83: 35.26124256 | AC83: -83.50731643 | AE83: 27.32516688 | AF83: -37.8732878 | AH83: 0 | AI83: 0
A84: 691.83 | B84: 0.69183 | C84: 1.313165094 | D84: 0.7051430065 | E84: 1.000000005 | F84: 9.56317136e-05 | G84: 1 | H84: 0 | I84: 92.01618344 | J84: 1.559928459 | K84: 1.006863856 | L84: 0.1168317054 | M84: 1.000016451 | N84: 0.005736003449 | O84: 1.000009448 | P84: 0.004346868707 | Q84: 1.00000086 | R84: 0.001311353375 | S84: 1.00000023 | T84: 0.001118941404 | U84: 45.91522397 | V84: -123.4613275 | W84: 56.53867248 | Y84: 1000000000 | Z84: 478628.7489 | AB84: 34.47130952 | AC84: -83.01200232 | AE84: 27.00686487 | AF84: -40.4603496 | AH84: 0 | AI84: 0
A85: 758.58 | B85: 0.75858 | C85: 1.367819964 | D85: 0.7508776197 | E85: 1.000000005 | F85: 0.0001048585711 | G85: 1 | H85: 0 | I85: 100.8932005 | J85: 1.560884694 | K85: 1.008246564 | L85: 0.127986624 | M85: 1.000019779 | N85: 0.006289417695 | O85: 1.000011359 | P85: 0.004766262612 | Q85: 1.000001034 | R85: 0.001437876831 | S85: 1.000000277 | T85: 0.00122690049 | U85: 44.77298393 | V85: -125.5336879 | W85: 54.46631214 | Y85: 1000000000 | Z85: 575443.6164 | AB85: 33.68324695 | AC85: -82.45936906 | AE85: 26.65267231 | AF85: -43.08640686 | AH85: 0 | AI85: 0
A86: 831.76 | B86: 0.83176 | C86: 1.430759841 | D86: 0.7968969851 | E86: 1.000000007 | F86: 0.000114974248 | G86: 1 | H86: 0 | I86: 110.6254252 | J86: 1.56175669 | K86: 1.00990621 | L86: 0.1401792992 | M86: 1.000023779 | N86: 0.006896137667 | O86: 1.000013656 | P86: 0.005226054627 | Q86: 1.000001243 | R86: 0.001576588186 | S86: 1.000000333 | T86: 0.00134525923 | U86: 43.59663554 | V86: -127.5615744 | W86: 52.43842559 | Y86: 1000000000 | Z86: 691824.6976 | AB86: 32.89763697 | AC86: -81.84550444 | AE86: 26.26191576 | AF86: -45.72932414 | AH86: 0 | AI86: 0
A87: 912.01 | B87: 0.91201 | C87: 1.502953291 | D87: 0.8428248342 | E87: 1.000000008 | F87: 0.0001260672115 | G87: 1 | H87: 0 | I87: 121.2979712 | J87: 1.562552072 | K87: 1.011898178 | L87: 0.1535017359 | M87: 1.000028589 | N87: 0.007561467668 | O87: 1.000016418 | P87: 0.005730265105 | Q87: 1.000001494 | R87: 0.001728700527 | S87: 1.0000004 | T87: 0.001475052734 | U87: 42.38618391 | V87: -129.5189418 | W87: 50.48105816 | Y87: 1000000000 | Z87: 831762.2401 | AB87: 32.11473894 | AC87: -81.16587768 | AE87: 25.83434035 | AF87: -48.3675971 | AH87: 0 | AI87: 0
A88: 1000 | B88: 1 | C88: 1.585400809 | D88: 0.888270122 | E88: 1.00000001 | F88: 0.0001382300757 | G88: 1 | H88: 0 | I88: 132.9999427 | J88: 1.563277456 | K88: 1.014287812 | L88: 0.1680460833 | M88: 1.000034371 | N88: 0.008290960099 | O88: 1.000019739 | P88: 0.006283102619 | Q88: 1.000001796 | R88: 0.001895483798 | S88: 1.000000481 | T88: 0.001617364637 | U88: 41.1428169 | V88: -131.3788484 | W88: 48.62115157 | Y88: 1000000000 | Z88: 1000000 | AB88: 31.33521824 | AC88: -80.4159062 | AE88: 25.37046782 | AF88: -50.97887728 | AH88: 0 | AI88: 0
A89: 1096.5 | B89: 1.0965 | C89: 1.679194584 | D89: 0.9328790575 | E89: 1.000000011 | F89: 0.0001515692778 | G89: 1 | H89: 0 | I89: 145.8337435 | J89: 1.563939149 | K89: 1.017154003 | L89: 0.1839147797 | M89: 1.000041325 | N89: 0.009090995606 | O89: 1.000023732 | P89: 0.00688940368 | Q89: 1.00000216 | R89: 0.002078397481 | S89: 1.000000579 | T89: 0.001773440309 | U89: 39.86792692 | V89: -133.1159342 | W89: 46.88406576 | Y89: 1000000000 | Z89: 1202312.25 | AB89: 30.55953655 | AC89: -79.59044778 | AE89: 24.87122801 | AF89: -53.54295922 | AH89: 0 | AI89: 0
A90: 1202.3 | B90: 1.2023 | C90: 1.785440099 | D90: 0.9763067223 | E90: 1.000000014 | F90: 0.0001661940196 | G90: 1 | H90: 0 | I90: 159.904438 | J90: 1.564542551 | K90: 1.020588987 | L90: 0.2012055106 | M90: 1.000049684 | N90: 0.00996811957 | O90: 1.000028533 | P90: 0.007554129991 | Q90: 1.000002597 | R90: 0.002278938954 | S90: 1.000000696 | T90: 0.001944557464 | U90: 38.56423947 | V90: -134.7055786 | W90: 45.29442143 | Y90: 1000000000 | Z90: 1445525.29 | AB90: 29.78869738 | AC90: -78.68458974 | AE90: 24.33834182 | AF90: -56.04014748 | AH90: 0 | AI90: =IF(AH90>0,W90,0) -> 0
A91: 1318.3 | B91: 1.3183 | C91: 1.905341637 | D91: 1.018268889 | E91: 1.000000017 | F91: 0.000182228708 | G91: 1 | H91: 0 | I91: 175.3317201 | J91: 1.565092821 | K91: 1.024703267 | L91: 0.2200237182 | M91: 1.000059733 | N91: 0.0109297879 | O91: 1.000034304 | P91: 0.008282933753 | Q91: 1.000003122 | R91: 0.002498814083 | S91: 1.000000837 | T91: 0.00213217173 | U91: 37.23459041 | V91: -136.1262398 | W91: 43.87376016 | Y91: 1000000000 | Z91: 1737914.89 | AB91: 29.02355544 | AC91: -77.69301357 | AE91: 23.77378914 | AF91: -58.45423333 | AH91: 0 | AI91: 0
A92: 1445.4 | B92: 1.4454 | C92: 2.040089888 | D92: 1.058506407 | E92: 1.00000002 | F92: 0.0001997977501 | G92: 1 | H92: 0 | I92: 192.2352843 | J92: 1.565594345 | K92: 1.029624274 | L92: 0.2404619126 | M92: 1.000071806 | N92: 0.01198345467 | O92: 1.000041238 | P92: 0.009081466366 | Q92: 1.000003753 | R92: 0.002739728708 | S92: 1.000001006 | T92: 0.002337738731 | U92: 35.88317078 | V92: -137.3585096 | W92: 42.64149042 | Y92: 1000000000 | Z92: 2089181.16 | AB92: 28.26561141 | AC92: -76.61109712 | AE92: 23.1802588 | AF92: -60.77044479 | AH92: 0 | AI92: 0
A93: 1584.9 | B93: 1.5849 | C93: 2.19129232 | D93: 1.096905585 | E93: 1.000000024 | F93: 0.0002190808449 | G93: 1 | H93: 0 | I93: 210.7880229 | J93: 1.566052206 | K93: 1.035515391 | L93: 0.2626601338 | M93: 1.000086335 | N93: 0.01313988748 | O93: 1.000049582 | P93: 0.009957891229 | Q93: 1.000004512 | R93: 0.003004146832 | S93: 1.000001209 | T93: 0.002563361037 | U93: 34.51138766 | V93: -138.3888478 | W93: 41.61115222 | Y93: 1000000000 | Z93: 2511908.01 | AB93: 27.51478442 | AC93: -75.43172499 | AE93: 22.5592368 | AF93: -62.98237795 | AH93: 0 | AI93: 0
A94: 1737.8 | B94: 1.7378 | C94: 2.36022873 | D94: 1.133283639 | E94: 1.000000029 | F94: 0.0002402162225 | G94: 1 | H94: 0 | I94: 231.1229306 | J94: 1.566469611 | K94: 1.0425514 | L94: 0.2866893098 | M94: 1.000103795 | N94: 0.01440736367 | O94: 1.00005961 | P94: 0.01091848552 | Q94: 1.000005425 | R94: 0.003293963776 | S94: 1.000001454 | T94: 0.002810656008 | U94: 33.12511383 | V94: -139.2034446 | W94: 40.79655536 | Y94: 1000000000 | Z94: 3019948.84 | AB94: 26.77350901 | AC94: -74.15149121 | AE94: 21.9141592 | AF94: -65.07964493 | AH94: 0 | AI94: 0
A95: 1905.5 | B95: 1.9055 | C95: 2.548606955 | D95: 1.167588202 | E95: 1.000000035 | F95: 0.0002633974049 | G95: 1 | H95: 0 | I95: 253.4262001 | J95: 1.566850395 | K95: 1.050950676 | L95: 0.31265774 | M95: 1.000124793 | N95: 0.0157974722 | O95: 1.000071669 | P95: 0.01197203757 | Q95: 1.000006523 | R95: 0.003611832997 | S95: 1.000001748 | T95: 0.003081887948 | U95: 31.72757638 | V95: -139.7940746 | W95: 40.20592538 | Y95: 1000000000 | Z95: 3630930.25 | AB95: 26.04285429 | AC95: -72.76507437 | AE95: 21.24718127 | AF95: -67.05936386 | AH95: 0 | AI95: 0
A96: 2089.3 | B96: 2.0893 | C96: 2.758019747 | D96: 1.199762627 | E96: 1.000000042 | F96: 0.000288804091 | G96: 1 | H96: 0 | I96: 277.8707251 | J96: 1.567197523 | K96: 1.060956503 | L96: 0.3406260257 | M96: 1.000150027 | N96: 0.01732096746 | O96: 1.000086161 | P96: 0.01312670504 | Q96: 1.000007842 | R96: 0.003960218339 | S96: 1.000002102 | T96: 0.003379159419 | U96: 30.32405774 | V96: -140.1548956 | W96: 39.84510436 | Y96: 1000000000 | Z96: 4365174.49 | AB96: 25.3251144 | AC96: -71.26978849 | AE96: 20.56128811 | AF96: -68.91839937 | AH96: 0 | AI96: 0
A97: 2290.9 | B97: 2.2909 | C97: 2.990512127 | D97: 1.229837491 | E97: 1.00000005 | F97: 0.0003166712719 | G97: 1 | H97: 0 | I97: 304.6825973 | J97: 1.567514217 | K97: 1.072866546 | L97: 0.3706768399 | M97: 1.000180373 | N97: 0.01899191197 | O97: 1.00010359 | P97: 0.01439315521 | Q97: 1.000009428 | R97: 0.00434234174 | S97: 1.000002527 | T97: 0.003705219931 | U97: 28.91782963 | V97: -140.2840299 | W97: 39.71597014 | Y97: 1000000000 | Z97: 5248222.81 | AB97: 24.62171624 | AC97: -69.66188694 | AE97: 19.85832056 | AF97: -70.65864731 | AH97: 0 | AI97: 0
A98: 2511.9 | B98: 2.5119 | C98: 3.24801718 | D98: 1.257832184 | E98: 1.00000006 | F98: 0.0003472201155 | G98: 1 | H98: 0 | I98: 334.0746094 | J98: 1.567802979 | K98: 1.087009665 | L98: 0.4028305901 | M98: 1.000216849 | N98: 0.02082352953 | O98: 1.00012454 | P98: 0.01578142289 | Q98: 1.000011335 | R98: 0.004761235476 | S98: 1.000003038 | T98: 0.004062657251 | U98: 27.51405654 | V98: -140.1824304 | W98: 39.81756959 | Y98: 1000000000 | Z98: 6309641.61 | AB98: 23.93523712 | AC98: -67.94110157 | AE98: 19.14086121 | AF98: -72.28135442 | AH98: 0 | AI98: 0
A99: 2754.2 | B99: 2.7542 | C99: 3.532817553 | D99: 1.283813033 | E99: 1.000000072 | F99: 0.0003807132586 | G99: 1 | H99: 0 | I99: 366.2994529 | J99: 1.568066317 | K99: 1.103771853 | L99: 0.4370970563 | M99: 1.000260696 | N99: 0.02283151753 | O99: 1.000149723 | P99: 0.01730342182 | Q99: 1.000013627 | R99: 0.005220500303 | S99: 1.000003652 | T99: 0.004454544349 | U99: 26.11687369 | V99: -139.8545109 | W99: 40.14548909 | Y99: 1000000000 | Z99: 7585617.64 | AB99: 23.26791854 | AC99: -66.10791504 | AE99: 18.41079814 | AF99: -73.79048191 | AH99: 0 | AI99: 0
A100: 3020 | B100: 3.02 | C100: 3.8475559 | D100: 1.307872241 | E100: 1.000000087 | F100: 0.0004174548071 | G100: 1 | H100: 0 | I100: 401.6497183 | J100: 1.568306593 | K100: 1.123602679 | L100: 0.4734636194 | M100: 1.000313433 | N100: 0.02503404228 | O100: 1.000180013 | P100: 0.0189729427 | Q100: 1.000016384 | R100: 0.005724305401 | S100: 1.000004391 | T100: 0.0048844394 | U100: 24.72981908 | V100: -139.3076049 | W100: 40.69239512 | Y100: 1000000000 | Z100: 9120400 | AB100: 22.62190568 | AC100: -64.16422663 | AE100: 17.66951728 | AF100: -75.19149902 | AH100: 0 | AI100: 0
A101: 3311.3 | B101: 3.3113 | C101: 4.194643991 | D101: 1.33007908 | E101: 1.000000105 | F101: 0.0004577212207 | G101: 1 | H101: 0 | I101: 440.3913969 | J101: 1.568525617 | K101: 1.146979392 | L101: 0.5118186403 | M101: 1.000376803 | N101: 0.02744759044 | O101: 1.000216411 | P101: 0.02080251024 | Q101: 1.000019697 | R101: 0.006276440599 | S101: 1.000005279 | T101: 0.005355577095 | U101: 23.358375 | V101: -138.5532638 | W101: 41.44673621 | Y101: 1000000000 | Z101: 10964707.69 | AB101: 22.00038523 | AC101: -62.11748113 | AE101: 16.91930634 | AF101: -76.48854425 | AH101: 0 | AI101: 0
A102: 3630.8 | B102: 3.6308 | C102: 4.577332538 | D102: 1.350552209 | E102: 1.000000126 | F102: 0.00050188572 | G102: 1 | H102: 0 | I102: 482.8835776 | J102: 1.568725433 | K102: 1.174476596 | L102: 0.5520654782 | M102: 1.000453008 | N102: 0.03009441916 | O102: 1.000260182 | P102: 0.02280903288 | Q102: 1.000023682 | R102: 0.006882022165 | S102: 1.000006347 | T102: 0.00587232427 | U102: 22.00540548 | V102: -137.6054016 | W102: 42.39459841 | Y102: 1000000000 | Z102: 13182708.64 | AB102: 21.40542645 | AC102: -59.97460787 | AE102: 16.1609501 | AF102: -77.68864515 | AH102: 0 | AI102: 0
A103: 3981.1 | B103: 3.9811 | C103: 4.998763014 | D103: 1.369387894 | E103: 1.000000151 | F103: 0.0005503077024 | G103: 1 | H103: 0 | I103: 529.4720495 | J103: 1.568907652 | K103: 1.206704206 | L103: 0.5940090995 | M103: 1.000544612 | N103: 0.0329959178 | O103: 1.000312801 | P103: 0.02500877387 | Q103: 1.000028472 | R103: 0.007545976356 | S103: 1.000007631 | T103: 0.006438886006 | U103: 20.67513004 | V103: -136.4822054 | W103: 43.51779461 | Y103: 1000000000 | Z103: 15849157.21 | AB103: 20.83974831 | AC103: -57.7480994 | AE103: 15.39593751 | AF103: -78.79753759 | AH103: 0 | AI103: 0
A104: 4365.2 | B104: 4.3652 | C104: 5.462565075 | D104: 1.386693922 | E104: 1.000000182 | F104: 0.0006034018571 | G104: 1 | H104: 0 | I104: 580.5558003 | J104: 1.569073839 | K104: 1.24434626 | L104: 0.6374183481 | M104: 1.000654735 | N104: 0.03617673787 | O104: 1.000376059 | P104: 0.02742048607 | Q104: 1.00003423 | R104: 0.00827398697 | S104: 1.000009175 | T104: 0.007060114314 | U104: 19.3707685 | V104: -135.2048039 | W104: 44.79519608 | Y104: 1000000000 | Z104: 19054971.04 | AB104: 20.30558218 | AC104: -55.45270203 | AE104: 14.62524285 | AF104: -79.82165167 | AH104: 0 | AI104: 0
A105: 4786.3 | B105: 4.7863 | C105: 5.972618404 | D105: 1.402573271 | E105: 1.000000219 | F105: 0.0006616105191 | G105: 1 | H105: 0 | I105: 636.5604173 | J105: 1.569225383 | K105: 1.288140561 | L105: 0.6820012415 | M105: 1.000787097 | N105: 0.03966311967 | O105: 1.000452097 | P105: 0.03006414867 | Q105: 1.000041153 | R105: 0.009072116071 | S105: 1.00001103 | T105: 0.007741184645 | U105: 18.09536796 | V105: -133.7976302 | W105: 46.20236982 | Y105: 1000000000 | Z105: 22908667.69 | AB105: 19.80496027 | AC105: -53.10672823 | AE105: 13.84986416 | AF105: -80.76715871 | AH105: 0 | AI105: 0
A106: 5248.1 | B106: 5.2481 | C106: 6.533416957 | D106: 1.417133048 | E106: 1.000000263 | F106: 0.0007254451377 | G106: 1 | H106: 0 | I106: 697.9779856 | J106: 1.569363616 | K106: 1.33890562 | L106: 0.7274407686 | M106: 1.000946234 | N106: 0.04348535405 | O106: 1.000543521 | P106: 0.032962841 | Q106: 1.000049477 | R106: 0.009947372323 | S106: 1.000013262 | T106: 0.0084880811 | U106: 16.85086945 | V106: -132.287051 | W106: 47.71294901 | Y106: 1000000000 | Z106: 27542553.61 | AB106: 19.3392715 | AC106: -50.73015317 | AE106: 13.07033302 | AF106: -81.64050905 | AH106: 0 | AI106: 0
A107: 5370.3 | B107: 5.3703 | C107: 6.682020763 | D107: 1.420576662 | E107: 1.000000276 | F107: 0.000742336844 | G107: 1 | H107: 0 | I107: 714.2301029 | J107: 1.569396217 | K107: 1.352779352 | L107: 0.7388866012 | M107: 1.00099079 | N107: 0.04449657306 | O107: 1.000569119 | P107: 0.03372979274 | Q107: 1.000051808 | R107: 0.01017897726 | S107: 1.000013886 | T107: 0.008685722307 | U107: 16.54494209 | V107: -131.8967743 | W107: 48.10322568 | Y107: 1000000000 | Z107: 28840122.09 | AB107: 19.22849639 | AC107: -50.13416174 | AE107: 12.87497879 | AF107: -81.84816979 | AH107: 0 | AI107: 0
A108: 5432.85 | B108: 5.43285 | C108: 6.758115609 | D108: 1.422280722 | E108: 1.000000282 | F108: 0.0007509831305 | G108: 1 | H108: 0 | I108: 722.5490061 | J108: 1.569412337 | K108: 1.359948356 | L108: 0.7446545842 | M108: 1.001013993 | N108: 0.04501414638 | O108: 1.00058245 | P108: 0.0341223538 | Q108: 1.000053022 | R108: 0.01029752749 | S108: 1.000014212 | T108: 0.008786888066 | U108: 16.3918131 | V108: -131.6988119 | W108: 48.30118807 | Y108: 1000000000 | Z108: 29515859.12 | AB108: 19.17362091 | AC108: -49.83425903 | AE108: 12.7766201 | AF108: -81.95110616 | AH108: 0 | AI108: 0
A109: 5495.4 | B109: 5.4954 | C109: 6.834229642 | D109: 1.423946829 | E109: 1.000000289 | F109: 0.0007596294168 | G109: 1 | H109: 0 | I109: 730.8679095 | J109: 1.56942809 | K109: 1.367162128 | L109: 0.7503618864 | M109: 1.001037464 | N109: 0.04553169557 | O109: 1.000595935 | P109: 0.03451490434 | Q109: 1.00005425 | R109: 0.01041607743 | S109: 1.000014541 | T109: 0.008888053816 | U109: 16.24095437 | V109: -131.5021294 | W109: 48.4978706 | Y109: 1000000000 | Z109: 30199421.16 | AB109: 19.11993761 | AC109: -49.53781066 | AE109: 12.67933828 | AF109: -82.05186805 | AH109: 0 | AI109: 0
A110: 5559.4 | B110: 5.5594 | C110: 6.912127308 | D110: 1.425613575 | E110: 1.000000295 | F110: 0.0007684761366 | G110: 1 | H110: 0 | I110: 739.3796574 | J110: 1.569443841 | K110: 1.37458873 | L110: 0.7561392969 | M110: 1.001061756 | N110: 0.04606121703 | O110: 1.000609892 | P110: 0.03491654376 | Q110: 1.000055521 | R110: 0.01053737522 | S110: 1.000014882 | T110: 0.008991564726 | U110: 16.0888907 | V110: -131.3022523 | W110: 48.69774775 | Y110: 1000000000 | Z110: 30906928.36 | AB110: 19.06620993 | AC110: -49.23803124 | AE110: 12.58089217 | AF110: -82.15278943 | AH110: 0 | AI110: 0
A111: 5623.4 | B111: 5.6234 | C111: 6.990043749 | D111: 1.427243168 | E111: 1.000000302 | F111: 0.0007773228562 | G111: 1 | H111: 0 | I111: 747.8914054 | J111: 1.569459234 | K111: 1.38206072 | L111: 0.7618544263 | M111: 1.00108633 | N111: 0.04659071265 | O111: 1.000624011 | P111: 0.0353181719 | Q111: 1.000056806 | R111: 0.0106586727 | S111: 1.000015226 | T111: 0.009095075626 | U111: 15.93908864 | V111: -131.1037928 | W111: 48.89620718 | Y111: 1000000000 | Z111: 31622627.56 | AB111: 19.01366272 | AC111: -48.94179825 | AE111: 12.48352593 | AF111: -82.25158209 | AH111: 0 | AI111: 0
A112: 5688.9 | B112: 5.6889 | C112: 7.069805147 | D112: 1.428873758 | E112: 1.000000309 | F112: 0.0007863769207 | G112: 1 | H112: 0 | I112: 756.6026477 | J112: 1.569474629 | K112: 1.389754066 | L112: 0.7676396782 | M112: 1.00111177 | N112: 0.04713259125 | O112: 1.000638628 | P112: 0.03572920141 | Q112: 1.000058137 | R112: 0.01078281277 | S112: 1.000015583 | T112: 0.009201012552 | U112: 15.78805949 | V112: -130.9021856 | W112: 49.09781435 | Y112: 1000000000 | Z112: 32363583.21 | AB112: 18.9610723 | AC112: -48.64225714 | AE112: 12.38497188 | AF112: -82.35055899 | AH112: 0 | AI112: 0
A113: 5754.4 | B113: 5.7544 | C113: 7.149584923 | D113: 1.430467962 | E113: 1.000000316 | F113: 0.000795430985 | G113: 1 | H113: 0 | I113: 765.3138902 | J113: 1.569489673 | K113: 1.397493413 | L113: 0.7733610422 | M113: 1.001137503 | N113: 0.04767444215 | O113: 1.000653413 | P113: 0.03614021883 | Q113: 1.000059484 | R113: 0.01090695251 | S113: 1.000015944 | T113: 0.009306949467 | U113: 15.63928365 | V113: -130.7021326 | W113: 49.29786744 | Y113: 1000000000 | Z113: 33113119.36 | AB113: 18.90965058 | AC113: -48.34635488 | AE113: 12.28750111 | AF113: -82.44745111 | AH113: 0 | AI113: 0
A114: 5821.4 | B114: 5.8214 | C114: 7.231210097 | D114: 1.432062275 | E114: 1.000000324 | F114: 0.0008046923942 | G114: 1 | H114: 0 | I114: 774.224627 | J114: 1.569504712 | K114: 1.405456798 | L114: 0.7791480436 | M114: 1.001164131 | N114: 0.04822867286 | O114: 1.000668712 | P114: 0.03656063623 | Q114: 1.000060877 | R114: 0.01103393479 | S114: 1.000016317 | T114: 0.009415312406 | U114: 15.48937404 | V114: -130.4991373 | W114: 49.50086273 | Y114: 1000000000 | Z114: 33888697.96 | AB114: 18.85822646 | AC114: -48.04740085 | AE114: 12.18889492 | AF114: -82.54447665 | AH114: 0 | AI114: 0
A115: 5888.4 | B115: 5.8884 | C115: 7.312853241 | D115: 1.433620994 | E115: 1.000000331 | F115: 0.0008139538033 | G115: 1 | H115: 0 | I115: 783.1353639 | J115: 1.569519408 | K115: 1.413466719 | L115: 0.7848696466 | M115: 1.001191065 | N115: 0.04878287392 | O115: 1.000684189 | P115: 0.0369810407 | Q115: 1.000062286 | R115: 0.01116091672 | S115: 1.000016695 | T115: 0.009523675335 | U115: 15.34170633 | V115: -130.2978283 | W115: 49.7021717 | Y115: 1000000000 | Z115: 34673254.56 | AB115: 18.80795744 | AC115: -47.75217257 | AE115: 12.09137414 | AF115: -82.63946275 | AH115: 0 | AI115: 0
A116: 5957 | B116: 5.957 | C116: 7.39646407 | D116: 1.435181279 | E116: 1.000000339 | F116: 0.0008234363802 | G116: 1 | H116: 0 | I116: 792.2588947 | J116: 1.569534113 | K116: 1.421715317 | L116: 0.7906608917 | M116: 1.001218962 | N116: 0.04935027857 | O116: 1.000700217 | P116: 0.03741147113 | Q116: 1.000063746 | R116: 0.01129093068 | S116: 1.000017086 | T116: 0.009634626023 | U116: 15.1927769 | V116: -130.093486 | W116: 49.906514 | Y116: 1000000000 | Z116: 35485849 | AB116: 18.75765077 | AC116: -47.45371108 | AE116: 11.99262493 | AF116: -82.73467418 | AH116: 0 | AI116: 0
A117: 6025.6 | B117: 6.0256 | C117: 7.480092503 | D117: 1.436706679 | E117: 1.000000347 | F117: 0.0008329189569 | G117: 1 | H117: 0 | I117: 801.3824257 | J117: 1.569548483 | K117: 1.430011047 | L117: 0.796385135 | M117: 1.001247181 | N117: 0.04991765141 | O117: 1.000716432 | P117: 0.03784188769 | Q117: 1.000065223 | R117: 0.01142094425 | S117: 1.000017482 | T117: 0.009745576698 | U117: 15.04608149 | V117: -129.8909629 | W117: 50.10903712 | Y117: 1000000000 | Z117: 36307855.36 | AB117: 18.70848716 | AC117: -47.15906751 | AE117: 11.89496523 | AF117: -82.82788686 | AH117: 0 | AI117: 0
A118: 6095.8 | B118: 6.0958 | C118: 7.565689069 | D118: 1.438232742 | E118: 1.000000355 | F118: 0.0008426227015 | G118: 1 | H118: 0 | I118: 810.7187506 | J118: 1.569562853 | K118: 1.438548205 | L118: 0.8021743457 | M118: 1.001276391 | N118: 0.05049822413 | O118: 1.000733216 | P118: 0.0382823286 | Q118: 1.000066751 | R118: 0.01155398981 | S118: 1.000017892 | T118: 0.009859115131 | U118: 14.89821908 | V118: -129.6856218 | W118: 50.31437816 | Y118: 1000000000 | Z118: 37158777.64 | AB118: 18.65932623 | AC118: -46.86145789 | AE118: 11.79613133 | AF118: -82.92127311 | AH118: 0 | AI118: 0
A119: 6166 | B119: 6.166 | C119: 7.65130286 | D119: 1.439724656 | E119: 1.000000363 | F119: 0.0008523264459 | G119: 1 | H119: 0 | I119: 820.0550756 | J119: 1.569576896 | K119: 1.447133007 | L119: 0.8078950598 | M119: 1.00130594 | N119: 0.05107876279 | O119: 1.000750195 | P119: 0.03872275464 | Q119: 1.000068297 | R119: 0.01168703497 | S119: 1.000018306 | T119: 0.009972653551 | U119: 14.75257961 | V119: -129.4822281 | W119: 50.51777186 | Y119: 1000000000 | Z119: 38019556 | AB119: 18.61129443 | AC119: -46.56775214 | AE119: 11.69838972 | AF119: -83.01270282 | AH119: 0 | AI119: 0
A120: 6237.8 | B120: 6.2378 | C120: 7.738885185 | D120: 1.441216425 | E120: 1.000000372 | F120: 0.0008622513581 | G120: 1 | H120: 0 | I120: 829.6041945 | J120: 1.569590932 | K120: 1.455961879 | L120: 0.8136761806 | M120: 1.00133651 | N120: 0.05167249745 | O120: 1.000767761 | P120: 0.03917320334 | Q120: 1.000069897 | R120: 0.01182311206 | S120: 1.000018735 | T120: 0.01008877973 | U120: 14.60586186 | V120: -129.2762308 | W120: 50.72376916 | Y120: 1000000000 | Z120: 38910148.84 | AB120: 18.56330198 | AC120: -46.27134102 | AE120: 11.59952586 | AF120: -83.10425974 | AH120: 0 | AI120: 0
A121: 6309.6 | B121: 6.3096 | C121: 7.826484347 | D121: 1.442674803 | E121: 1.00000038 | F121: 0.0008721762702 | G121: 1 | H121: 0 | I121: 839.1533136 | J121: 1.569604649 | K121: 1.464838824 | L121: 0.819387423 | M121: 1.001367434 | N121: 0.05226619565 | O121: 1.00078553 | P121: 0.03962363614 | Q121: 1.000071515 | R121: 0.01195918872 | S121: 1.000019169 | T121: 0.01020490589 | U121: 14.46135302 | V121: -129.0723038 | W121: 50.92769623 | Y121: 1000000000 | Z121: 39811052.16 | AB121: 18.51642301 | AC121: -45.97891325 | AE121: 11.50175582 | AF121: -83.19390352 | AH121: 0 | AI121: 0
A122: 6383.05 | B122: 6.38305 | C122: 7.916113419 | D122: 1.444133294 | E122: 1.000000389 | F122: 0.0008823292615 | G122: 1 | H122: 0 | I122: 848.9218764 | J122: 1.569618362 | K122: 1.473968602 | L122: 0.8251585385 | M122: 1.001399434 | N122: 0.05287349917 | O122: 1.000803918 | P122: 0.04008440346 | Q122: 1.00007319 | R122: 0.01209839203 | S122: 1.000019618 | T122: 0.01032370067 | U122: 14.31575052 | V122: -128.8658456 | W122: 51.1341544 | Y122: 1000000000 | Z122: 40743327.3 | AB122: 18.46958503 | AC122: -45.6838343 | AE122: 11.40284626 | AF122: -83.28369363 | AH122: 0 | AI122: 0
A123: 6456.5 | B123: 6.4565 | C123: 8.005758954 | D123: 1.445559125 | E123: 1.000000398 | F123: 0.0008924822526 | G123: 1 | H123: 0 | I123: 858.6904394 | J123: 1.569631763 | K123: 1.483146867 | L123: 0.8308584143 | M123: 1.001431802 | N123: 0.05348076365 | O123: 1.000822518 | P123: 0.04054515375 | Q123: 1.000074884 | R123: 0.01223759487 | S123: 1.000020072 | T123: 0.01044249544 | U123: 14.17234306 | V123: -128.6615778 | W123: 51.33842222 | Y123: 1000000000 | Z123: 41686392.25 | AB123: 18.42384476 | AC123: -45.39281696 | AE123: 11.30503235 | AF123: -83.37161244 | AH123: 0 | AI123: 0
A124: 6531.7 | B124: 6.5317 | C124: 8.097556844 | D124: 1.446986217 | E124: 1.000000408 | F124: 0.000902877146 | G124: 1 | H124: 0 | I124: 868.6917457 | J124: 1.56964517 | K124: 1.49259311 | L124: 0.8366212772 | M124: 1.001465325 | N124: 0.05410245575 | O124: 1.000841782 | P124: 0.04101686391 | Q124: 1.000076639 | R124: 0.01238011382 | S124: 1.000020542 | T124: 0.01056412057 | U124: 14.02773446 | V124: -128.4547209 | W124: 51.54527914 | Y124: 1000000000 | Z124: 42663104.89 | AB124: 18.37811813 | AC124: -45.09901778 | AE124: 11.20599844 | AF124: -83.45975183 | AH124: 0 | AI124: 0
A125: 6606.9 | B125: 6.6069 | C125: 8.189370855 | D125: 1.448381313 | E125: 1.000000417 | F125: 0.0009132720392 | G125: 1 | H125: 0 | I125: 878.6930521 | J125: 1.569658273 | K125: 1.502088298 | L125: 0.8423114692 | M125: 1.001499235 | N125: 0.054724106 | O125: 1.000861268 | P125: 0.0414885558 | Q125: 1.000078413 | R125: 0.01252263228 | S125: 1.000021018 | T125: 0.01068574568 | U125: 13.88531 | V125: -128.2501746 | W125: 51.74982545 | Y125: 1000000000 | Z125: 43651127.61 | AB125: 18.33347469 | AC125: -44.80936245 | AE125: 11.10806372 | AF125: -83.54605795 | AH125: 0 | AI125: 0
A126: 6683.85 | B126: 6.68385 | C126: 8.283337625 | D126: 1.449776857 | E126: 1.000000427 | F126: 0.0009239088346 | G126: 1 | H126: 0 | I126: 888.9271019 | J126: 1.569671375 | K126: 1.511854156 | L126: 0.8480598997 | M126: 1.001534334 | N126: 0.055360179 | O126: 1.000881438 | P126: 0.04197120545 | Q126: 1.00008025 | R126: 0.01266846679 | S126: 1.00002151 | T126: 0.01081020114 | U126: 13.7417736 | V126: -128.0432639 | W126: 51.95673609 | Y126: 1000000000 | Z126: 44673850.82 | AB126: 18.28887989 | AC126: -44.51719664 | AE126: 11.00896304 | AF126: -83.63253805 | AH126: 0 | AI126: 0
A127: 6760.8 | B127: 6.7608 | C127: 8.377320165 | D127: 1.451141091 | E127: 1.000000437 | F127: 0.0009345456298 | G127: 1 | H127: 0 | I127: 899.1611518 | J127: 1.569684179 | K127: 1.521669331 | L127: 0.8537343579 | M127: 1.001569839 | N127: 0.05599620717 | O127: 1.000901841 | P127: 0.04245383553 | Q127: 1.000082109 | R127: 0.01281430077 | S127: 1.000022009 | T127: 0.01093465659 | U127: 13.6004074 | V127: -127.838778 | W127: 52.16122197 | Y127: 1000000000 | Z127: 45708416.64 | AB127: 18.24535201 | AC127: -44.22924948 | AE127: 10.91096379 | AF127: -83.71722423 | AH127: 0 | AI127: 0
A128: 6839.55 | B128: 6.83955 | C128: 8.473516908 | D128: 1.452505902 | E128: 1.000000447 | F128: 0.0009454312387 | G128: 1 | H128: 0 | I128: 909.6345948 | J128: 1.569696984 | K128: 1.531764171 | L128: 0.8594660701 | M128: 1.001606593 | N128: 0.05664706624 | O128: 1.000922963 | P128: 0.04294773471 | Q128: 1.000084033 | R128: 0.0129635455 | S128: 1.000022524 | T128: 0.01106202326 | U128: 13.45792283 | V128: -127.6320185 | W128: 52.36798148 | Y128: 1000000000 | Z128: 46779444.2 | AB128: 18.20187698 | AC128: -43.93887171 | AE128: 10.81178766 | AF128: -83.80209601 | AH128: 0 | AI128: 0
A129: 6918.3 | B129: 6.9183 | C129: 8.56972908 | D129: 1.45384007 | E129: 1.000000457 | F129: 0.0009563168474 | G129: 1 | H129: 0 | I129: 920.108038 | J129: 1.569709498 | K129: 1.541908673 | L129: 0.8651225462 | M129: 1.001643772 | N129: 0.05729787726 | O129: 1.000944329 | P129: 0.04344161293 | Q129: 1.000085979 | R129: 0.01311278965 | S129: 1.000023046 | T129: 0.0111893899 | U129: 13.31759442 | V129: -127.4277946 | W129: 52.5722054 | Y129: 1000000000 | Z129: 47862874.89 | AB129: 18.15945235 | AC129: -43.65278521 | AE129: 10.71371538 | AF129: -83.88521207 | AH129: 0 | AI129: 0
A130: 6998.9 | B130: 6.9989 | C130: 8.668216915 | D130: 1.455174909 | E130: 1.000000468 | F130: 0.0009674581813 | G130: 1 | H130: 0 | I130: 930.8275241 | J130: 1.569722014 | K130: 1.552341901 | L130: 0.8708351618 | M130: 1.001682263 | N130: 0.05796392686 | O130: 1.00096645 | P130: 0.0439470714 | Q130: 1.000087994 | R130: 0.01326553926 | S130: 1.000023586 | T130: 0.01131974864 | U130: 13.17614368 | V130: -127.2213932 | W130: 52.77860683 | Y130: 1000000000 | Z130: 48984601.21 | AB130: 18.11708531 | AC130: -43.36435539 | AE130: 10.61445722 | AF130: -83.96852337 | AH130: 0 | AI130: 0
A131: 7079.5 | B131: 7.0795 | C131: 8.766719849 | D131: 1.456479754 | E131: 1.000000479 | F131: 0.0009785995149 | G131: 1 | H131: 0 | I131: 941.5470103 | J131: 1.569734245 | K131: 1.562825111 | L131: 0.8764713205 | M131: 1.001721199 | N131: 0.05862992498 | O131: 1.000988827 | P131: 0.04445250741 | Q131: 1.000090032 | R131: 0.01341828824 | S131: 1.000024132 | T131: 0.01145010735 | U131: 13.03683489 | V131: -127.0176346 | W131: 52.98236538 | Y131: 1000000000 | Z131: 50119320.25 | AB131: 18.07575186 | AC131: -43.08028696 | AE131: 10.51630541 | AF131: -84.05011612 | AH131: 0 | AI131: 0
A132: 7161.95 | B132: 7.16195 | C132: 8.867498803 | D132: 1.457784551 | E132: 1.00000049 | F132: 0.0009899965737 | G132: 1 | H132: 0 | I132: 952.5125395 | J132: 1.569746472 | K132: 1.573599614 | L132: 0.8821589594 | M132: 1.001761488 | N132: 0.05931115577 | O132: 1.001011982 | P132: 0.0449695211 | Q132: 1.000092141 | R132: 0.0135745426 | S132: 1.000024698 | T132: 0.01158345815 | U132: 12.89648647 | V132: -126.8119237 | W132: 53.18807633 | Y132: 1000000000 | Z132: 51293527.8 | AB132: 18.03450585 | AC132: -42.79414145 | AE132: 10.4170204 | AF132: -84.13186295 | AH132: 0 | AI132: 0
A133: 7244.4 | B133: 7.2444 | C133: 8.968292514 | D133: 1.459060022 | E133: 1.000000501 | F133: 0.001001393632 | G133: 1 | H133: 0 | I133: 963.4780689 | J133: 1.56975842 | K133: 1.584424329 | L133: 0.8877690623 | M133: 1.001802242 | N133: 0.05999233146 | O133: 1.001035404 | P133: 0.04548651073 | Q133: 1.000094275 | R133: 0.0137307963 | S133: 1.00002527 | T133: 0.01171680892 | U133: 12.75826302 | V133: -126.6089558 | W133: 53.39104418 | Y133: 1000000000 | Z133: 52481331.36 | AB133: 17.9942751 | AC133: -42.51241933 | AE133: 10.318843 | AF133: -84.21192947 | AH133: 0 | AI133: 0
A134: 7328.75 | B134: 7.32875 | C134: 9.071423702 | D134: 1.460335551 | E134: 1.000000513 | F134: 0.001013053327 | G134: 1 | H134: 0 | I134: 974.6962909 | J134: 1.569770366 | K134: 1.595549387 | L134: 0.8934294904 | M134: 1.001844417 | N134: 0.06068914666 | O134: 1.001059643 | P134: 0.04601538883 | Q134: 1.000096483 | R134: 0.01389065005 | S134: 1.000025862 | T134: 0.01185323265 | U134: 12.61899511 | V134: -126.4041347 | W134: 53.59586533 | Y134: 1000000000 | Z134: 53710576.56 | AB134: 17.95413483 | AC134: -42.2287097 | AE134: 10.21952422 | AF134: -84.29216039 | AH134: 0 | AI134: 0
A135: 7413.1 | B135: 7.4131 | C135: 9.174569317 | D135: 1.461582403 | E135: 1.000000525 | F135: 0.001024713022 | G135: 1 | H135: 0 | I135: 985.9145132 | J135: 1.56978204 | K135: 1.606724857 | L135: 0.8990113539 | M135: 1.001887077 | N135: 0.06138590286 | O135: 1.001084162 | P135: 0.04654424117 | Q135: 1.000098716 | R135: 0.0140505031 | S135: 1.00002646 | T135: 0.01198965635 | U135: 12.48183511 | V135: -126.2021529 | W135: 53.79784713 | Y135: 1000000000 | Z135: 54954051.61 | AB135: 17.91499127 | AC135: -41.94948253 | AE135: 10.12131444 | AF135: -84.37074816 | AH135: 0 | AI135: 0
A136: 7499.45 | B136: 7.49945 | C136: 9.280175032 | D136: 1.462830106 | E136: 1.000000537 | F136: 0.001036649177 | G136: 1 | H136: 0 | I136: 997.3987277 | J136: 1.569793719 | K136: 1.618216436 | L136: 0.9046455266 | M136: 1.001931253 | N136: 0.06209911784 | O136: 1.001109552 | P136: 0.047085606 | Q136: 1.000101029 | R136: 0.01421414563 | S136: 1.00002708 | T136: 0.01212931473 | U136: 12.34354834 | V136: -125.9983038 | W136: 54.00169623 | Y136: 1000000000 | Z136: 56241750.3 | AB136: 17.8759192 | AC136: -41.66820156 | AE136: 10.02189953 | AF136: -84.44955422 | AH136: 0 | AI136: 0
A137: 7585.8 | B137: 7.5858 | C137: 9.385794868 | D137: 1.464049729 | E137: 1.00000055 | F137: 0.001048585331 | G137: 1 | H137: 0 | I137: 1008.882942 | J137: 1.569805131 | K137: 1.629758658 | L137: 0.9102000692 | M137: 1.001975939 | N137: 0.06281226957 | O137: 1.001135236 | P137: 0.0476269432 | Q137: 1.000103369 | R137: 0.0143777874 | S137: 1.000027708 | T137: 0.01226897309 | U137: 12.20735472 | V137: -125.7973895 | W137: 54.20261051 | Y137: 1000000000 | Z137: 57544361.64 | AB137: 17.83782621 | AC137: -41.3914642 | AE137: 9.923596379 | AF137: -84.52675144 | AH137: 0 | AI137: 0
A138: 7674.15 | B138: 7.67415 | C138: 9.493875149 | D138: 1.465269513 | E138: 1.000000563 | F138: 0.001060797944 | G138: 1 | H138: 0 | I138: 1020.63315 | J138: 1.569816543 | K138: 1.641619518 | L138: 0.9158022439 | M138: 1.002022187 | N138: 0.06354187278 | O138: 1.001161818 | P138: 0.04818078971 | Q138: 1.000105791 | R138: 0.01454521858 | S138: 1.000028357 | T138: 0.01241186613 | U138: 12.07011511 | V138: -125.5948355 | W138: 54.40516454 | Y138: 1000000000 | Z138: 58892578.22 | AB138: 17.7998317 | AC138: -41.11294024 | AE138: 9.824141694 | AF138: -84.60412732 | AH138: 0 | AI138: 0
A139: 7762.5 | B139: 7.7625 | C139: 9.601969237 | D139: 1.466461834 | E139: 1.000000576 | F139: 0.001073010558 | G139: 1 | H139: 0 | I139: 1032.383357 | J139: 1.569827694 | K139: 1.653531159 | L139: 0.9213238765 | M139: 1.002068968 | N139: 0.06427140826 | O139: 1.001188707 | P139: 0.04873460663 | Q139: 1.000108241 | R139: 0.01471264894 | S139: 1.000029014 | T139: 0.01255475914 | U139: 11.93495117 | V139: -125.395304 | W139: 54.60469599 | Y139: 1000000000 | Z139: 60256406.25 | AB139: 17.76279722 | AC139: -40.83901224 | AE139: 9.725800221 | AF139: -84.67992975 | AH139: 0 | AI139: 0
A140: 7852.9 | B140: 7.8529 | C140: 9.712585262 | D140: 1.46765435 | E140: 1.000000589 | F140: 0.001085506542 | G140: 1 | H140: 0 | I140: 1044.406206 | J140: 1.569838845 | K140: 1.665770614 | L140: 0.9268917162 | M140: 1.002117387 | N140: 0.06501780037 | O140: 1.001216538 | P140: 0.0493012429 | Q140: 1.000110776 | R140: 0.01488396335 | S140: 1.000029693 | T140: 0.01270096769 | U140: 11.79874172 | V140: -125.1942431 | W140: 54.80575691 | Y140: 1000000000 | Z140: 61668038.41 | AB140: 17.72586482 | AC140: -40.56340252 | AE140: 9.626303754 | AF140: -84.75591701 | AH140: 0 | AI140: 0
A141: 7943.3 | B141: 7.9433 | C141: =SQRT(1+(A141/pole1)^2) -> 9.823214788 | D141: =ATAN(A141/pole1) -> 1.468820006 | E141: =SQRT(1+(A141/Zero1)^2) -> 1.000000603 | F141: =ATAN(A141/Zero1) -> 0.001098002526 | G141: =IF(VIN_nom>Vout, 1, SQRT(1+(A141/z_RHP)^2)) -> 1 | H141: =IF(VIN_nom>Vout, 0, -ATAN(A141/z_RHP)) -> 0 | I141: =SQRT(1+(A141/Pole2)^2) -> 1056.429056 | J141: =ATAN(A141/Pole2) -> 1.569849742 | K141: =SQRT(1+(A141/Zero2)^2) -> 1.678060955 | L141: =ATAN(A141/Zero2) -> 0.9323781648 | M141: =SQRT(1+(A141/pole4)^2) -> 1.002166363 | N141: =ATAN(A141/pole4) -> 0.06576411993 | O141: =SQRT(1+(A141/Zero3)^2) -> 1.001244691 | P141: =ATAN(A141/Zero3) -> 0.04986784748 | Q141: =SQRT(1+(A141/pole5)^2) -> 1.000113341 | R141: =ATAN(A141/pole5) -> 0.0150552769 | S141: =SQRT((1-(Z141/pterm2))^2+(A141/pterm1)^2) -> 1.000030381 | T141: =IF((ATAN((A141/pterm1)/(1-A141^2/pterm2))>0),ATAN((A141/pterm1)/(1-A141^2/pterm2)),PI()+ATAN((A141/pterm1)/(1-A141^2/pterm2))) -> 0.01284717621 | U141: =20*LOG10(((E141*K141*G141*O141)/(C141*I141*S141*M141*Q141))*Adc) -> 11.66459026 | V141: =((F141+L141+H141+R141)-(D141+J141+T141+N141+T141))*radconv -> -124.996288 | W141: =IF(V141>0,V141,V141+180) -> 55.003712 | Y141: =IF(U141<0,A141,1000000000) -> 1000000000 | Z141: =A141^2 -> 63096014.89 | AB141: =20*LOG10((K141/(I141*M141))*AEA) -> 17.68987317 | AC141: =(L141-(J141+N141))*radconv -> -40.29243747 | AE141: =20*LOG10((E141*G141/(C141*S141))*Acs*Am) -> 9.527921983 | AF141: =(F141+H141-(D141+T141))*radconv -> -84.83036538 | AH141: =SUM((U142<0)*(U141>0))*A141 -> 0 | AI141: 0
A142: 8035.8 | B142: =A142/1000 -> 8.0358 | C142: 9.936427752 | D142: 1.469985872 | E142: 1.000000617 | F142: 0.001110788793 | G142: 1 | H142: 0 | I142: 1068.731197 | J142: 1.569860638 | K142: 1.690688316 | L142: 0.9379093258 | M142: 1.002217056 | N142: 0.06652770063 | O142: 1.00127383 | P142: 0.05044758116 | Q142: 1.000115996 | R142: 0.01523056916 | S142: 1.000031093 | T142: 0.01299678114 | U142: 11.52939519 | V142: -124.7969166 | W142: 55.20308338 | Y142: 1000000000 | Z142: 64574081.64 | AB142: 17.65398722 | AC142: -40.01989954 | AE142: 9.428383144 | AF142: -84.9050037 | AH142: 0 | AI142: 0
A143: 8128.3 | B143: 8.1283 | C143: 10.04965392 | D143: 1.471125468 | E143: 1.000000631 | F143: 0.001123575059 | G143: 1 | H143: 0 | I143: 1081.033339 | J143: 1.569871286 | K143: 1.703366635 | L143: 0.9433583134 | M143: 1.002268333 | N143: 0.06729120364 | O143: 1.001303306 | P143: 0.0510272809 | Q143: 1.000118682 | R143: 0.01540586048 | S143: 1.000031813 | T143: 0.01314638605 | U143: 11.39624018 | V143: -124.6007297 | W143: 55.39927032 | Y143: 1000000000 | Z143: 66069260.89 | AB143: 17.61902251 | AC143: -39.75205114 | AE143: 9.329960475 | AF143: -84.97813689 | AH143: 0 | AI143: 0
A144: 8222.95 | B144: 8.22295 | C144: 10.16552503 | D144: 1.472265273 | E144: 1.000000646 | F144: 0.001136658519 | G144: 1 | H144: 0 | I144: 1093.621422 | J144: 1.569881933 | K144: 1.716391208 | L144: 0.9488504587 | M144: 1.002321406 | N144: 0.0680723716 | O144: 1.001333815 | P144: 0.05162041922 | Q144: 1.000121462 | R144: 0.01558522516 | S144: 1.000032558 | T144: 0.01329946822 | U144: 11.26204472 | V144: -124.4032421 | W144: 55.59675792 | Y144: 1000000000 | Z144: 67616906.7 | AB144: 17.58416706 | AC144: -39.48274209 | AE144: 9.23037997 | AF144: -85.05146421 | AH144: 0 | AI144: 0
A145: 8270.275 | B145: 8.270275 | C145: 10.22346546 | D145: 1.472825486 | E145: 1.000000653 | F145: 0.001143200249 | G145: 1 | H145: 0 | I145: 1099.915464 | J145: 1.569887166 | K145: 1.722922688 | L145: 0.9515653517 | M145: 1.002348172 | N145: 0.06846292444 | O145: 1.001349201 | P145: 0.05191697477 | Q145: 1.000122864 | R145: 0.01567490713 | S145: 1.000032934 | T145: 0.01337600929 | U145: 11.19570867 | V145: -124.3057226 | W145: 55.69427741 | Y145: 1000000000 | Z145: 68397448.58 | AB145: 17.56707931 | AC145: -39.349867 | AE145: 9.181010374 | AF145: -85.08757273 | AH145: 0 | AI145: 0
A146: 8317.6 | B146: 8.3176 | C146: 10.28140906 | D146: 1.473379385 | E146: 1.000000661 | F146: 0.001149741979 | G146: 1 | H146: 0 | I146: 1106.209506 | J146: 1.569892339 | K146: 1.729466772 | L146: 0.9542597188 | M146: 1.002375091 | N146: 0.06885345637 | O146: 1.001364676 | P146: 0.05221352118 | Q146: 1.000124274 | R146: 0.01576458884 | S146: 1.000033312 | T146: 0.01345255036 | U146: 11.12987117 | V146: -124.2090128 | W146: 55.79098723 | Y146: 1000000000 | Z146: 69182469.76 | AB146: 17.55021313 | AC146: -39.21816335 | AE146: 9.131917069 | AF146: -85.12331946 | AH146: 0 | AI146: 0
A147: 8366.05 | B147: 8.36605 | C147: 10.34073331 | D147: 1.47394002 | E147: 1.000000669 | F147: 0.001156439217 | G147: 1 | H147: 0 | I147: 1112.653168 | J147: 1.569897574 | K147: 1.736179328 | L147: 0.956997074 | M147: 1.002402808 | N147: 0.06925325015 | O147: 1.00138061 | P147: 0.05251710751 | Q147: 1.000125726 | R147: 0.01585640219 | S147: 1.000033701 | T147: 0.01353091093 | U147: 11.06297801 | V147: -124.1108376 | W147: 55.88916242 | Y147: 1000000000 | Z147: 69990792.6 | AB147: 17.53317167 | AC147: -39.08453091 | AE147: 9.081939769 | AF147: -85.15954751 | AH147: 0 | AI147: 0
A148: 8414.5 | B148: 8.4145 | C148: 10.40006077 | D148: 1.474494259 | E148: 1.000000676 | F148: 0.001163136455 | G148: 1 | H148: 0 | I148: 1119.096831 | J148: 1.569902749 | K148: =SQRT(1+(A148/Zero2)^2) -> 1.742904793 | L148: =ATAN(A148/Zero2) -> 0.9597133238 | M148: 1.002430685 | N148: 0.06965302175 | O148: 1.001396636 | P148: 0.05282068415 | Q148: 1.000127186 | R148: 0.01594821526 | S148: 1.000034092 | T148: 0.0136092715 | U148: 10.99659318 | V148: -124.0135005 | W148: 55.98649954 | Y148: 1000000000 | Z148: 70803810.25 | AB148: 17.51635464 | AC148: -38.95210299 | AE148: 9.032245647 | AF148: -85.19540908 | AH148: 0 | AI148: 0
A149: 8462.95 | B149: 8.46295 | C149: 10.4593914 | D149: 1.475042211 | E149: 1.000000684 | F149: 0.001169833693 | G149: 1 | H149: 0 | I149: 1125.540493 | J149: 1.569907865 | K149: 1.749643018 | L149: 0.9624086717 | M149: 1.002458723 | N149: 0.07005277105 | O149: 1.001412754 | P149: 0.05312425105 | Q149: 1.000128655 | R149: 0.01604002807 | S149: 1.000034486 | T149: 0.01368763206 | U149: 10.9307097 | V149: -123.916996 | W149: 56.08300399 | Y149: 1000000000 | Z149: 71621522.7 | AB149: 17.49975821 | AC149: -38.82086798 | AE149: 8.98283154 | AF149: -85.23091039 | AH149: 0 | AI149: 0
A150: 8511.4 | B150: 8.5114 | C150: 10.51872512 | D150: 1.475583981 | E150: 1.000000692 | F150: 0.001176530931 | G150: 1 | H150: 0 | I150: 1131.984156 | J150: 1.569912922 | K150: 1.756393856 | L150: 0.9650833193 | M150: 1.00248692 | N150: 0.07045249794 | O150: 1.001428965 | P150: 0.05342780814 | Q150: 1.000130132 | R150: 0.01613184061 | S150: 1.000034882 | T150: 0.01376599261 | U150: 10.8653207 | V150: -123.8213188 | W150: 56.17868118 | Y150: 1000000000 | Z150: 72443929.96 | AB150: 17.48337864 | AC150: -38.6908144 | AE150: 8.93369434 | AF150: -85.26605752 | AH150: 0 | AI150: 0
A151: 8560.95 | B151: 8.56095 | C151: 10.57940911 | D151: 1.476131765 | E151: 1.0000007 | F151: 0.001183380222 | G151: 1 | H151: 0 | I151: 1138.574114 | J151: 1.569918035 | K151: 1.76331086 | L151: 0.9677974892 | M151: 1.002515924 | N151: 0.07086127682 | O151: 1.001445639 | P151: 0.05373824695 | Q151: 1.000131652 | R151: 0.01622573736 | S151: 1.000035289 | T151: 0.01384613223 | U151: 10.79895156 | V151: -123.7243193 | W151: 56.27568066 | Y151: 1000000000 | Z151: 73289864.9 | AB151: 17.46684765 | AC151: -38.55901818 | AE151: 8.88372476 | AF151: -85.30164249 | AH151: 0 | AI151: 0
A152: 8610.5 | B152: 8.6105 | C152: 10.64009624 | D152: 1.476673301 | E152: 1.000000708 | F152: 0.001190229513 | G152: 1 | H152: 0 | I152: 1145.164072 | J152: 1.569923089 | K152: 1.770240752 | L152: 0.9704904287 | M152: 1.002545095 | N152: 0.07127003198 | O152: 1.00146241 | P152: 0.05404867539 | Q152: 1.00013318 | R152: 0.01631963383 | S152: 1.000035699 | T152: 0.01392627185 | U152: 10.7330855 | V152: -123.6281735 | W152: 56.37182646 | Y152: 1000000000 | Z152: 74140710.25 | AB152: 17.45053578 | AC152: -38.42843364 | AE152: 8.834038388 | AF152: -85.33686944 | AH152: 0 | AI152: 0
A153: 8660.05 | B153: 8.66005 | C153: 10.70078645 | D153: 1.477208695 | E153: 1.000000716 | F153: 0.001197078803 | G153: 1 | H153: 0 | I153: 1151.754031 | J153: 1.569928086 | K153: 1.777183381 | L153: 0.9731623474 | M153: 1.002574434 | N153: 0.07167876329 | O153: 1.001479277 | P153: 0.0543590934 | Q153: 1.000134717 | R153: 0.01641353001 | S153: 1.000036111 | T153: 0.01400641145 | U153: 10.66771559 | V153: -123.5328755 | W153: 56.46712445 | Y153: 1000000000 | Z153: 74996466 | AB153: 17.43443925 | AC153: -38.29904883 | AE153: 8.784632059 | AF153: -85.37174445 | AH153: 0 | AI153: 0
A154: 8709.6 | B154: 8.7096 | C154: 10.76147969 | D154: 1.477738049 | E154: 1.000000725 | F154: 0.001203928093 | G154: 1 | H154: 0 | I154: 1158.343989 | J154: 1.569933025 | K154: 1.784138599 | L154: 0.9758134526 | M154: 1.00260394 | N154: 0.07208747061 | O154: 1.00149624 | P154: 0.05466950093 | Q154: 1.000136263 | R154: 0.0165074259 | S154: 1.000036526 | T154: 0.01408655105 | U154: 10.60283501 | V154: -123.4384195 | W154: 56.56158055 | Y154: 1000000000 | Z154: 75857132.16 | AB154: 17.41855437 | AC154: -38.17085191 | AE154: 8.735502664 | AF154: -85.40627346 | AH154: 0 | AI154: =IF(AH154>0,W154,0) -> 0
A155: 8760.325 | B155: 8.760325 | C155: 10.82361527 | D155: 1.478273807 | E155: 1.000000733 | F155: 0.001210939804 | G155: 1 | H155: 0 | I155: 1165.090218 | J155: 1.569938024 | K155: 1.791271636 | L155: 0.9785060795 | M155: 1.002634319 | N155: 0.07250584479 | O155: 1.001513706 | P155: 0.05498725836 | Q155: 1.000137855 | R155: 0.01660354808 | S155: 1.000036952 | T155: 0.01416859102 | U155: 10.5369158 | V155: -123.3425894 | W155: 56.65741062 | Y155: 1000000000 | Z155: 76743294.11 | AB155: 17.40250826 | AC155: -38.04083323 | AE155: 8.685491908 | AF155: -85.44126891 | AH155: 0 | AI155: 0
A156: 8811.05 | B156: 8.81105 | C156: 10.88575392 | D156: 1.478803448 | E156: 1.000000742 | F156: 0.001217951514 | G156: 1 | H156: 0 | I156: 1171.836447 | J156: 1.569942965 | K156: 1.798417557 | L156: 0.9811773275 | M156: 1.002664874 | N156: 0.07292419354 | O156: 1.001531273 | P156: 0.05530500467 | Q156: 1.000139456 | R156: 0.01669966995 | S156: 1.000037381 | T156: 0.01425063098 | U156: 10.47149536 | V156: -123.247629 | W156: 56.75237095 | Y156: 1000000000 | Z156: 77634602.1 | AB156: 17.38667635 | AC156: -37.91203472 | AE156: 8.635764939 | AF156: -85.47591392 | AH156: 0 | AI156: 0
A157: 8861.775 | B157: 8.861775 | C157: 10.94789558 | D157: 1.479327077 | E157: 1.00000075 | F157: 0.001224963224 | G157: 1 | H157: 0 | I157: 1178.582676 | J157: 1.56994785 | K157: 1.80557621 | L157: 0.9838274127 | M157: 1.002695604 | N157: 0.07334251672 | O157: 1.001548941 | P157: 0.0556227398 | Q157: 1.000141066 | R157: 0.01679579152 | S157: 1.000037813 | T157: 0.01433267093 | U157: 10.40656681 | V157: -123.1535321 | W157: 56.84646793 | Y157: 1000000000 | Z157: 78531056.15 | AB157: 17.37105491 | AC157: -37.78444405 | AE157: 8.58631858 | AF157: -85.51021444 | AH157: 0 | AI157: 0
A158: 8912.5 | B158: 8.9125 | C158: 11.01004022 | D158: 1.479844794 | E158: 1.000000759 | F158: 0.001231974934 | G158: 1 | H158: 0 | I158: 1185.328905 | J158: 1.569952679 | K158: =SQRT(1+(A158/Zero2)^2) -> 1.812747442 | L158: =ATAN(A158/Zero2) -> 0.9864565488 | M158: 1.002726509 | N158: 0.07376081419 | O158: 1.00156671 | P158: 0.05594046369 | Q158: 1.000142685 | R158: 0.01689191277 | S158: 1.000038247 | T158: 0.01441471087 | U158: 10.34212337 | V158: -123.0602921 | W158: 56.93970791 | Y158: 1000000000 | Z158: 79432656.25 | AB158: 17.3556403 | AC158: -37.65804901 | AE158: 8.537149709 | AF158: -85.54417629 | AH158: 0 | AI158: 0
A159: 8964.4 | B159: 8.9644 | C159: 11.0736274 | D159: 1.48036849 | E159: 1.000000768 | F159: 0.001239149064 | G159: 1 | H159: 0 | I159: 1192.231404 | J159: 1.569957563 | K159: 1.820097656 | L159: 0.9891251244 | M159: 1.002758312 | N159: 0.07418877439 | O159: 1.001584996 | P159: 0.05626553568 | Q159: 1.000144352 | R159: 0.01699026027 | S159: 1.000038694 | T159: 0.01449865118 | U159: 10.2766823 | V159: -122.9657726 | W159: 57.0342274 | Y159: 1000000000 | Z159: 80360467.36 | AB159: 17.34007896 | AC159: -37.52995106 | AE159: 8.487125885 | AF159: -85.57858023 | AH159: 0 | AI159: 0
A160: 9016.3 | B160: 9.0163 | C160: 11.13721758 | D160: 1.480886206 | E160: 1.000000777 | F160: 0.001246323194 | G160: 1 | H160: 0 | I160: 1199.133904 | J160: 1.569962391 | K160: 1.827460726 | L160: 0.9917722147 | M160: 1.002790299 | N160: 0.07461670737 | O160: 1.001603387 | P160: 0.05659059576 | Q160: 1.000146028 | R160: 0.01708860743 | S160: 1.000039143 | T160: 0.01458259148 | U160: 10.21173513 | V160: -122.8721367 | W160: 57.12786326 | Y160: 1000000000 | Z160: 81293665.69 | AB160: 17.32472663 | AC160: -37.40307934 | AE160: 8.437386102 | AF160: -85.61264153 | AH160: 0 | AI160: 0
A161: 9068.2 | B161: 9.0682 | C161: 11.20081071 | D161: 1.481398043 | E161: 1.000000786 | F161: 0.001253497324 | G161: 1 | H161: 0 | I161: 1206.036403 | J161: 1.569967164 | K161: 1.834836499 | L161: 0.9943980414 | M161: 1.00282247 | N161: 0.07504461296 | O161: 1.001621884 | P161: 0.05691564387 | Q161: 1.000147714 | R161: 0.01718695427 | S161: 1.000039595 | T161: 0.01466653177 | U161: 10.147275 | V161: -122.7793776 | W161: 57.22062235 | Y161: 1000000000 | Z161: 82232251.24 | AB161: 17.30957966 | AC161: -37.2774212 | AE161: 8.38792718 | AF161: -85.64636602 | AH161: 0 | AI161: 0
A162: 9120.1 | B162: 9.1201 | C162: 11.26440675 | D162: 1.481904101 | E162: 1.000000795 | F162: 0.001260671454 | G162: 1 | H162: 0 | I162: 1212.938903 | J162: 1.569971883 | K162: 1.842224822 | L162: 0.997002824 | M162: 1.002854824 | N162: 0.07547249103 | O162: 1.001640487 | P162: 0.05724067994 | Q162: 1.000149409 | R162: 0.01728530077 | S162: 1.00004005 | T162: 0.01475047205 | U162: 10.08329518 | V162: -122.6874885 | W162: 57.3125115 | Y162: 1000000000 | Z162: 83176224.01 | AB162: 17.29463444 | AC162: -37.15296411 | AE162: 8.338745988 | AF162: -85.67975938 | AH162: 0 | AI162: 0
A163: 9173.2 | B163: 9.1732 | C163: 11.32947616 | D163: 1.48241598 | E163: 1.000000804 | F163: 0.001268011459 | G163: 1 | H163: 0 | I163: 1220.000998 | J163: 1.569976655 | K163: 1.849796804 | L163: 0.9996462795 | M163: 1.002888116 | N163: 0.07591023357 | O163: 1.00165963 | P163: 0.05757321876 | Q163: 1.000151154 | R163: 0.01738592084 | S163: 1.000040518 | T163: 0.01483635314 | U163: 10.01832628 | V163: -122.594368 | W163: 57.40563203 | Y163: 1000000000 | Z163: 84147598.24 | AB163: 17.27954879 | AC163: -37.0268595 | AE163: 8.288711888 | AF163: -85.71358793 | AH163: 0 | AI163: 0
A164: 9226.3 | B164: 9.2263 | C164: 11.39454851 | D164: 1.482922012 | E164: 1.000000813 | F164: 0.001275351464 | G164: 1 | H164: 0 | I164: 1227.063093 | J164: 1.569981373 | K164: 1.857381608 | L164: 1.002268164 | M164: 1.0029216 | N164: 0.07634794697 | O164: 1.001678883 | P164: 0.05790574484 | Q164: 1.000152909 | R164: 0.01748654055 | S164: 1.000040988 | T164: 0.01492223421 | U164: 9.953846313 | V164: -122.5021436 | W164: 57.49785638 | Y164: 1000000000 | Z164: 85124611.69 | AB164: 17.26466696 | AC164: -36.90198603 | AE164: 8.238962048 | AF164: -85.74708152 | AH164: 0 | AI164: 0
A165: 9279.4 | B165: 9.2794 | C165: 11.45962375 | D165: 1.483422297 | E165: 1.000000823 | F165: 0.001282691469 | G165: 1 | H165: 0 | I165: 1234.125188 | J165: 1.569986036 | K165: 1.864979075 | L165: 1.004868704 | M165: 1.002955276 | N165: 0.07678563106 | O165: 1.001698247 | P165: 0.05823825809 | Q165: 1.000154674 | R165: 0.01758715991 | S165: 1.000041461 | T165: 0.01500811527 | U165: 9.889848483 | V165: -122.4108082 | W165: 57.58919184 | Y165: 1000000000 | Z165: 86107264.36 | AB165: 17.24998531 | AC165: -36.77833071 | AE165: 8.18949328 | AF165: -85.78024582 | AH165: 0 | AI165: 0
A166: 9332.5 | B166: 9.3325 | C166: 11.52470182 | D166: 1.483916932 | E166: 1.000000832 | F166: 0.001290031474 | G166: 1 | H166: 0 | I166: 1241.187283 | J166: 1.569990647 | K166: 1.872589053 | L166: 1.007448124 | M166: 1.002989145 | N166: 0.07722328567 | O166: 1.001717722 | P166: 0.05857075846 | Q166: 1.000156449 | R166: 0.01768777892 | S166: 1.000041937 | T166: 0.01509399632 | U166: 9.826326114 | V166: -122.3203543 | W166: 57.67964568 | Y166: 1000000000 | Z166: 87095556.25 | AB166: 17.23550032 | AC166: -36.65588071 | AE166: 8.140302452 | AF166: -85.8130864 | AH166: 0 | AI166: 0
A167: 9386.85 | B167: 9.38685 | C167: 11.59131474 | D167: 1.48441746 | E167: 1.000000842 | F167: 0.001297544266 | G167: 1 | H167: 0 | I167: 1248.415623 | J167: 1.569995311 | K167: 1.88039097 | L167: 1.010066627 | M167: 1.00302401 | N167: 0.0776712122 | O167: 1.00173777 | P167: 0.05891107262 | Q167: 1.000158277 | R167: 0.01779076617 | S167: 1.000042427 | T167: 0.01518189904 | U167: 9.761793943 | V167: -122.2286766 | W167: 57.77132344 | Y167: 1000000000 | Z167: 88112952.92 | AB167: 17.22087437 | AC167: -36.53178313 | AE167: 8.090238261 | AF167: -85.84637051 | AH167: 0 | AI167: 0
A168: 9441.2 | B168: 9.4412 | C168: 11.65793054 | D168: 1.484912267 | E168: 1.000000852 | F168: 0.001305057058 | G168: 1 | H168: 0 | I168: 1255.643963 | J168: 1.569999923 | K168: 1.888205673 | L168: 1.012663473 | M168: 1.003059075 | N168: 0.07811910749 | O168: 1.001757934 | P168: 0.05925137311 | Q168: 1.000160115 | R168: 0.01789375304 | S168: 1.00004292 | T168: 0.01526980175 | U168: 9.697746132 | V168: -122.1379071 | W168: 57.86209294 | Y168: 1000000000 | Z168: 89136257.44 | AB168: 17.20644718 | AC168: -36.40892152 | AE168: 8.040458769 | AF168: -85.87932688 | AH168: 0 | AI168: 0
A169: 9495.55 | B169: 9.49555 | C169: 11.72454916 | D169: 1.485401451 | E169: 1.000000861 | F169: 0.00131256985 | G169: 1 | H169: 0 | I169: 1262.872304 | J169: 1.570004481 | K169: 1.896033005 | L169: 1.015238896 | M169: 1.003094343 | N169: 0.07856697138 | O169: 1.001778214 | P169: 0.05959165987 | Q169: 1.000161963 | R169: 0.01799673954 | S169: 1.000043415 | T169: 0.01535770445 | U169: 9.634175924 | V169: -122.0480381 | W169: 57.95196193 | Y169: 1000000000 | Z169: 90165469.8 | AB169: 17.19221518 | AC169: -36.28728257 | AE169: 7.99096078 | AF169: -85.91196108 | AH169: 0 | AI169: 0
A170: 9549.9 | B170: 9.5499 | C170: 11.79117055 | D170: 1.485885108 | E170: 1.000000871 | F170: 0.001320082642 | G170: 1 | H170: 0 | I170: 1270.100644 | J170: 1.570008988 | K170: 1.903872809 | L170: 1.017793125 | M170: 1.003129811 | N170: 0.07901480369 | O170: 1.00179861 | P170: 0.05993193282 | Q170: 1.000163822 | R170: 0.01809972565 | S170: 1.000043914 | T170: 0.01544560713 | U170: 9.571076689 | V170: -121.9590619 | W170: 58.0409381 | Y170: 1000000000 | Z170: 91200590.01 | AB170: 17.17817488 | AC170: -36.16685314 | AE170: 7.94174115 | AF170: -85.94427856 | AH170: 0 | AI170: 0
A171: 9605.525 | B171: 9.605525 | C171: 11.85935765 | D171: 1.486374484 | E171: 1.000000881 | F171: 0.001327771676 | G171: 1 | H171: 0 | I171: 1277.498554 | J171: 1.570013547 | K171: 1.911909283 | L171: 1.020385566 | M171: 1.00316632 | N171: 0.07947310883 | O171: 1.001819605 | P171: 0.06028017386 | Q171: 1.000165736 | R171: 0.01820512733 | S171: 1.000044427 | T171: 0.01553557192 | U171: 9.506978095 | V171: -121.8689149 | W171: 58.1310851 | Y171: 1000000000 | Z171: 92266110.53 | AB171: 17.16400015 | AC171: -36.04483738 | AE171: 7.89165188 | AF171: -85.97703178 | AH171: 0 | AI171: 0
A172: 9661.15 | B172: 9.66115 | C172: 11.92754755 | D172: 1.486858264 | E172: 1.000000892 | F172: 0.001335460711 | G172: 1 | H172: 0 | I172: 1284.896465 | J172: 1.570018054 | K172: 1.919958498 | L172: 1.022956287 | M172: 1.003203039 | N172: 0.07993138053 | O172: 1.001840721 | P172: 0.06062840026 | Q172: 1.000167661 | R172: 0.0183105286 | S172: 1.000044943 | T172: 0.01562553669 | U172: 9.44335918 | V172: -121.7796869 | W172: 58.22031314 | Y172: 1000000000 | Z172: 93337819.32 | AB172: 17.15001907 | AC172: -35.92406115 | AE172: 7.841847686 | AF172: -86.00946441 | AH172: 0 | AI172: 0
A173: 9716.775 | B173: 9.716775 | C173: 11.99574021 | D173: 1.487336544 | E173: 1.000000902 | F173: 0.001343149745 | G173: 1 | H173: 0 | I173: 1292.294375 | J173: 1.570022509 | K173: 1.928020295 | L173: 1.025505527 | M173: 1.003239969 | N173: 0.08038961858 | O173: 1.001861958 | P173: 0.06097661194 | Q173: 1.000169597 | R173: 0.01841592946 | S173: 1.000045462 | T173: 0.01571550145 | U173: 9.380213238 | V173: -121.6913696 | W173: 58.30863037 | Y173: 1000000000 | Z173: 94415716.4 | AB173: 17.13622813 | AC173: -35.80451085 | AE173: 7.792325364 | AF173: -86.04158191 | AH173: 0 | AI173: 0
A174: 9772.4 | B174: 9.7724 | C174: 12.06393558 | D174: 1.487809418 | E174: 1.000000912 | F174: 0.001350838779 | G174: 1 | H174: 0 | I174: 1299.692286 | J174: 1.570026914 | K174: 1.936094518 | L174: 1.028033521 | M174: 1.00327711 | N174: 0.0808478228 | O174: 1.001883317 | P174: 0.06132480881 | Q174: 1.000171544 | R174: 0.01852132991 | S174: 1.000045984 | T174: 0.01580546619 | U174: 9.317533689 | V174: -121.6039551 | W174: 58.39604492 | Y174: 1000000000 | Z174: 95499801.76 | AB174: 17.12262392 | AC174: -35.68617302 | AE174: 7.743081764 | AF174: -86.07338959 | AH174: 0 | AI174: 0
A175: 9829.3 | B175: 9.8293 | C175: 12.13369684 | D175: 1.48828763 | E175: 1.000000923 | F175: 0.001358704056 | G175: 1 | H175: 0 | I175: 1307.259766 | J175: 1.570031368 | K175: 1.944366507 | L175: 1.030597719 | M175: 1.00331532 | N175: 0.08131649448 | O175: 1.001905291 | P175: 0.06168097142 | Q175: 1.000173548 | R175: 0.01862914586 | S175: 1.000046521 | T175: 0.01589749304 | U175: 9.253893263 | V175: -121.5154624 | W175: 58.48453758 | Y175: 1000000000 | Z175: 96615138.49 | AB175: 17.10889757 | AC175: -35.56636336 | AE175: 7.692994582 | AF175: -86.10561124 | AH175: 0 | AI175: 0
A176: 9886.2 | B176: 9.8862 | C176: 12.20346085 | D176: 1.488760375 | E176: 1.000000934 | F176: 0.001366569333 | G176: 1 | H176: 0 | I176: 1314.827247 | J176: 1.570035771 | K176: 1.952651172 | L176: 1.033140176 | M176: 1.00335375 | N176: 0.08178513036 | O176: 1.001927393 | P176: 0.06203711837 | Q176: 1.000175563 | R176: 0.01873696137 | S176: 1.000047061 | T176: 0.01598951987 | U176: 9.190727328 | V176: -121.4278972 | W176: 58.57210275 | Y176: 1000000000 | Z176: 97736950.44 | AB176: 17.09535957 | AC176: -35.44779444 | AE176: 7.64319254 | AF176: -86.13751962 | AH176: 0 | AI176: 0
A177: 9943.1 | B177: 9.9431 | C177: 12.27322755 | D177: 1.489227745 | E177: 1.000000945 | F177: 0.001374434609 | G177: 1 | H177: 0 | I177: 1322.394728 | J177: 1.570040123 | K177: 1.960948352 | L177: 1.035661134 | M177: 1.003392401 | N177: 0.08225373024 | O177: 1.001949621 | P177: 0.06239324956 | Q177: 1.000177589 | R177: 0.01884477645 | S177: 1.000047605 | T177: 0.01608154668 | U177: 9.128029239 | V177: -121.341251 | W177: 58.65874897 | Y177: 1000000000 | Z177: 98865237.61 | AB177: 17.08200649 | AC177: -35.33045237 | AE177: 7.593672433 | AF177: -86.16912006 | AH177: 0 | AI177: 0
A178: 10000 | B178: 10 | C178: 12.3429969 | D178: 1.489689832 | E178: 1.000000955 | F178: 0.001382299886 | G178: 1 | H178: 0 | I178: 1329.962208 | J178: 1.570044426 | K178: 1.96925789 | L178: 1.038160832 | M178: 1.003431272 | N178: 0.08272229392 | O178: 1.001971977 | P178: 0.0627493649 | Q178: 1.000179627 | R178: 0.01895259109 | S178: 1.000048151 | T178: 0.01617357349 | U178: 9.065792478 | V178: -121.2555153 | W178: 58.74448474 | Y178: 1000000000 | Z178: 100000000 | AB178: 17.06883496 | AC178: -35.21432346 | AE178: 7.544431107 | AF178: -86.20041778 | AH178: 0 | AI178: 0
A179: 10058.25 | B179: 10.05825 | C179: 12.41442429 | D179: 1.490157501 | E179: 1.000000967 | F179: 0.001390351772 | G179: 1 | H179: 0 | I179: 1337.709234 | J179: 1.57004878 | K179: 1.977777216 | L179: 1.040698063 | M179: 1.003471293 | N179: 0.08320193695 | O179: 1.001994994 | P179: 0.06311391286 | Q179: 1.000181726 | R179: 0.01906296327 | S179: 1.000048714 | T179: 0.01626778369 | U179: 9.002550303 | V179: -121.1686796 | W179: 58.83132037 | Y179: 1000000000 | Z179: 101168393.1 | AB179: 17.05553555 | AC179: -35.09668183 | AE179: 7.494307032 | AF179: -86.2321498 | AH179: 0 | AI179: 0
A180: 10116.5 | B180: 10.1165 | C180: 12.48585436 | D180: 1.49061982 | E180: 1.000000978 | F180: 0.001398403658 | G180: 1 | H180: 0 | I180: 1345.456259 | J180: 1.570053084 | K180: 1.986309165 | L180: 1.043213514 | M180: 1.003511545 | N180: 0.08368154161 | O180: 1.002018145 | P180: 0.06347844403 | Q180: 1.000183837 | R180: 0.01917333498 | S180: 1.00004928 | T180: 0.01636199387 | U180: 8.939778181 | V180: -121.0827803 | W180: 58.91721969 | Y180: 1000000000 | Z180: 102343572.2 | AB180: 17.04241951 | AC180: -34.98028306 | AE180: 7.444468603 | AF180: -86.26357523 | AH180: 0 | AI180: 0
A181: 10174.75 | B181: 10.17475 | C181: 12.55728707 | D181: 1.49107688 | E181: 1.000000989 | F181: 0.001406455545 | G181: 1 | H181: 0 | I181: 1353.203285 | J181: 1.570057339 | K181: 1.994853575 | L181: 1.045707432 | M181: 1.003552028 | N181: 0.08416110769 | O181: 1.002041428 | P181: 0.06384295831 | Q181: 1.000185959 | R181: 0.01928370623 | S181: 1.000049849 | T181: 0.01645620404 | U181: 8.877469519 | V181: -120.9978084 | W181: 59.00219164 | Y181: 1000000000 | Z181: 103525537.6 | AB181: 17.02948345 | AC181: -34.865113 | AE181: 7.3949126 | AF181: -86.2946993 | AH181: 0 | AI181: 0
A182: 10233 | B182: 10.233 | C182: 12.62872237 | D182: 1.491528768 | E182: 1.000001 | F182: 0.00141450743 | G182: 1 | H182: 0 | I182: 1360.950311 | J182: 1.570061546 | K182: 2.003410286 | L182: 1.048180062 | M182: 1.003592742 | N182: 0.08464063497 | O182: 1.002064845 | P182: 0.0642074556 | Q182: 1.000188095 | R182: 0.019394077 | S182: 1.000050421 | T182: 0.0165504142 | U182: 8.815617847 | V182: -120.9137549 | W182: 59.08624511 | Y182: 1000000000 | Z182: 104714289 | AB182: 17.01672408 | AC182: -34.75115767 | AE182: 7.345635863 | AF182: -86.32552711 | AH182: 0 | AI182: 0
A183: 10292.5 | B183: 10.2925 | C183: 12.70169325 | D183: 1.491985106 | E183: 1.000001012 | F183: 0.001422732103 | G183: 1 | H183: 0 | I183: 1368.863581 | J183: 1.570065794 | K183: 2.012163154 | L183: 1.050684025 | M183: 1.003634568 | N183: 0.08513041225 | O183: 1.002088902 | P183: 0.06457975708 | Q183: 1.000190288 | R183: 0.01950681576 | S183: 1.000051009 | T183: 0.01664664601 | U183: 8.752904095 | V183: -120.8288368 | W183: 59.17116319 | Y183: 1000000000 | Z183: 105935556.2 | AB183: 17.00386995 | AC183: -34.63599668 | AE183: 7.295586768 | AF183: -86.35671578 | AH183: 0 | AI183: 0
A184: 10352 | B184: 10.352 | C184: 12.77466675 | D184: 1.49243623 | E184: 1.000001024 | F184: 0.001430956776 | G184: 1 | H184: 0 | I184: 1376.776852 | J184: 1.570069993 | K184: 2.020928529 | L184: 1.053166283 | M184: 1.003676634 | N184: 0.08562014859 | O184: 1.002113098 | P184: 0.06495204064 | Q184: 1.000192494 | R184: 0.01961955403 | S184: 1.000051601 | T184: 0.01674287781 | U184: 8.690653909 | V184: -120.7448585 | W184: 59.25514148 | Y184: 1000000000 | Z184: 107163904 | AB184: 16.99119342 | AC184: -34.52207418 | AE184: 7.245822546 | AF184: -86.38760574 | AH184: 0 | AI184: 0
A185: 10411.5 | B185: 10.4115 | C185: 12.84764281 | D185: 1.49288223 | E185: 1.000001036 | F185: 0.001439181449 | G185: 1 | H185: 0 | I185: 1384.690123 | J185: 1.570074143 | K185: 2.029706249 | L185: 1.055627086 | M185: 1.003718942 | N185: 0.08610984377 | O185: 1.002137433 | P185: 0.06532430617 | Q185: 1.000194713 | R185: 0.01973229179 | S185: 1.000052196 | T185: 0.01683910959 | U185: 8.628860786 | V185: -120.6618108 | W185: 59.33818921 | Y185: 1000000000 | Z185: 108399332.2 | AB185: 16.9786912 | AC185: -34.40937584 | AE185: 7.196339992 | AF185: -86.41820208 | AH185: 0 | AI185: 0
A186: 10471 | B186: 10.471 | C186: 12.92062141 | D186: 1.493323192 | E186: 1.000001047 | F186: 0.001447406121 | G186: 1 | H186: 0 | I186: 1392.603394 | J186: 1.570078247 | K186: 2.038496154 | L186: 1.058066682 | M186: 1.003761489 | N186: 0.08659949755 | O186: 1.002161906 | P186: 0.06569655356 | Q186: 1.000196945 | R186: 0.01984502905 | S186: 1.000052794 | T186: 0.01693534136 | U186: 8.567518351 | V186: -120.5796844 | W186: 59.42031558 | Y186: 1000000000 | Z186: 109641841 | AB186: 16.96636007 | AC186: -34.29788749 | AE186: 7.147135954 | AF186: -86.44850975 | AH186: 0 | AI186: 0
A187: 10532 | B187: 10.532 | C187: 12.99544238 | D187: 1.493770128 | E187: 1.00000106 | F187: 0.001455838138 | G187: 1 | H187: 0 | I187: 1400.716159 | J187: 1.570082406 | K187: 2.047520138 | L187: 1.060546021 | M187: 1.00380536 | N187: 0.08710145232 | O187: 1.002187141 | P187: 0.06607816642 | Q187: 1.000199246 | R187: 0.01996060791 | S187: 1.000053411 | T187: 0.01703399912 | U187: 8.505090797 | V187: -120.4964346 | W187: 59.5035654 | Y187: 1000000000 | Z187: 110923024 | AB187: 16.95389237 | AC187: -34.18483004 | AE187: 7.09697737 | AF187: -86.47928689 | AH187: 0 | AI187: 0
A188: 10593 | B188: 10.593 | C188: 13.07026591 | D188: 1.494211948 | E188: 1.000001072 | F188: 0.001464270155 | G188: 1 | H188: 0 | I188: 1408.828924 | J188: 1.570086517 | K188: 2.056556598 | L188: 1.063003586 | M188: 1.003849483 | N188: 0.0876033631 | O188: 1.002212522 | P188: 0.06645976 | Q188: 1.00020156 | R188: 0.02007618623 | S188: 1.000054031 | T188: 0.01713265687 | U188: 8.443123763 | V188: -120.4141339 | W188: 59.58586612 | Y188: 1000000000 | Z188: 112211649 | AB188: 16.94159786 | AC188: -34.07301485 | AE188: 7.047104979 | AF188: -86.50977084 | AH188: 0 | AI188: 0
A189: 10654 | B189: 10.654 | C189: 13.14509197 | D189: 1.494648738 | E189: 1.000001084 | F189: 0.001472702171 | G189: 1 | H189: 0 | I189: 1416.941689 | J189: 1.570090581 | K189: 2.065605371 | L189: 1.065439634 | M189: 1.003893859 | N189: 0.08810522963 | O189: 1.002238048 | P189: 0.0668413342 | Q189: 1.000203888 | R189: 0.02019176401 | S189: 1.000054656 | T189: 0.01723131459 | U189: 8.381610771 | V189: -120.3327726 | W189: 59.66722741 | Y189: 1000000000 | Z189: 113507716 | AB189: 16.92947328 | AC189: -33.96242725 | AE189: 6.997515552 | AF189: -86.5399666 | AH189: 0 | AI189: 0
A190: 10715 | B190: 10.715 | C190: 13.2199205 | D190: 1.495080583 | E190: 1.000001097 | F190: 0.001481134188 | G190: 1 | H190: 0 | I190: 1425.054454 | J190: 1.570094599 | K190: 2.074666294 | L190: 1.067854418 | M190: 1.003938488 | N190: 0.08860705166 | O190: 1.002263721 | P190: 0.06722288891 | Q190: 1.000206229 | R190: 0.02030734126 | S190: 1.000055283 | T190: 0.0173299723 | U190: 8.32054547 | V190: -120.2523412 | W190: 59.74765881 | Y190: 1000000000 | Z190: 114811225 | AB190: 16.91751546 | AC190: -33.85305281 | AE190: 6.948205915 | AF190: -86.56987905 | AH190: 0 | AI190: 0
A191: 10777.5 | B191: 10.7775 | C191: 13.29659162 | D191: 1.495518005 | E191: 1.00000111 | F191: 0.001489773548 | G191: 1 | H191: 0 | I191: 1433.366714 | J191: 1.570098669 | K191: 2.083962464 | L191: 1.070306788 | M191: 1.003984476 | N191: 0.08912116718 | O191: 1.002290176 | P191: 0.06761380578 | Q191: 1.000208642 | R191: 0.02042576 | S191: 1.00005593 | T191: 0.017431056 | U191: 8.25843639 | V191: -120.1708865 | W191: 59.82911351 | Y191: 1000000000 | Z191: 116154506.2 | AB191: 16.90543331 | AC191: -33.74223218 | AE191: 6.897970676 | AF191: -86.6002382 | AH191: 0 | AI191: 0
A192: 10840 | B192: 10.84 | C192: 13.37326524 | D192: 1.495950413 | E192: 1.000001123 | F192: 0.001498412909 | G192: 1 | H192: 0 | I192: 1441.678973 | J192: 1.570102691 | K192: 2.093271056 | L192: 1.072737361 | M192: 1.00403073 | N192: 0.08963523546 | O192: 1.002316784 | P192: 0.06800470195 | Q192: 1.000211069 | R192: 0.02054417818 | S192: 1.000056581 | T192: 0.01753213968 | U192: 8.196784184 | V192: -120.0903879 | W192: 59.90961211 | Y192: 1000000000 | Z192: 117505600 | AB192: 16.89351969 | AC192: -33.63265501 | AE192: 6.848022576 | AF192: -86.63030998 | AH192: 0 | AI192: 0
A193: 10902.5 | B193: 10.9025 | C193: 13.44994134 | D193: 1.49637789 | E193: 1.000001136 | F193: 0.001507052269 | G193: 1 | H193: 0 | I193: 1449.991233 | J193: 1.570106667 | K193: 2.102591905 | L193: 1.075146399 | M193: 1.004077249 | N193: 0.09014925625 | O193: 1.002343545 | P193: 0.06839557731 | Q193: 1.000213509 | R193: 0.02066259577 | S193: 1.000057235 | T193: 0.01763322335 | U193: 8.135582411 | V193: -120.0108354 | W193: 59.98916462 | Y193: 1000000000 | Z193: 118864506.2 | AB193: 16.88177141 | AC193: -33.52430636 | AE193: 6.798358368 | AF193: -86.66009928 | AH193: 0 | AI193: 0
A194: 10965 | B194: 10.965 | C194: 13.52661987 | D194: 1.49680052 | E194: 1.000001149 | F194: 0.001515691629 | G194: 1 | H194: 0 | I194: 1458.303492 | J194: 1.570110598 | K194: 2.111924848 | L194: 1.077534159 | M194: 1.004124034 | N194: 0.09066322927 | O194: 1.00237046 | P194: 0.06878643174 | Q194: 1.000215964 | R194: 0.02078101279 | S194: 1.000057893 | T194: 0.01773430699 | U194: 8.07482476 | V194: -119.932219 | W194: 60.06778097 | Y194: 1000000000 | Z194: 120231225 | AB194: 16.87018536 | AC194: -33.41717152 | AE194: 6.748974862 | AF194: -86.68961089 | AH194: 0 | AI194: 0
A195: 11028.75 | B195: 11.02875 | C195: 13.60483442 | D195: 1.497226696 | E195: 1.000001162 | F195: 0.001524503776 | G195: 1 | H195: 0 | I195: 1466.781997 | J195: 1.570114562 | K195: 2.121456745 | L195: 1.079948016 | M195: 1.004172027 | N195: 0.09118743227 | O195: 1.00239807 | P195: 0.06918508158 | Q195: 1.000218482 | R195: 0.02090179755 | S195: 1.000058568 | T195: 0.01783741229 | U195: 8.01330307 | V195: -119.8529846 | W195: 60.14701539 | Y195: 1000000000 | Z195: 121633326.6 | AB195: 16.85853154 | AC195: -33.30912941 | AE195: 6.698889609 | AF195: -86.71943154 | AH195: 0 | AI195: 0
A196: 11092.5 | B196: 11.0925 | C196: 13.68305142 | D196: 1.497647999 | E196: 1.000001176 | F196: 0.001533315923 | G196: 1 | H196: 0 | I196: 1475.260502 | J196: 1.57011848 | K196: 2.131000892 | L196: 1.082340265 | M196: 1.004220297 | N196: 0.09171158503 | O196: 1.00242584 | P196: 0.06958370939 | Q196: 1.000221015 | R196: 0.02102258169 | S196: 1.000059247 | T196: 0.01794051756 | U196: 7.952230564 | V196: -119.7747036 | W196: 60.22529638 | Y196: 1000000000 | Z196: 123043556.2 | AB196: 16.84704015 | AC196: -33.20231986 | AE196: 6.649089857 | AF196: -86.74897302 | AH196: 0 | AI196: 0
A197: 11156.25 | B197: 11.15625 | C197: 13.76127083 | D197: 1.498064512 | E197: 1.000001189 | F197: 0.00154212807 | G197: 1 | H197: 0 | I197: 1483.739006 | J197: 1.570122354 | K197: 2.140557126 | L197: 1.084711168 | M197: 1.004268842 | N197: 0.09223568725 | O197: 1.002453769 | P197: 0.06998231505 | Q197: 1.000223563 | R197: 0.02114336523 | S197: 1.00005993 | T197: 0.01804362282 | U197: 7.891600928 | V197: -119.6973658 | W197: 60.30263416 | Y197: 1000000000 | Z197: 124461914.1 | AB197: 16.83570811 | AC197: -33.09672791 | AE197: 6.599572385 | AF197: -86.7782401 | AH197: 0 | AI197: 0
A198: 11220 | B198: 11.22 | C198: 13.83949259 | D198: 1.498476318 | E198: 1.000001203 | F198: 0.001550940216 | G198: 1 | H198: 0 | I198: 1492.217511 | J198: 1.570126183 | K198: 2.150125285 | L198: 1.087060983 | M198: 1.004317663 | N198: 0.09275973866 | O198: 1.002481858 | P198: 0.07038089844 | Q198: 1.000226125 | R198: 0.02126414814 | S198: 1.000060617 | T198: 0.01814672806 | U198: 7.831407972 | V198: -119.6209612 | W198: 60.37903883 | Y198: 1000000000 | Z198: 125888400 | AB198: 16.82453239 | AC198: -32.99233878 | AE198: 6.550334028 | AF198: -86.80723741 | AH198: 0 | AI198: 0
A199: 11285.5 | B199: 11.2855 | C199: 13.91986403 | D199: 1.498894607 | E199: 1.000001217 | F199: 0.001559994264 | G199: 1 | H199: 0 | I199: 1500.928759 | J199: 1.570130073 | K199: 2.159968354 | L199: 1.089453605 | M199: 1.004368111 | N199: 0.09329812258 | O199: 1.002510883 | P199: 0.0707904 | Q199: 1.000228772 | R199: 0.02138824602 | S199: 1.000061327 | T199: 0.01825266362 | U199: 7.770011108 | V199: -119.5434205 | W199: 60.45657954 | Y199: 1000000000 | Z199: 127362510.2 | AB199: 16.81320959 | AC199: -32.88632158 | AE199: 6.500031471 | AF199: -86.83675452 | AH199: 0 | AI199: 0
A200: 11351 | B200: 11.351 | C200: 14.00023788 | D200: 1.499308094 | E200: 1.000001231 | F200: 0.001569048312 | G200: 1 | H200: 0 | I200: 1509.640007 | J200: 1.570133917 | K200: 2.169823675 | L200: 1.091824507 | M200: 1.004418851 | N200: 0.09383645227 | O200: 1.002540076 | P200: 0.07119987778 | Q200: 1.000231435 | R200: 0.02151234324 | S200: 1.000062041 | T200: 0.01835859915 | U200: 7.709062367 | V200: -119.4668435 | W200: 60.53315654 | Y200: 1000000000 | Z200: 128845201 | AB200: 16.80204556 | AC200: -32.78154323 | AE200: 6.450016956 | AF200: -86.86599646 | AH200: 0 | AI200: 0
A201: 11416.5 | B201: 11.4165 | C201: 14.0806141 | D201: 1.49971686 | E201: 1.000001245 | F201: 0.001578102359 | G201: 1 | H201: 0 | I201: 1518.351255 | J201: 1.570137718 | K201: 2.179691084 | L201: 1.094173955 | M201: 1.004469881 | N201: 0.09437472741 | O201: 1.002569438 | P201: 0.07160933165 | Q201: 1.000234113 | R201: 0.0216364398 | S201: 1.000062759 | T201: 0.01846453466 | U201: 7.648555426 | V201: -119.3912195 | W201: 60.60878046 | Y201: 1000000000 | Z201: 130336472.2 | AB201: 16.79103723 | AC201: -32.67798838 | AE201: 6.400287219 | AF201: -86.89496793 | AH201: 0 | AI201: 0
A202: 11482 | B202: 11.482 | C202: 14.16099265 | D202: 1.500120986 | E202: 1.00000126 | F202: 0.001587156407 | G202: 1 | H202: 0 | I202: 1527.062503 | J202: 1.570141475 | K202: 2.189570415 | L202: 1.096502215 | M202: 1.004521203 | N202: 0.0949129477 | O202: 1.002598967 | P202: 0.07201876146 | Q202: 1.000236807 | R202: 0.02176053569 | S202: 1.000063482 | T202: 0.01857047016 | U202: 7.588484082 | V202: -119.3165382 | W202: 60.68346182 | Y202: 1000000000 | Z202: 131836324 | AB202: 16.78018162 | AC202: -32.57564193 | AE202: 6.35083905 | AF202: -86.92367354 | AH202: 0 | AI202: 0
... 433 more rows

Sheet Bode Plot Management (hidden)
J1: Single or dual output (MODE) | N1: 3.3V or 5V fixed (FB1/2)
A2: =CHOOSE(BODE_PLOT_TYPE, "BODE_PLOT_Ch1", "BODE_PLOT_Ch2") -> BODE_PLOT_Ch1 | J2: With/without dither (DITH) | N2: With/without VOUT connected to VCCX
J3: FPWM or DEM (DEMB)
J4: Shunt or inductor DCR current sensing
F6: =INDIRECT(A2) -> 0

Sheet Efficiency Calculations (hidden)
A1: BUCK CONTROLLER POWER DESIGN TOOL | AO1: =Ext_VCC -> 2
H2: =AV19 -> 0.1130859136 | I2: 10% load
H3: =AV59 -> 0.3391168549 | I3: 50% load | AN3: =IF(MODE=1, (Qg_Q1+Qg_Q2)*Fsw*Vin, (Qg_Q1+Qg_Q2+Qg_Q3+Qg_Q4)*Fsw*Vin) -> 0.5544
H4: =AV109 -> 0.4500630982 | I4: 100% load | U4: 3 | AG4: 1 | AK4: 2 | AM4: I_VCC | AN4: =(Qg_Q1+Qg_Q2)*Fsw*1000 -> 19.8 | AO4: mA | AP4: =AN4*5/1000 -> 0.099
AP5: =VCC -> 3.15
A6: Enter the values of your design and MOSFET datasheet specifications below. Note that thermal resistance (θJA) will change when components are placed on the PCB
G7: Operating Point Condtions | R7: Filter Inductor | V7: Cout | Y7: Cin | AB7: High-side BUCK "Control" MOSFET Losses | AH7: Low-side BUCK "Sync" MOSFET Losses | AL7: Diode/FET | AM7: "Controller" Losses | AT7: RESULTS | AZ7: Consolidated Buck Efficiency & Losses
A8: Input Parameters | G8: Step | H8: Vin | I8: Mode | J8: Iout | K8: Iout/ phase | L8: Iin | M8: Duty Cycle BUCK Leg | N8: Ripple Current pk-pk | O8: Peak Inductor Current | P8: Valley Inductor Current | Q8: SW node voltage at Q1 turn-on | R8: Irms Lf | S8: DCR Loss | T8: Core Loss | U8: Total Inductor Loss | V8: Irms Cout | W8: Cout ESR Loss | X8: Total Cout Loss | Y8: Irms Cin | Z8: Cin ESR Loss | AA8: Total Cin Loss | AB8: Irms | AC8: RDS(on) Loss | AD8: Transition Loss (not including capacitive loss) | AE8: MOSFET Output Capacitance Loss | AF8: Dead Time Loss | AG8: Total Control MOSFET Loss | AH8: Irms | AI8: RDS(on) Loss | AJ8: Deadtime Loss | AK8: Total Sync MOSFET Loss | AL8: Reverse Recovery Loss | AM8: IQ Loss | AN8: Switching Current Loss | AO8: Switching Current Diss from VCC | AP8: LDO Loss Saved from Gate Drive Current (ext VCC = Vout) | AQ8: Total "Control" Loss | AR8: Total Loss (not considering total loss) | AS8: Total Loss (considering total loss) | AT8: Total Loss | AU8: Pout | AV8: EFF, h | AW8: =IF(Vin>Vout, "Buck ''CONTROL'' MOSFET Temp Rise", "Boost ''CONTROL'' MOSFET Temp Rise") -> Buck ''CONTROL'' MOSFET Temp Rise | AX8: =IF(Vin>Vout, "Buck ''SYNC'' MOSFET Temp Rise", "Boost ''SYNC'' MOSFET Temp Rise") -> Buck ''SYNC'' MOSFET Temp Rise | AZ8: h | BA8: Inductor Cu & Core Loss | BB8: Total MOSFET Loss | BC8: Control MOSFET Loss | BD8: SYNC MOSFET Loss | BE8: IC Power Loss
A9: Design | B9: Input Value | C9: Units | D9: Description | G9: 0 | H9: =Vin -> 28 | I9: =MODE -> 1 | J9: 0 | K9: =Iout*G9/100/Number_of_Phases -> 0 | L9: =Vout*K9/(Vin*Efficiency) -> 0 | M9: =(Vout+(Rdson2+Rs+Rdcr)*K9)/(Vin+(Rs+Rdson2-Rdson1)*K9) -> 0.1178571429 | N9: =(Vin-(Rdson1+Rdcr)*K9-Vout)*M9/(Fsw*Lf) -> 0.1102678571 | O9: =K9+N9/2 -> 0.05513392857 | P9: =K9-N9/2 -> -0.05513392857 | Q9: =IF(MIN(Vin, -P9/(Coss_Q1+Coss_Q2)*0.00000002)<0, 0, MIN(Vin, -P9/(Coss_Q1+Coss_Q2)*0.00000002)) -> 7.121866379 | R9: =SQRT(K9^2+(N9^2)/12) -> 0.0318315885 | S9: =R9^2*Rdcr -> 2.533125066e-05 | T9: =Core_Loss -> 0.1 | U9: =(T9+S9*(1+Ltc*(Ta-25)))/(1-S9*Ltc*ThetaCa) -> 0.1000255503 | V9: =N9/SQRT(12) -> 0.0318315885 | W9: =RCoutEsr*V9^2 -> 1.013250027e-06 | X9: =W9 -> 1.013250027e-06 | Y9: =SQRT(M9*(1-M9))*SQRT(K9^2+(N9^2)/12) -> 0.01026374201 | Z9: =RCinEsr*Y9^2 -> 2.106888002e-07 | AA9: =Z9 -> 2.106888002e-07 | AB9: =SQRT(M9)*SQRT(K9^2+(N9^2)/12) -> 0.01092788878 | AC9: =Rdson1*AB9^2 -> 6.687450175e-05 | AD9: =(Vin*K9/2)*Fsw*(Tr_buck+Tf_buck) -> 0 | AE9: =(0.5*Coss_Q1*(Vin-Q9)^2-0.5*Coss_Q2*(Vin-Q9)^2+(Qoss_Q2*(Vin-Q9)/Vin)*Vin)*Fsw -> 0.06844089147 | AF9: =IF(K9>N9/2,0,ABS(K9-N9/2)*Vsd_Q1*Deadtime*Fsw) -> 0.000582978442 | AG9: =(AF9+AE9+AD9+AC9*(1+RdsonTC*(Ta-25))/(1-AC9*RdsonTC*ThetaJA_Q1)) -> 0.06909074482 | AH9: =SQRT((1-M9))*SQRT(K9^2+(N9^2)/12) -> 0.02989701111 | AI9: =Rdson2*AH9^2 -> 0.0002502727566 | AJ9: =IF(K9<N9/2,Deadtime*Fsw*Vsd_Q2*(K9+N9/2),2*Deadtime*Fsw*Vsd_Q2*K9) -> 0.000582978442 | AK9: =(AJ9+AI9*(1+RdsonTC*(Ta-25)))/(1-AI9*RdsonTC*ThetaJA_Q2) -> 0.0008332703847 | AL9: =Qrr_Q2*K9/Iout*Fsw*Vin -> 0 | AM9: =Iq*Vin -> 0.00098 | AN9: =IF(Ext_VCC=1, (Qg_Q1+Qg_Q2)*Fsw*Vout, (Qg_Q1+Qg_Q2)*Fsw*Vin) -> 0.5544 | AO9: =(Vin-VCC)*Fsw*(Qg_Q1+Qg_Q2) -> 0.49203 | AP9: =(Qg_Q1+Qg_Q2)*Fsw*(Vin-Vout) -> 0.48906 | AQ9: =SUM(AM9:AN9) -> 0.55538 | AR9: =SUM(S9,T9,AC9,AD9,AE9,AF9,AI9,AJ9,AQ9, AL9) -> 0.7253293269 | AS9: =U9 + ((AF9+AE9+AD9+AC9*(1+RdsonTC*(Ta-25))) + (AJ9+AI9*(1+RdsonTC*(Ta-25))) + AQ9 + AL9) / (1-AC9*RdsonTC*ThetaJA_Q1 -AI9*RdsonTC*ThetaJA_Q2) -> 0.7253477913 | AT9: =AS9 -> 0.7253477913 | AU9: =Vout*K9 -> 0 | AV9: =AU9/(AU9+AT9) -> 0 | AW9: =ThetaJA_Q1*BC9 -> 1.589087131 | AX9: =ThetaJA_Q2*BD9 -> 0.01916521885 | AZ9: =AV9*100 -> 0 | BA9: =U9 -> 0.1000255503 | BB9: =AG9+AK9+AL9 -> 0.06992401521 | BC9: =AG9+AL9*0.66 -> 0.06909074482 | BD9: =AK9+AL9*0.33 -> 0.0008332703847 | BE9: =AS9-BA9 -> 0.625322241
G10: 1 | H10: 28 | I10: 1 | J10: =Iout*G10/100 -> 0.003 | K10: 0.003 | L10: 0.0003928571429 | M10: 0.117945338 | N10: 0.1103425324 | O10: =K10+N10/2 -> 0.05817126619 | P10: =K10-N10/2 -> -0.05217126619 | Q10: 6.739167628 | R10: =SQRT(K10^2+(N10^2)/12) -> 0.03199410682 | S10: 2.559057177e-05 | T10: 0.1 | U10: 0.1000258119 | V10: =N10/SQRT(12) -> 0.03185314539 | W10: 1.014622871e-06 | X10: =W10 -> 1.014622871e-06 | Y10: =SQRT(M10*(1-M10))*SQRT(K10^2+(N10^2)/12) -> 0.01031948751 | Z10: 2.129836451e-07 | AA10: =Z10 -> 2.129836451e-07 | AB10: =SQRT(M10)*SQRT(K10^2+(N10^2)/12) -> 0.01098779075 | AC10: 6.760966549e-05 | AD10: 1.711363066e-05 | AE10: 0.0692582069 | AF10: 0.0005516516647 | AG10: =(AF10+AE10+AD10+AC10*(1+RdsonTopTc*Ta-RdsonTopTc*25))/(1-AC10*RdsonTopTc*ThetaJA_Q1) -> 0.06989501661 | AH10: 0.03004815012 | AI10: 0.0002528095711 | AJ10: 0.0006150948247 | AK10: =(AJ10+AI10*(1+RdsonBotTc*Ta-RdsonBotTc*25))/(1-AI10*RdsonBotTc*ThetaJA_Q2) -> 0.0008679245824 | AL10: 0.004312 | AM10: 0.00098 | AN10: 0.5544 | AO10: 0.49203 | AP10: 0.48906 | AQ10: 0.55538 | AR10: =SUM(S10,T10,AC10,AD10,AE10,AF10,AI10,AJ10,AQ10, AL10) -> 0.7304800768 | AS10: 0.7304988836 | AT10: =AS10 -> 0.7304988836 | AU10: 0.0099 | AV10: =AU10/(AU10+AT10) -> 0.01337117089 | AW10: 1.673041542 | AX10: 0.0526903454 | AZ10: =AV10*100 -> 1.337117089 | BA10: 0.1000258119 | BB10: 0.0750749412 | BC10: 0.07274093661 | BD10: 0.002290884582 | BE10: =AS10-BA10 -> 0.6304730717
A11: Vin | B11: =Vin -> 28 | C11: V | D11: Vin | G11: 2 | H11: 28 | I11: 1 | J11: 0.006 | K11: 0.006 | L11: 0.0007857142857 | M11: 0.1180335281 | N11: 0.1104171911 | O11: 0.06120859556 | P11: -0.04920859556 | Q11: 6.356467811 | R11: 0.03243449308 | S11: 2.629990853e-05 | T11: 0.1 | U11: 0.1000265274 | V11: 0.03187469751 | W11: 1.015996341e-06 | X11: 1.015996341e-06 | Y11: 0.01046491841 | Z11: 2.190290347e-07 | AA11: 2.190290347e-07 | AB11: 0.01114319701 | AC11: 6.95356702e-05 | AD11: 3.422726132e-05 | AE11: 0.07005978467 | AF11: 0.0005203248002 | AG11: 0.07068432459 | AH11: 0.03046022819 | AI11: 0.0002597911404 | AJ11: 0.0006472111202 | AK11: 0.0009070239392 | AL11: 0.008624 | AM11: 0.00098 | AN11: 0.5544 | AO11: 0.49203 | AP11: 0.48906 | AQ11: 0.55538 | AR11: 0.7356211746 | AS11: 0.7356406599 | AT11: 0.7356406599 | AU11: 0.0198 | AV11: 0.02620986803 | AW11: 1.756651785 | AX11: 0.0863177106 | AZ11: 2.620986803 | BA11: 0.1000265274 | BB11: 0.08021534853 | BC11: 0.07637616459 | BD11: 0.003752943939 | BE11: 0.6356141325
A12: Vout | B12: =Vout -> 3.3 | C12: V | D12: Vout | G12: 3 | H12: 28 | I12: 1 | J12: 0.009 | K12: 0.009 | L12: 0.001178571429 | M12: 0.118121713 | N12: 0.1104918334 | O12: 0.06424591668 | P12: -0.04624591668 | Q12: 5.973766928 | R12: 0.0331416722 | S12: 2.745926091e-05 | T12: 0.1 | U12: 0.1000276967 | V12: 0.03189624486 | W12: 1.017370436e-06 | X12: 1.017370436e-06 | Y12: 0.01069654717 | Z12: 2.288322427e-07 | AA12: 2.288322427e-07 | AB12: 0.01139040813 | AC12: 7.265518258e-05 | AD12: 5.134089199e-05 | AE12: 0.07084562464 | AF12: 0.0004889978485 | AG12: 0.07145909621 | AH12: 0.03112280577 | AI12: 0.0002712161309 | AJ12: 0.0006793273285 | AK12: 0.0009505671779 | AL12: 0.012936 | AM12: 0.00098 | AN12: 0.5544 | AO12: 0.49203 | AP12: 0.48906 | AQ12: 0.55538 | AR12: 0.7407526213 | AS12: 0.7407731295 | AT12: 0.7407731295 | AU12: 0.0297 | AV12: 0.03854774276 | AW12: 1.839927693 | AX12: 0.1200472851 | AZ12: 3.854774276 | BA12: 0.1000276967 | BB12: 0.08534566339 | BC12: 0.07999685621 | BD12: 0.005219447178 | BE12: 0.6407454327
A13: Fsw | B13: =Fsw/1000 -> 2200 | C13: kHz | D13: Switching Frequency | G13: 4 | H13: 28 | I13: 1 | J13: 0.012 | K13: 0.012 | L13: 0.001571428571 | M13: 0.1182098929 | N13: 0.1105664591 | O13: 0.06728322955 | P13: -0.04328322955 | Q13: 5.591064981 | R13: 0.0340990492 | S13: 2.906862891e-05 | T13: 0.1 | U13: 0.10002932 | V13: 0.03191778746 | W13: 1.018745156e-06 | X13: 1.018745156e-06 | Y13: 0.01100909939 | Z13: 2.424005386e-07 | AA13: 2.424005386e-07 | AB13: 0.01172382106 | AC13: 7.6970869e-05 | AD13: 6.845452265e-05 | AE13: 0.07161572667 | AF13: 0.0004576708096 | AG13: 0.07221933428 | AH13: 0.03202026196 | AI13: 0.0002870832093 | AJ13: 0.0007114434496 | AK13: 0.0009985530323 | AL13: 0.017248 | AM13: 0.00098 | AN13: 0.5544 | AO13: 0.49203 | AP13: 0.48906 | AQ13: 0.55538 | AR13: 0.7458744182 | AS13: 0.7458963016 | AT13: 0.7458963016 | AU13: 0.0396 | AV13: 0.05041398657 | AW13: 1.922869328 | AX13: 0.1538790397 | AZ13: 5.041398657 | BA13: 0.10002932 | BB13: 0.09046588731 | BC13: 0.08360301428 | BD13: 0.006690393032 | BE13: 0.6458669815
A14: Iout | B14: =Iout -> 0.3 | C14: A | D14: Max Output Current | G14: 5 | H14: 28 | I14: 1 | J14: 0.015 | K14: 0.015 | L14: 0.001964285714 | M14: 0.1182980676 | N14: 0.1106410683 | O14: 0.07032053417 | P14: -0.04032053417 | Q14: 5.208361967 | R14: 0.03528626504 | S14: 3.112801251e-05 | T14: 0.1 | U14: 0.1000313972 | V14: 0.0319393253 | W14: 1.0201205e-06 | X14: 1.0201205e-06 | Y14: 0.01139607801 | Z14: 2.597411879e-07 | AA14: 2.597411879e-07 | AB14: 0.01213652953 | AC14: 8.24853955e-05 | AD14: 8.556815331e-05 | AE14: 0.07237009065 | AF14: 0.0004263436834 | AG14: 0.07296504159 | AH14: 0.0331334446 | AI14: 0.0003073910423 | AJ14: 0.0007435594834 | AK14: 0.001050980247 | AL14: 0.02156 | AM14: 0.00098 | AN14: 0.5544 | AO14: 0.49203 | AP14: 0.48906 | AQ14: 0.55538 | AR14: 0.7509865664 | AS14: 0.7510101854 | AT14: 0.7510101854 | AU14: 0.0495 | AV14: 0.0618355655 | AW14: 2.005476757 | AX14: 0.1878129457 | AZ14: 6.18355655 | BA14: 0.1000313972 | BB14: 0.09557602184 | BC14: 0.08719464159 | BD14: 0.008165780247 | BE14: 0.6509787881
A15: Ta | B15: =Ta -> 25 | C15: °C | D15: Ambient Temperature | G15: 6 | H15: 28 | I15: 1 | J15: 0.018 | K15: 0.018 | L15: 0.002357142857 | M15: 0.1183862372 | N15: 0.1107156611 | O15: 0.07335783055 | P15: -0.03735783055 | Q15: 4.825657889 | R15: 0.03668100963 | S15: 3.363741169e-05 | T15: 0.1 | U15: 0.1000339283 | V15: 0.03196085837 | W15: 1.021496468e-06 | X15: 1.021496468e-06 | Y15: 0.01185034708 | Z15: 2.808614516e-07 | AA15: 2.808614516e-07 | AB15: 0.01262094545 | AC15: 8.920142786e-05 | AD15: 0.000102681784 | AE15: 0.07310871643 | AF15: 0.0003950164701 | AG15: 0.0736962209 | AH15: 0.03444137343 | AI15: 0.000332138297 | AJ15: 0.0007756754301 | AK15: 0.001107847579 | AL15: 0.025872 | AM15: 0.00098 | AN15: 0.5544 | AO15: 0.49203 | AP15: 0.48906 | AQ15: 0.55538 | AR15: 0.7560890673 | AS15: 0.75611479 | AT15: 0.75611479 | AU15: 0.0594 | AV15: 0.07283742825 | AW15: 2.087750041 | AX15: 0.2218489743 | AZ15: 7.283742825 | BA15: 0.1000339283 | BB15: 0.1006760685 | BC15: 0.0907717409 | BD15: 0.009645607579 | BE15: 0.6560808617
A16: Vcc | B16: =VCC -> 3.15 | C16: V | D16: Subregulated VCC Voltage | G16: 7 | H16: 28 | I16: 1 | J16: 0.021 | K16: 0.021 | L16: 0.00275 | M16: 0.1184744018 | N16: 0.1107902374 | O16: 0.07639511868 | P16: -0.03439511868 | Q16: 4.442952745 | R16: 0.03826059406 | S16: 3.659682644e-05 | T16: 0.1 | U16: 0.1000369134 | V16: 0.03198238668 | W16: 1.022873058e-06 | X16: 1.022873058e-06 | Y16: 0.01236463883 | Z16: 3.057685868e-07 | AA16: 3.057685868e-07 | AB16: 0.01316933881 | AC16: 9.71216315e-05 | AD16: 0.0001197954146 | AE16: 0.07383160389 | AF16: 0.0003636891696 | AG16: 0.074412875 | AH16: 0.03592271667 | AI16: 0.0003613236404 | AJ16: 0.0008077912896 | AK16: 0.001169153795 | AL16: 0.030184 | AM16: 0.00098 | AN16: 0.5544 | AO16: 0.49203 | AP16: 0.48906 | AQ16: 0.55538 | AR16: 0.7611819219 | AS16: 0.7612101247 | AT16: 0.7612101247 | AU16: 0.0693 | AV16: 0.08344269135 | AW16: 2.169689245 | AX16: 0.2559870973 | AZ16: 8.344269135 | BA16: 0.1000369134 | BB16: 0.1057660288 | BC16: 0.094334315 | BD16: 0.01112987379 | BE16: 0.6611732113
A17: Components | B17: Input Value | C17: Units | D17: Description | G17: 8 | H17: 28 | I17: 1 | J17: 0.024 | K17: 0.024 | L17: 0.003142857143 | M17: 0.1185625612 | N17: 0.1108647971 | O17: 0.07943239856 | P17: -0.03143239856 | Q17: 4.060246537 | R17: 0.04000312825 | S17: 4.000625675e-05 | T17: 0.1 | U17: 0.1000403523 | V17: 0.03200391023 | W17: 1.02425027e-06 | X17: 1.02425027e-06 | Y17: 0.01293193424 | Z17: 3.344698462e-07 | AA17: 3.344698462e-07 | AB17: 0.01377424302 | AC17: 0.0001062486716 | AD17: 0.0001369090453 | AE17: 0.07453875289 | AF17: 0.0003323617819 | AG17: 0.07511500663 | AH17: 0.03755689683 | AI17: 0.0003949457399 | AJ17: 0.0008399070619 | AK17: 0.001234897672 | AL17: 0.034496 | AM17: 0.00098 | AN17: 0.5544 | AO17: 0.49203 | AP17: 0.48906 | AQ17: 0.55538 | AR17: 0.7662651314 | AS17: 0.7662961985 | AT17: 0.7662961985 | AU17: 0.0792 | AV17: 0.09367280438 | AW17: 2.251294432 | AX17: 0.2902272865 | AZ17: 9.367280438 | BA17: 0.1000403523 | BB17: 0.1108459043 | BC17: 0.09788236663 | BD17: 0.01261857767 | BE17: 0.6662558462
A18: L | B18: =Lf*1000000 -> 12 | C18: uH | D18: Filter Inductance | G18: 9 | H18: 28 | I18: 1 | J18: 0.027 | K18: 0.027 | L18: 0.003535714286 | M18: 0.1186507156 | N18: 0.1109393404 | O18: 0.0824696702 | P18: -0.0284696702 | Q18: 3.677539263 | R18: 0.04188828123 | S18: 4.386570261e-05 | T18: 0.1 | U18: 0.1000442451 | V18: 0.03202542902 | W18: 1.025628104e-06 | X18: 1.025628104e-06 | Y18: 0.01354570925 | Z18: 3.669724784e-07 | AA18: 3.669724784e-07 | AB18: 0.0144287172 | AC18: 0.0001165852129 | AD18: 0.000154022676 | AE18: 0.0752301633 | AF18: 0.000301034307 | AG18: 0.07580261854 | AH18: 0.03932480418 | AI18: 0.0004330032627 | AJ18: 0.000872022747 | AK18: 0.001305077999 | AL18: 0.038808 | AM18: 0.00098 | AN18: 0.5544 | AO18: 0.49203 | AP18: 0.48906 | AQ18: 0.55538 | AR18: 0.7713386972 | AS18: 0.7713730205 | AT18: 0.7713730205 | AU18: 0.0891 | AV18: 0.1035476975 | AW18: 2.332565666 | AX18: 0.324569514 | AZ18: 10.35476975 | BA18: 0.1000442451 | BB18: 0.1159156965 | BC18: 0.1014158985 | BD18: 0.014111718 | BE18: 0.6713287753
A19: Rdcr | B19: =Rdcr*1000 -> 25 | C19: mW | D19: Inductor DCR at 25°C | G19: 10 | H19: 28 | I19: 1 | J19: 0.03 | K19: 0.03 | L19: 0.003928571429 | M19: 0.1187388648 | N19: 0.1110138672 | O19: 0.0855069336 | P19: -0.0255069336 | Q19: 3.294830924 | R19: 0.04389768285 | S19: 4.817516398e-05 | T19: 0.1 | U19: 0.1000485919 | V19: 0.03204694306 | W19: 1.027006559e-06 | X19: 1.027006559e-06 | Y19: 0.01420006563 | Z19: 4.032837277e-07 | AA19: 4.032837277e-07 | AB19: 0.01512648576 | AC19: 0.00012813392 | AD19: 0.0001711363066 | AE19: 0.07590583499 | AF19: 0.0002697067449 | AG19: 0.07647571348 | AH19: 0.04120917359 | AI19: 0.0004754948766 | AJ19: 0.0009041383449 | AK19: 0.001379693577 | AL19: 0.04312 | AM19: 0.00098 | AN19: 0.5544 | AO19: 0.49203 | AP19: 0.48906 | AQ19: 0.55538 | AR19: 0.7764026203 | AS19: 0.7764405997 | AT19: 0.7764405997 | AU19: 0.099 | AV19: 0.1130859136 | AW19: 2.41350301 | AX19: 0.3590137523 | AZ19: 11.30859136 | BA19: 0.1000485919 | BB19: 0.1209754071 | BC19: 0.1049349135 | BD19: 0.01560929358 | BE19: 0.6763920078
A20: LTc | B20: 3930 | C20: ppm | D20: Inductor Series Resistance Temp Co | G20: 11 | H20: 28 | I20: 1 | J20: 0.033 | K20: 0.033 | L20: 0.004321428571 | M20: 0.118827009 | N20: 0.1110883775 | O20: 0.08854418876 | P20: -0.02254418876 | Q20: 2.912121521 | R20: 0.04601505878 | S20: 5.293464087e-05 | T20: 0.1 | U20: 0.1000533926 | V20: 0.03206845233 | W20: 1.028385635e-06 | X20: 1.028385635e-06 | Y20: 0.01488977559 | Z20: 4.434108344e-07 | AA20: 4.434108344e-07 | AB20: 0.01586198606 | AC20: 0.000140897457 | AD20: 0.0001882499373 | AE20: 0.07656576783 | AF20: 0.0002383790957 | AG20: 0.07713429418 | AH20: 0.04319471071 | AI20: 0.0005224192492 | AJ20: 0.0009362538557 | AK20: 0.001458743216 | AL20: 0.047432 | AM20: 0.00098 | AN20: 0.5544 | AO20: 0.49203 | AP20: 0.48906 | AQ20: 0.55538 | AR20: 0.7814569021 | AS20: 0.7814989453 | AT20: 0.7814989453 | AU20: 0.1089 | AV20: 0.1223047271 | AW20: 2.494106526 | AX20: 0.393559974 | AZ20: 12.23047271 | BA20: 0.1000533926 | BB20: 0.1260250374 | BC20: 0.1084394142 | BD20: 0.01711130322 | BE20: 0.6814455527
A21: ThetaCa | B21: =ThetaCa -> 22 | C21: °C/W | D21: Core to Ambient Thermal Resistance | G21: 12 | H21: 28 | I21: 1 | J21: 0.036 | K21: 0.036 | L21: 0.004714285714 | M21: 0.118915148 | N21: 0.1111628713 | O21: 0.09158143567 | P21: -0.01958143567 | Q21: 2.529411053 | R21: 0.04822618926 | S21: 5.814413326e-05 | T21: 0.1 | U21: 0.1000586471 | V21: 0.03208995684 | W21: 1.02976533e-06 | X21: 1.02976533e-06 | Y21: 0.01561026961 | Z21: 4.873610345e-07 | AA21: 4.873610345e-07 | AB21: 0.01663035563 | AC21: 0.000154878488 | AD21: 0.0002053635679 | AE21: 0.07720996168 | AF21: 0.0002070513593 | AG21: 0.07777836335 | AH21: 0.04526805277 | AI21: 0.0005737750485 | AJ21: 0.0009683692793 | AK21: 0.001542225738 | AL21: 0.051744 | AM21: 0.00098 | AN21: 0.5544 | AO21: 0.49203 | AP21: 0.48906 | AQ21: 0.55538 | AR21: 0.7865015436 | AS21: 0.7865480662 | AT21: 0.7865480662 | AU21: 0.1188 | AV21: 0.1312202505 | AW21: 2.574376277 | AX21: 0.428208152 | AZ21: 13.12202505 | BA21: 0.1000586471 | BB21: 0.1310645891 | BC21: 0.1119294034 | BD21: 0.01861774574 | BE21: 0.686489419
A22: Cin | B22: =Cin*1000000 -> 20 | C22: μF | D22: Input Capacitance | G22: 13 | H22: 28 | I22: 1 | J22: 0.039 | K22: 0.039 | L22: 0.005107142857 | M22: 0.119003282 | N22: 0.1112373487 | O22: 0.09461867434 | P22: -0.01661867434 | Q22: 2.14669952 | R22: 0.05051876528 | S22: 6.380364113e-05 | T22: 0.1 | U22: 0.1000643556 | V22: 0.0321114566 | W22: 1.031145645e-06 | X22: 1.031145645e-06 | Y22: 0.01635759089 | Z22: 5.351415597e-07 | AA22: 5.351415597e-07 | AB22: 0.01742738385 | AC22: 0.0001700796764 | AD22: 0.0002224771986 | AE22: 0.07783841643 | AF22: 0.0001757235358 | AG22: 0.07840792371 | AH22: 0.04741763319 | AI22: 0.0006295609424 | AJ22: 0.001000484616 | AK22: 0.001630139975 | AL22: 0.056056 | AM22: 0.00098 | AN22: 0.5544 | AO22: 0.49203 | AP22: 0.48906 | AQ22: 0.55538 | AR22: 0.791536546 | AS22: 0.7915879713 | AT22: 0.7915879713 | AU22: 0.1287 | AV22: 0.1398475304 | AW22: 2.654312325 | AX22: 0.4629582594 | AZ22: 13.98475304 | BA22: 0.1000643556 | BB22: 0.1360940637 | BC22: 0.1154048837 | BD22: 0.02012861998 | BE22: 0.6915236157
A23: RCinEsr | B23: =RCinEsr*1000 -> 2 | C23: mW | D23: Input Capacitor ESR | G23: 14 | H23: 28 | I23: 1 | J23: 0.042 | K23: 0.042 | L23: 0.0055 | M23: 0.1190914108 | N23: 0.1113118095 | O23: 0.09765590477 | P23: -0.01365590477 | Q23: 1.763986923 | R23: 0.05288219529 | S23: 6.991316446e-05 | T23: 0.1 | U23: 0.1000705181 | V23: 0.0321329516 | W23: 1.032526578e-06 | X23: 1.032526578e-06 | Y23: 0.0171283338 | Z23: 5.867596376e-07 | AA23: 5.867596376e-07 | AB23: 0.01824944645 | AC23: 0.0001865036856 | AD23: 0.0002395908293 | AE23: 0.07845113192 | AF23: 0.0001443956252 | AG23: 0.07902297797 | AH23: 0.0496334996 | AI23: 0.0006897755992 | AJ23: 0.001032599865 | AK23: 0.001722484772 | AL23: 0.060368 | AM23: 0.00098 | AN23: 0.5544 | AO23: 0.49203 | AP23: 0.48906 | AQ23: 0.55538 | AR23: 0.7965619107 | AS23: 0.7966186697 | AT23: 0.7966186697 | AU23: 0.1386 | AV23: 0.1482006342 | AW23: 2.733914733 | AX23: 0.4978102698 | AZ23: 14.82006342 | BA23: 0.1000705181 | BB23: 0.1411134627 | BC23: 0.118865858 | BD23: 0.02164392477 | BE23: 0.6965481516
A24: Cout | B24: =Cout*1000000 -> 22 | C24: μF | D24: Output Capcitance | G24: 15 | H24: 28 | I24: 1 | J24: 0.045 | K24: 0.045 | L24: 0.005892857143 | M24: 0.1191795346 | N24: 0.1113862539 | O24: 0.100693127 | P24: -0.01069312696 | Q24: 1.381273262 | R24: 0.0553073967 | S24: 7.647270325e-05 | T24: 0.1 | U24: 0.1000771344 | V24: 0.03215444184 | W24: 1.03390813e-06 | X24: 1.03390813e-06 | Y24: 0.01791957717 | Z24: 6.422224918e-07 | AA24: 6.422224918e-07 | AB24: 0.01909343466 | AC24: 0.0002041531785 | AD24: 0.0002567044599 | AE24: 0.07904810804 | AF24: 0.0001130676274 | AG24: 0.0796235288 | AH24: 0.05190711784 | AI24: 0.0007544176872 | AJ24: 0.001064715027 | AK24: 0.001819258983 | AL24: 0.06468 | AM24: 0.00098 | AN24: 0.5544 | AO24: 0.49203 | AP24: 0.48906 | AQ24: 0.55538 | AR24: 0.8015776387 | AS24: 0.8016401702 | AT24: 0.8016401702 | AU24: 0.1485 | AV24: 0.1562927289 | AW24: 2.813183562 | AX24: 0.5327641566 | AZ24: 15.62927289 | BA24: 0.1000771344 | BB24: 0.1461227878 | BC24: 0.1223123288 | BD24: 0.02316365898 | BE24: 0.7015630358
A25: RCoutEsr | B25: =Cout_ESR*1000 -> 1 | C25: mW | D25: Output Capacitor ESR | G25: 16 | H25: 28 | I25: 1 | J25: 0.048 | K25: 0.048 | L25: 0.006285714286 | M25: 0.1192676533 | N25: 0.1114606818 | O25: 0.1037303409 | P25: -0.007730340905 | Q25: 0.9985585358 | R25: 0.05778659273 | S25: 8.348225748e-05 | T25: 0.1 | U25: 0.1000842047 | V25: 0.03217592732 | W25: 1.035290299e-06 | X25: 1.035290299e-06 | Y25: 0.01872881925 | Z25: 7.015373413e-07 | AA25: 7.015373413e-07 | AB25: 0.01995668604 | AC25: 0.0002230308178 | AD25: 0.0002738180906 | AE25: 0.07962934465 | AF25: 8.173954248e-05 | AG25: 0.08020957891 | AH25: 0.0542311809 | AI25: 0.0008234858748 | AJ25: 0.001096830102 | AK25: 0.001920461473 | AL25: 0.068992 | AM25: 0.00098 | AN25: 0.5544 | AO25: 0.49203 | AP25: 0.48906 | AQ25: 0.55538 | AR25: 0.8065837313 | AS25: 0.8066524818 | AT25: 0.8066524818 | AU25: 0.1584 | AV25: 0.1641361511 | AW25: 2.892118875 | AX25: 0.5678198939 | AZ25: 16.41361511 | BA25: 0.1000842047 | BB25: 0.1511220404 | BC25: 0.1257442989 | BD25: 0.02468782147 | BE25: 0.7065682771
A26: Top Driver | B26: Input Value | C26: Units | D26: Description | G26: 17 | H26: 28 | I26: 1 | J26: 0.051 | K26: 0.051 | L26: 0.006678571429 | M26: 0.1193557668 | N26: 0.1115350932 | O26: 0.1067675466 | P26: -0.004767546615 | Q26: 0.6158427456 | R26: 0.06031312531 | S26: 9.094182713e-05 | T26: 0.1 | U26: 0.1000917288 | V26: 0.03219740805 | W26: 1.036673085e-06 | X26: 1.036673085e-06 | Y26: 0.01955391778 | Z26: 7.647114013e-07 | AA26: 7.647114013e-07 | AB26: 0.02083692061 | AC26: 0.0002431392659 | AD26: 0.0002909317213 | AE26: 0.08019484162 | AF26: 5.041137045e-05 | AG26: 0.08078113095 | AH26: 0.05659943308 | AI26: 0.0008969788309 | AJ26: 0.00112894509 | AK26: 0.002026091119 | AL26: 0.073304 | AM26: 0.00098 | AN26: 0.5544 | AO26: 0.49203 | AP26: 0.48906 | AQ26: 0.55538 | AR26: 0.8115801897 | AS26: 0.8116556133 | AT26: 0.8116556133 | AU26: 0.1683 | AV26: 0.1717424725 | AW26: 2.970720732 | AX26: 0.6029774557 | AZ26: 17.17424725 | BA26: 0.1000917288 | BB26: 0.1561112221 | BC26: 0.129161771 | BD26: 0.02621641112 | BE26: 0.7115638844
A27: RdsonDRT | B27: 1 | C27: W | D27: Drain to Source Resistance of pullup Top FET Driver | G27: 18 | H27: 28 | I27: 1 | J27: 0.054 | K27: 0.054 | L27: 0.007071428571 | M27: 0.1194438753 | N27: 0.1116094882 | O27: 0.1098047441 | P27: -0.001804744087 | Q27: 0.2331258913 | R27: 0.06288128885 | S27: 9.885141219e-05 | T27: 0.1 | U27: 0.1000997069 | V27: 0.03221888402 | W27: 1.038056488e-06 | X27: 1.038056488e-06 | Y27: 0.02039303659 | Z27: 8.317518827e-07 | AA27: 8.317518827e-07 | AB27: 0.0217321842 | AC27: 0.0002644811848 | AD27: 0.0003080453519 | AE27: 0.08074459881 | AF27: 1.908311131e-05 | AG27: 0.0813381876 | AH27: 0.05900651369 | AI27: 0.0009748952241 | AJ27: 0.001161059991 | AK27: 0.002136146807 | AL27: 0.077616 | AM27: 0.00098 | AN27: 0.5544 | AO27: 0.49203 | AP27: 0.48906 | AQ27: 0.55538 | AR27: 0.8165670151 | AS27: 0.8166495735 | AT27: 0.8166495735 | AU27: 0.1782 | AV27: 0.1791225576 | AW27: 3.048989195 | AX27: 0.6382368166 | AZ27: 17.91225576 | BA27: 0.1000997069 | BB27: 0.1610903344 | BC27: 0.1325647476 | BD27: 0.02774942681 | BE27: 0.7165498666
A28: RdsonDRT2 | B28: 1 | C28: W | D28: Drain to Source Resistance of pulldown Top FET Driver | G28: 19 | H28: 28 | I28: 1 | J28: 0.057 | K28: 0.057 | L28: 0.007464285714 | M28: 0.1195319787 | N28: 0.1116838666 | O28: 0.1128419333 | P28: 0.001158066678 | Q28: 0 | R28: 0.06548618561 | S28: 0.0001072110126 | T28: 0.1 | U28: 0.100108139 | V28: 0.03224035524 | W28: 1.039440506e-06 | X28: 1.039440506e-06 | Y28: 0.02124459922 | Z28: 9.02665992e-07 | AA28: 9.02665992e-07 | AB28: 0.02264079899 | AC28: 0.0002870592363 | AD28: 0.0003251589826 | AE28: 0.08107176 | AF28: 0 | AG28: 0.0816861355 | AH28: 0.06144782117 | AI28: 0.001057233723 | AJ28: 0.00120542004 | AK28: 0.002262873863 | AL28: 0.081928 | AM28: 0.00098 | AN28: 0.5544 | AO28: 0.49203 | AP28: 0.48906 | AQ28: 0.55538 | AR28: 0.821361843 | AS28: 0.8214519831 | AT28: 0.8214519831 | AU28: 0.1881 | AV28: 0.1863202719 | AW28: 3.122448157 | AX28: 0.6738796188 | AZ28: 18.63202719 | BA28: 0.100108139 | BB28: 0.1658770094 | BC28: 0.1357586155 | BD28: 0.02929911386 | BE28: 0.7213438441
A29: Bottom Driver | B29: Input Value | C29: Units | D29: Description | G29: 20 | H29: 28 | I29: 1 | J29: 0.06 | K29: 0.06 | L29: 0.007857142857 | M29: 0.119620077 | N29: 0.1117582286 | O29: 0.1158791143 | P29: 0.00412088568 | Q29: 0 | R29: 0.06812360192 | S29: 0.0001160206285 | T29: 0.1 | U29: 0.1001170249 | V29: 0.03226182169 | W29: 1.040825139e-06 | X29: 1.040825139e-06 | Y29: 0.02210724917 | Z29: 9.774609319e-07 | AA29: 9.774609319e-07 | AB29: 0.02356132128 | AC29: 0.0003108760818 | AD29: 0.0003422726132 | AE29: 0.08107176 | AF29: 0 | AG29: 0.08172724614 | AH29: 0.06391939673 | AI29: 0.001143992998 | AJ29: 0.0012688632 | AK29: 0.002413110172 | AL29: 0.08624 | AM29: 0.00098 | AN29: 0.5544 | AO29: 0.49203 | AP29: 0.48906 | AQ29: 0.55538 | AR29: 0.8258737855 | AS29: 0.825971944 | AT29: 0.825971944 | AU29: 0.198 | AV29: 0.1933646729 | AW29: 3.188849861 | AX29: 0.7100631339 | AZ29: 19.33646729 | BA29: 0.1001170249 | BB29: 0.1703803563 | BC29: 0.1386456461 | BD29: 0.03087231017 | BE29: 0.7258549191
A30: RdsonDRB | B30: 1 | C30: W | D30: Drain to Source Resistance of pullup Bottom FET Driver | G30: 21 | H30: 28 | I30: 1 | J30: 0.063 | K30: 0.063 | L30: 0.00825 | M30: 0.1197081701 | N30: 0.1118325742 | O30: 0.1189162871 | P30: 0.007083712918 | Q30: 0 | R30: 0.07078990314 | S30: 0.0001252802597 | T30: 0.1 | U30: 0.1001263648 | V30: 0.0322832834 | W30: 1.042210387e-06 | X30: 1.042210387e-06 | Y30: 0.02297981615 | Z30: 1.056143901e-06 | AA30: 1.056143901e-06 | AB30: 0.0244925055 | AC30: 0.0003359343824 | AD30: 0.0003593862439 | AE30: 0.08107176 | AF30: 0 | AG30: 0.08176960779 | AH30: 0.06641782563 | AI30: 0.001235171717 | AJ30: 0.00133230636 | AK30: 0.002567769868 | AL30: 0.090552 | AM30: 0.00098 | AN30: 0.5544 | AO30: 0.49203 | AP30: 0.48906 | AQ30: 0.55538 | AR30: 0.830391839 | AS30: 0.8304984928 | AT30: 0.8304984928 | AU30: 0.2079 | AV30: 0.200212155 | AW30: 3.255280339 | AX30: 0.746348387 | AZ30: 20.0212155 | BA30: 0.1001263648 | BB30: 0.1748893777 | BC30: 0.1415339278 | BD30: 0.03244992987 | BE30: 0.730372128
A31: RdsonDRB2 | B31: 1 | C31: W | D31: Drain to Source Resistance of pulldown Bottom FET Driver | G31: 22 | H31: 28 | I31: 1 | J31: 0.066 | K31: 0.066 | L31: 0.008642857143 | M31: 0.1197962582 | N31: 0.1119069032 | O31: 0.1219534516 | P31: 0.01004654839 | Q31: 0 | R31: 0.07348194505 | S31: 0.0001349899062 | T31: 0.1 | U31: 0.1001361586 | V31: 0.03230474035 | W31: 1.043596249e-06 | X31: 1.043596249e-06 | Y31: 0.0238612876 | Z31: 1.138722092e-06 | AA31: 1.138722092e-06 | AB31: 0.02543327401 | AC31: 0.0003622367989 | AD31: 0.0003764998746 | AE31: 0.08107176 | AF31: 0 | AG31: 0.08181322316 | AH31: 0.06894015392 | AI31: 0.00133076855 | AJ31: 0.00139574952 | AK31: 0.002726851921 | AL31: 0.094864 | AM31: 0.00098 | AN31: 0.5544 | AO31: 0.49203 | AP31: 0.48906 | AQ31: 0.55538 | AR31: 0.8349160046 | AS31: 0.8350316381 | AT31: 0.8350316381 | AU31: 0.2178 | AV31: 0.2068706829 | AW31: 3.321739653 | AX31: 0.7827353542 | AZ31: 20.68706829 | BA31: 0.1001361586 | BB31: 0.1794040751 | BC31: 0.1444234632 | BD31: 0.03403197192 | BE31: 0.7348954795
A32: Deadtime | B32: Input Value | C32: Units | D32: Description | G32: 23 | H32: 28 | I32: 1 | J32: 0.069 | K32: 0.069 | L32: 0.009035714286 | M32: 0.1198843412 | N32: 0.1119812158 | O32: 0.1249906079 | P32: 0.0130093921 | Q32: 0 | R32: 0.07619699944 | S32: 0.0001451495681 | T32: 0.1 | U32: 0.1001464064 | V32: 0.03232619254 | W32: 1.044982724e-06 | X32: 1.044982724e-06 | Y32: 0.0247507848 | Z32: 1.225202697e-06 | AA32: 1.225202697e-06 | AB32: 0.02638269156 | AC32: 0.0003897859919 | AD32: 0.0003936135052 | AE32: 0.08107176 | AF32: 0 | AG32: 0.08185809495 | AH32: 0.07148381852 | AI32: 0.001430782167 | AJ32: 0.00145919268 | AK32: 0.00289035531 | AL32: 0.099176 | AM32: 0.00098 | AN32: 0.5544 | AO32: 0.49203 | AP32: 0.48906 | AQ32: 0.55538 | AR32: 0.8394462839 | AS32: 0.8395713887 | AT32: 0.8395713887 | AU32: 0.2277 | AV32: 0.2133477974 | AW32: 3.388227864 | AX32: 0.8192240121 | AZ32: 21.33477974 | BA32: 0.1001464064 | BB32: 0.1839244503 | BC32: 0.147314255 | BD32: 0.03561843531 | BE32: 0.7394249823
A33: Deadtime | B33: 15 | C33: ns | D33: Total Deadtime | G33: 24 | H33: 28 | I33: 1 | J33: 0.072 | K33: 0.072 | L33: 0.009428571429 | M33: 0.1199724191 | N33: 0.1120555119 | O33: 0.128027756 | P33: 0.01597224404 | Q33: 0 | R33: 0.07893269166 | S33: 0.0001557592453 | T33: 0.1 | U33: 0.1001571081 | V33: 0.03234763999 | W33: 1.046369813e-06 | X33: 1.046369813e-06 | Y33: 0.02564754277 | Z33: 1.3155929e-06 | AA33: 1.3155929e-06 | AB33: 0.02733994401 | AC33: 0.0004185846216 | AD33: 0.0004107271359 | AE33: 0.08107176 | AF33: 0 | AG33: 0.08190422587 | AH33: 0.07404658854 | AI33: 0.001535211237 | AJ33: 0.00152263584 | AK33: 0.003058279026 | AL33: 0.103488 | AM33: 0.00098 | AN33: 0.5544 | AO33: 0.49203 | AP33: 0.48906 | AQ33: 0.55538 | AR33: 0.8439826781 | AS33: 0.8441177532 | AT33: 0.8441177532 | AU33: 0.2376 | AV33: 0.219650643 | AW33: 3.454745035 | AX33: 0.8558143376 | AZ33: 21.9650643 | BA33: 0.1001571081 | BB33: 0.1884505049 | BC33: 0.1502063059 | BD33: 0.03720931903 | BE33: 0.7439606452
A34: IQ | B34: Input Value | C34: Units | D34: Description | G34: 25 | H34: 28 | I34: 1 | J34: 0.075 | K34: 0.075 | L34: 0.009821428571 | M34: 0.120060492 | N34: 0.1121297916 | O34: 0.1310648958 | P34: 0.01893510421 | Q34: 0 | R34: 0.08168694824 | S34: 0.0001668189378 | T34: 0.1 | U34: 0.1001682637 | V34: 0.03236908267 | W34: 1.047757513e-06 | X34: 1.047757513e-06 | Y34: 0.02655089342 | Z34: 1.409899883e-06 | AA34: 1.409899883e-06 | AB34: 0.02830432034 | AC34: 0.0004486353479 | AD34: 0.0004278407666 | AE34: 0.08107176 | AF34: 0 | AG34: 0.08195161862 | AH34: 0.07662651606 | AI34: 0.00164405443 | AJ34: 0.001586079 | AK34: 0.003230622071 | AL34: 0.1078 | AM34: 0.00098 | AN34: 0.5544 | AO34: 0.49203 | AP34: 0.48906 | AQ34: 0.55538 | AR34: 0.8485251885 | AS34: 0.8486707405 | AT34: 0.8486707405 | AU34: 0.2475 | AV34: 0.2257859938 | AW34: 3.521291228 | AX34: 0.8925063076 | AZ34: 22.57859938 | BA34: 0.1001682637 | BB34: 0.1929822407 | BC34: 0.1530996186 | BD34: 0.03880462207 | BE34: 0.7485024768
A35: IQ | B35: =Iq*1000 -> 0.035 | C35: mA | D35: Quiescent Current Of Controller (Not Switching!) | G35: 26 | H35: 28 | I35: 1 | J35: 0.078 | K35: 0.078 | L35: 0.01021428571 | M35: 0.1201485597 | N35: 0.1122040548 | O35: 0.1341020274 | P35: 0.02189797262 | Q35: 0 | R35: 0.084457953 | S35: 0.0001783286456 | T35: 0.1 | U35: 0.1001798732 | V35: 0.03239052061 | W35: 1.049145825e-06 | X35: 1.049145825e-06 | Y35: 0.02746025149 | Z35: 1.508130824e-06 | AA35: 1.508130824e-06 | AB35: 0.02927519764 | AC35: 0.0004799408303 | AD35: 0.0004449543972 | AE35: 0.08107176 | AF35: 0 | AG35: 0.08200027591 | AH35: 0.07922189488 | AI35: 0.001757310416 | AJ35: 0.00164952216 | AK35: 0.003407383456 | AL35: 0.112112 | AM35: 0.00098 | AN35: 0.5544 | AO35: 0.49203 | AP35: 0.48906 | AQ35: 0.55538 | AR35: 0.8530738164 | AS35: 0.8532303593 | AT35: 0.8532303593 | AU35: 0.2574 | AV35: 0.2317602773 | AW35: 3.587866506 | AX35: 0.9292998995 | AZ35: 23.17602773 | BA35: 0.1001798732 | BB35: 0.1975196594 | BC35: 0.1559941959 | BD35: 0.04040434346 | BE35: 0.753050486
A36: High-side FET | B36: Input Value | C36: Units | D36: Description | G36: 27 | H36: 28 | I36: 1 | J36: 0.081 | K36: 0.081 | L36: 0.01060714286 | M36: 0.1202366223 | N36: 0.1122783015 | O36: 0.1371391507 | P36: 0.02486084926 | Q36: 0 | R36: 0.08724411011 | S36: 0.0001902883687 | T36: 0.1 | U36: 0.1001919368 | V36: 0.03241195379 | W36: 1.050534749e-06 | X36: 1.050534749e-06 | Y36: 0.02837510261 | Z36: 1.610292896e-06 | AA36: 1.610292896e-06 | AB36: 0.03025202851 | AC36: 0.0005125037282 | AD36: 0.0004620680279 | AE36: 0.08107176 | AF36: 0 | AG36: 0.08205020045 | AH36: 0.08183122582 | AI36: 0.001874977866 | AJ36: 0.00171296532 | AK36: 0.003588562205 | AL36: 0.116424 | AM36: 0.00098 | AN36: 0.5544 | AO36: 0.49203 | AP36: 0.48906 | AQ36: 0.55538 | AR36: 0.8576285633 | AS36: 0.8577966183 | AT36: 0.8577966183 | AU36: 0.2673 | AV36: 0.237579596 | AW36: 3.65447093 | AX36: 0.9661950907 | AZ36: 23.7579596 | BA36: 0.1001919368 | BB36: 0.2020627627 | BC36: 0.1588900405 | BD36: 0.04200848221 | BE36: 0.7576046815
A37: RdsonTop | B37: =Rdson1*1000 -> 560 | C37: mW | D37: Drain-Source Resistance of Top FET | G37: 28 | H37: 28 | I37: 1 | J37: 0.084 | K37: 0.084 | L37: 0.011 | M37: 0.1203246799 | N37: 0.1123525317 | O37: 0.1401762659 | P37: 0.02782373413 | Q37: 0 | R37: 0.09004401303 | S37: 0.0002026981071 | T37: 0.1 | U37: 0.1002044542 | V37: 0.03243338222 | W37: 1.051924282e-06 | X37: 1.051924282e-06 | Y37: 0.02929499333 | Z37: 1.716393268e-06 | AA37: 1.716393268e-06 | AB37: 0.03123433037 | AC37: 0.0005463267004 | AD37: 0.0004791816585 | AE37: 0.08107176 | AF37: 0 | AG37: 0.08210139494 | AH37: 0.08445318756 | AI37: 0.001997055449 | AJ37: 0.00177640848 | AK37: 0.003774157351 | AL37: 0.120736 | AM37: 0.00098 | AN37: 0.5544 | AO37: 0.49203 | AP37: 0.48906 | AQ37: 0.55538 | AR37: 0.8621894304 | AS37: 0.8623695264 | AT37: 0.8623695264 | AU37: 0.2772 | AV37: 0.2432497479 | AW37: 3.721104564 | AX37: 1.003191859 | AZ37: 24.32497479 | BA37: 0.1002044542 | BB37: 0.2066115523 | BC37: 0.1617871549 | BD37: 0.04361703735 | BE37: 0.7621650722
A38: RdsonTopTc | B38: =RdsonTopTc*1000000 -> 4000 | C38: ppm | D38: Drain to Source Resistance Temp Co | G38: 29 | H38: 28 | I38: 1 | J38: 0.087 | K38: 0.087 | L38: 0.01139285714 | M38: 0.1204127323 | N38: 0.1124267455 | O38: 0.1432133728 | P38: 0.03078662723 | Q38: 0 | R38: 0.09285641834 | S38: 0.0002155578607 | T38: 0.1 | U38: 0.1002174256 | V38: 0.0324548059 | W38: 1.053314426e-06 | X38: 1.053314426e-06 | Y38: 0.03021952271 | Z38: 1.826439105e-06 | AA38: 1.826439105e-06 | AB38: 0.03222167654 | AC38: 0.0005814124058 | AD38: 0.0004962952892 | AE38: 0.08107176 | AF38: 0 | AG38: 0.0821538621 | AH38: 0.08708661199 | AI38: 0.002123541836 | AJ38: 0.00183985164 | AK38: 0.003964167939 | AL38: 0.125048 | AM38: 0.00098 | AN38: 0.5544 | AO38: 0.49203 | AP38: 0.48906 | AQ38: 0.55538 | AR38: 0.866756419 | AS38: 0.8669490924 | AT38: 0.8669490924 | AU38: 0.2871 | AV38: 0.2487762452 | AW38: 3.787767468 | AX38: 1.040290183 | AZ38: 24.87762452 | BA38: 0.1002174256 | BB38: 0.21116603 | BC38: 0.1646855421 | BD38: 0.04523000794 | BE38: 0.7667316668
A39: QgTop | B39: =Qg_Q1*1000000000 -> 3 | C39: nC | D39: Gate Charge Of Top FET | G39: 30 | H39: 28 | I39: 1 | J39: 0.09 | K39: 0.09 | L39: 0.01178571429 | M39: 0.1205007797 | N39: 0.1125009429 | O39: 0.1462504714 | P39: 0.03374952856 | Q39: 0 | R39: 0.09568022355 | S39: 0.0002288676295 | T39: 0.1 | U39: 0.100230851 | V39: 0.03247622483 | W39: 1.054705179e-06 | X39: 1.054705179e-06 | Y39: 0.03114833517 | Z39: 1.940437567e-06 | AA39: 1.940437567e-06 | AB39: 0.03321368862 | AC39: 0.0006177635026 | AD39: 0.0005134089199 | AE39: 0.08107176 | AF39: 0 | AG39: 0.08220760463 | AH39: 0.08973046343 | AI39: 0.002254435699 | AJ39: 0.0019032948 | AK39: 0.004158593025 | AL39: 0.12936 | AM39: 0.00098 | AN39: 0.5544 | AO39: 0.49203 | AP39: 0.48906 | AQ39: 0.55538 | AR39: 0.8713295306 | AS39: 0.8715353252 | AT39: 0.8715353252 | AU39: 0.297 | AV39: 0.2541643317 | AW39: 3.854459706 | AX39: 1.07749004 | AZ39: 25.41643317 | BA39: 0.100230851 | BB39: 0.2157261977 | BC39: 0.1675852046 | BD39: 0.04684739302 | BE39: 0.7713044742
A40: QgdTop | B40: =Qgd_Q1*1000000000 -> 0.26 | C40: nC | D40: Gate to Drain Charge | G40: 31 | H40: 28 | I40: 1 | J40: 0.093 | K40: 0.093 | L40: 0.01217857143 | M40: 0.120588822 | N40: 0.1125751238 | O40: 0.1492875619 | P40: 0.03671243812 | Q40: 0 | R40: 0.09851444839 | S40: 0.0002426274135 | T40: 0.1 | U40: 0.1002447303 | V40: 0.032497639 | W40: 1.056096541e-06 | X40: 1.056096541e-06 | Y40: 0.03208111448 | Z40: 2.058395812e-06 | AA40: 2.058395812e-06 | AB40: 0.03421003009 | AC40: 0.0006553826489 | AD40: 0.0005305225505 | AE40: 0.08107176 | AF40: 0 | AG40: 0.08226262524 | AH40: 0.092383821 | AI40: 0.002389735707 | AJ40: 0.00196673796 | AK40: 0.004357431673 | AL40: 0.133672 | AM40: 0.00098 | AN40: 0.5544 | AO40: 0.49203 | AP40: 0.48906 | AQ40: 0.55538 | AR40: 0.8759087663 | AS40: 0.8761282336 | AT40: 0.8761282336 | AU40: 0.3069 | AV40: 0.2594189989 | AW40: 3.921181341 | AX40: 1.114791408 | AZ40: 25.94189989 | BA40: 0.1002447303 | BB40: 0.2202920569 | BC40: 0.1704861452 | BD40: 0.04846919167 | BE40: 0.7758835033
A41: QgsTop | B41: =Qgs_Q1*1000000000 -> 0.0622 | C41: nC | G41: 32 | H41: =Vin -> 28 | I41: =MODE -> 1 | J41: 0.096 | K41: =Iout*G41/100/Number_of_Phases -> 0.096 | L41: =Vout*K41/(Vin*Efficiency) -> 0.01257142857 | M41: =(Vout+(Rdson2+Rs+Rdcr)*K41)/(Vin+(Rs+Rdson2-Rdson1)*K41) -> 0.1206768591 | N41: =(Vin-(Rdson1+Rdcr)*K41-Vout)*M41/(Fsw*Lf) -> 0.1126492882 | O41: 0.1523246441 | P41: 0.0396753559 | Q41: =IF(MIN(Vin, -P41/(Coss_Q1+Coss_Q2)*0.00000002)<0, 0, MIN(Vin, -P41/(Coss_Q1+Coss_Q2)*0.00000002)) -> 0 | R41: 0.1013582188 | S41: =R41^2*Rdcr -> 0.0002568372128 | T41: =Core_Loss -> 0.1 | U41: =(T41+S41*(1+Ltc*(Ta-25)))/(1-S41*Ltc*ThetaCa) -> 0.1002590636 | V41: 0.03251904843 | W41: 1.057488511e-06 | X41: 1.057488511e-06 | Y41: 0.03301757858 | Z41: 2.180320991e-06 | AA41: 2.180320991e-06 | AB41: 0.03521040082 | AC41: =Rdson1*AB41^2 -> 0.0006942725025 | AD41: =(Vin*K41/2)*Fsw*(Tr_buck+Tf_buck) -> 0.0005476361812 | AE41: =(0.5*Coss_Q1*(Vin-Q41)^2-0.5*Coss_Q2*(Vin-Q41)^2+(Qoss_Q2*(Vin-Q41)/Vin)*Vin)*Fsw -> 0.08107176 | AF41: =IF(K41>N41/2,0,ABS(K41-N41/2)*Vsd_Q1*Deadtime*Fsw) -> 0 | AG41: =(AF41+AE41+AD41+AC41*(1+RdsonTopTc*Ta-RdsonTopTc*25))/(1-AC41*RdsonTopTc*ThetaJA_Q1) -> 0.08231892665 | AH41: =SQRT((1-M41))*SQRT(K41^2+(N41^2)/12) -> 0.09504586359 | AI41: =Rdson2*AH41^2 -> 0.002529440532 | AJ41: =IF(K41<N41/2,Deadtime*Fsw*Vsd_Q2*(K41+N41/2),2*Deadtime*Fsw*Vsd_Q2*K41) -> 0.00203018112 | AK41: =(AJ41+AI41*(1+RdsonBotTc*Ta-RdsonBotTc*25))/(1-AI41*RdsonBotTc*ThetaJA_Q2) -> 0.004560682962 | AL41: =Qrr_Q2*K41/Iout*Fsw*Vin -> 0.137984 | AM41: =Iq*Vin -> 0.00098 | AN41: =IF(Ext_VCC=1, (Qg_Q1+Qg_Q2)*Fsw*Vout, (Qg_Q1+Qg_Q2)*Fsw*Vin) -> 0.5544 | AO41: =(Vin-VCC)*Fsw*(Qg_Q1+Qg_Q2) -> 0.49203 | AP41: =(Qg_Q1+Qg_Q2)*Fsw*(Vin-Vout) -> 0.48906 | AQ41: =SUM(AM41:AN41) -> 0.55538 | AR41: 0.8804941275 | AS41: =U41 + ((AF41+AE41+AD41+AC41*(1+RdsonTC*(Ta-25))) + (AJ41+AI41*(1+RdsonTC*(Ta-25))) + AQ41 + AL41) / (1-AC41*RdsonTC*ThetaJA_Q1 -AI41*RdsonTC*ThetaJA_Q2) -> 0.8807278266 | AT41: 0.8807278266 | AU41: =Vout*K41 -> 0.3168 | AV41: 0.2645450009 | AW41: =ThetaJA_Q1*BC41 -> 3.987932433 | AX41: =ThetaJA_Q2*BD41 -> 1.152194268 | AZ41: 26.45450009 | BA41: =U41 -> 0.1002590636 | BB41: =AG41+AK41+AL41 -> 0.2248636096 | BC41: =AG41+AL41*0.66 -> 0.1733883666 | BD41: =AK41+AL41*0.33 -> 0.05009540296 | BE41: 0.780468763
A42: RGateTop | B42: =Rgate1 -> 0 | C42: W | D42: Gate Resistance | G42: 33 | H42: 28 | I42: 1 | J42: =Iout*G42/100 -> 0.099 | K42: 0.099 | L42: 0.01296428571 | M42: 0.1207648912 | N42: 0.1127234362 | O42: 0.1553617181 | P42: 0.04263828192 | Q42: 0 | R42: 0.1042107532 | S42: 0.0002714970272 | T42: 0.1 | U42: 0.1002738508 | V42: 0.03254045311 | W42: 1.058881088e-06 | X42: 1.058881088e-06 | Y42: 0.03395747527 | Z42: 2.306220253e-06 | AA42: 2.306220253e-06 | AB42: 0.03621453242 | AC42: 0.0007344357207 | AD42: 0.0005647498119 | AE42: 0.08107176 | AF42: 0 | AG42: 0.08237651156 | AH42: 0.09771585711 | AI42: 0.002673548844 | AJ42: 0.00209362428 | AK42: 0.004768345978 | AL42: 0.142296 | AM42: 0.00098 | AN42: 0.5544 | AO42: 0.49203 | AP42: 0.48906 | AQ42: 0.55538 | AR42: 0.8850856157 | AS42: 0.885334113 | AT42: 0.885334113 | AU42: 0.3267 | AV42: 0.2695468688 | AW42: 4.054713046 | AX42: 1.189698597 | AZ42: 26.95468688 | BA42: 0.1002738508 | BB42: 0.2294408575 | BC42: 0.1762918716 | BD42: 0.05172602598 | BE42: 0.7850602622
A43: GfsTop | B43: =Gfs_Q1 -> 100 | C43: S | D43: Transconductance of Top FET | G43: 34 | H43: 28 | I43: 1 | J43: 0.102 | K43: 0.102 | L43: 0.01335714286 | M43: 0.1208529182 | N43: 0.1127975677 | O43: 0.1583987838 | P43: 0.04560121616 | Q43: 0 | R43: 0.1070713513 | S43: 0.0002866068568 | T43: 0.1 | U43: 0.100289092 | V43: 0.03256185303 | W43: 1.060274273e-06 | X43: 1.060274273e-06 | Y43: 0.03490057837 | Z43: 2.436100741e-06 | AA43: 2.436100741e-06 | AB43: 0.03722218426 | AC43: 0.0007758749608 | AD43: 0.0005818634425 | AE43: 0.08107176 | AF43: 0 | AG43: 0.08243538268 | AH43: 0.1003931435 | AI43: 0.002822059316 | AJ43: 0.00215706744 | AK43: 0.00498041982 | AL43: 0.146608 | AM43: 0.00098 | AN43: 0.5544 | AO43: 0.49203 | AP43: 0.48906 | AQ43: 0.55538 | AR43: 0.889683232 | AS43: 0.8899471018 | AT43: 0.8899471018 | AU43: 0.3366 | AV43: 0.2744289229 | AW43: 4.121523242 | AX43: 1.227304376 | AZ43: 27.44289229 | BA43: 0.100289092 | BB43: 0.2340238025 | BC43: 0.1791966627 | BD43: 0.05336105982 | BE43: 0.7896580098
A44: VthTop | B44: =Vth_Q1 -> 1.5 | C44: V | D44: Threshold Voltage of Top FET | G44: 35 | H44: 28 | I44: 1 | J44: 0.105 | K44: 0.105 | L44: 0.01375 | M44: 0.1209409402 | N44: 0.1128716827 | O44: 0.1614358414 | P44: 0.04856415863 | Q44: 0 | R44: 0.1099393836 | S44: 0.0003021667016 | T44: 0.1 | U44: 0.1003047872 | V44: 0.03258324821 | W44: 1.061668064e-06 | X44: 1.061668064e-06 | Y44: 0.03584668462 | Z44: 2.569969596e-06 | AA44: 2.569969596e-06 | AB44: 0.03823314006 | AC44: 0.0008185928794 | AD44: 0.0005989770732 | AE44: 0.08107176 | AF44: 0 | AG44: 0.08249554274 | AH44: 0.1030771316 | AI44: 0.002974970618 | AJ44: 0.0022205106 | AK44: 0.005196903597 | AL44: 0.15092 | AM44: 0.00098 | AN44: 0.5544 | AO44: 0.49203 | AP44: 0.48906 | AQ44: 0.55538 | AR44: 0.8942869779 | AS44: 0.894566802 | AT44: 0.894566802 | AU44: 0.3465 | AV44: 0.2791952854 | AW44: 4.188363083 | AX44: 1.265011583 | AZ44: 27.91952854 | BA44: 0.1003047872 | BB44: 0.2386124463 | BC44: 0.1821027427 | BD44: 0.0550005036 | BE44: 0.7942620148
A45: VspTop | B45: =Vsp_Q1 -> 1.503 | C45: V | G45: 36 | H45: 28 | I45: 1 | J45: 0.108 | K45: 0.108 | L45: 0.01414285714 | M45: 0.121028957 | N45: 0.1129457814 | O45: 0.1644728907 | P45: 0.05152710932 | Q45: 0 | R45: 0.1128142831 | S45: 0.0003181765615 | T45: 0.1 | U45: 0.1003209363 | V45: 0.03260463864 | W45: 1.063062461e-06 | X45: 1.063062461e-06 | Y45: 0.03679561084 | Z45: 2.707833954e-06 | AA45: 2.707833954e-06 | AB45: 0.03924720493 | AC45: 0.0008625921333 | AD45: 0.0006160907038 | AE45: 0.08107176 | AF45: 0 | AG45: 0.08255699443 | AH45: 0.1057672887 | AI45: 0.003132281422 | AJ45: 0.00228395376 | AK45: 0.005417796428 | AL45: 0.155232 | AM45: 0.00098 | AN45: 0.5544 | AO45: 0.49203 | AP45: 0.48906 | AQ45: 0.55538 | AR45: 0.8988968546 | AS45: 0.8991932226 | AT45: 0.8991932226 | AU45: 0.3564 | AV45: 0.2838498915 | AW45: 4.255232632 | AX45: 1.302820198 | AZ45: 28.38498915 | BA45: 0.1003209363 | BB45: 0.2432067909 | BC45: 0.1850101144 | BD45: 0.05664435643 | BE45: 0.7988722862
A46: VsdTop | B46: =Vsd_Q1 -> 0.866 | C46: V | G46: 37 | H46: 28 | I46: 1 | J46: 0.111 | K46: 0.111 | L46: 0.01453571429 | M46: 0.1211169687 | N46: 0.1130198635 | O46: 0.1675099318 | P46: 0.05449006823 | Q46: 0 | R46: 0.1156955378 | S46: 0.0003346364366 | T46: 0.1 | U46: 0.1003375395 | V46: 0.03262602432 | W46: 1.064457463e-06 | X46: 1.064457463e-06 | Y46: 0.03774719159 | Z46: 2.849700945e-06 | AA46: 2.849700945e-06 | AB46: 0.04026420287 | AC46: 0.0009078753785 | AD46: 0.0006332043345 | AE46: 0.08107176 | AF46: 0 | AG46: 0.08261974049 | AH46: 0.108463134 | AI46: 0.0032939904 | AJ46: 0.00234739692 | AK46: 0.005643097445 | AL46: 0.159544 | AM46: 0.00098 | AN46: 0.5544 | AO46: 0.49203 | AP46: 0.48906 | AQ46: 0.55538 | AR46: 0.9035128635 | AS46: 0.9038263725 | AT46: 0.9038263725 | AU46: 0.3663 | AV46: 0.2883964997 | AW46: 4.322131951 | AX46: 1.340730201 | AZ46: 28.83964997 | BA46: 0.1003375395 | BB46: 0.2478068379 | BC46: 0.1879187805 | BD46: 0.05829261744 | BE46: 0.803488833
A47: θJATop | B47: =ThetaJA_Q1 -> 23 | C47: °C/W | D47: Junction to Ambient Resistance | G47: 38 | H47: 28 | I47: 1 | J47: 0.114 | K47: 0.114 | L47: 0.01492857143 | M47: 0.1212049754 | N47: 0.1130939293 | O47: 0.1705469646 | P47: 0.05745303537 | Q47: 0 | R47: 0.1185826845 | S47: 0.0003515463267 | T47: 0.1 | U47: 0.1003545966 | V47: 0.03264740525 | W47: 1.065853069e-06 | X47: 1.065853069e-06 | Y47: 0.0387012771 | Z47: 2.995577698e-06 | AA47: 2.995577698e-06 | AB47: 0.04128397456 | AC47: 0.0009544452709 | AD47: 0.0006503179652 | AE47: 0.08107176 | AF47: 0 | AG47: 0.08268378361 | AH47: 0.1111642322 | AI47: 0.003460096224 | AJ47: 0.00241084008 | AK47: 0.005872805788 | AL47: 0.163856 | AM47: 0.00098 | AN47: 0.5544 | AO47: 0.49203 | AP47: 0.48906 | AQ47: 0.55538 | AR47: 0.9081350059 | AS47: 0.9084662608 | AT47: 0.9084662608 | AU47: 0.3762 | AV47: 0.2928387017 | AW47: 4.389061103 | AX47: 1.378741573 | AZ47: 29.28387017 | BA47: 0.1003545966 | BB47: 0.2524125894 | BC47: 0.1908287436 | BD47: 0.05994528579 | BE47: 0.8081116642
A48: Low-side FET | B48: Input Value | C48: Units | D48: Description | G48: 39 | H48: 28 | I48: 1 | J48: 0.117 | K48: 0.117 | L48: 0.01532142857 | M48: 0.121292977 | N48: 0.1131679785 | O48: 0.1735839893 | P48: 0.06041601074 | Q48: 0 | R48: 0.1214753032 | S48: 0.000368906232 | T48: 0.1 | U48: 0.1003721077 | V48: 0.03266878143 | W48: 1.06724928e-06 | X48: 1.06724928e-06 | Y48: 0.03965773149 | Z48: 3.145471335e-06 | AA48: 3.145471335e-06 | AB48: 0.04230637545 | AC48: 0.001002304466 | AD48: 0.0006674315958 | AE48: 0.08107176 | AF48: 0 | AG48: 0.08274912653 | AH48: 0.1138701887 | AI48: 0.003630597565 | AJ48: 0.00247428324 | AK48: 0.006106920608 | AL48: 0.168168 | AM48: 0.00098 | AN48: 0.5544 | AO48: 0.49203 | AP48: 0.48906 | AQ48: 0.55538 | AR48: 0.9127632831 | AS48: 0.9131128966 | AT48: 0.9131128966 | AU48: 0.3861 | AV48: 0.2971799318 | AW48: 4.45602015 | AX48: 1.416854294 | AZ48: 29.71799318 | BA48: 0.1003721077 | BB48: 0.2570240471 | BC48: 0.1937400065 | BD48: 0.06160236061 | BE48: 0.8127407889
A49: RdsonBot | B49: =Rdson2*1000 -> 280 | C49: mW | D49: Drain-Source Resistance of Low-side FET | G49: 40 | H49: 28 | I49: 1 | J49: 0.12 | K49: 0.12 | L49: 0.01571428571 | M49: 0.1213809734 | N49: 0.1132420114 | O49: 0.1766210057 | P49: 0.06337899432 | Q49: 0 | R49: 0.1243730119 | S49: 0.0003867161524 | T49: 0.1 | U49: 0.1003900727 | V49: 0.03269015287 | W49: 1.068646095e-06 | X49: 1.068646095e-06 | Y49: 0.04061643125 | Z49: 3.299388975e-06 | AA49: 3.299388975e-06 | AB49: 0.04333127417 | AC49: 0.00105145562 | AD49: 0.0006845452265 | AE49: 0.08107176 | AF49: 0 | AG49: 0.08281577194 | AH49: 0.1165806449 | AI49: 0.003805493097 | AJ49: 0.0025377264 | AK49: 0.00634544107 | AL49: 0.17248 | AM49: 0.00098 | AN49: 0.5544 | AO49: 0.49203 | AP49: 0.48906 | AQ49: 0.55538 | AR49: 0.9173976965 | AS49: 0.9177662889 | AT49: 0.9177662889 | AU49: 0.396 | AV49: 0.3014234749 | AW49: 4.523009155 | AX49: 1.455068345 | AZ49: 30.14234749 | BA49: 0.1003900727 | BB49: 0.261641213 | BC49: 0.1966525719 | BD49: 0.06326384107 | BE49: 0.8173762161
A50: RdsonBotTc | B50: =RdsonBotTc*1000000 -> 4000 | C50: ppm | D50: Drain To Source Resitance Temp Co | G50: 41 | H50: 28 | I50: 1 | J50: 0.123 | K50: 0.123 | L50: 0.01610714286 | M50: 0.1214689648 | N50: 0.1133160277 | O50: 0.1796580139 | P50: 0.06634198613 | Q50: 0 | R50: 0.1272754631 | S50: 0.0004049760878 | T50: 0.1 | U50: 0.1004084918 | V50: 0.03271151956 | W50: 1.070043512e-06 | X50: 1.070043512e-06 | Y50: 0.04157726382 | Z50: 3.457337734e-06 | AA50: 3.457337734e-06 | AB50: 0.044358551 | AC50: 0.001101901386 | AD50: 0.0007016588571 | AE50: 0.08107176 | AF50: 0 | AG50: 0.08288372257 | AH50: 0.1192952743 | AI50: 0.00398478149 | AJ50: 0.00260116956 | AK50: 0.006588366345 | AL50: 0.176792 | AM50: 0.00098 | AN50: 0.5544 | AO50: 0.49203 | AP50: 0.48906 | AQ50: 0.55538 | AR50: 0.9220382474 | AS50: 0.9224264468 | AT50: 0.9224264468 | AU50: 0.4059 | AV50: 0.305572475 | AW50: 4.590028179 | AX50: 1.493383706 | AZ50: 30.5572475 | BA50: 0.1004084918 | BB50: 0.2662640889 | BC50: 0.1995664426 | BD50: 0.06492972634 | BE50: 0.822017955
A51: QgBot | B51: =Qg_Q2*1000000000 -> 6 | C51: nC | D51: Gate Charge Of Top FET | G51: 42 | H51: 28 | I51: 1 | J51: 0.126 | K51: 0.126 | L51: 0.0165 | M51: 0.1215569512 | N51: 0.1133900277 | O51: 0.1826950138 | P51: 0.06930498616 | Q51: 0 | R51: 0.1301823396 | S51: 0.0004236860383 | T51: 0.1 | U51: 0.1004273649 | V51: 0.0327328815 | W51: 1.071441531e-06 | X51: 1.071441531e-06 | Y51: 0.04254012648 | Z51: 3.619324722e-06 | AA51: 3.619324722e-06 | AB51: 0.04538809671 | AC51: 0.001153644421 | AD51: 0.0007187724878 | AE51: 0.08107176 | AF51: 0 | AG51: 0.08295298115 | AH51: 0.1220137788 | AI51: 0.004168461419 | AJ51: 0.00266461272 | AK51: 0.006835695617 | AL51: 0.181104 | AM51: 0.00098 | AN51: 0.5544 | AO51: 0.49203 | AP51: 0.48906 | AQ51: 0.55538 | AR51: 0.9266849371 | AS51: 0.9270933795 | AT51: 0.9270933795 | AU51: 0.4158 | AV51: 0.3096299426 | AW51: 4.657077286 | AX51: 1.531800359 | AZ51: 30.96299426 | BA51: 0.1004273649 | BB51: 0.2708926768 | BC51: 0.2024816211 | BD51: 0.06660001562 | BE51: 0.8266660146
A52: RGateBot | B52: =Rgate2 -> 0 | C52: W | D52: Gate Resistance | G52: 43 | H52: 28 | I52: 1 | J52: 0.129 | K52: 0.129 | L52: 0.01689285714 | M52: 0.1216449324 | N52: 0.1134640112 | O52: 0.1857320056 | P52: 0.07226799441 | Q52: 0 | R52: 0.1330933513 | S52: 0.0004428460038 | T52: 0.1 | U52: 0.100446692 | V52: 0.0327542387 | W52: 1.072840153e-06 | X52: 1.072840153e-06 | Y52: 0.04350492527 | Z52: 3.785357046e-06 | AA52: 3.785357046e-06 | AB52: 0.04641981137 | AC52: 0.001206687377 | AD52: 0.0007358861185 | AE52: 0.08107176 | AF52: 0 | AG52: 0.08302355037 | AH52: 0.124735886 | AI52: 0.004356531554 | AJ52: 0.00272805588 | AK52: 0.007087428082 | AL52: 0.185416 | AM52: 0.00098 | AN52: 0.5544 | AO52: 0.49203 | AP52: 0.48906 | AQ52: 0.55538 | AR52: 0.9313377669 | AS52: 0.9317670961 | AT52: 0.9317670961 | AU52: 0.4257 | AV52: 0.3135987614 | AW52: 4.724156539 | AX52: 1.570318286 | AZ52: 31.35987614 | BA52: 0.100446692 | BB52: 0.2755269785 | BC52: 0.2053981104 | BD52: 0.06827470808 | BE52: 0.8313204041
A53: VsdBot | B53: =Vsd_Q2 -> 0.866 | C53: V | D53: Diode Forward Voltage of Bottom FET Body Diode | G53: 44 | H53: 28 | I53: 1 | J53: 0.132 | K53: 0.132 | L53: 0.01728571429 | M53: 0.1217329085 | N53: 0.1135379782 | O53: 0.1887689891 | P53: 0.07523101088 | Q53: 0 | R53: 0.1360082327 | S53: 0.0004624559844 | T53: 0.1 | U53: 0.100466473 | V53: 0.03277559115 | W53: 1.074239375e-06 | X53: 1.074239375e-06 | Y53: 0.04447157411 | Z53: 3.955441807e-06 | AA53: 3.955441807e-06 | AB53: 0.04745360347 | AC53: 0.00126103291 | AD53: 0.0007529997491 | AE53: 0.08107176 | AF53: 0 | AG53: 0.08309543298 | AH53: 0.1274613467 | AI53: 0.00454899057 | AJ53: 0.00279149904 | AK53: 0.007343562944 | AL53: 0.189728 | AM53: 0.00098 | AN53: 0.5544 | AO53: 0.49203 | AP53: 0.48906 | AQ53: 0.55538 | AR53: 0.9359967383 | AS53: 0.9364476057 | AT53: 0.9364476057 | AU53: 0.4356 | AV53: 0.3174816954 | AW53: 4.791265998 | AX53: 1.608937468 | AZ53: 31.74816954 | BA53: 0.100466473 | BB53: 0.2801669959 | BC53: 0.208315913 | BD53: 0.06995380294 | BE53: 0.8359811327
A54: QrrBot | B54: =Qrr_Q2*1000000000 -> 7 | C54: nC | D54: Reverse Recovery Charge of Body Diode | G54: 45 | H54: 28 | I54: 1 | J54: 0.135 | K54: 0.135 | L54: 0.01767857143 | M54: 0.1218208796 | N54: 0.1136119289 | O54: 0.1918059644 | P54: 0.07819403556 | Q54: 0 | R54: 0.1389267404 | S54: 0.00048251598 | T54: 0.1 | U54: 0.1004867081 | V54: 0.03279693886 | W54: 1.075639199e-06 | X54: 1.075639199e-06 | Y54: 0.04543999398 | Z54: 4.129586105e-06 | AA54: 4.129586105e-06 | AB54: 0.04848938898 | AC54: 0.001316683673 | AD54: 0.0007701133798 | AE54: 0.08107176 | AF54: 0 | AG54: 0.08316863168 | AH54: 0.1301899318 | AI54: 0.004745837139 | AJ54: 0.0028549422 | AK54: 0.007604099418 | AL54: 0.19404 | AM54: 0.00098 | AN54: 0.5544 | AO54: 0.49203 | AP54: 0.48906 | AQ54: 0.55538 | AR54: 0.9406618524 | AS54: 0.9411349177 | AT54: 0.9411349177 | AU54: 0.4455 | AV54: 0.3212813945 | AW54: 4.858405729 | AX54: 1.647657887 | AZ54: 32.12813945 | BA54: 0.1004867081 | BB54: 0.2848127311 | BC54: 0.2112350317 | BD54: 0.07163729942 | BE54: 0.8406482095
A55: TrrBot | B55: =Trr_Q2*1000000000 -> 40 | C55: ns | D55: Reverse Recovery Time of Body Diode | G55: 46 | H55: 28 | I55: 1 | J55: 0.138 | K55: 0.138 | L55: 0.01807142857 | M55: 0.1219088456 | N55: 0.1136858631 | O55: 0.1948429315 | P55: 0.08115706847 | Q55: 0 | R55: 0.1418486504 | S55: 0.0005030259905 | T55: 0.1 | U55: 0.1005073972 | V55: 0.03281828182 | W55: 1.077039622e-06 | X55: 1.077039622e-06 | Y55: 0.04641011223 | Z55: 4.307797034e-06 | AA55: 4.307797034e-06 | AB55: 0.04952709069 | AC55: 0.001373642319 | AD55: 0.0007872270105 | AE55: 0.08107176 | AF55: 0 | AG55: 0.08324314919 | AH55: 0.1329214313 | AI55: 0.004947069935 | AJ55: 0.00291838536 | AK55: 0.007869036733 | AL55: 0.198352 | AM55: 0.00098 | AN55: 0.5544 | AO55: 0.49203 | AP55: 0.48906 | AQ55: 0.55538 | AR55: 0.9453331106 | AS55: 0.9458290411 | AT55: 0.9458290411 | AU55: 0.4554 | AV55: 0.3250004008 | AW55: 4.925575791 | AX55: 1.686479525 | AZ55: 32.50004008 | BA55: 0.1005073972 | BB55: 0.2894641859 | BC55: 0.2141554692 | BD55: 0.07332519673 | BE55: 0.8453216438
A56: θJABot | B56: =ThetaJA_Q2 -> 23 | C56: °C/W | D56: Junction to Ambient Resistance | G56: 47 | H56: 28 | I56: 1 | J56: 0.141 | K56: 0.141 | L56: 0.01846428571 | M56: 0.1219968065 | N56: 0.1137597808 | O56: 0.1978798904 | P56: 0.08412010959 | Q56: 0 | R56: 0.1447737568 | S56: 0.0005239860161 | T56: 0.1 | U56: 0.1005285403 | V56: 0.03283962004 | W56: 1.078440644e-06 | X56: 1.078440644e-06 | Y56: 0.04738186195 | Z56: 4.490081683e-06 | AA56: 4.490081683e-06 | AB56: 0.05056663746 | AC56: 0.001431911502 | AD56: 0.0008043406411 | AE56: 0.08107176 | AF56: 0 | AG56: 0.08331898824 | AH56: 0.1356556516 | AI56: 0.00515268763 | AJ56: 0.00298182852 | AK56: 0.008138374124 | AL56: 0.202664 | AM56: 0.00098 | AN56: 0.5544 | AO56: 0.49203 | AP56: 0.48906 | AQ56: 0.55538 | AR56: 0.9500105143 | AS56: 0.9505299852 | AT56: 0.9505299852 | AU56: 0.4653 | AV56: 0.3286411539 | AW56: 4.99277625 | AX56: 1.725402365 | AZ56: 32.86411539 | BA56: 0.1005285403 | BB56: 0.2941213624 | BC56: 0.2170772282 | BD56: 0.07501749412 | BE56: 0.8500014448
G57: 48 | H57: 28 | I57: 1 | J57: 0.144 | K57: 0.144 | L57: 0.01885714286 | M57: 0.1220847623 | N57: 0.1138336821 | O57: 0.2009168411 | P57: 0.08708315893 | Q57: 0 | R57: 0.1477018695 | S57: 0.0005453960566 | T57: 0.1 | U57: 0.1005501375 | V57: 0.03286095351 | W57: 1.079842266e-06 | X57: 1.079842266e-06 | Y57: 0.04835518141 | Z57: 4.676447138e-06 | AA57: 4.676447138e-06 | AB57: 0.0516079637 | AC57: 0.001491493874 | AD57: 0.0008214542718 | AE57: 0.08107176 | AF57: 0 | AG57: 0.08339615155 | AH57: 0.1383924143 | AI57: 0.005362688898 | AJ57: 0.00304527168 | AK57: 0.008412110839 | AL57: 0.206976 | AM57: 0.00098 | AN57: 0.5544 | AO57: 0.49203 | AP57: 0.48906 | AQ57: 0.55538 | AR57: 0.9546940648 | AS57: 0.9552377593 | AT57: 0.9552377593 | AU57: 0.4752 | AV57: 0.3322059956 | AW57: 5.060007166 | AX57: 1.764426389 | AZ57: 33.22059956 | BA57: 0.1005501375 | BB57: 0.2987842624 | BC57: 0.2200003116 | BD57: 0.07671419084 | BE57: 0.8546876218
G58: 49 | H58: 28 | I58: 1 | J58: 0.147 | K58: 0.147 | L58: 0.01925 | M58: 0.122172713 | N58: 0.113907567 | O58: 0.2039537835 | P58: 0.09004621649 | Q58: 0 | R58: 0.1506328134 | S58: 0.0005672561121 | T58: 0.1 | U58: 0.1005721887 | V58: 0.03288228224 | W58: 1.081244486e-06 | X58: 1.081244486e-06 | Y58: 0.04933001359 | Z58: 4.866900481e-06 | AA58: 4.866900481e-06 | AB58: 0.05265100881 | AC58: 0.001552392088 | AD58: 0.0008385679024 | AE58: 0.08107176 | AF58: 0 | AG58: 0.08347464184 | AH58: 0.1411315548 | AI58: 0.005577072412 | AJ58: 0.00310871484 | AK58: 0.008690246136 | AL58: 0.211288 | AM58: 0.00098 | AN58: 0.5544 | AO58: 0.49203 | AP58: 0.48906 | AQ58: 0.55538 | AR58: 0.9593837634 | AS58: 0.9599523726 | AT58: 0.9599523726 | AU58: 0.4851 | AV58: 0.3356971755 | AW58: 5.127268602 | AX58: 1.803551581 | AZ58: 33.56971755 | BA58: 0.1005721887 | BB58: 0.303452888 | BC58: 0.2229247218 | BD58: 0.07841528614 | BE58: 0.8593801839
G59: 50 | H59: 28 | I59: 1 | J59: 0.15 | K59: 0.15 | L59: 0.01964285714 | M59: 0.1222606587 | N59: 0.1139814355 | O59: 0.2069907177 | P59: 0.09300928226 | Q59: 0 | R59: 0.1535664264 | S59: 0.0005895661826 | T59: 0.1 | U59: 0.1005946939 | V59: 0.03290360623 | W59: 1.082647303e-06 | X59: 1.082647303e-06 | Y59: 0.05030630572 | Z59: 5.06144879e-06 | AA59: 5.06144879e-06 | AB59: 0.05369571671 | AC59: 0.001614608796 | AD59: 0.0008556815331 | AE59: 0.08107176 | AF59: 0 | AG59: 0.08355446184 | AH59: 0.1438729207 | AI59: 0.005795836847 | AJ59: 0.003172158 | AK59: 0.008972779285 | AL59: 0.2156 | AM59: 0.00098 | AN59: 0.5544 | AO59: 0.49203 | AP59: 0.48906 | AQ59: 0.55538 | AR59: 0.9640796114 | AS59: 0.9646738345 | AT59: 0.9646738345 | AU59: 0.495 | AV59: 0.3391168549 | AW59: 5.194560622 | AX59: 1.842777924 | AZ59: 33.91168549 | BA59: 0.1005946939 | BB59: 0.3081272411 | BC59: 0.2258504618 | BD59: 0.08012077929 | BE59: 0.8640791406
G60: 51 | H60: 28 | I60: 1 | J60: 0.153 | K60: 0.153 | L60: 0.02003571429 | M60: 0.1223485993 | N60: 0.1140552875 | O60: 0.2100276438 | P60: 0.09597235624 | Q60: 0 | R60: 0.1565025582 | S60: 0.0006123262679 | T60: 0.1 | U60: 0.1006176531 | V60: 0.03292492547 | W60: 1.084050718e-06 | X60: 1.084050718e-06 | Y60: 0.0512840089 | Z60: 5.260099137e-06 | AA60: 5.260099137e-06 | AB60: 0.05474203547 | AC60: 0.00167814665 | AD60: 0.0008727951638 | AE60: 0.08107176 | AF60: 0 | AG60: 0.08363561427 | AH60: 0.1466163711 | AI60: 0.006018980876 | AJ60: 0.00323560116 | AK60: 0.009259709565 | AL60: 0.219912 | AM60: 0.00098 | AN60: 0.5544 | AO60: 0.49203 | AP60: 0.48906 | AQ60: 0.55538 | AR60: 0.9687816101 | AS60: 0.9694021543 | AT60: 0.9694021543 | AU60: 0.5049 | AV60: 0.3424671113 | AW60: 5.261883288 | AX60: 1.8821054 | AZ60: 34.24671113 | BA60: 0.1006176531 | BB60: 0.3128073238 | BC60: 0.2287775343 | BD60: 0.08183066957 | BE60: 0.8687845012
A61: Controller | B61: Input Value | C61: Units | D61: Std Units | G61: 52 | H61: 28 | I61: 1 | J61: 0.156 | K61: 0.156 | L61: 0.02042857143 | M61: 0.1224365348 | N61: 0.1141291231 | O61: 0.2130645616 | P61: 0.09893543844 | Q61: 0 | R61: 0.1594410698 | S61: 0.0006355363682 | T61: 0.1 | U61: 0.1006410664 | V61: 0.03294623998 | W61: 1.085454729e-06 | X61: 1.085454729e-06 | Y61: 0.05226307775 | Z61: 5.462858592e-06 | AA61: 5.462858592e-06 | AB61: 0.05578991688 | AC61: 0.001743008302 | AD61: 0.0008899087944 | AE61: 0.08107176 | AF61: 0 | AG61: 0.08371810186 | AH61: 0.1493617752 | AI61: 0.006246503173 | AJ61: 0.00329904432 | AK61: 0.009551036266 | AL61: 0.224224 | AM61: 0.00098 | AN61: 0.5544 | AO61: 0.49203 | AP61: 0.48906 | AQ61: 0.55538 | AR61: 0.973489761 | AS61: 0.9741373414 | AT61: 0.9741373414 | AU61: 0.5148 | AV61: 0.3457499424 | AW61: 5.329236663 | AX61: 1.921533994 | AZ61: 34.57499424 | BA61: 0.1006410664 | BB61: 0.3174931381 | BC61: 0.2317059419 | BD61: 0.08354495627 | BE61: 0.873496275
A62: θJA | B62: 23 | C62: °C/W | D62: Junction to Ambient Resistance | G62: 53 | H62: 28 | I62: 1 | J62: 0.159 | K62: 0.159 | L62: 0.02082142857 | M62: 0.1225244652 | N62: 0.1142029423 | O62: 0.2161014711 | P62: 0.1018985289 | Q62: 0 | R62: 0.1623818319 | S62: 0.0006591964834 | T62: 0.1 | U62: 0.1006649338 | V62: 0.03296754974 | W62: 1.086859336e-06 | X62: 1.086859336e-06 | Y62: 0.05324347011 | Z62: 5.669734219e-06 | AA62: 5.669734219e-06 | AB62: 0.05683931617 | AC62: 0.001809196403 | AD62: 0.0009070224251 | AE62: 0.08107176 | AF62: 0 | AG62: 0.08380192733 | AH62: 0.1521090118 | AI62: 0.006478402412 | AJ62: 0.00336248748 | AK62: 0.009846758689 | AL62: 0.228536 | AM62: 0.00098 | AN62: 0.5544 | AO62: 0.49203 | AP62: 0.48906 | AQ62: 0.55538 | AR62: 0.9782040652 | AS62: 0.9788794051 | AT62: 0.9788794051 | AU62: 0.5247 | AV62: 0.3489672698 | AW62: 5.396620809 | AX62: 1.96106369 | AZ62: 34.89672698 | BA62: 0.1006649338 | BB62: 0.322184686 | BC62: 0.2346356873 | BD62: 0.08526363869 | BE62: 0.8782144713
A63: Theta JC | B63: 2 | C63: °C/W | D63: Junction to Ambient Resistance | G63: 54 | H63: 28 | I63: 1 | J63: 0.162 | K63: 0.162 | L63: 0.02121428571 | M63: 0.1226123905 | N63: 0.114276745 | O63: 0.2191383725 | P63: 0.1048616275 | Q63: 0 | R63: 0.1653247245 | S63: 0.0006833066135 | T63: 0.1 | U63: 0.1006892552 | V63: 0.03298885476 | W63: 1.088264538e-06 | X63: 1.088264538e-06 | Y63: 0.05422514675 | Z63: 5.880733081e-06 | AA63: 5.880733081e-06 | AB63: 0.05789019168 | AC63: 0.001876713604 | AD63: 0.0009241360558 | AE63: 0.08107176 | AF63: 0 | AG63: 0.08388709341 | AH63: 0.154857968 | AI63: 0.006714677269 | AJ63: 0.00342593064 | AK63: 0.01014687614 | AL63: 0.232848 | AM63: 0.00098 | AN63: 0.5544 | AO63: 0.49203 | AP63: 0.48906 | AQ63: 0.55538 | AR63: 0.9829245242 | AS63: 0.9836283549 | AT63: 0.9836283549 | AU63: 0.5346 | AV63: 0.352120943 | AW63: 5.464035788 | AX63: 2.000694471 | AZ63: 35.2120943 | BA63: 0.1006892552 | BB63: 0.3268819696 | BC63: 0.2375667734 | BD63: 0.08698671614 | BE63: 0.8829390997
G64: 55 | H64: 28 | I64: 1 | J64: 0.165 | K64: 0.165 | L64: 0.02160714286 | M64: 0.1227003108 | N64: 0.1143505314 | O64: 0.2221752657 | P64: 0.1078247343 | Q64: 0 | R64: 0.1682696358 | S64: 0.0007078667584 | T64: 0.1 | U64: 0.1007140307 | V64: 0.03301015503 | W64: 1.089670335e-06 | X64: 1.089670335e-06 | Y64: 0.05520807112 | Z64: 6.095862233e-06 | AA64: 6.095862233e-06 | AB64: 0.0589425046 | AC64: 0.001945562555 | AD64: 0.0009412496864 | AE64: 0.08107176 | AF64: 0 | AG64: 0.08397360282 | AH64: 0.1576085387 | AI64: 0.006955326416 | AJ64: 0.0034893738 | AK64: 0.01045138796 | AL64: 0.23716 | AM64: 0.00098 | AN64: 0.5544 | AO64: 0.49203 | AP64: 0.48906 | AQ64: 0.55538 | AR64: 0.9876511392 | AS64: 0.9883842001 | AT64: 0.9883842001 | AU64: 0.5445 | AV64: 0.3552127421 | AW64: 5.531481665 | AX64: 2.040426323 | AZ64: 35.52127421 | BA64: 0.1007140307 | BB64: 0.3315849908 | BC64: 0.2404992028 | BD64: 0.08871418796 | BE64: 0.8876701694
G65: 56 | H65: 28 | I65: 1 | J65: 0.168 | K65: 0.168 | L65: 0.022 | M65: 0.1227882259 | N65: 0.1144243013 | O65: 0.2252121506 | P65: 0.1107878494 | Q65: 0 | R65: 0.1712164616 | S65: 0.0007328769182 | T65: 0.1 | U65: 0.1007392602 | V65: 0.03303145057 | W65: 1.091076727e-06 | X65: 1.091076727e-06 | Y65: 0.05619220911 | Z65: 6.315128729e-06 | AA65: 6.315128729e-06 | AB65: 0.05999621875 | AC65: 0.002015745908 | AD65: 0.0009583633171 | AE65: 0.08107176 | AF65: 0 | AG65: 0.08406145831 | AH65: 0.1603606263 | AI65: 0.00720034853 | AJ65: 0.00355281696 | AK65: 0.01076029345 | AL65: 0.241472 | AM65: 0.00098 | AN65: 0.5544 | AO65: 0.49203 | AP65: 0.48906 | AQ65: 0.55538 | AR65: 0.9923839116 | AS65: 0.9931469502 | AT65: 0.9931469502 | AU65: 0.5544 | AV65: 0.3582443815 | AW65: 5.598958501 | AX65: 2.080259229 | AZ65: 35.82443815 | BA65: 0.1007392602 | BB65: 0.3362937518 | BC65: 0.2434329783 | BD65: 0.09044605345 | BE65: 0.89240769
A66: Outputs | G66: 57 | H66: 28 | I66: 1 | J66: 0.171 | K66: 0.171 | L66: 0.02239285714 | M66: 0.122876136 | N66: 0.1144980548 | O66: 0.2282490274 | P66: 0.1137509726 | Q66: 0 | R66: 0.1741651047 | S66: 0.0007583370928 | T66: 0.1 | U66: 0.1007649438 | V66: 0.03305274137 | W66: 1.092483712e-06 | X66: 1.092483712e-06 | Y66: 0.05717752887 | Z66: 6.538539616e-06 | AA66: 6.538539616e-06 | AB66: 0.06105130032 | AC66: 0.002087266312 | AD66: 0.0009754769477 | AE66: 0.08107176 | AF66: 0 | AG66: 0.08415066258 | AH66: 0.1631141393 | AI66: 0.007449742284 | AJ66: 0.00361626012 | AK66: 0.01107359198 | AL66: 0.245784 | AM66: 0.00098 | AN66: 0.5544 | AO66: 0.49203 | AP66: 0.48906 | AQ66: 0.55538 | AR66: 0.9971228428 | AS66: 0.9979166147 | AT66: 0.9979166147 | AU66: 0.5643 | AV66: 0.3612175128 | AW66: 5.666466359 | AX66: 2.120193176 | AZ66: 36.12175128 | BA66: 0.1007649438 | BB66: 0.3410082546 | BC66: 0.2463681026 | BD66: 0.09218231198 | BE66: 0.8971516708
A67: Design | B67: Value | C67: Units | G67: 58 | H67: 28 | I67: 1 | J67: 0.174 | K67: 0.174 | L67: 0.02278571429 | M67: 0.122964041 | N67: 0.1145717918 | O67: 0.2312858959 | P67: 0.1167141041 | Q67: 0 | R67: 0.1771154745 | S67: 0.0007842472823 | T67: 0.1 | U67: 0.1007910815 | V67: 0.03307402743 | W67: 1.09389129e-06 | X67: 1.09389129e-06 | Y67: 0.05816400063 | Z67: 6.766101939e-06 | AA67: 6.766101939e-06 | AB67: 0.06210771772 | AC67: 0.002160126416 | AD67: 0.0009925905784 | AE67: 0.08107176 | AF67: 0 | AG67: 0.08424121839 | AH67: 0.1658689926 | AI67: 0.007703506353 | AJ67: 0.00367970328 | AK67: 0.01139128289 | AL67: 0.250096 | AM67: 0.00098 | AN67: 0.5544 | AO67: 0.49203 | AP67: 0.48906 | AQ67: 0.55538 | AR67: 1.001867934 | AS67: 1.002693203 | AT67: 1.002693203 | AU67: 0.5742 | AV67: 0.3641337276 | AW67: 5.734005303 | AX67: 2.160228147 | AZ67: 36.41337276 | BA67: 0.1007910815 | BB67: 0.3457285013 | BC67: 0.2493045784 | BD67: 0.09392296289 | BE67: 0.9019021215
A68: Dmax | B68: =D1_Vinmin -> 0.55 | C68: index | G68: 59 | H68: 28 | I68: 1 | J68: 0.177 | K68: 0.177 | L68: 0.02317857143 | M68: 0.123051941 | N68: 0.1146455125 | O68: 0.2343227562 | P68: 0.1196772438 | Q68: 0 | R68: 0.1800674859 | S68: 0.0008106074865 | T68: 0.1 | U68: 0.1008176733 | V68: 0.03309530874 | W68: 1.095299461e-06 | X68: 1.095299461e-06 | Y68: 0.0591515965 | Z68: 6.997822738e-06 | AA68: 6.997822738e-06 | AB68: 0.06316544137 | AC68: 0.002234328871 | AD68: 0.001009704209 | AE68: 0.08107176 | AF68: 0 | AG68: 0.08433312845 | AH68: 0.1686251063 | AI68: 0.007961639414 | AJ68: 0.00374314644 | AK68: 0.01171336555 | AL68: 0.254408 | AM68: 0.00098 | AN68: 0.5544 | AO68: 0.49203 | AP68: 0.48906 | AQ68: 0.55538 | AR68: 1.006619186 | AS68: 1.007476725 | AT68: 1.007476725 | AU68: 0.5841 | AV68: 0.3669945601 | AW68: 5.801575394 | AX68: 2.200364128 | AZ68: 36.69945601 | BA68: 0.1008176733 | BB68: 0.350454494 | BC68: 0.2522424085 | BD68: 0.09566800555 | BE68: 0.9066590515
A69: Dprime | B69: =1-B68 -> 0.45 | C69: index | G69: 60 | H69: 28 | I69: 1 | J69: 0.18 | K69: 0.18 | L69: 0.02357142857 | M69: 0.1231398359 | N69: 0.1147192167 | O69: 0.2373596084 | P69: 0.1226403916 | Q69: 0 | R69: 0.1830210595 | S69: 0.0008374177056 | T69: 0.1 | U69: 0.1008447192 | V69: 0.03311658532 | W69: 1.096708223e-06 | X69: 1.096708223e-06 | Y69: 0.06014029036 | Z69: 7.233709049e-06 | AA69: 7.233709049e-06 | AB69: 0.06422444357 | AC69: 0.002309876325 | AD69: 0.00102681784 | AE69: 0.08107176 | AF69: 0 | AG69: 0.0844263955 | AH69: 0.171382406 | AI69: 0.00822414014 | AJ69: 0.0038065896 | AK69: 0.01203983933 | AL69: 0.25872 | AM69: 0.00098 | AN69: 0.5544 | AO69: 0.49203 | AP69: 0.48906 | AQ69: 0.55538 | AR69: 1.011376602 | AS69: 1.01226719 | AT69: 1.01226719 | AU69: 0.594 | AV69: 0.36980149 | AW69: 5.869176697 | AX69: 2.240601105 | AZ69: 36.980149 | BA69: 0.1008447192 | BB69: 0.3551862348 | BC69: 0.2551815955 | BD69: 0.09741743933 | BE69: 0.9114224703
A70: Ipp | B70: =Iripple_Vinnom -> 0.1128586541 | C70: A | G70: 61 | H70: 28 | I70: 1 | J70: 0.183 | K70: 0.183 | L70: 0.02396428571 | M70: 0.1232277256 | N70: 0.1147929045 | O70: 0.2403964523 | P70: 0.1256035477 | Q70: 0 | R70: 0.185976121 | S70: 0.0008646779394 | T70: 0.1 | U70: 0.1008722192 | V70: 0.03313785716 | W70: 1.098117577e-06 | X70: 1.098117577e-06 | Y70: 0.06113005768 | Z70: 7.473767905e-06 | AA70: 7.473767905e-06 | AB70: 0.06528469833 | AC70: 0.002386771428 | AD70: 0.00104393147 | AE70: 0.08107176 | AF70: 0 | AG70: 0.08452102228 | AH70: 0.1741408216 | AI70: 0.008491007208 | AJ70: 0.00387003276 | AK70: 0.01237070362 | AL70: 0.263032 | AM70: 0.00098 | AN70: 0.5544 | AO70: 0.49203 | AP70: 0.48906 | AQ70: 0.55538 | AR70: 1.016140181 | AS70: 1.017064607 | AT70: 1.017064607 | AU70: 0.6039 | AV70: 0.3725559445 | AW70: 5.936809272 | AX70: 2.280939063 | AZ70: 37.25559445 | BA70: 0.1008722192 | BB70: 0.3599237259 | BC70: 0.2581221423 | BD70: 0.09917126362 | BE70: 0.9161923876
A71: Top FET | B71: Value | C71: Units | G71: 62 | H71: 28 | I71: 1 | J71: 0.186 | K71: 0.186 | L71: 0.02435714286 | M71: 0.1233156104 | N71: 0.1148665759 | O71: 0.243433288 | P71: 0.128566712 | Q71: 0 | R71: 0.1889326005 | S71: 0.000892388188 | T71: 0.1 | U71: 0.1009001732 | V71: 0.03315912426 | W71: 1.099527522e-06 | X71: 1.099527522e-06 | Y71: 0.06212087544 | Z71: 7.718006332e-06 | AA71: 7.718006332e-06 | AB71: 0.06634618123 | AC71: 0.002465016828 | AD71: 0.001061045101 | AE71: 0.08107176 | AF71: 0 | AG71: 0.08461701151 | AH71: 0.1769002876 | AI71: 0.008762239292 | AJ71: 0.00393347592 | AK71: 0.01270595782 | AL71: 0.267344 | AM71: 0.00098 | AN71: 0.5544 | AO71: 0.49203 | AP71: 0.48906 | AQ71: 0.55538 | AR71: 1.020909925 | AS71: 1.021868986 | AT71: 1.021868986 | AU71: 0.6138 | AV71: 0.3752593008 | AW71: 6.004473185 | AX71: 2.32137799 | AZ71: 37.52593008 | BA71: 0.1009001732 | BB71: 0.3646669693 | BC71: 0.2610640515 | BD71: 0.1009294778 | BE71: 0.9209688128
A72: Tr | B72: =(Qgd_Q1+Qgs_Q1/2)*(RdsonDRT+Rgate1)/(VCC-Vsp_Q1)*1000000000 -> 0.08837279903 | C72: ns | D72: Turn on of MOSFET -> Rise time of current | G72: 63 | H72: 28 | I72: 1 | J72: 0.189 | K72: 0.189 | L72: 0.02475 | M72: 0.12340349 | N72: 0.1149402309 | O72: 0.2464701155 | P72: 0.1315298845 | Q72: 0 | R72: 0.1918904324 | S72: 0.0009205484514 | T72: 0.1 | U72: 0.1009285814 | V72: 0.03318038663 | W72: 1.100938057e-06 | X72: 1.100938057e-06 | Y72: 0.06311272199 | Z72: 7.966431354e-06 | AA72: 7.966431354e-06 | AB72: 0.06740886933 | AC72: 0.002544615172 | AD72: 0.001078158732 | AE72: 0.08107176 | AF72: 0 | AG72: 0.08471436593 | AH72: 0.1796607425 | AI72: 0.00903783507 | AJ72: 0.00399691908 | AK72: 0.01304560132 | AL72: 0.271656 | AM72: 0.00098 | AN72: 0.5544 | AO72: 0.49203 | AP72: 0.48906 | AQ72: 0.55538 | AR72: 1.025685837 | AS72: 1.026680337 | AT72: 1.026680337 | AU72: 0.6237 | AV72: 0.3779128883 | AW72: 6.072168496 | AX72: 2.36191787 | AZ72: 37.79128883 | BA72: 0.1009285814 | BB72: 0.3694159672 | BC72: 0.2640073259 | BD72: 0.1026920813 | BE72: 0.9257517556
A73: Tf | B73: =(Qgd_Q1+Qgs_Q1/2)*(RdsonDRT2+Rgate1)/(Vsp_Q1)*1000000000 -> 0.09683965403 | C73: ns | D73: Turn off of MOSFET -> Fall time of current | G73: 64 | H73: =Vin -> 28 | I73: =MODE -> 1 | J73: 0.192 | K73: =Iout*G73/100/Number_of_Phases -> 0.192 | L73: =Vout*K73/(Vin*Efficiency) -> 0.02514285714 | M73: =(Vout+(Rdson2+Rs+Rdcr)*K73)/(Vin+(Rs+Rdson2-Rdson1)*K73) -> 0.1234913646 | N73: =(Vin-(Rdson1+Rdcr)*K73-Vout)*M73/(Fsw*Lf) -> 0.1150138695 | O73: 0.2495069347 | P73: 0.1344930653 | Q73: =IF(MIN(Vin, -P73/(Coss_Q1+Coss_Q2)*0.00000002)<0, 0, MIN(Vin, -P73/(Coss_Q1+Coss_Q2)*0.00000002)) -> 0 | R73: 0.1948495553 | S73: =R73^2*Rdcr -> 0.0009491587295 | T73: =Core_Loss -> 0.1 | U73: =(T73+S73*(1+Ltc*(Ta-25)))/(1-S73*Ltc*ThetaCa) -> 0.1009574437 | V73: 0.03320164426 | W73: 1.102349181e-06 | X73: 1.102349181e-06 | Y73: 0.06410557695 | Z73: 8.219049992e-06 | AA73: 8.219049992e-06 | AB73: 0.06847274106 | AC73: =Rdson1*AB73^2 -> 0.00262556911 | AD73: =(Vin*K73/2)*Fsw*(Tr_buck+Tf_buck) -> 0.001095272362 | AE73: =(0.5*Coss_Q1*(Vin-Q73)^2-0.5*Coss_Q2*(Vin-Q73)^2+(Qoss_Q2*(Vin-Q73)/Vin)*Vin)*Fsw -> 0.08107176 | AF73: =IF(K73>N73/2,0,ABS(K73-N73/2)*Vsd_Q1*Deadtime*Fsw) -> 0 | AG73: =(AF73+AE73+AD73+AC73*(1+RdsonTopTc*Ta-RdsonTopTc*25))/(1-AC73*RdsonTopTc*ThetaJA_Q1) -> 0.08481308827 | AH73: =SQRT((1-M73))*SQRT(K73^2+(N73^2)/12) -> 0.1824221284 | AI73: =Rdson2*AH73^2 -> 0.009317793216 | AJ73: =IF(K73<N73/2,Deadtime*Fsw*Vsd_Q2*(K73+N73/2),2*Deadtime*Fsw*Vsd_Q2*K73) -> 0.00406036224 | AK73: =(AJ73+AI73*(1+RdsonBotTc*Ta-RdsonBotTc*25))/(1-AI73*RdsonBotTc*ThetaJA_Q2) -> 0.01338963354 | AL73: =Qrr_Q2*K73/Iout*Fsw*Vin -> 0.275968 | AM73: =Iq*Vin -> 0.00098 | AN73: =IF(Ext_VCC=1, (Qg_Q1+Qg_Q2)*Fsw*Vout, (Qg_Q1+Qg_Q2)*Fsw*Vin) -> 0.5544 | AO73: =(Vin-VCC)*Fsw*(Qg_Q1+Qg_Q2) -> 0.49203 | AP73: =(Qg_Q1+Qg_Q2)*Fsw*(Vin-Vout) -> 0.48906 | AQ73: 0.55538 | AR73: 1.030467916 | AS73: =U73 + ((AF73+AE73+AD73+AC73*(1+RdsonTC*(Ta-25))) + (AJ73+AI73*(1+RdsonTC*(Ta-25))) + AQ73 + AL73) / (1-AC73*RdsonTC*ThetaJA_Q1 -AI73*RdsonTC*ThetaJA_Q2) -> 1.031498669 | AT73: 1.031498669 | AU73: =Vout*K73 -> 0.6336 | AV73: 0.3805179907 | AW73: =ThetaJA_Q1*BC73 -> 6.13989527 | AX73: =ThetaJA_Q2*BD73 -> 2.402558692 | AZ73: 38.05179907 | BA73: =U73 -> 0.1009574437 | BB73: =AG73+AK73+AL73 -> 0.3741707218 | BC73: =AG73+AL73*0.66 -> 0.2669519683 | BD73: =AK73+AL73*0.33 -> 0.1044590735 | BE73: 0.9305412257
A74: Part Power | B74: Value | C74: Units | G74: 65 | H74: 28 | I74: 1 | J74: =Iout*G74/100 -> 0.195 | K74: 0.195 | L74: 0.02553571429 | M74: 0.123579234 | N74: 0.1150874917 | O74: =K74+N74/2 -> 0.2525437458 | P74: =K74-N74/2 -> 0.1374562542 | Q74: 0 | R74: =SQRT(K74^2+(N74^2)/12) -> 0.197809911 | S74: 0.0009782190224 | T74: 0.1 | U74: 0.1009867602 | V74: =N74/SQRT(12) -> 0.03322289715 | W74: =RCoutEsr*V74^2 -> 1.103760895e-06 | X74: =W74 -> 1.103760895e-06 | Y74: =SQRT(M74*(1-M74))*SQRT(K74^2+(N74^2)/12) -> 0.06509942112 | Z74: =RCinEsr*Y74^2 -> 8.47586926e-06 | AA74: =Z74 -> 8.47586926e-06 | AB74: =SQRT(M74)*SQRT(K74^2+(N74^2)/12) -> 0.06953777607 | AC74: 0.002707881288 | AD74: 0.001112385993 | AE74: 0.08107176 | AF74: 0 | AG74: 0.08491318128 | AH74: 0.1851843908 | AI74: 0.009602112406 | AJ74: 0.0041238054 | AK74: 0.01373805393 | AL74: 0.28028 | AM74: 0.00098 | AN74: 0.5544 | AO74: 0.49203 | AP74: 0.48906 | AQ74: 0.55538 | AR74: =SUM(S74,T74,AC74,AD74,AE74,AF74,AI74,AJ74,AQ74, AL74) -> 1.035256164 | AS74: 1.036323993 | AT74: =AS74 -> 1.036323993 | AU74: 0.6435 | AV74: =AU74/(AU74+AT74) -> 0.3830758477 | AW74: 6.20765357 | AX74: 2.44330044 | AZ74: =AV74*100 -> 38.30758477 | BA74: 0.1009867602 | BB74: 0.3789312352 | BC74: 0.2698979813 | BD74: 0.1062304539 | BE74: =AS74-BA74 -> 0.9353372327
A75: Power Dis | B75: =AQ9 -> 0.55538 | C75: W | G75: 66 | H75: 28 | I75: 1 | J75: 0.198 | K75: 0.198 | L75: 0.02592857143 | M75: 0.1236670985 | N75: 0.1151610974 | O75: 0.2555805487 | P75: 0.1404194513 | Q75: 0 | R75: 0.2007714452 | S75: 0.00100772933 | T75: 0.1 | U75: 0.1010165307 | V75: 0.0332441453 | W75: 1.105173197e-06 | X75: 1.105173197e-06 | Y75: 0.0660942364 | Z75: 8.73689617e-06 | AA75: 8.73689617e-06 | AB75: 0.07060395521 | AC75: 0.002791554355 | AD75: 0.001129499624 | AE75: 0.08107176 | AF75: 0 | AG75: 0.0850146477 | AH75: 0.1879474786 | AI75: 0.009890791318 | AJ75: 0.00418724856 | AK75: 0.0140908619 | AL75: 0.284592 | AM75: 0.00098 | AN75: 0.5544 | AO75: 0.49203 | AP75: 0.48906 | AQ75: =SUM(AM75:AN75) -> 0.55538 | AR75: 1.040050583 | AS75: 1.041156317 | AT75: 1.041156317 | AU75: 0.6534 | AV75: 0.3855876571 | AW75: 6.275443457 | AX75: 2.484143104 | AZ75: 38.55876571 | BA75: 0.1010165307 | BB75: 0.3836975096 | BC75: 0.2728453677 | BD75: 0.1080062219 | BE75: 0.9401397862
A76: Temp rise | B76: =B75*B62 -> 12.77374 | C76: °C | G76: 67 | H76: 28 | I76: 1 | J76: 0.201 | K76: 0.201 | L76: 0.02632142857 | M76: 0.1237549578 | N76: 0.1152346868 | O76: 0.2586173434 | P76: 0.1433826566 | Q76: 0 | R76: 0.2037341063 | S76: 0.001037689652 | T76: 0.1 | U76: 0.1010467554 | V76: 0.03326538872 | W76: 1.106586086e-06 | X76: 1.106586086e-06 | Y76: 0.06709000569 | Z76: 9.002137728e-06 | AA76: 9.002137728e-06 | AB76: 0.07167126038 | AC76: 0.002876590956 | AD76: 0.001146613254 | AE76: 0.08107176 | AF76: 0 | AG76: 0.08511749025 | AH76: 0.1907113435 | AI76: 0.01018382863 | AJ76: 0.00425069172 | AK76: 0.01444805691 | AL76: 0.288904 | AM76: 0.00098 | AN76: 0.5544 | AO76: 0.49203 | AP76: 0.48906 | AQ76: 0.55538 | AR76: 1.044851174 | AS76: 1.045995651 | AT76: 1.045995651 | AU76: 0.6633 | AV76: 0.3880545764 | AW76: 6.343264996 | AX76: 2.525086669 | AZ76: 38.80545764 | BA76: 0.1010467554 | BB76: 0.3884695472 | BC76: 0.2757941302 | BD76: 0.1097863769 | BE76: 0.944948896
A77: Current (switching) | B77: =(Qg_Q1+Qg_Q2)*Fsw+Iq -> 0.019835 | C77: A | G77: 68 | H77: 28 | I77: 1 | J77: 0.204 | K77: 0.204 | L77: 0.02671428571 | M77: 0.1238428121 | N77: 0.1153082597 | O77: 0.2616541299 | P77: 0.1463458701 | Q77: 0 | R77: 0.2066978461 | S77: 0.001068099989 | T77: 0.1 | U77: 0.1010774343 | V77: 0.0332866274 | W77: 1.107999564e-06 | X77: 1.107999564e-06 | Y77: 0.06808671286 | Z77: 9.271600937e-06 | AA77: 9.271600937e-06 | AB77: 0.07273967452 | AC77: 0.002962993739 | AD77: 0.001163726885 | AE77: 0.08107176 | AF77: 0 | AG77: 0.08522171167 | AH77: 0.1934759399 | AI77: 0.01048122301 | AJ77: 0.00431413488 | AK77: 0.01480963842 | AL77: 0.293216 | AM77: 0.00098 | AN77: 0.5544 | AO77: 0.49203 | AP77: 0.48906 | AQ77: 0.55538 | AR77: 1.049657939 | AS77: 1.050842006 | AT77: 1.050842006 | AU77: 0.6732 | AV77: 0.3904777248 | AW77: 6.411118248 | AX77: 2.566131124 | AZ77: 39.04777248 | BA77: 0.1010774343 | BB77: 0.3932473501 | BC77: 0.2787442717 | BD77: 0.1115709184 | BE77: 0.9497645719
A78: Qrr Current | B78: =Qrr_Q2*Fsw -> 0.0154 | C78: A | G78: 69 | H78: 28 | I78: 1 | J78: 0.207 | K78: 0.207 | L78: 0.02710714286 | M78: 0.1239306613 | N78: 0.1153818163 | O78: 0.2646909081 | P78: 0.1493090919 | Q78: 0 | R78: 0.2096626186 | S78: 0.001098960341 | T78: 0.1 | U78: 0.1011085673 | V78: 0.03330786134 | W78: 1.109413627e-06 | X78: 1.109413627e-06 | Y78: 0.06908434265 | Z78: 9.545292798e-06 | AA78: 9.545292798e-06 | AB78: 0.07380918147 | AC78: 0.003050765351 | AD78: 0.001180840516 | AE78: 0.08107176 | AF78: 0 | AG78: 0.08532731472 | AH78: 0.1962412249 | AI78: 0.01078297314 | AJ78: 0.00437757804 | AK78: 0.01517560589 | AL78: 0.297528 | AM78: 0.00098 | AN78: 0.5544 | AO78: 0.49203 | AP78: 0.48906 | AQ78: 0.55538 | AR78: 1.054470877 | AS78: 1.055695391 | AT78: 1.055695391 | AU78: 0.6831 | AV78: 0.3928581843 | AW78: 6.479003279 | AX78: 2.607276455 | AZ78: 39.28581843 | BA78: 0.1011085673 | BB78: 0.3980309206 | BC78: 0.2816957947 | BD78: 0.1133598459 | BE78: 0.9545868235
A79: Diode Current | B79: =Deadtime*Fsw*(Iripple_Vinnom/2)*(Vsd_Q2)/Vin -> 2.130985014e-05 | G79: 70 | H79: 28 | I79: 1 | J79: 0.21 | K79: 0.21 | L79: 0.0275 | M79: 0.1240185054 | N79: 0.1154553564 | O79: 0.2677276782 | P79: 0.1522723218 | Q79: 0 | R79: 0.2126283807 | S79: 0.001130270707 | T79: 0.1 | U79: 0.1011401544 | V79: 0.03332909056 | W79: 1.110828277e-06 | X79: 1.110828277e-06 | Y79: 0.07008288059 | Z79: 9.823220303e-06 | AA79: 9.823220303e-06 | AB79: 0.07487976596 | AC79: 0.003139908436 | AD79: 0.001197954146 | AE79: 0.08107176 | AF79: 0 | AG79: 0.08543430212 | AH79: 0.199007158 | AI79: 0.0110890777 | AJ79: 0.0044410212 | AK79: 0.01554595881 | AL79: 0.30184 | AM79: 0.00098 | AN79: 0.5544 | AO79: 0.49203 | AP79: 0.48906 | AQ79: 0.55538 | AR79: 1.059289992 | AS79: 1.060555815 | AT79: 1.060555815 | AU79: 0.693 | AV79: 0.3951970015 | AW79: 6.546920149 | AX79: 2.648522653 | AZ79: 39.51970015 | BA79: 0.1011401544 | BB79: 0.4028202609 | BC79: 0.2846487021 | BD79: 0.1151531588 | BE79: 0.9594156606
A80: Total | B80: =SUM(B77:B79) -> 0.03525630985 | C80: A | G80: 71 | H80: 28 | I80: 1 | J80: 0.213 | K80: 0.213 | L80: 0.02789285714 | M80: 0.1241063444 | N80: 0.1155288802 | O80: 0.2707644401 | P80: 0.1552355599 | Q80: 0 | R80: 0.2155950916 | S80: 0.001162031088 | T80: 0.1 | U80: 0.1011721958 | V80: 0.03335031503 | W80: 1.112243513e-06 | X80: 1.112243513e-06 | Y80: 0.071082313 | Z80: 1.010539044e-05 | AA80: 1.010539044e-05 | AB80: 0.07595141353 | AC80: 0.003230425642 | AD80: 0.001215067777 | AE80: 0.08107176 | AF80: 0 | AG80: 0.08554267663 | AH80: 0.2017737007 | AI80: 0.01139953536 | AJ80: 0.00450446436 | AK80: 0.01592069667 | AL80: 0.306152 | AM80: 0.00098 | AN80: 0.5544 | AO80: 0.49203 | AP80: 0.48906 | AQ80: 0.55538 | AR80: 1.064115284 | AS80: 1.065423289 | AT80: 1.065423289 | AU80: 0.7029 | AV80: 0.397495189 | AW80: 6.614868922 | AX80: 2.689869703 | AZ80: 39.7495189 | BA80: 0.1011721958 | BB80: 0.4076153733 | BC80: 0.2876029966 | BD80: 0.1169508567 | BE80: 0.9642510931
G81: 72 | H81: 28 | I81: 1 | J81: 0.216 | K81: 0.216 | L81: 0.02828571429 | M81: 0.1241941784 | N81: 0.1156023875 | O81: 0.2738011938 | P81: 0.1581988062 | Q81: 0 | R81: 0.2185627126 | S81: 0.001194241483 | T81: 0.1 | U81: 0.1012046913 | V81: 0.03337153478 | W81: 1.113659333e-06 | X81: 1.113659333e-06 | Y81: 0.07208262692 | Z81: 1.039181021e-05 | AA81: 1.039181021e-05 | AB81: 0.07702411047 | AC81: 0.003322319613 | AD81: 0.001232181408 | AE81: 0.08107176 | AF81: 0 | AG81: 0.08565244098 | AH81: 0.2045408168 | AI81: 0.01171434481 | AJ81: 0.00456790752 | AK81: 0.01629981896 | AL81: 0.310464 | AM81: 0.00098 | AN81: 0.5544 | AO81: 0.49203 | AP81: 0.48906 | AQ81: 0.55538 | AR81: 1.068946755 | AS81: 1.070297822 | AT81: 1.070297822 | AU81: 0.7128 | AV81: 0.399753727 | AW81: 6.682849663 | AX81: 2.731317596 | AZ81: 39.9753727 | BA81: 0.1012046913 | BB81: 0.4124162599 | BC81: 0.290558681 | BD81: 0.118752939 | BE81: 0.9690931307
G82: 73 | H82: 28 | I82: 1 | J82: 0.219 | K82: 0.219 | L82: 0.02867857143 | M82: 0.1242820073 | N82: 0.1156758785 | O82: 0.2768379392 | P82: 0.1611620608 | Q82: 0 | R82: 0.2215312071 | S82: 0.001226901893 | T82: 0.1 | U82: 0.101237641 | V82: 0.03339274978 | W82: 1.115075738e-06 | X82: 1.115075738e-06 | Y82: 0.07308381002 | Z82: 1.068248657e-05 | AA82: 1.068248657e-05 | AB82: 0.07809784379 | AC82: 0.003415592994 | AD82: 0.001249295038 | AE82: 0.08107176 | AF82: 0 | AG82: 0.08576359792 | AH82: 0.2073084719 | AI82: 0.01203350471 | AJ82: 0.00463135068 | AK82: 0.01668332521 | AL82: 0.314776 | AM82: 0.00098 | AN82: 0.5544 | AO82: 0.49203 | AP82: 0.48906 | AQ82: 0.55538 | AR82: 1.073784405 | AS82: 1.075179424 | AT82: 1.075179424 | AU82: 0.7227 | AV82: 0.4019735641 | AW82: 6.750862432 | AX82: 2.77286632 | AZ82: 40.19735641 | BA82: 0.101237641 | BB82: 0.4172229231 | BC82: 0.2935157579 | BD82: 0.1205594052 | BE82: 0.9739417834
G83: 74 | H83: 28 | I83: 1 | J83: 0.222 | K83: 0.222 | L83: 0.02907142857 | M83: 0.1243698312 | N83: 0.115749353 | O83: 0.2798746765 | P83: 0.1641253235 | Q83: 0 | R83: 0.2245005406 | S83: 0.001260012318 | T83: 0.1 | U83: 0.1012710449 | V83: 0.03341396006 | W83: 1.116492727e-06 | X83: 1.116492727e-06 | Y83: 0.07408585062 | Z83: 1.097742652e-05 | AA83: 1.097742652e-05 | AB83: 0.07917260114 | AC83: 0.003510248432 | AD83: 0.001266408669 | AE83: 0.08107176 | AF83: 0 | AG83: 0.08587615019 | AH83: 0.2100766335 | AI83: 0.01235701375 | AJ83: 0.00469479384 | AK83: 0.01707121492 | AL83: 0.319088 | AM83: 0.00098 | AN83: 0.5544 | AO83: 0.49203 | AP83: 0.48906 | AQ83: 0.55538 | AR83: 1.078628237 | AS83: 1.080068106 | AT83: 1.080068106 | AU83: 0.7326 | AV83: 0.4041556188 | AW83: 6.818907294 | AX83: 2.814515863 | AZ83: 40.41556188 | BA83: 0.1012710449 | BB83: 0.4220353651 | BC83: 0.2964742302 | BD83: 0.1223702549 | BE83: 0.978797061
G84: 75 | H84: 28 | I84: 1 | J84: 0.225 | K84: 0.225 | L84: 0.02946428571 | M84: 0.1244576499 | N84: 0.1158228112 | O84: 0.2829114056 | P84: 0.1670885944 | Q84: 0 | R84: 0.2274706801 | S84: 0.001293572757 | T84: 0.1 | U84: 0.1013049029 | V84: 0.0334351656 | W84: 1.117910299e-06 | X84: 1.117910299e-06 | Y84: 0.07508873761 | Z84: 1.127663703e-05 | AA84: 1.127663703e-05 | AB84: 0.0802483708 | AC84: 0.003606288569 | AD84: 0.0012835223 | AE84: 0.08107176 | AF84: 0 | AG84: 0.08599010054 | AH84: 0.2128452708 | AI84: 0.0126848706 | AJ84: 0.004758237 | AK84: 0.01746348763 | AL84: 0.3234 | AM84: 0.00098 | AN84: 0.5544 | AO84: 0.49203 | AP84: 0.48906 | AQ84: 0.55538 | AR84: 1.083478251 | AS84: 1.084963876 | AT84: 1.084963876 | AU84: 0.7425 | AV84: 0.4063007809 | AW84: 6.886984312 | AX84: 2.856266216 | AZ84: 40.63007809 | BA84: 0.1013049029 | BB84: 0.4268535882 | BC84: 0.2994341005 | BD84: 0.1241854876 | BE84: 0.9836589734
G85: 76 | H85: 28 | I85: 1 | J85: 0.228 | K85: 0.228 | L85: 0.02985714286 | M85: 0.1245454636 | N85: 0.1158962529 | O85: 0.2859481265 | P85: 0.1700518735 | Q85: 0 | R85: 0.2304415945 | S85: 0.001327583211 | T85: 0.1 | U85: 0.1013392152 | V85: 0.03345636641 | W85: 1.119328454e-06 | X85: 1.119328454e-06 | Y85: 0.07609246042 | Z85: 1.158012506e-05 | AA85: 1.158012506e-05 | AB85: 0.08132514163 | AC85: 0.003703716051 | AD85: 0.00130063593 | AE85: 0.08107176 | AF85: 0 | AG85: 0.08610545171 | AH85: 0.2156143543 | AI85: 0.01301707394 | AJ85: 0.00482168016 | AK85: 0.01786014289 | AL85: 0.327712 | AM85: 0.00098 | AN85: 0.5544 | AO85: 0.49203 | AP85: 0.48906 | AQ85: 0.55538 | AR85: 1.088334449 | AS85: 1.089866746 | AT85: 1.089866746 | AU85: 0.7524 | AV85: 0.4084099123 | AW85: 6.955093549 | AX85: 2.898117366 | AZ85: 40.84099123 | BA85: 0.1013392152 | BB85: 0.4316775946 | BC85: 0.3023953717 | BD85: 0.1260051029 | BE85: 0.9885275305
G86: 77 | H86: 28 | I86: 1 | J86: 0.231 | K86: 0.231 | L86: 0.03025 | M86: 0.1246332722 | N86: 0.1159696783 | O86: 0.2889848392 | P86: 0.1730151608 | Q86: 0 | R86: 0.2334132541 | S86: 0.00136204368 | T86: 0.1 | U86: 0.1013739817 | V86: 0.03347756249 | W86: 1.12074719e-06 | X86: 1.12074719e-06 | Y86: 0.07709700899 | Z86: 1.188789759e-05 | AA86: 1.188789759e-05 | AB86: 0.08240290304 | AC86: 0.003802533521 | AD86: 0.001317749561 | AE86: 0.08107176 | AF86: 0 | AG86: 0.08622220646 | AH86: 0.2183838565 | AI86: 0.01335362245 | AJ86: 0.00488512332 | AK86: 0.01826118024 | AL86: 0.332024 | AM86: 0.00098 | AN86: 0.5544 | AO86: 0.49203 | AP86: 0.48906 | AQ86: 0.55538 | AR86: 1.093196833 | AS86: 1.094776724 | AT86: 1.094776724 | AU86: 0.7623 | AV86: 0.4104838482 | AW86: 7.023235069 | AX86: 2.940069306 | AZ86: 41.04838482 | BA86: 0.1013739817 | BB86: 0.4365073867 | BC86: 0.3053580465 | BD86: 0.1278291002 | BE86: 0.9934027423
G87: 78 | H87: 28 | I87: 1 | J87: 0.234 | K87: 0.234 | L87: 0.03064285714 | M87: 0.1247210758 | N87: 0.1160430873 | O87: 0.2920215436 | P87: 0.1759784564 | Q87: 0 | R87: 0.2363856309 | S87: 0.001396954163 | T87: 0.1 | U87: 0.1014092024 | V87: 0.03349875384 | W87: 1.122166509e-06 | X87: 1.122166509e-06 | Y87: 0.07810237375 | Z87: 1.219996157e-05 | AA87: 1.219996157e-05 | AB87: 0.08348164493 | AC87: 0.003902743623 | AD87: 0.001334863192 | AE87: 0.08107176 | AF87: 0 | AG87: 0.08634036753 | AH87: 0.2211537507 | AI87: 0.01369451481 | AJ87: 0.00494856648 | AK87: 0.01866659925 | AL87: 0.336336 | AM87: 0.00098 | AN87: 0.5544 | AO87: 0.49203 | AP87: 0.48906 | AQ87: 0.55538 | AR87: 1.098065402 | AS87: 1.099693821 | AT87: 1.099693821 | AU87: 0.7722 | AV87: 0.4125233981 | AW87: 7.091408933 | AX87: 2.982122023 | AZ87: 41.25233981 | BA87: 0.1014092024 | BB87: 0.4413429668 | BC87: 0.3083221275 | BD87: 0.1296574793 | BE87: 0.9982846188
G88: 79 | H88: 28 | I88: 1 | J88: 0.237 | K88: 0.237 | L88: 0.03103571429 | M88: 0.1248088743 | N88: 0.1161164799 | O88: 0.2950582399 | P88: 0.1789417601 | Q88: 0 | R88: 0.2393586982 | S88: 0.00143231466 | T88: 0.1 | U88: 0.1014448774 | V88: 0.03351994046 | W88: 1.123586408e-06 | X88: 1.123586408e-06 | Y88: 0.07910854556 | Z88: 1.251632396e-05 | AA88: 1.251632396e-05 | AB88: 0.08456135769 | AC88: 0.004004349 | AD88: 0.001351976822 | AE88: 0.08107176 | AF88: 0 | AG88: 0.08645993767 | AH88: 0.2239240121 | AI88: 0.01403974969 | AJ88: 0.00501200964 | AK88: 0.0190763995 | AL88: 0.340648 | AM88: 0.00098 | AN88: 0.5544 | AO88: 0.49203 | AP88: 0.48906 | AQ88: 0.55538 | AR88: 1.10294016 | AS88: 1.104618047 | AT88: 1.104618047 | AU88: 0.7821 | AV88: 0.4145293469 | AW88: 7.159615206 | AX88: 3.024275508 | AZ88: 41.45293469 | BA88: 0.1014448774 | BB88: 0.4461843372 | BC88: 0.3112876177 | BD88: 0.1314902395 | BE88: 1.00317317
G89: 80 | H89: 28 | I89: 1 | J89: 0.24 | K89: 0.24 | L89: 0.03142857143 | M89: 0.1248966677 | N89: 0.1161898561 | O89: 0.298094928 | P89: 0.181905072 | Q89: 0 | R89: 0.2423324305 | S89: 0.001468125172 | T89: 0.1 | U89: 0.1014810066 | V89: 0.03354112234 | W89: 1.125006888e-06 | X89: 1.125006888e-06 | Y89: 0.08011551572 | Z89: 1.283699172e-05 | AA89: 1.283699172e-05 | AB89: 0.08564203216 | AC89: 0.004107352296 | AD89: 0.001369090453 | AE89: 0.08107176 | AF89: 0 | AG89: 0.08658091964 | AH89: 0.2266946166 | AI89: 0.01438932578 | AJ89: 0.0050754528 | AK89: 0.01949058056 | AL89: 0.34496 | AM89: 0.00098 | AN89: 0.5544 | AO89: 0.49203 | AP89: 0.48906 | AQ89: 0.55538 | AR89: 1.107821107 | AS89: 1.109549412 | AT89: 1.109549412 | AU89: 0.792 | AV89: 0.4165024558 | AW89: 7.227853952 | AX89: 3.066529753 | AZ89: 41.65024558 | BA89: 0.1014810066 | BB89: 0.4510315002 | BC89: 0.3142545196 | BD89: 0.1333273806 | BE89: 1.008068406
G90: 81 | H90: 28 | I90: 1 | J90: 0.243 | K90: 0.243 | L90: 0.03182142857 | M90: 0.1249844561 | N90: 0.1162632159 | O90: 0.3011316079 | P90: 0.1848683921 | Q90: 0 | R90: 0.2453068037 | S90: 0.001504385699 | T90: 0.1 | U90: 0.10151759 | V90: 0.0335622995 | W90: 1.126427947e-06 | X90: 1.126427947e-06 | Y90: 0.08112327591 | Z90: 1.316197179e-05 | AA90: 1.316197179e-05 | AB90: 0.08672365958 | AC90: 0.004211756153 | AD90: 0.001386204084 | AE90: 0.08107176 | AF90: 0 | AG90: 0.08670331617 | AH90: 0.2294655417 | AI90: 0.01474324175 | AJ90: 0.00513889596 | AK90: 0.01990914204 | AL90: 0.349272 | AM90: 0.00098 | AN90: 0.5544 | AO90: 0.49203 | AP90: 0.48906 | AQ90: 0.55538 | AR90: 1.112708244 | AS90: 1.114487926 | AT90: 1.114487926 | AU90: 0.8019 | AV90: 0.4184434628 | AW90: 7.296125232 | AX90: 3.108884747 | AZ90: 41.84434628 | BA90: 0.10151759 | BB90: 0.4558844582 | BC90: 0.3172228362 | BD90: 0.135168902 | BE90: 1.012970336
G91: 82 | H91: 28 | I91: 1 | J91: 0.246 | K91: 0.246 | L91: 0.03221428571 | M91: 0.1250722394 | N91: 0.1163365593 | O91: 0.3041682797 | P91: 0.1878317203 | Q91: 0 | R91: 0.2482817947 | S91: 0.00154109624 | T91: 0.1 | U91: 0.1015546277 | V91: 0.03358347192 | W91: 1.127849586e-06 | X91: 1.127849586e-06 | Y91: 0.0821318182 | Z91: 1.349127112e-05 | AA91: 1.349127112e-05 | AB91: 0.08780623161 | AC91: 0.004317563214 | AD91: 0.001403317714 | AE91: 0.08107176 | AF91: 0 | AG91: 0.08682713004 | AH91: 0.2322367656 | AI91: 0.01510149628 | AJ91: 0.00520233912 | AK91: 0.02033208353 | AL91: 0.353584 | AM91: 0.00098 | AN91: 0.5544 | AO91: 0.49203 | AP91: 0.48906 | AQ91: 0.55538 | AR91: 1.117601573 | AS91: 1.119433599 | AT91: 1.119433599 | AU91: 0.8118 | AV91: 0.4203530843 | AW91: 7.364429111 | AX91: 3.151340481 | AZ91: 42.03530843 | BA91: 0.1015546277 | BB91: 0.4607432136 | BC91: 0.32019257 | BD91: 0.1370148035 | BE91: 1.017878972
G92: 83 | H92: 28 | I92: 1 | J92: 0.249 | K92: 0.249 | L92: 0.03260714286 | M92: 0.1251600176 | N92: 0.1164098864 | O92: 0.3072049432 | P92: 0.1907950568 | Q92: 0 | R92: 0.2512573816 | S92: 0.001578256795 | T92: 0.1 | U92: 0.1015921197 | V92: 0.03360463961 | W92: 1.129271804e-06 | X92: 1.129271804e-06 | Y92: 0.08314113499 | Z92: 1.382489665e-05 | AA92: 1.382489665e-05 | AB92: 0.08888974029 | AC92: 0.00442477612 | AD92: 0.001420431345 | AE92: 0.08107176 | AF92: 0 | AG92: 0.08695236398 | AH92: 0.2350082677 | AI92: 0.01546408805 | AJ92: 0.00526578228 | AK92: 0.02075940465 | AL92: 0.357896 | AM92: 0.00098 | AN92: 0.5544 | AO92: 0.49203 | AP92: 0.48906 | AQ92: 0.55538 | AR92: 1.122501095 | AS92: 1.124386441 | AT92: 1.124386441 | AU92: 0.8217 | AV92: 0.4222320152 | AW92: 7.432765652 | AX92: 3.193896947 | AZ92: 42.22320152 | BA92: 0.1015921197 | BB92: 0.4656077686 | BC92: 0.323163724 | BD92: 0.1388650846 | BE92: 1.022794322
G93: 84 | H93: 28 | I93: 1 | J93: 0.252 | K93: 0.252 | L93: 0.033 | M93: 0.1252477907 | N93: 0.116483197 | O93: 0.3102415985 | P93: 0.1937584015 | Q93: 0 | R93: 0.2542335434 | S93: 0.001615867365 | T93: 0.1 | U93: 0.1016300659 | V93: 0.03362580258 | W93: 1.130694599e-06 | X93: 1.130694599e-06 | Y93: 0.08415121901 | Z93: 1.416285532e-05 | AA93: 1.416285532e-05 | AB93: 0.08997417798 | AC93: 0.004533397514 | AD93: 0.001437544976 | AE93: 0.08107176 | AF93: 0 | AG93: 0.08707902076 | AH93: 0.2377800284 | AI93: 0.01583101573 | AJ93: 0.00532922544 | AK93: 0.02119110503 | AL93: 0.362208 | AM93: 0.00098 | AN93: 0.5544 | AO93: 0.49203 | AP93: 0.48906 | AQ93: 0.55538 | AR93: 1.127406811 | AS93: 1.129346463 | AT93: 1.129346463 | AU93: 0.8316 | AV93: 0.4240809302 | AW93: 7.501134917 | AX93: 3.236554136 | AZ93: 42.40809302 | BA93: 0.1016300659 | BB93: 0.4704781258 | BC93: 0.3261363008 | BD93: 0.140719745 | BE93: 1.027716397
G94: 85 | H94: 28 | I94: 1 | J94: 0.255 | K94: 0.255 | L94: 0.03339285714 | M94: 0.1253355588 | N94: 0.1165564913 | O94: 0.3132782457 | P94: 0.1967217543 | Q94: 0 | R94: 0.2572102602 | S94: 0.001653927949 | T94: 0.1 | U94: 0.1016684664 | V94: 0.03364696082 | W94: 1.132117972e-06 | X94: 1.132117972e-06 | Y94: 0.08516206334 | Z94: 1.450515406e-05 | AA94: 1.450515406e-05 | AB94: 0.09105953739 | AC94: 0.004643430036 | AD94: 0.001454658606 | AE94: 0.08107176 | AF94: 0 | AG94: 0.08720710313 | AH94: 0.2405520289 | AI94: 0.01620227801 | AJ94: 0.0053926686 | AK94: 0.0216271843 | AL94: 0.36652 | AM94: 0.00098 | AN94: 0.5544 | AO94: 0.49203 | AP94: 0.48906 | AQ94: 0.55538 | AR94: 1.132318723 | AS94: 1.134313674 | AT94: 1.134313674 | AU94: 0.8415 | AV94: 0.425900484 | AW94: 7.569536972 | AX94: 3.279312039 | AZ94: 42.5900484 | BA94: 0.1016684664 | BB94: 0.4753542874 | BC94: 0.3291103031 | BD94: 0.1425787843 | BE94: 1.032645208
G95: 86 | H95: 28 | I95: 1 | J95: 0.258 | K95: 0.258 | L95: 0.03378571429 | M95: 0.1254233218 | N95: 0.1166297692 | O95: 0.3163148846 | P95: 0.1996851154 | Q95: 0 | R95: 0.260187513 | S95: 0.001692438548 | T95: 0.1 | U95: 0.1017073212 | V95: 0.03366811433 | W95: 1.133541922e-06 | X95: 1.133541922e-06 | Y95: 0.0861736613 | Z95: 1.48517998e-05 | AA95: 1.48517998e-05 | AB95: 0.09214581156 | AC95: 0.004754876329 | AD95: 0.001471772237 | AE95: 0.08107176 | AF95: 0 | AG95: 0.08733661385 | AH95: 0.2433242514 | AI95: 0.01657787357 | AJ95: 0.00545611176 | AK95: 0.02206764212 | AL95: 0.370832 | AM95: 0.00098 | AN95: 0.5544 | AO95: 0.49203 | AP95: 0.48906 | AQ95: 0.55538 | AR95: 1.137236832 | AS95: 1.139288085 | AT95: 1.139288085 | AU95: 0.8514 | AV95: 0.4276913127 | AW95: 7.637971878 | AX95: 3.322170649 | AZ95: 42.76913127 | BA95: 0.1017073212 | BB95: 0.480236256 | BC95: 0.3320857338 | BD95: 0.1444422021 | BE95: 1.037580763
G96: 87 | H96: 28 | I96: 1 | J96: 0.261 | K96: 0.261 | L96: 0.03417857143 | M96: 0.1255110798 | N96: 0.1167030307 | O96: 0.3193515154 | P96: 0.2026484846 | Q96: 0 | R96: 0.2631652835 | S96: 0.001731399161 | T96: 0.1 | U96: 0.1017466303 | V96: 0.03368926311 | W96: 1.134966449e-06 | X96: 1.134966449e-06 | Y96: 0.08718600653 | Z96: 1.520279947e-05 | AA96: 1.520279947e-05 | AB96: 0.09323299379 | AC96: 0.004867739033 | AD96: 0.001488885868 | AE96: 0.08107176 | AF96: 0 | AG96: 0.08746755567 | AH96: 0.2460966788 | AI96: 0.01695780109 | AJ96: 0.00551955492 | AK96: 0.02251247812 | AL96: 0.375144 | AM96: 0.00098 | AN96: 0.5544 | AO96: 0.49203 | AP96: 0.48906 | AQ96: 0.55538 | AR96: 1.14216114 | AS96: 1.144269705 | AT96: 1.144269705 | AU96: 0.8613 | AV96: 0.4294540338 | AW96: 7.7064397 | AX96: 3.365129957 | AZ96: 42.94540338 | BA96: 0.1017466303 | BB96: 0.4851240338 | BC96: 0.3350625957 | BD96: 0.1463099981 | BE96: 1.042523075
G97: 88 | H97: 28 | I97: 1 | J97: 0.264 | K97: 0.264 | L97: 0.03457142857 | M97: 0.1255988327 | N97: 0.1167762759 | O97: 0.3223881379 | P97: 0.2056118621 | Q97: 0 | R97: 0.2661435544 | S97: 0.001770809789 | T97: 0.1 | U97: 0.1017863937 | V97: 0.03371040716 | W97: 1.136391551e-06 | X97: 1.136391551e-06 | Y97: 0.0881990929 | Z97: 1.555815998e-05 | AA97: 1.555815998e-05 | AB97: 0.09432107768 | AC97: 0.004982020789 | AD97: 0.001505999498 | AE97: 0.08107176 | AF97: 0 | AG97: 0.08759993136 | AH97: 0.2488692947 | AI97: 0.01734205924 | AJ97: 0.00558299808 | AK97: 0.022961692 | AL97: 0.379456 | AM97: 0.00098 | AN97: 0.5544 | AO97: 0.49203 | AP97: 0.48906 | AQ97: 0.55538 | AR97: 1.147091647 | AS97: 1.149258546 | AT97: 1.149258546 | AU97: 0.8712 | AV97: 0.4311892475 | AW97: 7.774940501 | AX97: 3.408189956 | AZ97: 43.11892475 | BA97: 0.1017863937 | BB97: 0.4900176234 | BC97: 0.3380408914 | BD97: 0.148182172 | BE97: 1.047472152
G98: 89 | H98: 28 | I98: 1 | J98: 0.267 | K98: 0.267 | L98: 0.03496428571 | M98: 0.1256865805 | N98: 0.1168495047 | O98: 0.3254247523 | P98: 0.2085752477 | Q98: 0 | R98: 0.2691223091 | S98: 0.001810670431 | T98: 0.1 | U98: 0.1018266114 | V98: 0.03373154649 | W98: 1.137817228e-06 | X98: 1.137817228e-06 | Y98: 0.08921291456 | Z98: 1.591788825e-05 | AA98: 1.591788825e-05 | AB98: 0.0954100571 | AC98: 0.005097724237 | AD98: 0.001523113129 | AE98: 0.08107176 | AF98: 0 | AG98: 0.08773374367 | AH98: 0.2516420836 | AI98: 0.01773064671 | AJ98: 0.00564644124 | AK98: 0.02341528341 | AL98: 0.383768 | AM98: 0.00098 | AN98: 0.5544 | AO98: 0.49203 | AP98: 0.48906 | AQ98: 0.55538 | AR98: 1.152028356 | AS98: 1.154254617 | AT98: 1.154254617 | AU98: 0.8811 | AV98: 0.4328975368 | AW98: 7.843474344 | AX98: 3.451350638 | AZ98: 43.28975368 | BA98: 0.1018266114 | BB98: 0.4949170271 | BC98: 0.3410206237 | BD98: 0.1500587234 | BE98: 1.052428005
G99: 90 | H99: 28 | I99: 1 | J99: 0.27 | K99: 0.27 | L99: 0.03535714286 | M99: 0.1257743233 | N99: 0.1169227171 | O99: 0.3284613585 | P99: 0.2115386415 | Q99: 0 | R99: 0.2721015316 | S99: 0.001850981087 | T99: 0.1 | U99: 0.1018672835 | V99: 0.03375268109 | W99: 1.139243481e-06 | X99: 1.139243481e-06 | Y99: 0.09022746586 | Z99: 1.628199119e-05 | AA99: 1.628199119e-05 | AB99: 0.09649992614 | AC99: 0.005214852017 | AD99: 0.00154022676 | AE99: 0.08107176 | AF99: 0 | AG99: 0.08786899537 | AH99: 0.2544150305 | AI99: 0.01812356217 | AJ99: 0.0057098844 | AK99: 0.02387325206 | AL99: 0.38808 | AM99: 0.00098 | AN99: 0.5544 | AO99: 0.49203 | AP99: 0.48906 | AQ99: 0.55538 | AR99: 1.156971266 | AS99: 1.159257928 | AT99: 1.159257928 | AU99: 0.891 | AV99: 0.4345794681 | AW99: 7.912041293 | AX99: 3.494611997 | AZ99: 43.45794681 | BA99: 0.1018672835 | BB99: 0.4998222474 | BC99: 0.3440017954 | BD99: 0.1519396521 | BE99: 1.057390645
G100: 91 | H100: 28 | I100: 1 | J100: 0.273 | K100: 0.273 | L100: 0.03575 | M100: 0.125862061 | N100: 0.1169959131 | O100: 0.3314979565 | P100: 0.2145020435 | Q100: 0 | R100: 0.2750812067 | S100: 0.001891741758 | T100: 0.1 | U100: 0.1019084099 | V100: 0.03377381096 | W100: 1.140670307e-06 | X100: 1.140670307e-06 | Y100: 0.0912427414 | Z100: 1.665047572e-05 | AA100: 1.665047572e-05 | AB100: 0.09759067916 | AC100: 0.005333406769 | AD100: 0.00155734039 | AE100: 0.08107176 | AF100: 0 | AG100: 0.08800568921 | AH100: 0.2571881211 | AI100: 0.0185208043 | AJ100: 0.00577332756 | AK100: 0.02433559763 | AL100: 0.392392 | AM100: 0.00098 | AN100: 0.5544 | AO100: 0.49203 | AP100: 0.48906 | AQ100: 0.55538 | AR100: 1.161920381 | AS100: 1.164268491 | AT100: 1.164268491 | AU100: 0.9009 | AV100: 0.4362355924 | AW100: 7.980641412 | AX100: 3.537974025 | AZ100: 43.62355924 | BA100: 0.1019084099 | BB100: 0.5047332868 | BC100: 0.3469844092 | BD100: 0.1538249576 | BE100: 1.062360081
G101: 92 | H101: 28 | I101: 1 | J101: 0.276 | K101: 0.276 | L101: 0.03614285714 | M101: 0.1259497936 | N101: 0.1170690928 | O101: 0.3345345464 | P101: 0.2174654536 | Q101: 0 | R101: 0.27806132 | S101: 0.001932952443 | T101: 0.1 | U101: 0.1019499906 | V101: 0.03379493611 | W101: 1.142097707e-06 | X101: 1.142097707e-06 | Y101: 0.09225873598 | Z101: 1.702334873e-05 | AA101: 1.702334873e-05 | AB101: 0.09868231072 | AC101: 0.005453391132 | AD101: 0.001574454021 | AE101: 0.08107176 | AF101: 0 | AG101: 0.08814382797 | AH101: 0.2599613419 | AI101: 0.01892237179 | AJ101: 0.00583677072 | AK101: 0.02480231983 | AL101: 0.396704 | AM101: 0.00098 | AN101: 0.5544 | AO101: 0.49203 | AP101: 0.48906 | AQ101: 0.55538 | AR101: 1.1668757 | AS101: 1.169286315 | AT101: 1.169286315 | AU101: 0.9108 | AV101: 0.437866445 | AW101: 8.049274763 | AX101: 3.581436716 | AZ101: 43.7866445 | BA101: 0.1019499906 | BB101: 0.5096501478 | BC101: 0.349968468 | BD101: 0.1557146398 | BE101: 1.067336324
G102: 93 | H102: 28 | I102: 1 | J102: 0.279 | K102: 0.279 | L102: 0.03653571429 | M102: 0.1260375212 | N102: 0.117142256 | O102: 0.337571128 | P102: 0.220428872 | Q102: 0 | R102: 0.2810418575 | S102: 0.001974613142 | T102: 0.1 | U102: 0.1019920257 | V102: 0.03381605653 | W102: 1.143525679e-06 | X102: 1.143525679e-06 | Y102: 0.09327544459 | Z102: 1.740061713e-05 | AA102: 1.740061713e-05 | AB102: 0.09977481561 | AC102: 0.005574807745 | AD102: 0.001591567652 | AE102: 0.08107176 | AF102: 0 | AG102: 0.0882834144 | AH102: 0.2627346796 | AI102: 0.01932826332 | AJ102: 0.00590021388 | AK102: 0.0252734184 | AL102: 0.401016 | AM102: 0.00098 | AN102: 0.5544 | AO102: 0.49203 | AP102: 0.48906 | AQ102: 0.55538 | AR102: 1.171837226 | AS102: 1.174311411 | AT102: 1.174311411 | AU102: 0.9207 | AV102: 0.4394725467 | AW102: 8.117941411 | AX102: 3.625000063 | AZ102: 43.94725467 | BA102: 0.1019920257 | BB102: 0.5145728328 | BC102: 0.3529539744 | BD102: 0.1576086984 | BE102: 1.072319385
G103: 94 | H103: 28 | I103: 1 | J103: 0.282 | K103: 0.282 | L103: 0.03692857143 | M103: 0.1261252437 | N103: 0.117215403 | O103: 0.3406077015 | P103: 0.2233922985 | Q103: 0 | R103: 0.2840228058 | S103: 0.002016723856 | T103: 0.1 | U103: 0.1020345152 | V103: 0.03383717223 | W103: 1.144954224e-06 | X103: 1.144954224e-06 | Y103: 0.09429286242 | Z103: 1.778228781e-05 | AA103: 1.778228781e-05 | AB103: 0.1008681888 | AC103: 0.005697659246 | AD103: 0.001608681282 | AE103: 0.08107176 | AF103: 0 | AG103: 0.08842445127 | AH103: 0.2655081217 | AI103: 0.01973847756 | AJ103: 0.00596365704 | AK103: 0.02574889304 | AL103: 0.405328 | AM103: 0.00098 | AN103: 0.5544 | AO103: 0.49203 | AP103: 0.48906 | AQ103: 0.55538 | AR103: 1.176804959 | AS103: 1.179343788 | AT103: 1.179343788 | AU103: 0.9306 | AV103: 0.441054404 | AW103: 8.186641419 | AX103: 3.66866406 | AZ103: 44.1054404 | BA103: 0.1020345152 | BB103: 0.5195013443 | BC103: 0.3559409313 | BD103: 0.159507133 | BE103: 1.077309273
G104: 95 | H104: 28 | I104: 1 | J104: 0.285 | K104: 0.285 | L104: 0.03732142857 | M104: 0.1262129612 | N104: 0.1172885335 | O104: 0.3436442668 | P104: 0.2263557332 | Q104: 0 | R104: 0.2870041521 | S104: 0.002059284584 | T104: 0.1 | U104: 0.102077459 | V104: 0.0338582832 | W104: 1.146383341e-06 | X104: 1.146383341e-06 | Y104: 0.09531098483 | Z104: 1.816836766e-05 | AA104: 1.816836766e-05 | AB104: 0.1019624255 | AC104: 0.005821948276 | AD104: 0.001625794913 | AE104: 0.08107176 | AF104: 0 | AG104: 0.08856694135 | AH104: 0.2682816564 | AI104: 0.0201530132 | AJ104: 0.0060271002 | AK104: 0.02622874351 | AL104: 0.40964 | AM104: 0.00098 | AN104: 0.5544 | AO104: 0.49203 | AP104: 0.48906 | AQ104: 0.55538 | AR104: 1.181778901 | AS104: 1.184383458 | AT104: 1.184383458 | AU104: 0.9405 | AV104: 0.4426125095 | AW104: 8.255374851 | AX104: 3.712428701 | AZ104: 44.26125095 | BA104: 0.102077459 | BB104: 0.5244356849 | BC104: 0.3589293413 | BD104: 0.1614099435 | BE104: 1.082305999
G105: 96 | H105: 28 | I105: 1 | J105: 0.288 | K105: 0.288 | L105: =Vout*K105/(Vin*Efficiency) -> 0.03771428571 | M105: 0.1263006736 | N105: =(Vin-(Rdson1+Rdcr)*K105-Vout)*M105/(Fsw*Lf) -> 0.1173616477 | O105: 0.3466808239 | P105: 0.2293191761 | Q105: =IF(MIN(Vin, -P105/(Coss_Q1+Coss_Q2)*0.00000002)<0, 0, MIN(Vin, -P105/(Coss_Q1+Coss_Q2)*0.00000002)) -> 0 | R105: 0.2899858842 | S105: =R105^2*Rdcr -> 0.002102295326 | T105: 0.1 | U105: =(T105+S105*(1+Ltc*(Ta-25)))/(1-S105*Ltc*ThetaCa) -> 0.1021208573 | V105: 0.03387938945 | W105: 1.147813029e-06 | X105: 1.147813029e-06 | Y105: 0.09632980736 | Z105: 1.855886357e-05 | AA105: 1.855886357e-05 | AB105: 0.103057521 | AC105: =Rdson1*AB105^2 -> 0.005947677471 | AD105: 0.001642908544 | AE105: 0.08107176 | AF105: 0 | AG105: =(AF105+AE105+AD105+AC105*(1+RdsonTopTc*Ta-RdsonTopTc*25))/(1-AC105*RdsonTopTc*ThetaJA_Q1) -> 0.0887108874 | AH105: 0.2710552719 | AI105: =Rdson2*AH105^2 -> 0.02057186891 | AJ105: 0.00609054336 | AK105: =(AJ105+AI105*(1+RdsonBotTc*Ta-RdsonBotTc*25))/(1-AI105*RdsonBotTc*ThetaJA_Q2) -> 0.02671296956 | AL105: 0.413952 | AM105: 0.00098 | AN105: 0.5544 | AO105: 0.49203 | AP105: 0.48906 | AQ105: 0.55538 | AR105: 1.186759054 | AS105: 1.189430432 | AT105: 1.189430432 | AU105: 0.9504 | AV105: 0.4441473427 | AW105: 8.32414177 | AX105: 3.75629398 | AZ105: 44.41473427 | BA105: 0.1021208573 | BB105: 0.529375857 | BC105: 0.3619192074 | BD105: 0.1633171296 | BE105: 1.087309574
G106: 97 | H106: 28 | I106: 1 | J106: 0.291 | K106: 0.291 | L106: 0.03810714286 | M106: 0.1263883809 | N106: 0.1174347455 | O106: 0.3497173728 | P106: 0.2322826272 | Q106: 0 | R106: 0.2929679902 | S106: 0.002145756082 | T106: 0.1 | U106: 0.1021647099 | V106: 0.03390049097 | W106: 1.149243288e-06 | X106: 1.149243288e-06 | Y106: 0.09734932571 | Z106: 1.895378243e-05 | AA106: 1.895378243e-05 | AB106: 0.1041534708 | AC106: 0.006074849469 | AD106: 0.001660022174 | AE106: 0.08107176 | AF106: 0 | AG106: 0.08885629219 | AH106: 0.2738289572 | AI106: 0.02099504339 | AJ106: 0.00615398652 | AK106: 0.02720157094 | AL106: 0.418264 | AM106: 0.00098 | AN106: 0.5544 | AO106: 0.49203 | AP106: 0.48906 | AQ106: 0.55538 | AR106: 1.191745418 | AS106: 1.194484718 | AT106: 1.194484718 | AU106: 0.9603 | AV106: 0.44565937 | AW106: 8.39294224 | AX106: 3.800259892 | AZ106: 44.565937 | BA106: 0.1021647099 | BB106: 0.5343218631 | BC106: 0.3649105322 | BD106: 0.1652286909 | BE106: 1.092320008
G107: 98 | H107: 28 | I107: 1 | J107: 0.294 | K107: 0.294 | L107: 0.0385 | M107: 0.1264760832 | N107: 0.117507827 | O107: 0.3527539135 | P107: 0.2352460865 | Q107: 0 | R107: 0.2959504589 | S107: 0.002189666853 | T107: 0.1 | U107: 0.1022090169 | V107: 0.03392158777 | W107: 1.150674117e-06 | X107: 1.150674117e-06 | Y107: 0.09836953572 | Z107: 1.935313111e-05 | AA107: 1.935313111e-05 | AB107: 0.1052502707 | AC107: 0.006203466908 | AD107: 0.001677135805 | AE107: 0.08107176 | AF107: 0 | AG107: 0.0890031585 | AH107: 0.2766027018 | AI107: 0.0214225353 | AJ107: 0.00621742968 | AK107: 0.02769454742 | AL107: 0.422576 | AM107: 0.00098 | AN107: 0.5544 | AO107: 0.49203 | AP107: 0.48906 | AQ107: 0.55538 | AR107: 1.196737995 | AS107: 1.199546329 | AT107: 1.199546329 | AU107: 0.9702 | AV107: 0.4471490456 | AW107: 8.461776326 | AX107: 3.844326431 | AZ107: 44.71490456 | BA107: 0.1022090169 | BB107: 0.5392737059 | BC107: 0.3679033185 | BD107: 0.1671446274 | BE107: 1.097337312
G108: 99 | H108: 28 | I108: 1 | J108: 0.297 | K108: 0.297 | L108: 0.03889285714 | M108: 0.1265637804 | N108: 0.1175808921 | O108: 0.355790446 | P108: 0.238209554 | Q108: 0 | R108: 0.2989332794 | S108: 0.002234027638 | T108: 0.1 | U108: 0.1022537784 | V108: 0.03394267985 | W108: 1.152105515e-06 | X108: 1.152105515e-06 | Y108: 0.09939043339 | Z108: 1.97569165e-05 | AA108: 1.97569165e-05 | AB108: 0.1063479164 | AC108: 0.006333532426 | AD108: 0.001694249436 | AE108: 0.08107176 | AF108: 0 | AG108: 0.0891514891 | AH108: 0.2793764954 | AI108: 0.02185434333 | AJ108: 0.00628087284 | AK108: 0.02819189879 | AL108: 0.426888 | AM108: 0.00098 | AN108: 0.5544 | AO108: 0.49203 | AP108: 0.48906 | AQ108: 0.55538 | AR108: 1.201736786 | AS108: 1.204615273 | AT108: 1.204615273 | AU108: 0.9801 | AV108: 0.4486168115 | AW108: 8.530644089 | AX108: 3.888493592 | AZ108: 44.86168115 | BA108: 0.1022537784 | BB108: 0.5442313879 | BC108: 0.3708975691 | BD108: 0.1690649388 | BE108: 1.102361495
G109: 100 | H109: 28 | I109: 1 | J109: 0.3 | K109: 0.3 | L109: 0.03928571429 | M109: 0.1266514725 | N109: 0.1176539408 | O109: 0.3588269704 | P109: 0.2411730296 | Q109: 0 | R109: 0.3019164412 | S109: 0.002278838437 | T109: 0.1 | U109: 0.1022989942 | V109: 0.03396376721 | W109: 1.153537483e-06 | X109: 1.153537483e-06 | Y109: 0.1004120148 | Z109: 2.016514545e-05 | AA109: 2.016514545e-05 | AB109: 0.1074464041 | AC109: 0.006465048659 | AD109: 0.001711363066 | AE109: 0.08107176 | AF109: 0 | AG109: 0.08930128674 | AH109: 0.2821503283 | AI109: 0.02229046617 | AJ109: 0.006344316 | AK109: 0.02869362484 | AL109: 0.4312 | AM109: 0.00098 | AN109: 0.5544 | AO109: 0.49203 | AP109: 0.48906 | AQ109: 0.55538 | AR109: 1.206741792 | AS109: 1.209691563 | AT109: 1.209691563 | AU109: 0.99 | AV109: 0.4500630982 | AW109: 8.599545595 | AX109: 3.932761371 | AZ109: 45.00630982 | BA109: 0.1022989942 | BB109: 0.5491949116 | BC109: 0.3738932867 | BD109: 0.1709896248 | BE109: 1.107392569

Sheet Efficiency Plot Management (hidden)
A2: ="EFF_Ch1" -> EFF_Ch1
A3: ="EFF_Ch2" -> EFF_Ch2

Sheet Standard Value Calculator (hidden)
A2: Capacitors | B2: Css | C2: Cc1ea | D2: Cc2ea | E2: Cout | F2: Cin | G2: Cres | H2: Cdither | I2: Cc3ea | J2: Cc4ea
A3: Inputs | B3: =Css ->  | C3: =Cc1ea -> 2.47541965e-11 | D3: =Cc2ea -> -3.379411768e-13 | E3: =Cout -> 2.2e-05 | F3: =Cin -> 2e-05 | G3: =Cres ->  | H3: =Cdither_init ->  | I3: =Cc3ea ->  | J3: =Cc4ea ->  | M3: Resistors | N3: inputs | O3: Standard Result
A4: Standard Result | B4: =SUM(B6:B158)/1000000000000 ->  | C4: =IF(C3="OPEN","OPEN",SUM(C6:C158)/1000000000000) -> 2.7e-11 | D4: =SUM(D6:D158)/1000000000000 -> 0 | E4: =SUM(E6:E158)/1000000000000 -> 2.2e-05 | F4: =SUM(F6:F158)/1000000000000 -> 2.2e-05 | G4: =SUM(G6:G158)/1000000000000 ->  | H4: =IF(H3="OPEN","OPEN",SUM(H6:H158)/1000000000000) ->  | M4: Rt | N4: =Rfadj -> 7.15 | O4: =IF(N4>(INT(0.5+100*POWER(10,IF(96*(LOG(N4)-INT(LOG(N4)))-ROUND(96*(LOG(N4)-INT(LOG(N4))),0)<0,ROUND(96*(LOG(N4)-INT(LOG(N4))),0)-1,ROUND(96*(LOG(N4)-INT(LOG(N4))),0))/96))*POWER(10,INT(LOG(N4))-2)+INT(0.5+100*POWER(10,(IF(96*(LOG(N4)-INT(LOG(N4)))-ROUND(96*(LOG(N4)-INT(LOG(N4))),0)<0,ROUND(96*(LOG(N4)-INT(LOG(N4))),0)-1,ROUND(96*(LOG(N4)-INT(LOG(N4))),0))+1)/96))*POWER(10,INT(LOG(N4))-2))/2,INT(0.5+100*POWER(10,(IF(96*(LOG(N4)-INT(LOG(N4)))-ROUND(96*(LOG(N4)-INT(LOG(N4))),0)<0,ROUND(96*(LOG(N4)-INT(LOG(N4))),0)-1,ROUND(96*(LOG(N4)-INT(LOG(N4))),0))+1)/96))*POWER(10,INT(LOG(N4))-2),INT(0.5+100*POWER(10,IF(96*(LOG(N4)-INT(LOG(N4)))-ROUND(96*(LOG(N4)-INT(LOG(N4))),0)<0,ROUND(96*(LOG(N4)-INT(LOG(N4))),0)-1,ROUND(96*(LOG(N4)-INT(LOG(N4))),0))/96))*POWER(10,INT(LOG(N4))-2)) -> 7.15 | P4: Ω
A5: (pF)
A6: 0.47 | B6: =IF(IF((B$3*10^12-$A7)*(B$3*10^12-$A6)*-1<0,0,1)*IF(ABS(B$3*10^12-$A7)>(B$3*10^12-$A6),$A6,$A7)=B7,0,IF((B$3*10^12-$A7)*(B$3*10^12-$A6)*-1<0,0,1)*IF(ABS(B$3*10^12-$A7)>(B$3*10^12-$A6),$A6,$A7)) ->  | C6: 0 | D6: 0 | E6: 0 | F6: 0
A7: 0.56 | B7: =IF(IF((B$3*10^12-$A8)*(B$3*10^12-$A7)*-1<0,0,1)*IF(ABS(B$3*10^12-$A8)>(B$3*10^12-$A7),$A7,$A8)=B8,0,IF((B$3*10^12-$A8)*(B$3*10^12-$A7)*-1<0,0,1)*IF(ABS(B$3*10^12-$A8)>(B$3*10^12-$A7),$A7,$A8)) ->  | C7: =IF(IF((C$3*10^12-$A8)*(C$3*10^12-$A7)*-1<0,0,1)*IF(ABS(C$3*10^12-$A8)>(C$3*10^12-$A7),$A7,$A8)=C8,0,IF((C$3*10^12-$A8)*(C$3*10^12-$A7)*-1<0,0,1)*IF(ABS(C$3*10^12-$A8)>(C$3*10^12-$A7),$A7,$A8)) -> 0 | D7: =IF(IF((D$3*10^12-$A8)*(D$3*10^12-$A7)*-1<0,0,1)*IF(ABS(D$3*10^12-$A8)>(D$3*10^12-$A7),$A7,$A8)=D8,0,IF((D$3*10^12-$A8)*(D$3*10^12-$A7)*-1<0,0,1)*IF(ABS(D$3*10^12-$A8)>(D$3*10^12-$A7),$A7,$A8)) -> 0 | E7: =IF(IF((E$3*10^12-$A8)*(E$3*10^12-$A7)*-1<0,0,1)*IF(ABS(E$3*10^12-$A8)>(E$3*10^12-$A7),$A7,$A8)=E8,0,IF((E$3*10^12-$A8)*(E$3*10^12-$A7)*-1<0,0,1)*IF(ABS(E$3*10^12-$A8)>(E$3*10^12-$A7),$A7,$A8)) -> 0 | F7: =IF(IF((F$3*10^12-$A8)*(F$3*10^12-$A7)*-1<0,0,1)*IF(ABS(F$3*10^12-$A8)>(F$3*10^12-$A7),$A7,$A8)=F8,0,IF((F$3*10^12-$A8)*(F$3*10^12-$A7)*-1<0,0,1)*IF(ABS(F$3*10^12-$A8)>(F$3*10^12-$A7),$A7,$A8)) -> 0 | G7: =IF(IF((G$3*10^12-$A8)*(G$3*10^12-$A7)*-1<0,0,1)*IF(ABS(G$3*10^12-$A8)>(G$3*10^12-$A7),$A7,$A8)=G8,0,IF((G$3*10^12-$A8)*(G$3*10^12-$A7)*-1<0,0,1)*IF(ABS(G$3*10^12-$A8)>(G$3*10^12-$A7),$A7,$A8)) ->  | M7: Renb | N7: =Renb -> 98804.20206 | O7: 100000 | P7: Ω
A8: 0.68 | C8: 0 | D8: 0 | E8: 0 | F8: 0 | M8: Rc1ea | N8: =Rcea2 -> 0 | O8: =IF(N8>(INT(0.5+100*POWER(10,IF(96*(LOG(N8)-INT(LOG(N8)))-ROUND(96*(LOG(N8)-INT(LOG(N8))),0)<0,ROUND(96*(LOG(N8)-INT(LOG(N8))),0)-1,ROUND(96*(LOG(N8)-INT(LOG(N8))),0))/96))*POWER(10,INT(LOG(N8))-2)+INT(0.5+100*POWER(10,(IF(96*(LOG(N8)-INT(LOG(N8)))-ROUND(96*(LOG(N8)-INT(LOG(N8))),0)<0,ROUND(96*(LOG(N8)-INT(LOG(N8))),0)-1,ROUND(96*(LOG(N8)-INT(LOG(N8))),0))+1)/96))*POWER(10,INT(LOG(N8))-2))/2,INT(0.5+100*POWER(10,(IF(96*(LOG(N8)-INT(LOG(N8)))-ROUND(96*(LOG(N8)-INT(LOG(N8))),0)<0,ROUND(96*(LOG(N8)-INT(LOG(N8))),0)-1,ROUND(96*(LOG(N8)-INT(LOG(N8))),0))+1)/96))*POWER(10,INT(LOG(N8))-2),INT(0.5+100*POWER(10,IF(96*(LOG(N8)-INT(LOG(N8)))-ROUND(96*(LOG(N8)-INT(LOG(N8))),0)<0,ROUND(96*(LOG(N8)-INT(LOG(N8))),0)-1,ROUND(96*(LOG(N8)-INT(LOG(N8))),0))/96))*POWER(10,INT(LOG(N8))-2)) ->  | P8: Ω
A9: 0.82 | C9: 0 | D9: 0 | E9: 0 | F9: 0
A10: 1 | C10: 0 | D10: 0 | E10: 0 | F10: 0 | M10: Rfb1 | N10: =Rfb1_ -> 100000 | O10: =IF(N10>(INT(0.5+100*POWER(10,IF(96*(LOG(N10)-INT(LOG(N10)))-ROUND(96*(LOG(N10)-INT(LOG(N10))),0)<0,ROUND(96*(LOG(N10)-INT(LOG(N10))),0)-1,ROUND(96*(LOG(N10)-INT(LOG(N10))),0))/96))*POWER(10,INT(LOG(N10))-2)+INT(0.5+100*POWER(10,(IF(96*(LOG(N10)-INT(LOG(N10)))-ROUND(96*(LOG(N10)-INT(LOG(N10))),0)<0,ROUND(96*(LOG(N10)-INT(LOG(N10))),0)-1,ROUND(96*(LOG(N10)-INT(LOG(N10))),0))+1)/96))*POWER(10,INT(LOG(N10))-2))/2,INT(0.5+100*POWER(10,(IF(96*(LOG(N10)-INT(LOG(N10)))-ROUND(96*(LOG(N10)-INT(LOG(N10))),0)<0,ROUND(96*(LOG(N10)-INT(LOG(N10))),0)-1,ROUND(96*(LOG(N10)-INT(LOG(N10))),0))+1)/96))*POWER(10,INT(LOG(N10))-2),INT(0.5+100*POWER(10,IF(96*(LOG(N10)-INT(LOG(N10)))-ROUND(96*(LOG(N10)-INT(LOG(N10))),0)<0,ROUND(96*(LOG(N10)-INT(LOG(N10))),0)-1,ROUND(96*(LOG(N10)-INT(LOG(N10))),0))/96))*POWER(10,INT(LOG(N10))-2)) -> 100000 | P10: Ω
A11: 1.2 | C11: 0 | D11: 0 | E11: 0 | F11: 0 | M11: Rfb2 | N11: =Rfb2_ -> 43478.26087 | O11: =IF(N11="OPEN","OPEN",IF(N11>(INT(0.5+100*POWER(10,IF(96*(LOG(N11)-INT(LOG(N11)))-ROUND(96*(LOG(N11)-INT(LOG(N11))),0)<0,ROUND(96*(LOG(N11)-INT(LOG(N11))),0)-1,ROUND(96*(LOG(N11)-INT(LOG(N11))),0))/96))*POWER(10,INT(LOG(N11))-2)+INT(0.5+100*POWER(10,(IF(96*(LOG(N11)-INT(LOG(N11)))-ROUND(96*(LOG(N11)-INT(LOG(N11))),0)<0,ROUND(96*(LOG(N11)-INT(LOG(N11))),0)-1,ROUND(96*(LOG(N11)-INT(LOG(N11))),0))+1)/96))*POWER(10,INT(LOG(N11))-2))/2,INT(0.5+100*POWER(10,(IF(96*(LOG(N11)-INT(LOG(N11)))-ROUND(96*(LOG(N11)-INT(LOG(N11))),0)<0,ROUND(96*(LOG(N11)-INT(LOG(N11))),0)-1,ROUND(96*(LOG(N11)-INT(LOG(N11))),0))+1)/96))*POWER(10,INT(LOG(N11))-2),INT(0.5+100*POWER(10,IF(96*(LOG(N11)-INT(LOG(N11)))-ROUND(96*(LOG(N11)-INT(LOG(N11))),0)<0,ROUND(96*(LOG(N11)-INT(LOG(N11))),0)-1,ROUND(96*(LOG(N11)-INT(LOG(N11))),0))/96))*POWER(10,INT(LOG(N11))-2))) -> 43200 | P11: Ω
A12: 1.5 | C12: 0 | D12: 0 | E12: 0 | F12: 0 | M12: Rt1 | N12: ='Variable Management'!B25*1000 -> 7071.395996 | O12: =IF(N12>(INT(0.5+100*POWER(10,IF(96*(LOG(N12)-INT(LOG(N12)))-ROUND(96*(LOG(N12)-INT(LOG(N12))),0)<0,ROUND(96*(LOG(N12)-INT(LOG(N12))),0)-1,ROUND(96*(LOG(N12)-INT(LOG(N12))),0))/96))*POWER(10,INT(LOG(N12))-2)+INT(0.5+100*POWER(10,(IF(96*(LOG(N12)-INT(LOG(N12)))-ROUND(96*(LOG(N12)-INT(LOG(N12))),0)<0,ROUND(96*(LOG(N12)-INT(LOG(N12))),0)-1,ROUND(96*(LOG(N12)-INT(LOG(N12))),0))+1)/96))*POWER(10,INT(LOG(N12))-2))/2,INT(0.5+100*POWER(10,(IF(96*(LOG(N12)-INT(LOG(N12)))-ROUND(96*(LOG(N12)-INT(LOG(N12))),0)<0,ROUND(96*(LOG(N12)-INT(LOG(N12))),0)-1,ROUND(96*(LOG(N12)-INT(LOG(N12))),0))+1)/96))*POWER(10,INT(LOG(N12))-2),INT(0.5+100*POWER(10,IF(96*(LOG(N12)-INT(LOG(N12)))-ROUND(96*(LOG(N12)-INT(LOG(N12))),0)<0,ROUND(96*(LOG(N12)-INT(LOG(N12))),0)-1,ROUND(96*(LOG(N12)-INT(LOG(N12))),0))/96))*POWER(10,INT(LOG(N12))-2)) -> 7150 | P12: Ω
A13: 1.8 | C13: 0 | D13: 0 | E13: 0 | F13: 0 | M13: Rt2 | N13: ='Variable Management'!#REF!*1000 ->  | O13: =IF(N13="OPEN","OPEN",IF(N13>(INT(0.5+100*POWER(10,IF(96*(LOG(N13)-INT(LOG(N13)))-ROUND(96*(LOG(N13)-INT(LOG(N13))),0)<0,ROUND(96*(LOG(N13)-INT(LOG(N13))),0)-1,ROUND(96*(LOG(N13)-INT(LOG(N13))),0))/96))*POWER(10,INT(LOG(N13))-2)+INT(0.5+100*POWER(10,(IF(96*(LOG(N13)-INT(LOG(N13)))-ROUND(96*(LOG(N13)-INT(LOG(N13))),0)<0,ROUND(96*(LOG(N13)-INT(LOG(N13))),0)-1,ROUND(96*(LOG(N13)-INT(LOG(N13))),0))+1)/96))*POWER(10,INT(LOG(N13))-2))/2,INT(0.5+100*POWER(10,(IF(96*(LOG(N13)-INT(LOG(N13)))-ROUND(96*(LOG(N13)-INT(LOG(N13))),0)<0,ROUND(96*(LOG(N13)-INT(LOG(N13))),0)-1,ROUND(96*(LOG(N13)-INT(LOG(N13))),0))+1)/96))*POWER(10,INT(LOG(N13))-2),INT(0.5+100*POWER(10,IF(96*(LOG(N13)-INT(LOG(N13)))-ROUND(96*(LOG(N13)-INT(LOG(N13))),0)<0,ROUND(96*(LOG(N13)-INT(LOG(N13))),0)-1,ROUND(96*(LOG(N13)-INT(LOG(N13))),0))/96))*POWER(10,INT(LOG(N13))-2))) ->  | P13: Ω
A14: 2.2 | B14: =IF(IF((B$3*10^12-$A15)*(B$3*10^12-$A14)*-1<0,0,1)*IF(ABS(B$3*10^12-$A15)>(B$3*10^12-$A14),$A14,$A15)=B15,0,IF((B$3*10^12-$A15)*(B$3*10^12-$A14)*-1<0,0,1)*IF(ABS(B$3*10^12-$A15)>(B$3*10^12-$A14),$A14,$A15)) ->  | C14: 0 | D14: 0 | E14: 0 | F14: 0
A15: 2.7 | C15: 0 | D15: 0 | E15: 0 | F15: 0
A16: 3.3 | C16: 0 | D16: 0 | E16: 0 | F16: 0 | M16: Rs | N16: =Rs_ideal*1000 ->  | O16: =IF(N16=0,0,IF(N16>(INT(0.5+100*POWER(10,IF(96*(LOG(N16)-INT(LOG(N16)))-ROUND(96*(LOG(N16)-INT(LOG(N16))),0)<0,ROUND(96*(LOG(N16)-INT(LOG(N16))),0)-1,ROUND(96*(LOG(N16)-INT(LOG(N16))),0))/96))*POWER(10,INT(LOG(N16))-2)+INT(0.5+100*POWER(10,(IF(96*(LOG(N16)-INT(LOG(N16)))-ROUND(96*(LOG(N16)-INT(LOG(N16))),0)<0,ROUND(96*(LOG(N16)-INT(LOG(N16))),0)-1,ROUND(96*(LOG(N16)-INT(LOG(N16))),0))+1)/96))*POWER(10,INT(LOG(N16))-2))/2,INT(0.5+100*POWER(10,(IF(96*(LOG(N16)-INT(LOG(N16)))-ROUND(96*(LOG(N16)-INT(LOG(N16))),0)<0,ROUND(96*(LOG(N16)-INT(LOG(N16))),0)-1,ROUND(96*(LOG(N16)-INT(LOG(N16))),0))+1)/96))*POWER(10,INT(LOG(N16))-2),INT(0.5+100*POWER(10,IF(96*(LOG(N16)-INT(LOG(N16)))-ROUND(96*(LOG(N16)-INT(LOG(N16))),0)<0,ROUND(96*(LOG(N16)-INT(LOG(N16))),0)-1,ROUND(96*(LOG(N16)-INT(LOG(N16))),0))/96))*POWER(10,INT(LOG(N16))-2))) ->  | P16: mΩ
A17: 3.9 | C17: 0 | D17: 0 | E17: 0 | F17: 0 | M17: Cres | N17: =Cres ->  | O17: =G4*1000000000000 ->  | P17: pF
A18: 4.7 | C18: 0 | D18: 0 | E18: 0 | F18: 0
A19: 5.6 | C19: 0 | D19: 0 | E19: 0 | F19: 0
A20: 6.8 | C20: 0 | D20: 0 | E20: 0 | F20: 0
A21: 8.2 | C21: 0 | D21: 0 | E21: 0 | F21: 0
A22: 10 | C22: 0 | D22: 0 | E22: 0 | F22: 0 | M22: Cdither | N22: =Cdither_init ->  | O22: =H4 -> 
A23: 12 | C23: 0 | D23: 0 | E23: 0 | F23: 0
A24: 15 | C24: 0 | D24: 0 | E24: 0 | F24: 0
A25: 18 | C25: 0 | D25: 0 | E25: 0 | F25: 0
A26: 22 | C26: 27 | D26: 0 | E26: 0 | F26: 0
A27: 27 | C27: 0 | D27: 0 | E27: 0 | F27: 0
A28: 33 | C28: 0 | D28: 0 | E28: 0 | F28: 0
A29: 39 | C29: 0 | D29: 0 | E29: 0 | F29: 0
A30: 47 | C30: 0 | D30: 0 | E30: 0 | F30: 0 | M30: Rc1 | N30: =O7/1000&" kΩ" -> 100 kΩ | O30: =O7/1000 -> 100 | P30: kΩ
A31: 56 | C31: 0 | D31: 0 | E31: 0 | F31: 0 | M31: Cc1 | N31: =C4*1000000000&" nF" -> 0.027 nF | O31: =C4*1000000000 -> 0.027 | P31: nF
A32: 68 | C32: 0 | D32: 0 | E32: 0 | F32: 0 | M32: Cc2 | N32: =D4*1000000000000&" pF" -> 0 pF | O32: =D4*1000000000000 -> 0 | P32: pF
A33: 82 | C33: 0 | D33: 0 | E33: 0 | F33: 0
A34: =A22*10 -> 100 | C34: 0 | D34: 0 | E34: 0 | F34: 0 | M34: Rc2 | N34: =O8/1000&" kΩ" ->  | O34: =O8/1000 ->  | P34: kΩ
A35: =A23*10 -> 120 | C35: 0 | D35: 0 | E35: 0 | F35: 0 | M35: Cc3 | N35: =I4*1000000000&" nF" ->  | O35: =I4*1000000000 ->  | P35: nF
A36: 150 | C36: 0 | D36: 0 | E36: 0 | F36: 0 | M36: Cc4 | N36: =J4*1000000000000&" pF" ->  | O36: =J4*1000000000000 ->  | P36: pF
A37: 180 | C37: 0 | D37: 0 | E37: 0 | F37: 0
A38: 220 | C38: 0 | D38: 0 | E38: 0 | F38: 0
A39: 270 | C39: =IF(IF((C$3*10^12-$A40)*(C$3*10^12-$A39)*-1<0,0,1)*IF(ABS(C$3*10^12-$A40)>(C$3*10^12-$A39),$A39,$A40)=C40,0,IF((C$3*10^12-$A40)*(C$3*10^12-$A39)*-1<0,0,1)*IF(ABS(C$3*10^12-$A40)>(C$3*10^12-$A39),$A39,$A40)) -> 0 | D39: 0 | E39: 0 | F39: 0
A40: 330 | C40: 0 | D40: 0 | E40: 0 | F40: 0
A41: 390 | C41: 0 | D41: 0 | E41: 0 | F41: 0
A42: 470 | C42: 0 | D42: 0 | E42: 0 | F42: 0
A43: 560 | C43: 0 | D43: 0 | E43: 0 | F43: 0
A44: 680 | C44: 0 | D44: 0 | E44: 0 | F44: 0
A45: =A33*10 -> 820 | C45: 0 | D45: 0 | E45: 0 | F45: 0
A46: 1000 | C46: 0 | D46: 0 | E46: 0 | F46: 0
A47: 1200 | C47: 0 | D47: 0 | E47: 0 | F47: 0
A48: 1500 | C48: 0 | D48: 0 | E48: 0 | F48: 0
A49: 1800 | C49: 0 | D49: 0 | E49: 0 | F49: 0
A50: 2200 | C50: 0 | D50: 0 | E50: 0 | F50: 0
A51: 2700 | C51: 0 | D51: 0 | E51: 0 | F51: 0
A52: 3300 | C52: 0 | D52: 0 | E52: 0 | F52: 0
A53: 3900 | C53: 0 | D53: 0 | E53: 0 | F53: 0
A54: 4700 | C54: 0 | D54: 0 | E54: 0 | F54: 0
A55: 5600 | C55: 0 | D55: 0 | E55: 0 | F55: 0
A56: 6800 | C56: 0 | D56: 0 | E56: 0 | F56: 0
A57: 8200 | C57: 0 | D57: 0 | E57: 0 | F57: 0
A58: 10000 | C58: 0 | D58: 0 | E58: 0 | F58: 0
A59: 12000 | C59: 0 | D59: 0 | E59: 0 | F59: 0
A60: 15000 | C60: 0 | D60: 0 | E60: 0 | F60: 0
A61: 18000 | C61: 0 | D61: 0 | E61: 0 | F61: 0
A62: 22000 | C62: 0 | D62: 0 | E62: 0 | F62: 0
A63: 27000 | C63: 0 | D63: 0 | E63: 0 | F63: 0
A64: 33000 | C64: 0 | D64: 0 | E64: 0 | F64: 0
A65: 39000 | C65: 0 | D65: 0 | E65: 0 | F65: 0
A66: 47000 | C66: 0 | D66: 0 | E66: 0 | F66: 0
A67: 56000 | C67: 0 | D67: 0 | E67: 0 | F67: 0
A68: 68000 | C68: 0 | D68: 0 | E68: 0 | F68: 0
A69: 82000 | C69: 0 | D69: 0 | E69: 0 | F69: 0 | J69: =IF(IF((J$3*10^12-$A70)*(J$3*10^12-$A69)*-1<0,0,1)*IF(ABS(J$3*10^12-$A70)>(J$3*10^12-$A69),$A69,$A70)=J70,0,IF((J$3*10^12-$A70)*(J$3*10^12-$A69)*-1<0,0,1)*IF(ABS(J$3*10^12-$A70)>(J$3*10^12-$A69),$A69,$A70)) -> 
A70: 100000 | C70: 0 | D70: =IF(IF((D$3*10^12-$A71)*(D$3*10^12-$A70)*-1<0,0,1)*IF(ABS(D$3*10^12-$A71)>(D$3*10^12-$A70),$A70,$A71)=D71,0,IF((D$3*10^12-$A71)*(D$3*10^12-$A70)*-1<0,0,1)*IF(ABS(D$3*10^12-$A71)>(D$3*10^12-$A70),$A70,$A71)) -> 0 | E70: 0 | F70: 0
A71: 120000 | B71: =IF(IF((B$3*10^12-$A72)*(B$3*10^12-$A71)*-1<0,0,1)*IF(ABS(B$3*10^12-$A72)>(B$3*10^12-$A71),$A71,$A72)=B72,0,IF((B$3*10^12-$A72)*(B$3*10^12-$A71)*-1<0,0,1)*IF(ABS(B$3*10^12-$A72)>(B$3*10^12-$A71),$A71,$A72)) ->  | C71: =IF(IF((C$3*10^12-$A72)*(C$3*10^12-$A71)*-1<0,0,1)*IF(ABS(C$3*10^12-$A72)>(C$3*10^12-$A71),$A71,$A72)=C72,0,IF((C$3*10^12-$A72)*(C$3*10^12-$A71)*-1<0,0,1)*IF(ABS(C$3*10^12-$A72)>(C$3*10^12-$A71),$A71,$A72)) -> 0 | D71: 0 | E71: 0 | F71: =IF(IF((F$3*10^12-$A72)*(F$3*10^12-$A71)*-1<0,0,1)*IF(ABS(F$3*10^12-$A72)>(F$3*10^12-$A71),$A71,$A72)=F72,0,IF((F$3*10^12-$A72)*(F$3*10^12-$A71)*-1<0,0,1)*IF(ABS(F$3*10^12-$A72)>(F$3*10^12-$A71),$A71,$A72)) -> 0 | G71: =IF(IF((G$3*10^12-$A72)*(G$3*10^12-$A71)*-1<0,0,1)*IF(ABS(G$3*10^12-$A72)>(G$3*10^12-$A71),$A71,$A72)=G72,0,IF((G$3*10^12-$A72)*(G$3*10^12-$A71)*-1<0,0,1)*IF(ABS(G$3*10^12-$A72)>(G$3*10^12-$A71),$A71,$A72)) ->  | H71: =IF(IF((H$3*10^12-$A72)*(H$3*10^12-$A71)*-1<0,0,1)*IF(ABS(H$3*10^12-$A72)>(H$3*10^12-$A71),$A71,$A72)=H72,0,IF((H$3*10^12-$A72)*(H$3*10^12-$A71)*-1<0,0,1)*IF(ABS(H$3*10^12-$A72)>(H$3*10^12-$A71),$A71,$A72)) ->  | I71: =IF(IF((I$3*10^12-$A72)*(I$3*10^12-$A71)*-1<0,0,1)*IF(ABS(I$3*10^12-$A72)>(I$3*10^12-$A71),$A71,$A72)=I72,0,IF((I$3*10^12-$A72)*(I$3*10^12-$A71)*-1<0,0,1)*IF(ABS(I$3*10^12-$A72)>(I$3*10^12-$A71),$A71,$A72)) -> 
A72: 150000 | C72: 0 | D72: 0 | E72: 0 | F72: 0
A73: 180000 | C73: 0 | D73: 0 | E73: 0 | F73: 0
A74: 220000 | C74: 0 | D74: 0 | E74: 0 | F74: 0
A75: 270000 | C75: 0 | D75: 0 | E75: 0 | F75: 0
A76: 330000 | C76: 0 | D76: 0 | E76: 0 | F76: 0
A77: 390000 | C77: 0 | D77: 0 | E77: 0 | F77: 0
A78: 470000 | C78: 0 | D78: 0 | E78: 0 | F78: 0
A79: 560000 | C79: 0 | D79: 0 | E79: 0 | F79: 0
A80: 680000 | C80: 0 | D80: 0 | E80: 0 | F80: 0
A81: 820000 | C81: 0 | D81: 0 | E81: 0 | F81: 0
A82: 1000000 | C82: 0 | D82: 0 | E82: 0 | F82: 0
A83: 1200000 | C83: 0 | D83: 0 | E83: 0 | F83: 0
A84: 1500000 | C84: 0 | D84: 0 | E84: 0 | F84: 0
A85: 1800000 | C85: 0 | D85: 0 | E85: 0 | F85: 0
A86: 2200000 | C86: 0 | D86: 0 | E86: 0 | F86: 0
A87: 2700000 | C87: 0 | D87: 0 | E87: 0 | F87: 0
A88: 3300000 | C88: 0 | D88: 0 | E88: 0 | F88: 0
A89: 3900000 | C89: 0 | D89: 0 | E89: 0 | F89: 0
A90: 4700000 | C90: 0 | D90: 0 | E90: 0 | F90: 0
A91: 5600000 | C91: 0 | D91: 0 | E91: 0 | F91: 0
A92: 6800000 | C92: 0 | D92: 0 | E92: 0 | F92: 0
A93: 8200000 | C93: 0 | D93: 0 | E93: 0 | F93: 0
A94: 10000000 | C94: 0 | D94: 0 | E94: 0 | F94: 0
A95: 12000000 | C95: 0 | D95: 0 | E95: 0 | F95: 0
A96: 15000000 | C96: 0 | D96: 0 | E96: 0 | F96: 0
A97: 18000000 | C97: 0 | D97: 0 | E97: 0 | F97: 22000000
A98: 22000000 | C98: 0 | D98: 0 | E98: 22000000 | F98: 0
A99: =A87*10 -> 27000000 | C99: 0 | D99: 0 | E99: 0 | F99: 0
A100: 33000000 | C100: 0 | D100: 0 | E100: 0 | F100: 0
A101: 39000000 | C101: 0 | D101: 0 | E101: 0 | F101: 0
A102: 47000000 | C102: 0 | D102: 0 | E102: 0 | F102: 0
A103: 56000000 | C103: 0 | D103: 0 | E103: 0 | F103: =IF(IF((F$3*10^12-$A104)*(F$3*10^12-$A103)*-1<0,0,1)*IF(ABS(F$3*10^12-$A104)>(F$3*10^12-$A103),$A103,$A104)=F104,0,IF((F$3*10^12-$A104)*(F$3*10^12-$A103)*-1<0,0,1)*IF(ABS(F$3*10^12-$A104)>(F$3*10^12-$A103),$A103,$A104)) -> 0 | G103: =IF(IF((G$3*10^12-$A104)*(G$3*10^12-$A103)*-1<0,0,1)*IF(ABS(G$3*10^12-$A104)>(G$3*10^12-$A103),$A103,$A104)=G104,0,IF((G$3*10^12-$A104)*(G$3*10^12-$A103)*-1<0,0,1)*IF(ABS(G$3*10^12-$A104)>(G$3*10^12-$A103),$A103,$A104)) ->  | H103: =IF(IF((H$3*10^12-$A104)*(H$3*10^12-$A103)*-1<0,0,1)*IF(ABS(H$3*10^12-$A104)>(H$3*10^12-$A103),$A103,$A104)=H104,0,IF((H$3*10^12-$A104)*(H$3*10^12-$A103)*-1<0,0,1)*IF(ABS(H$3*10^12-$A104)>(H$3*10^12-$A103),$A103,$A104)) ->  | I103: =IF(IF((I$3*10^12-$A104)*(I$3*10^12-$A103)*-1<0,0,1)*IF(ABS(I$3*10^12-$A104)>(I$3*10^12-$A103),$A103,$A104)=I104,0,IF((I$3*10^12-$A104)*(I$3*10^12-$A103)*-1<0,0,1)*IF(ABS(I$3*10^12-$A104)>(I$3*10^12-$A103),$A103,$A104)) -> 
A104: 68000000 | C104: 0 | D104: 0 | E104: 0 | F104: 0
A105: 82000000 | C105: 0 | D105: 0 | E105: 0 | F105: 0
A106: 100000000 | C106: 0 | D106: 0 | E106: 0 | F106: 0
A107: 120000000 | C107: 0 | D107: 0 | E107: 0 | F107: 0
A108: 150000000 | C108: 0 | D108: 0 | E108: 0 | F108: 0
A109: 180000000 | C109: 0 | D109: 0 | E109: 0 | F109: 0
A110: 220000000 | C110: 0 | D110: 0 | E110: 0 | F110: 0
A111: 270000000 | C111: 0 | D111: 0 | E111: 0 | F111: 0
A112: 330000000 | C112: 0 | D112: 0 | E112: 0 | F112: 0
A113: 390000000 | C113: 0 | D113: 0 | E113: 0 | F113: 0
A114: 470000000 | C114: 0 | D114: 0 | E114: 0 | F114: 0
A115: 560000000 | C115: 0 | D115: 0 | E115: 0 | F115: 0
A116: 680000000 | C116: 0 | D116: 0 | E116: 0 | F116: 0
A117: 820000000 | C117: 0 | D117: 0 | E117: 0 | F117: 0
A118: 1000000000 | C118: 0 | D118: 0 | E118: 0 | F118: 0
A119: 1200000000 | C119: 0 | D119: 0 | E119: 0 | F119: 0
A120: 1500000000 | C120: 0 | D120: 0 | E120: 0 | F120: 0
A121: 1800000000 | C121: 0 | D121: 0 | E121: 0 | F121: 0
A122: 2200000000 | C122: 0 | D122: 0 | E122: 0 | F122: 0
A123: 2700000000 | C123: 0 | D123: 0 | E123: 0 | F123: 0
A124: 3300000000 | C124: 0 | D124: 0 | E124: 0 | F124: 0
A125: 3900000000 | C125: 0 | D125: 0 | E125: 0 | F125: 0
A126: 4700000000 | C126: 0 | D126: 0 | E126: 0 | F126: 0
A127: 5600000000 | C127: 0 | D127: 0 | E127: 0 | F127: 0
A128: 6800000000 | C128: 0 | D128: 0 | E128: 0 | F128: 0
A129: 8200000000 | C129: 0 | D129: 0 | E129: 0 | F129: 0
A130: 10000000000 | C130: 0 | D130: 0 | E130: 0 | F130: 0
A131: 12000000000 | C131: 0 | D131: 0 | E131: 0 | F131: 0
A132: 15000000000 | C132: 0 | D132: 0 | E132: 0 | F132: 0
A133: 18000000000 | C133: 0 | D133: 0 | E133: 0 | F133: 0 | J133: =IF(IF((J$3*10^12-$A134)*(J$3*10^12-$A133)*-1<0,0,1)*IF(ABS(J$3*10^12-$A134)>(J$3*10^12-$A133),$A133,$A134)=J134,0,IF((J$3*10^12-$A134)*(J$3*10^12-$A133)*-1<0,0,1)*IF(ABS(J$3*10^12-$A134)>(J$3*10^12-$A133),$A133,$A134)) -> 
A134: 22000000000 | C134: 0 | D134: 0 | E134: =IF(IF((E$3*10^12-$A135)*(E$3*10^12-$A134)*-1<0,0,1)*IF(ABS(E$3*10^12-$A135)>(E$3*10^12-$A134),$A134,$A135)=E135,0,IF((E$3*10^12-$A135)*(E$3*10^12-$A134)*-1<0,0,1)*IF(ABS(E$3*10^12-$A135)>(E$3*10^12-$A134),$A134,$A135)) -> 0 | F134: 0 | J134: =IF(IF((J$3*10^12-$A135)*(J$3*10^12-$A134)*-1<0,0,1)*IF(ABS(J$3*10^12-$A135)>(J$3*10^12-$A134),$A134,$A135)=J135,0,IF((J$3*10^12-$A135)*(J$3*10^12-$A134)*-1<0,0,1)*IF(ABS(J$3*10^12-$A135)>(J$3*10^12-$A134),$A134,$A135)) -> 
A135: 27000000000 | B135: =IF(IF((B$3*10^12-$A136)*(B$3*10^12-$A135)*-1<0,0,1)*IF(ABS(B$3*10^12-$A136)>(B$3*10^12-$A135),$A135,$A136)=B136,0,IF((B$3*10^12-$A136)*(B$3*10^12-$A135)*-1<0,0,1)*IF(ABS(B$3*10^12-$A136)>(B$3*10^12-$A135),$A135,$A136)) ->  | C135: =IF(IF((C$3*10^12-$A136)*(C$3*10^12-$A135)*-1<0,0,1)*IF(ABS(C$3*10^12-$A136)>(C$3*10^12-$A135),$A135,$A136)=C136,0,IF((C$3*10^12-$A136)*(C$3*10^12-$A135)*-1<0,0,1)*IF(ABS(C$3*10^12-$A136)>(C$3*10^12-$A135),$A135,$A136)) -> 0 | D135: 0 | E135: 0 | F135: 0
A136: 33000000000 | C136: 0 | D136: 0 | E136: 0 | F136: 0
A137: 39000000000 | C137: 0 | D137: 0 | E137: 0 | F137: 0
A138: 47000000000 | C138: 0 | D138: 0 | E138: 0 | F138: 0
A139: 56000000000 | C139: 0 | D139: 0 | E139: 0 | F139: 0
A140: 68000000000 | C140: 0 | D140: 0 | E140: 0 | F140: 0
A141: 82000000000 | C141: 0 | D141: 0 | E141: 0 | F141: 0
A142: 100000000000 | C142: 0 | D142: 0 | E142: 0 | F142: 0
A143: 120000000000 | C143: 0 | D143: 0 | E143: 0 | F143: 0
A144: 150000000000 | C144: 0 | D144: 0 | E144: 0 | F144: 0
A145: 180000000000 | C145: 0 | D145: 0 | E145: 0 | F145: 0
A146: 220000000000 | C146: 0 | D146: 0 | E146: 0 | F146: 0
A147: 270000000000 | C147: 0 | D147: 0 | E147: 0 | F147: 0
A148: 330000000000 | C148: 0 | D148: 0 | E148: 0 | F148: 0
A149: 390000000000 | C149: 0 | D149: 0 | E149: 0 | F149: 0
A150: 470000000000 | C150: 0 | D150: 0 | E150: 0 | F150: 0
A151: 560000000000 | C151: 0 | D151: 0 | E151: 0 | F151: 0
A152: 680000000000 | C152: 0 | D152: 0 | E152: 0 | F152: 0
A153: 820000000000 | C153: 0 | D153: 0 | E153: 0 | F153: 0
A154: 1000000000000 | C154: 0 | D154: 0 | E154: 0 | F154: 0
A155: 1200000000000 | C155: 0 | D155: 0 | E155: 0 | F155: 0
A156: 1500000000000 | C156: 0 | D156: 0 | E156: 0 | F156: 0
A157: 1800000000000 | C157: 0 | D157: 0 | E157: 0 | F157: 0
A158: 2200000000000 | C158: 0 | D158: 0 | E158: 0 | F158: 0
A159: 2700000000000 | C159: 2700000000000 | D159: 0 | E159: 2700000000000 | F159: 2700000000000

Sheet Snubber (hidden)
C1: UNITS | D1: STD UNITS
A2: Frequency of Ringing | B2: 85 | C2: MHz | D2: =B2*1000000 -> 85000000 | E2: Hz
A3: SW capacitance | B3: 3000 | C3: pF | D3: =B3*0.000000000001 -> 3e-09 | E3: F
A4: Lpar | B4: =1000000000*1/((D2*2*3.14159)^2*D3) -> 1.168643077 | C4: nH | D4: =B4/1000000000 -> 1.168643077e-09 | E4: H
A5: Csnub | B5: =4*B3 -> 12000 | C5: pF | D5: =B5*0.000000000001 -> 1.2e-08 | E5: F
A6: Rsnub | B6: =SQRT(D4/D3) -> 0.6241375589 | C6: Ω | D6: =B6 -> 0.6241375589 | E6: Ω

Sheet Parallel Output Caps (hidden)
A4: Fsw | B4: =Fsw -> 2200000
A6: C1 | B6: 20 | C6: uF | D6: =B6/1000000 -> 2e-05 | E6: F
A7: R1 | B7: 0.5 | C7: mOhms | D7: =B7/1000 -> 0.0005 | E7: Ohms
A9: C2 | B9: 68 | C9: uF | D9: =B9/1000000 -> 6.8e-05 | E9: F
A10: R2 | B10: 20 | C10: mOhms | D10: =B10/1000 -> 0.02 | E10: Ohms
A13: I1 | B13: =(D6/(D6+D9))*SQRT((D10*D9*B4)^2+1)/SQRT((((D7+D10)*D6*D9/(D9+D6))*B4)^2+1) -> 0.5881964666 | C13: %
A14: I2 | B14: =1-B13 -> 0.4118035334 | C14: %
A16: I1 | B16: =B13*(Iripple1/(2*SQRT(3))) ->  | C16: A
A17: I2 | B17: =B14*(Iripple1/(2*SQRT(3))) ->  | C17: A
